Workbook

Sheet Anleitung
A1: Dokumentation des Sprecherprogrammes
A3: Überblick
B4: Einsatzbereich des Sprecherprogrammes
C5: Das Sprecherprogramm wurde entwickelt, um in Österreich Einzelkonkurrenzen und Mannschaftsmeisterschaftskämpfe mit 2 Mannschaften abzuwickeln. Ein internationaler Einsatz oder ein Einsatz in anderen Ländern ist denkbar, aber durch die enge Anbindung der Österreichischen Athletendatenbank (diese ist in einem eigenen Blatt in dieser Arbeitsmappe enthalten) ist der Fokus klar auf österreichische Wettkämpfe gelegt.
C9: Einige Highlights der Konigurierbarkeit * Verschiedene Einstellungen sind als "Einstellungssets" hinterlegt, auch ohne Hintergrundkenntnisse kann leicht auf ein anderes Set umgestellt werden. * die Steigerungshöhe ist normalerweise 1kg, kann aber auch umgestellt werden. * bis zu 20 Kategorien können frei definiert werden * bis zu 10 Auswertungsgruppen können frei definiert werden * das Sprecherprogramm ist mehrsprachig, zur Zeit kann zwischen Deutsch, Englisch und Slowakisch gewählt werden.
C16: Einige Highlights zur Wiegeliste * Athleten werden über Eingabe der Passnummer bzw. der ID-Nummer gefunden * Eine Suchhilfe nach Namen ist vorhanden * Nicht in der Athletendatei gelistete Athleten können im Fußbereich in einer Hilfstabelle erfasst und dann in der Wiegeliste zugeordnet werden. * Diverse Prüfungen zeigen Fehleingaben rot an (doppelte Startnummern, etc) * Die Athleten können in der Reihenfolge ihrer Abwaage erfasst werden, die Reihung in der Wettkampfmaske nach Kategorie/Startnummer erfolgt automatisch
C23: Allgemeine Highlights zu den Wettkampf-Erfassungsmasken * der Aufruf der Athleten erfolgt gemäß den allgemeinen Steigerungsregeln automatisch * Am Bildschirm wird Reißen und Stoßen gleichzeitig angezeigt. Das verbessert den Gesamtinformationsgehalt, macht allerdings auch einzelne Felder kleiner * Hat ein Athlet das Reißen abgeschlossen wird er am Ende der Steigerungsliste mit seiner Stoßlast wieder eignereiht. Damit kann auch während des Reißens abgeschätzt werden, wie lange die Wartezeit zum eigenen ersten Stoßversuch ist
C30: Einige Highlights für Einzelkonkurrenzen: * Damen und Herren können in der gleichen Gruppe starten und auf Wunsch die Versuche der Damen (15kg Stange) vorab gereiht werden * Das Programm unterstützt den Start mehrerer Kategorien in der gleichen Gruppe gleichzeitig (jede Kategorie wird gesondert gewertet) * Bei der Versuchsankündigung wird die mit dem Versuch erreichare Platzierung angezeigt * Es können bis zu 10 verschiedene Auswertungskategorien definiert werden, die automatisch gereiht werden * neben einem normalen Protokoll kann auch eine sortierte Ergebnisliste gedruckt werden * Exportfunktionen ermöglichen den Datenaustausch mit dem Statistik-Tool
C37: Einige Highlights für Mannschaftskonkurrenzen * Dieser Bereich ist noch ganz neu, einige Spezialitäten werden noch ergänzt. Zur Zeit ist nur die Basisfunktionalität gegeben: Durchführung eines Mannschaftswettkampfes mit 2 Mannschaften, Anzeige des aktuellen Zwischenstandes sowie Protokolldruck nach dem Wettkampf.
B41: Allgemeine Eigenschaften des Sprecherprogrammes
C42: Das "Sprecherprogramm" ist im eigentlichen Sinne kein Programm, sondern eine EXCEL Arbeitsmappe mit ausgeklügelten Formeln. Es enthält keinerlei Makros oder Programmcode. Deshalb ist es auch mit allen Office Versionen ab Office 97 kompatibel. Aus dem Verzicht auf Makros ergibt sich auch, dass gewisse automatische Funktionen wie beispielsweise eine automatische Positionierung des Cursors nicht realisierbar sind. Für die Gesamtbedienung stellt das aber keinen nennenswerten Nachteil dar. Über bedingte Formatierungen wird farblich angezeigt, in welcher Zeile als nächstes eine Eingabe erwartet wird. Erfahrungen in der Praxis haben gezeigt, dass die meisten Anwender auf Anhieb gut mit der Bedienung zurecht kommen.
B49: Ablauf eine Einsatzes
E50: Achtung: Öffnen Sie NIEMALS den eingestellten Blattschutz, sonst können sie wichtige Formeln überschreiben oder löschen. Grundregel: gelbe Felder sind zum Beschreiben gedacht, anders gefärbte Felder sind meistens Eingabegeschätzt. In den Wettkampfmasken selbst dürfen nur die weißen Gewichtsfelder und die Statusfelder des Gewichts geändert (befüllt, gelöscht, etc.) werden, alle anderen Bereiche erhalten ihre Inhalte mittels Formeln aus anderen Masken. Jede Änderung dieser Felder zerstört die Funktionsweise des Programmes.
C51: 1 | E51: Zu Beginn ist Sicherzustellen, dass das Programm "leer" ist, daher: keine Leistungen sind in der Wettkampfmaske erfasst (gegebenenfalls die dort eingetragenen Reiß- und Stoßleistungen löschen), und noch keine Athleten in der Wiegeliste zugeordnet sind (gegebenenfalls die Wiegelisteninhalte löschen).
C52: 2 | E52: Wählen des Einstellungssets (dies passiert im Blatt "Einstellung" durch Angabe einer entsprechenden Set-Nummer).
C53: 3 | E53: Wechsel in die Wiegeliste und Pflege der Kopfdaten des Wettkampfes (Datum, Bezeichnung, Startzeiten, Schiedsrichter….)
C54: 5 | E54: Erfassen der Athleten in der Wiegeliste
C55: 6 | E55: Sobald alle Athleten in der Wiegeliste eingetragen und vollständig gepflegt sind (Pass/Id angegeben, Startnummer angegeben, Körpergewicht angegeben, Anfangsgewichte angegeben, Kategorie zugeordnet, Auswertungsgruppen zugeordnet) kann man in die Wettkampfmaske wechseln. Achtung: Mannschaftsmeisterschaften und EInzelkonkurrenzen sind in 2 verschiedenen Blättern abgebildet.
C56: 7 | E56: Durchführen des Wettkampfes: die Startgewichte aus der Wiegeliste werden automatisch für die Reihung der Versuche verwendet, können aber jederzeit durch Angabe eines anderen Gewichts im entsprechenden Versuchsfeld überschrieben werden. Jedes Versuchsfeld besteht in Wirklichkeit aus 2 Feldern - vorne steht das Feld für die Last, gleich dahinter das (kleine) Feld für den "Status" des Versuchs. Ist der Status noch leer ist der Versuch "geplant", daher: noch nicht absolviert. Die List wird daher auch noch nicht ins Ergebnis eingerechnet. Durch Eingabe eines "+" in das Statusfeld erklärt man den Versuch "gültig". Das Gewicht wird dann blau hinterlegt, die Last ins Resultat eingerechnet. Durch EIngabe eines "-" in das Statusfeld erklärt man den Verusch "ungültig". Das Gewicht wird dann rot hinterlegt. Ein kleines Übungsfeld ist unten in der Dokumentation eingebaut, dort kann man die Bedienung ausprobieren.
C57: 8 | E57: Sind alle Versuche absolviert wechselt man in den Protokolldruck. Neben einem Gesamtprotokoll auf einer Seite kann man auch eine sortierte Ergebnisliste drucken.
B59: Bedienung der Wettkampfmaske - Gewichts- und Statusfeld eines Versuches
E62: Optisch sieht das nach einem Eingabefeld aus -> Es handelt sich aber um ein Gewichtsfeld und ein Statusfeld dahinter. | F62: 100 | H62: <- leer: geplanter Versuch <- "+" : gültiger Versuch <- "-" : ungültiger Versuch | AO62: =IF(G62="",1,IF(G62="+",2,IF(G62="-",3,0))) -> 1
F63: Gewicht -> | G63: Status ->
B70: Copyright / Nutzungsbedingungen
E71: Entwickler: Markus Koch
E72: mail: sportwart.gewichtheben@gmail.com
E74: Das Programm wird im Zustand "wie es ist" zur freien Verwendung zur Verfügung gestellt.
E75: Jegliche Haftung für Probleme mit diesem Programm, insbesondere für mögliche Folgeschäden, wird ausgeschlossen.
E77: Es werden keine Kosten verrechnet.
E78: Statt einer Verrechnung wird gebeten, eine kleine Spende auf das Konto der Gewichthebernachwuchsförderung zu überweisen.
E80: Neue Versionen des Programmes werden auf der Seite des ÖGV bereitgestellt (www.gewichtheben.net)
E81: Da auch die aktuelle Athletendatei nicht dazugelinkt wird, sondern direkt in einem Datenblatt enthalten ist, lohnt es sich, hier neue
E82: Versionen auch dann herunterzuladen, wenn es keine technischen Neuerungen gibt.

Sheet Vorerfassung
A1: Vorerfassung von Athleten, die nicht in der Athletendatenbank gelistet sind
F3: ="Jahr "&YEAR(Wiegeliste!D4) -> Jahr 2015
B4: Alter | C4: HilfsID | D4: Name | E4: Geburtsdatum | F4: Status | G4: Verein EM | H4: Verein MM | I4: Nation | J4: Pass | K4: ID | L4: M/W | M4: Geburtsort | N4: Geburtsland
B5: =IF(D5<>"",YEAR(Wiegeliste!$D$4)-YEAR(E5),"") -> 115 | C5: =Athl.!J989 -> X276 | D5: ANTAL Andre | I5: Ungarn
B6: =IF(D6<>"",YEAR(Wiegeliste!$D$4)-YEAR(E6),"") -> 115 | C6: =Athl.!J990 -> X277 | D6: ZSID Gabor | I6: Ungarn
B7: =IF(D7<>"",YEAR(Wiegeliste!$D$4)-YEAR(E7),"") -> 115 | C7: =Athl.!J991 -> X278 | D7: KAKATICS Mate | I7: Ungarn
B8: =IF(D8<>"",YEAR(Wiegeliste!$D$4)-YEAR(E8),"") -> 115 | C8: =Athl.!J992 -> X279 | D8: RUBCZKY Peter | I8: Ungarn
B9: =IF(D9<>"",YEAR(Wiegeliste!$D$4)-YEAR(E9),"") -> 115 | C9: =Athl.!J993 -> X280 | D9: ZBORIL Stepan | I9: Tschechien
B10: =IF(D10<>"",YEAR(Wiegeliste!$D$4)-YEAR(E10),"") -> 115 | C10: =Athl.!J994 -> X281 | D10: STREICHL Martin | I10: Tschechien
B11: =IF(D11<>"",YEAR(Wiegeliste!$D$4)-YEAR(E11),"") -> 115 | C11: =Athl.!J995 -> X282 | D11: MOSKAL Vlastimil | I11: Tschechien
B12: =IF(D12<>"",YEAR(Wiegeliste!$D$4)-YEAR(E12),"") -> 115 | C12: =Athl.!J996 -> X283 | D12: BJOKOYA Marketa | I12: Tschechien
B13: =IF(D13<>"",YEAR(Wiegeliste!$D$4)-YEAR(E13),"") ->  | C13: =Athl.!J997 -> X284
B14: =IF(D14<>"",YEAR(Wiegeliste!$D$4)-YEAR(E14),"") ->  | C14: =Athl.!J998 -> X285
B15: =IF(D15<>"",YEAR(Wiegeliste!$D$4)-YEAR(E15),"") ->  | C15: =Athl.!J999 -> X286
B16: =IF(D16<>"",YEAR(Wiegeliste!$D$4)-YEAR(E16),"") ->  | C16: =Athl.!J1000 -> X287
B17: =IF(D17<>"",YEAR(Wiegeliste!$D$4)-YEAR(E17),"") ->  | C17: =Athl.!J1001 -> X288
B18: =IF(D18<>"",YEAR(Wiegeliste!$D$4)-YEAR(E18),"") ->  | C18: =Athl.!J1002 -> X289
B19: =IF(D19<>"",YEAR(Wiegeliste!$D$4)-YEAR(E19),"") ->  | C19: =Athl.!J1003 -> X290
B20: =IF(D20<>"",YEAR(Wiegeliste!$D$4)-YEAR(E20),"") ->  | C20: =Athl.!J1004 -> X291
B21: =IF(D21<>"",YEAR(Wiegeliste!$D$4)-YEAR(E21),"") ->  | C21: =Athl.!J1005 -> X292
B22: =IF(D22<>"",YEAR(Wiegeliste!$D$4)-YEAR(E22),"") ->  | C22: =Athl.!J1006 -> X293
B23: =IF(D23<>"",YEAR(Wiegeliste!$D$4)-YEAR(E23),"") ->  | C23: =Athl.!J1007 -> X294
B24: =IF(D24<>"",YEAR(Wiegeliste!$D$4)-YEAR(E24),"") ->  | C24: =Athl.!J1008 -> X295
B25: =IF(D25<>"",YEAR(Wiegeliste!$D$4)-YEAR(E25),"") ->  | C25: =Athl.!J1009 -> X296
B26: =IF(D26<>"",YEAR(Wiegeliste!$D$4)-YEAR(E26),"") ->  | C26: =Athl.!J1010 -> X297
B27: =IF(D27<>"",YEAR(Wiegeliste!$D$4)-YEAR(E27),"") ->  | C27: =Athl.!J1011 -> X298
B28: =IF(D28<>"",YEAR(Wiegeliste!$D$4)-YEAR(E28),"") ->  | C28: =Athl.!J1012 -> X299
B29: =IF(D29<>"",YEAR(Wiegeliste!$D$4)-YEAR(E29),"") ->  | C29: =Athl.!J1013 -> X300
B30: =IF(D30<>"",YEAR(Wiegeliste!$D$4)-YEAR(E30),"") ->  | C30: =Athl.!J1014 -> X301
B31: =IF(D31<>"",YEAR(Wiegeliste!$D$4)-YEAR(E31),"") ->  | C31: =Athl.!J1015 -> X302
B32: =IF(D32<>"",YEAR(Wiegeliste!$D$4)-YEAR(E32),"") ->  | C32: =Athl.!J1016 -> X303
B33: =IF(D33<>"",YEAR(Wiegeliste!$D$4)-YEAR(E33),"") ->  | C33: =Athl.!J1017 -> X304
B34: =IF(D34<>"",YEAR(Wiegeliste!$D$4)-YEAR(E34),"") ->  | C34: =Athl.!J1018 -> X305
B35: =IF(D35<>"",YEAR(Wiegeliste!$D$4)-YEAR(E35),"") ->  | C35: =Athl.!J1019 -> X306
B36: =IF(D36<>"",YEAR(Wiegeliste!$D$4)-YEAR(E36),"") ->  | C36: =Athl.!J1020 -> X307
B37: =IF(D37<>"",YEAR(Wiegeliste!$D$4)-YEAR(E37),"") ->  | C37: =Athl.!J1021 -> X308
B38: =IF(D38<>"",YEAR(Wiegeliste!$D$4)-YEAR(E38),"") ->  | C38: =Athl.!J1022 -> X309
B39: =IF(D39<>"",YEAR(Wiegeliste!$D$4)-YEAR(E39),"") ->  | C39: =Athl.!J1023 -> X310
B40: =IF(D40<>"",YEAR(Wiegeliste!$D$4)-YEAR(E40),"") ->  | C40: =Athl.!J1024 -> X311
B41: =IF(D41<>"",YEAR(Wiegeliste!$D$4)-YEAR(E41),"") ->  | C41: =Athl.!J1025 -> X312
B42: =IF(D42<>"",YEAR(Wiegeliste!$D$4)-YEAR(E42),"") ->  | C42: =Athl.!J1026 -> X313
B43: =IF(D43<>"",YEAR(Wiegeliste!$D$4)-YEAR(E43),"") ->  | C43: =Athl.!J1027 -> X314
B44: =IF(D44<>"",YEAR(Wiegeliste!$D$4)-YEAR(E44),"") ->  | C44: =Athl.!J1028 -> X315
B45: =IF(D45<>"",YEAR(Wiegeliste!$D$4)-YEAR(E45),"") ->  | C45: =Athl.!J1029 -> X316
B46: =IF(D46<>"",YEAR(Wiegeliste!$D$4)-YEAR(E46),"") ->  | C46: =Athl.!J1030 -> X317
B47: =IF(D47<>"",YEAR(Wiegeliste!$D$4)-YEAR(E47),"") ->  | C47: =Athl.!J1031 -> X318
B48: =IF(D48<>"",YEAR(Wiegeliste!$D$4)-YEAR(E48),"") ->  | C48: =Athl.!J1032 -> X319
B49: =IF(D49<>"",YEAR(Wiegeliste!$D$4)-YEAR(E49),"") ->  | C49: =Athl.!J1033 -> X320
B50: =IF(D50<>"",YEAR(Wiegeliste!$D$4)-YEAR(E50),"") ->  | C50: =Athl.!J1034 -> X321
B51: =IF(D51<>"",YEAR(Wiegeliste!$D$4)-YEAR(E51),"") ->  | C51: =Athl.!J1035 -> X322
B52: =IF(D52<>"",YEAR(Wiegeliste!$D$4)-YEAR(E52),"") ->  | C52: =Athl.!J1036 -> X323
B53: =IF(D53<>"",YEAR(Wiegeliste!$D$4)-YEAR(E53),"") ->  | C53: =Athl.!J1037 -> X324
B54: =IF(D54<>"",YEAR(Wiegeliste!$D$4)-YEAR(E54),"") ->  | C54: =Athl.!J1038 -> X325
B55: =IF(D55<>"",YEAR(Wiegeliste!$D$4)-YEAR(E55),"") ->  | C55: =Athl.!J1039 -> X326
B56: =IF(D56<>"",YEAR(Wiegeliste!$D$4)-YEAR(E56),"") ->  | C56: =Athl.!J1040 -> X327
B57: =IF(D57<>"",YEAR(Wiegeliste!$D$4)-YEAR(E57),"") ->  | C57: =Athl.!J1041 -> X328
B58: =IF(D58<>"",YEAR(Wiegeliste!$D$4)-YEAR(E58),"") ->  | C58: =Athl.!J1042 -> X329
B59: =IF(D59<>"",YEAR(Wiegeliste!$D$4)-YEAR(E59),"") ->  | C59: =Athl.!J1043 -> X330
B60: =IF(D60<>"",YEAR(Wiegeliste!$D$4)-YEAR(E60),"") ->  | C60: =Athl.!J1044 -> X331
B61: =IF(D61<>"",YEAR(Wiegeliste!$D$4)-YEAR(E61),"") ->  | C61: =Athl.!J1045 -> X332
B62: =IF(D62<>"",YEAR(Wiegeliste!$D$4)-YEAR(E62),"") ->  | C62: =Athl.!J1046 -> X333
B63: =IF(D63<>"",YEAR(Wiegeliste!$D$4)-YEAR(E63),"") ->  | C63: =Athl.!J1047 -> X334
B64: =IF(D64<>"",YEAR(Wiegeliste!$D$4)-YEAR(E64),"") ->  | C64: =Athl.!J1048 -> X335
B65: =IF(D65<>"",YEAR(Wiegeliste!$D$4)-YEAR(E65),"") ->  | C65: =Athl.!J1049 -> X336
B66: =IF(D66<>"",YEAR(Wiegeliste!$D$4)-YEAR(E66),"") ->  | C66: =Athl.!J1050 -> X337
B67: =IF(D67<>"",YEAR(Wiegeliste!$D$4)-YEAR(E67),"") ->  | C67: =Athl.!J1051 -> X338
B68: =IF(D68<>"",YEAR(Wiegeliste!$D$4)-YEAR(E68),"") ->  | C68: =Athl.!J1052 -> X339
B69: =IF(D69<>"",YEAR(Wiegeliste!$D$4)-YEAR(E69),"") ->  | C69: =Athl.!J1053 -> X340
B70: =IF(D70<>"",YEAR(Wiegeliste!$D$4)-YEAR(E70),"") ->  | C70: =Athl.!J1054 -> X341
B71: =IF(D71<>"",YEAR(Wiegeliste!$D$4)-YEAR(E71),"") ->  | C71: =Athl.!J1055 -> X342
B72: =IF(D72<>"",YEAR(Wiegeliste!$D$4)-YEAR(E72),"") ->  | C72: =Athl.!J1056 -> X343
B73: =IF(D73<>"",YEAR(Wiegeliste!$D$4)-YEAR(E73),"") ->  | C73: =Athl.!J1057 -> X344
B74: =IF(D74<>"",YEAR(Wiegeliste!$D$4)-YEAR(E74),"") ->  | C74: =Athl.!J1058 -> X345
B75: =IF(D75<>"",YEAR(Wiegeliste!$D$4)-YEAR(E75),"") ->  | C75: =Athl.!J1059 -> X346
B76: =IF(D76<>"",YEAR(Wiegeliste!$D$4)-YEAR(E76),"") ->  | C76: =Athl.!J1060 -> X347
B77: =IF(D77<>"",YEAR(Wiegeliste!$D$4)-YEAR(E77),"") ->  | C77: =Athl.!J1061 -> X348
B78: =IF(D78<>"",YEAR(Wiegeliste!$D$4)-YEAR(E78),"") ->  | C78: =Athl.!J1062 -> X349
B79: =IF(D79<>"",YEAR(Wiegeliste!$D$4)-YEAR(E79),"") ->  | C79: =Athl.!J1063 -> X350
B80: =IF(D80<>"",YEAR(Wiegeliste!$D$4)-YEAR(E80),"") ->  | C80: =Athl.!J1064 -> X351
B81: =IF(D81<>"",YEAR(Wiegeliste!$D$4)-YEAR(E81),"") ->  | C81: =Athl.!J1065 -> X352
B82: =IF(D82<>"",YEAR(Wiegeliste!$D$4)-YEAR(E82),"") ->  | C82: =Athl.!J1066 -> X353
B83: =IF(D83<>"",YEAR(Wiegeliste!$D$4)-YEAR(E83),"") ->  | C83: =Athl.!J1067 -> X354
B84: =IF(D84<>"",YEAR(Wiegeliste!$D$4)-YEAR(E84),"") ->  | C84: =Athl.!J1068 -> X355
B85: =IF(D85<>"",YEAR(Wiegeliste!$D$4)-YEAR(E85),"") ->  | C85: =Athl.!J1069 -> X356
B86: =IF(D86<>"",YEAR(Wiegeliste!$D$4)-YEAR(E86),"") ->  | C86: =Athl.!J1070 -> X357
B87: =IF(D87<>"",YEAR(Wiegeliste!$D$4)-YEAR(E87),"") ->  | C87: =Athl.!J1071 -> X358
B88: =IF(D88<>"",YEAR(Wiegeliste!$D$4)-YEAR(E88),"") ->  | C88: =Athl.!J1072 -> X359
B89: =IF(D89<>"",YEAR(Wiegeliste!$D$4)-YEAR(E89),"") ->  | C89: =Athl.!J1073 -> X360
B90: =IF(D90<>"",YEAR(Wiegeliste!$D$4)-YEAR(E90),"") ->  | C90: =Athl.!J1074 -> X361
B91: =IF(D91<>"",YEAR(Wiegeliste!$D$4)-YEAR(E91),"") ->  | C91: =Athl.!J1075 -> X362
B92: =IF(D92<>"",YEAR(Wiegeliste!$D$4)-YEAR(E92),"") ->  | C92: =Athl.!J1076 -> X363
B93: =IF(D93<>"",YEAR(Wiegeliste!$D$4)-YEAR(E93),"") ->  | C93: =Athl.!J1077 -> X364
B94: =IF(D94<>"",YEAR(Wiegeliste!$D$4)-YEAR(E94),"") ->  | C94: =Athl.!J1078 -> X365
B95: =IF(D95<>"",YEAR(Wiegeliste!$D$4)-YEAR(E95),"") ->  | C95: =Athl.!J1079 -> X366
B96: =IF(D96<>"",YEAR(Wiegeliste!$D$4)-YEAR(E96),"") ->  | C96: =Athl.!J1080 -> X367
B97: =IF(D97<>"",YEAR(Wiegeliste!$D$4)-YEAR(E97),"") ->  | C97: =Athl.!J1081 -> X368
B98: =IF(D98<>"",YEAR(Wiegeliste!$D$4)-YEAR(E98),"") ->  | C98: =Athl.!J1082 -> X369
B99: =IF(D99<>"",YEAR(Wiegeliste!$D$4)-YEAR(E99),"") ->  | C99: =Athl.!J1083 -> X370
B100: =IF(D100<>"",YEAR(Wiegeliste!$D$4)-YEAR(E100),"") ->  | C100: =Athl.!J1084 -> X371
B101: =IF(D101<>"",YEAR(Wiegeliste!$D$4)-YEAR(E101),"") ->  | C101: =Athl.!J1085 -> X372
B102: =IF(D102<>"",YEAR(Wiegeliste!$D$4)-YEAR(E102),"") ->  | C102: =Athl.!J1086 -> X373
B103: =IF(D103<>"",YEAR(Wiegeliste!$D$4)-YEAR(E103),"") ->  | C103: =Athl.!J1087 -> X374
B104: =IF(D104<>"",YEAR(Wiegeliste!$D$4)-YEAR(E104),"") ->  | C104: =Athl.!J1088 -> X375
B105: =IF(D105<>"",YEAR(Wiegeliste!$D$4)-YEAR(E105),"") ->  | C105: =Athl.!J1089 -> X376
B106: =IF(D106<>"",YEAR(Wiegeliste!$D$4)-YEAR(E106),"") ->  | C106: =Athl.!J1090 -> X377
B107: =IF(D107<>"",YEAR(Wiegeliste!$D$4)-YEAR(E107),"") ->  | C107: =Athl.!J1091 -> X378
B108: =IF(D108<>"",YEAR(Wiegeliste!$D$4)-YEAR(E108),"") ->  | C108: =Athl.!J1092 -> X379
B109: =IF(D109<>"",YEAR(Wiegeliste!$D$4)-YEAR(E109),"") ->  | C109: =Athl.!J1093 -> X380
B110: =IF(D110<>"",YEAR(Wiegeliste!$D$4)-YEAR(E110),"") ->  | C110: =Athl.!J1094 -> X381
B111: =IF(D111<>"",YEAR(Wiegeliste!$D$4)-YEAR(E111),"") ->  | C111: =Athl.!J1095 -> X382
B112: =IF(D112<>"",YEAR(Wiegeliste!$D$4)-YEAR(E112),"") ->  | C112: =Athl.!J1096 -> X383
B113: =IF(D113<>"",YEAR(Wiegeliste!$D$4)-YEAR(E113),"") ->  | C113: =Athl.!J1097 -> X384
B114: =IF(D114<>"",YEAR(Wiegeliste!$D$4)-YEAR(E114),"") ->  | C114: =Athl.!J1098 -> X385
B115: =IF(D115<>"",YEAR(Wiegeliste!$D$4)-YEAR(E115),"") ->  | C115: =Athl.!J1099 -> X386
B116: =IF(D116<>"",YEAR(Wiegeliste!$D$4)-YEAR(E116),"") ->  | C116: =Athl.!J1100 -> X387
B117: =IF(D117<>"",YEAR(Wiegeliste!$D$4)-YEAR(E117),"") ->  | C117: =Athl.!J1101 -> X388
B118: =IF(D118<>"",YEAR(Wiegeliste!$D$4)-YEAR(E118),"") ->  | C118: =Athl.!J1102 -> X389
B119: =IF(D119<>"",YEAR(Wiegeliste!$D$4)-YEAR(E119),"") ->  | C119: =Athl.!J1103 -> X390
B120: =IF(D120<>"",YEAR(Wiegeliste!$D$4)-YEAR(E120),"") ->  | C120: =Athl.!J1104 -> X391
B121: =IF(D121<>"",YEAR(Wiegeliste!$D$4)-YEAR(E121),"") ->  | C121: =Athl.!J1105 -> X392
B122: =IF(D122<>"",YEAR(Wiegeliste!$D$4)-YEAR(E122),"") ->  | C122: =Athl.!J1106 -> X393
B123: =IF(D123<>"",YEAR(Wiegeliste!$D$4)-YEAR(E123),"") ->  | C123: =Athl.!J1107 -> X394
B124: =IF(D124<>"",YEAR(Wiegeliste!$D$4)-YEAR(E124),"") ->  | C124: =Athl.!J1108 -> X395
B125: =IF(D125<>"",YEAR(Wiegeliste!$D$4)-YEAR(E125),"") ->  | C125: =Athl.!J1109 -> X396
B126: =IF(D126<>"",YEAR(Wiegeliste!$D$4)-YEAR(E126),"") ->  | C126: =Athl.!J1110 -> X397
B127: =IF(D127<>"",YEAR(Wiegeliste!$D$4)-YEAR(E127),"") ->  | C127: =Athl.!J1111 -> X398
B128: =IF(D128<>"",YEAR(Wiegeliste!$D$4)-YEAR(E128),"") ->  | C128: =Athl.!J1112 -> X399
B129: =IF(D129<>"",YEAR(Wiegeliste!$D$4)-YEAR(E129),"") ->  | C129: =Athl.!J1113 -> X400
B130: =IF(D130<>"",YEAR(Wiegeliste!$D$4)-YEAR(E130),"") ->  | C130: =Athl.!J1114 -> X401
B131: =IF(D131<>"",YEAR(Wiegeliste!$D$4)-YEAR(E131),"") ->  | C131: =Athl.!J1115 -> X402
B132: =IF(D132<>"",YEAR(Wiegeliste!$D$4)-YEAR(E132),"") ->  | C132: =Athl.!J1116 -> X403
B133: =IF(D133<>"",YEAR(Wiegeliste!$D$4)-YEAR(E133),"") ->  | C133: =Athl.!J1117 -> X404
B134: =IF(D134<>"",YEAR(Wiegeliste!$D$4)-YEAR(E134),"") ->  | C134: =Athl.!J1118 -> X405
B135: =IF(D135<>"",YEAR(Wiegeliste!$D$4)-YEAR(E135),"") ->  | C135: =Athl.!J1119 -> X406
B136: =IF(D136<>"",YEAR(Wiegeliste!$D$4)-YEAR(E136),"") ->  | C136: =Athl.!J1120 -> X407
B137: =IF(D137<>"",YEAR(Wiegeliste!$D$4)-YEAR(E137),"") ->  | C137: =Athl.!J1121 -> X408
B138: =IF(D138<>"",YEAR(Wiegeliste!$D$4)-YEAR(E138),"") ->  | C138: =Athl.!J1122 -> X409
B139: =IF(D139<>"",YEAR(Wiegeliste!$D$4)-YEAR(E139),"") ->  | C139: =Athl.!J1123 -> X410
B140: =IF(D140<>"",YEAR(Wiegeliste!$D$4)-YEAR(E140),"") ->  | C140: =Athl.!J1124 -> X411
B141: =IF(D141<>"",YEAR(Wiegeliste!$D$4)-YEAR(E141),"") ->  | C141: =Athl.!J1125 -> X412
B142: =IF(D142<>"",YEAR(Wiegeliste!$D$4)-YEAR(E142),"") ->  | C142: =Athl.!J1126 -> X413
B143: =IF(D143<>"",YEAR(Wiegeliste!$D$4)-YEAR(E143),"") ->  | C143: =Athl.!J1127 -> X414
B144: =IF(D144<>"",YEAR(Wiegeliste!$D$4)-YEAR(E144),"") ->  | C144: =Athl.!J1128 -> X415
B145: =IF(D145<>"",YEAR(Wiegeliste!$D$4)-YEAR(E145),"") ->  | C145: =Athl.!J1129 -> X416
B146: =IF(D146<>"",YEAR(Wiegeliste!$D$4)-YEAR(E146),"") ->  | C146: =Athl.!J1130 -> X417
B147: =IF(D147<>"",YEAR(Wiegeliste!$D$4)-YEAR(E147),"") ->  | C147: =Athl.!J1131 -> X418
B148: =IF(D148<>"",YEAR(Wiegeliste!$D$4)-YEAR(E148),"") ->  | C148: =Athl.!J1132 -> X419
B149: =IF(D149<>"",YEAR(Wiegeliste!$D$4)-YEAR(E149),"") ->  | C149: =Athl.!J1133 -> X420
B150: =IF(D150<>"",YEAR(Wiegeliste!$D$4)-YEAR(E150),"") ->  | C150: =Athl.!J1134 -> X421
B151: =IF(D151<>"",YEAR(Wiegeliste!$D$4)-YEAR(E151),"") ->  | C151: =Athl.!J1135 -> X422
B152: =IF(D152<>"",YEAR(Wiegeliste!$D$4)-YEAR(E152),"") ->  | C152: =Athl.!J1136 -> X423
B153: =IF(D153<>"",YEAR(Wiegeliste!$D$4)-YEAR(E153),"") ->  | C153: =Athl.!J1137 -> X424
B154: =IF(D154<>"",YEAR(Wiegeliste!$D$4)-YEAR(E154),"") ->  | C154: =Athl.!J1138 -> X425
B155: =IF(D155<>"",YEAR(Wiegeliste!$D$4)-YEAR(E155),"") ->  | C155: =Athl.!J1139 -> X426
B156: =IF(D156<>"",YEAR(Wiegeliste!$D$4)-YEAR(E156),"") ->  | C156: =Athl.!J1140 -> X427
B157: =IF(D157<>"",YEAR(Wiegeliste!$D$4)-YEAR(E157),"") ->  | C157: =Athl.!J1141 -> X428
B158: =IF(D158<>"",YEAR(Wiegeliste!$D$4)-YEAR(E158),"") ->  | C158: =Athl.!J1142 -> X429
B159: =IF(D159<>"",YEAR(Wiegeliste!$D$4)-YEAR(E159),"") ->  | C159: =Athl.!J1143 -> X430
B160: =IF(D160<>"",YEAR(Wiegeliste!$D$4)-YEAR(E160),"") ->  | C160: =Athl.!J1144 -> X431
B161: =IF(D161<>"",YEAR(Wiegeliste!$D$4)-YEAR(E161),"") ->  | C161: =Athl.!J1145 -> X432
B162: =IF(D162<>"",YEAR(Wiegeliste!$D$4)-YEAR(E162),"") ->  | C162: =Athl.!J1146 -> X433
B163: =IF(D163<>"",YEAR(Wiegeliste!$D$4)-YEAR(E163),"") ->  | C163: =Athl.!J1147 -> X434
B164: =IF(D164<>"",YEAR(Wiegeliste!$D$4)-YEAR(E164),"") ->  | C164: =Athl.!J1148 -> X435
B165: =IF(D165<>"",YEAR(Wiegeliste!$D$4)-YEAR(E165),"") ->  | C165: =Athl.!J1149 -> X436
B166: =IF(D166<>"",YEAR(Wiegeliste!$D$4)-YEAR(E166),"") ->  | C166: =Athl.!J1150 -> X437
B167: =IF(D167<>"",YEAR(Wiegeliste!$D$4)-YEAR(E167),"") ->  | C167: =Athl.!J1151 -> X438
B168: =IF(D168<>"",YEAR(Wiegeliste!$D$4)-YEAR(E168),"") ->  | C168: =Athl.!J1152 -> X439
B169: =IF(D169<>"",YEAR(Wiegeliste!$D$4)-YEAR(E169),"") ->  | C169: =Athl.!J1153 -> X440
B170: =IF(D170<>"",YEAR(Wiegeliste!$D$4)-YEAR(E170),"") ->  | C170: =Athl.!J1154 -> X441
B171: =IF(D171<>"",YEAR(Wiegeliste!$D$4)-YEAR(E171),"") ->  | C171: =Athl.!J1155 -> X442
B172: =IF(D172<>"",YEAR(Wiegeliste!$D$4)-YEAR(E172),"") ->  | C172: =Athl.!J1156 -> X443
B173: =IF(D173<>"",YEAR(Wiegeliste!$D$4)-YEAR(E173),"") ->  | C173: =Athl.!J1157 -> X444
B174: =IF(D174<>"",YEAR(Wiegeliste!$D$4)-YEAR(E174),"") ->  | C174: =Athl.!J1158 -> X445
B175: =IF(D175<>"",YEAR(Wiegeliste!$D$4)-YEAR(E175),"") ->  | C175: =Athl.!J1159 -> X446
B176: =IF(D176<>"",YEAR(Wiegeliste!$D$4)-YEAR(E176),"") ->  | C176: =Athl.!J1160 -> X447
B177: =IF(D177<>"",YEAR(Wiegeliste!$D$4)-YEAR(E177),"") ->  | C177: =Athl.!J1161 -> X448
B178: =IF(D178<>"",YEAR(Wiegeliste!$D$4)-YEAR(E178),"") ->  | C178: =Athl.!J1162 -> X449
B179: =IF(D179<>"",YEAR(Wiegeliste!$D$4)-YEAR(E179),"") ->  | C179: =Athl.!J1163 -> X450
B180: =IF(D180<>"",YEAR(Wiegeliste!$D$4)-YEAR(E180),"") ->  | C180: =Athl.!J1164 -> X451
B181: =IF(D181<>"",YEAR(Wiegeliste!$D$4)-YEAR(E181),"") ->  | C181: =Athl.!J1165 -> X452
B182: =IF(D182<>"",YEAR(Wiegeliste!$D$4)-YEAR(E182),"") ->  | C182: =Athl.!J1166 -> X453
B183: =IF(D183<>"",YEAR(Wiegeliste!$D$4)-YEAR(E183),"") ->  | C183: =Athl.!J1167 -> X454
B184: =IF(D184<>"",YEAR(Wiegeliste!$D$4)-YEAR(E184),"") ->  | C184: =Athl.!J1168 -> X455
B185: =IF(D185<>"",YEAR(Wiegeliste!$D$4)-YEAR(E185),"") ->  | C185: =Athl.!J1169 -> X456
B186: =IF(D186<>"",YEAR(Wiegeliste!$D$4)-YEAR(E186),"") ->  | C186: =Athl.!J1170 -> X457
B187: =IF(D187<>"",YEAR(Wiegeliste!$D$4)-YEAR(E187),"") ->  | C187: =Athl.!J1171 -> X458
B188: =IF(D188<>"",YEAR(Wiegeliste!$D$4)-YEAR(E188),"") ->  | C188: =Athl.!J1172 -> X459
B189: =IF(D189<>"",YEAR(Wiegeliste!$D$4)-YEAR(E189),"") ->  | C189: =Athl.!J1173 -> X460
B190: =IF(D190<>"",YEAR(Wiegeliste!$D$4)-YEAR(E190),"") ->  | C190: =Athl.!J1174 -> X461
B191: =IF(D191<>"",YEAR(Wiegeliste!$D$4)-YEAR(E191),"") ->  | C191: =Athl.!J1175 -> X462
B192: =IF(D192<>"",YEAR(Wiegeliste!$D$4)-YEAR(E192),"") ->  | C192: =Athl.!J1176 -> X463
B193: =IF(D193<>"",YEAR(Wiegeliste!$D$4)-YEAR(E193),"") ->  | C193: =Athl.!J1177 -> X464
B194: =IF(D194<>"",YEAR(Wiegeliste!$D$4)-YEAR(E194),"") ->  | C194: =Athl.!J1178 -> X465
B195: =IF(D195<>"",YEAR(Wiegeliste!$D$4)-YEAR(E195),"") ->  | C195: =Athl.!J1179 -> X466
B196: =IF(D196<>"",YEAR(Wiegeliste!$D$4)-YEAR(E196),"") ->  | C196: =Athl.!J1180 -> X467
B197: =IF(D197<>"",YEAR(Wiegeliste!$D$4)-YEAR(E197),"") ->  | C197: =Athl.!J1181 -> X468
B198: =IF(D198<>"",YEAR(Wiegeliste!$D$4)-YEAR(E198),"") ->  | C198: =Athl.!J1182 -> X469
B199: =IF(D199<>"",YEAR(Wiegeliste!$D$4)-YEAR(E199),"") ->  | C199: =Athl.!J1183 -> X470
B200: =IF(D200<>"",YEAR(Wiegeliste!$D$4)-YEAR(E200),"") ->  | C200: =Athl.!J1184 -> X471
B201: =IF(D201<>"",YEAR(Wiegeliste!$D$4)-YEAR(E201),"") ->  | C201: =Athl.!J1185 -> X472
... 28 more rows

Sheet Wiegeliste
B1: ="Wiegeliste für "&Wiegeliste!D3 -> Wiegeliste für Klubmeisterschaft | CE1: 100000000 | DC1: 1000
BQ2: =YEAR(D4) -> 2015 | BY2: HEIMM | BZ2: =VLOOKUP(BY2,Gruppe,2,FALSE) ->  | CA2: =COUNTIF($BZ$20:$BZ$69,BZ2) -> 0 | HE2: Mannschaft | HF2: Liga
B3: Wettkampf: | D3: Klubmeisterschaft | J3: Pause zwischen Reißen und Stoßen: | T3: 15 | U3: Min. | X3: Einstellung: | Y3: 1 | AA3: =Einstellung!E8& " ("&Einstellung!B8&")" -> Landesmeisterschaft von Niederösterreich (1) | BQ3: =VLOOKUP(BQ2,Jahre,3) -> 15 | BY3: GASTM | BZ3: =VLOOKUP(BY3,Gruppe,2,FALSE) ->  | CA3: =COUNTIF($BZ$20:$BZ$69,BZ3) -> 0 | HE3: =IF(Vereine!E3=0,"",Vereine!E3) -> AKIDOR | HF3: =IF(Vereine!V2=0,"",Vereine!V2) -> Bundesliga
B4: Datum des Wettkampfes: | D4: 2015-02-14 | HE4: =IF(Vereine!E4=0,"",Vereine!E4) -> BHÄ | HF4: =IF(Vereine!V3=0,"",Vereine!V3) -> Nationalliga West
B5: Austragungsort: | D5: Mödling | J5: Bei Mannschaftskämpfen | Y5: JP Reissen | AC5: JP Stossen | BZ5: Leerezeilen MM | CA5: =IF(CA2<6,6-CA2,0) -> 6 | HE5: =IF(Vereine!E5=0,"",Vereine!E5) -> BRM | HF5: =IF(Vereine!V4=0,"",Vereine!V4) -> Nationalliga Ost
B6: Zeit von/bis | D6: 17:00:00 | E6: 20:00:00 | J6: Heimmannschaft: | Q6: KSV-Mödling | CA6: =IF(CA5>0,CA5-1,0) -> 5 | HE6: =IF(Vereine!E6=0,"",Vereine!E6) -> FEL | HF6: =IF(Vereine!V5=0,"",Vereine!V5) -> Nationalliga
B7: Hauptkampfricher: | D7: Petrik Fritz | Q7: =IF(N7<>"",IF(ISERROR(VLOOKUP(N7,Vereine!E3:F51,2,FALSE)),"",VLOOKUP(N7,Vereine!E3:F51,2,FALSE)),"") ->  | Y7: =IF(HB17=0,"","Starter: "&HB19) ->  | CA7: =IF(CA6>0,CA6-1,0) -> 4 | HE7: =IF(Vereine!E7=0,"",Vereine!E7) -> HAR | HF7: =IF(Vereine!V6=0,"",Vereine!V6) -> Reg.Liga Wien/NÖ
B8: Seitenrichter: | D8: Seitenricher 1 | J8: Gastmannschaft: | Q8: Gäste | CA8: =IF(CA7>0,CA7-1,0) -> 3 | HE8: =IF(Vereine!E8=0,"",Vereine!E8) -> LAL | HF8: =IF(Vereine!V7=0,"",Vereine!V7) -> 
B9: Seitenrichter: | D9: Seitenricher 2 | Q9: =IF(N9<>"",IF(ISERROR(VLOOKUP(N9,Vereine!E3:F51,2,FALSE)),"",VLOOKUP(N9,Vereine!E3:F51,2,FALSE)),"") ->  | Y9: =IF(HB17=0,"","Starter: "&HC19) ->  | CA9: =IF(CA8>0,CA8-1,0) -> 2 | HE9: =IF(Vereine!E9=0,"",Vereine!E9) -> LOCWEL | HF9: =IF(Vereine!V8=0,"",Vereine!V8) -> 
B10: Listenführer: | D10: Zeinlinger Andreas | J10: Liga: | HE10: =IF(Vereine!E10=0,"",Vereine!E10) -> ÖBL
CE11: 10000 | HE11: =IF(Vereine!E11=0,"",Vereine!E11) -> RUM
B12: Name | C12: Alter | D12: Pass/ID | E12: Geburtsjahr | J12: =Einstellung!L32 -> U15-Zweikampf | K12: =Einstellung!M32 -> U17-Zweikampf | L12: =Einstellung!N32 -> U20-Zweikampf | M12: =Einstellung!O32 -> U23-Zweikampf | N12: =Einstellung!P32 -> Allgemeine Klasse | O12: =Einstellung!Q32 -> Reißen allg. Klasse | P12: =Einstellung!R32 -> Stoßen allg. Klasse | Q12: =Einstellung!S32 -> U15 nach Sinclair | R12: =Einstellung!T32 -> U17 nach Sinclair | S12: =Einstellung!U32 -> U20 nach Sinclair | T12: =Einstellung!V32 -> U23 nach Sinclair | U12: =Einstellung!W32 -> Frauen nach Sinclair | V12: =Einstellung!X32 -> Männer nach Sinclair | W12: =Einstellung!Y32 -> Ausländer nach Sinclair | Y12: =Einstellung!L32 -> U15-Zweikampf | Z12: =Einstellung!M32 -> U17-Zweikampf | AA12: =Einstellung!N32 -> U20-Zweikampf | AB12: =Einstellung!O32 -> U23-Zweikampf | AC12: =Einstellung!P32 -> Allgemeine Klasse | AD12: =Einstellung!Q32 -> Reißen allg. Klasse | AE12: =Einstellung!R32 -> Stoßen allg. Klasse | AF12: =Einstellung!S32 -> U15 nach Sinclair | AG12: =Einstellung!T32 -> U17 nach Sinclair | AH12: =Einstellung!U32 -> U20 nach Sinclair | AI12: =Einstellung!V32 -> U23 nach Sinclair | AJ12: =Einstellung!W32 -> Frauen nach Sinclair | AK12: =Einstellung!X32 -> Männer nach Sinclair | AL12: =Einstellung!Y32 -> Ausländer nach Sinclair | AN12: =Einstellung!L32 -> U15-Zweikampf | AO12: =Einstellung!M32 -> U17-Zweikampf | AP12: =Einstellung!N32 -> U20-Zweikampf | AQ12: =Einstellung!O32 -> U23-Zweikampf | AR12: =Einstellung!P32 -> Allgemeine Klasse | AS12: =Einstellung!Q32 -> Reißen allg. Klasse | AT12: =Einstellung!R32 -> Stoßen allg. Klasse | AU12: =Einstellung!S32 -> U15 nach Sinclair | AV12: =Einstellung!T32 -> U17 nach Sinclair | AW12: =Einstellung!U32 -> U20 nach Sinclair | AX12: =Einstellung!V32 -> U23 nach Sinclair | AY12: =Einstellung!W32 -> Frauen nach Sinclair | AZ12: =Einstellung!X32 -> Männer nach Sinclair | BA12: =Einstellung!Y32 -> Ausländer nach Sinclair | BC12: Präfix: | CE12: 100 | DW12: =IF(DU20=1,23,38)+DW$18 -> 39 | HE12: =IF(Vereine!E12=0,"",Vereine!E12) -> VÖE1
B13: faltin | BC13: DSCF | CC13: =IF(CB18<25,1,0) -> 1 | CE13: 99999999 | CG13: 99 | HE13: =IF(Vereine!E13=0,"",Vereine!E13) -> VÖE2
B14: =Athl.!BC14 -> Faltin Cäcilia | C14: =IF(Athl.!BI14 <> "",YEAR(Wiegeliste!$D$4)-YEAR(Athl.!BI14),"") -> 28 | D14: =Athl.!BF14 -> 4527 | E14: =IF(Athl.!BI14 <> "",YEAR(Athl.!BI14),"") -> 1987 | BX14: U11M | BY14: =IF(ISERROR(VLOOKUP(BX14,Gruppe,1,FALSE)),"",VLOOKUP(BX14,Gruppe,1,FALSE)) ->  | HE14: =IF(Vereine!E14=0,"",Vereine!E14) -> WEL
B15: =Athl.!BC15 ->  | C15: =IF(Athl.!BI15 <> "",YEAR(Wiegeliste!$D$4)-YEAR(Athl.!BI15),"") ->  | D15: =Athl.!BF15 ->  | E15: =IF(Athl.!BI15 <> "",YEAR(Athl.!BI15),"") ->  | BC15: Länge Zähler | HE15: =IF(Vereine!E15=0,"",Vereine!E15) -> 
B16: =Athl.!BC16 ->  | C16: =IF(Athl.!BI16 <> "",YEAR(Wiegeliste!$D$4)-YEAR(Athl.!BI16),"") ->  | D16: =Athl.!BF16 ->  | E16: =IF(Athl.!BI16 <> "",YEAR(Athl.!BI16),"") ->  | BC16: 4 | FP16: =Athl.!BB14 -> 147 | HE16: =IF(Vereine!E16=0,"",Vereine!E16) -> 
B17: =Athl.!BC17 ->  | C17: =IF(Athl.!BI17 <> "",YEAR(Wiegeliste!$D$4)-YEAR(Athl.!BI17),"") ->  | D17: =Athl.!BF17 ->  | E17: =IF(Athl.!BI17 <> "",YEAR(Athl.!BI17),"") ->  | BC17: =IF(BC16>6,"0","")&IF(BC16>5,"0","")&IF(BC16>4,"0","")&IF(BC16>3,"0","")&IF(BC16>2,"0","")&IF(BC16>1,"0","")&"0" -> 0000 | BP17: Anzahl Athl. | BY17: 99999 | CA17: Leerzeilen | CB17: Gesamtzeilen | CC17: Leerzeilen einfügen? | CE17: 99999999999 | DK17: 100 | DN17: Leerzeilen | DO17: Zeilen | DP17: Gesamtzeilen | DQ17: Leerzeilen einfügen? | FP17: =Athl.!BB15 -> 0 | GT17: =Einstellung!S27 -> J | HB17: =IF(Einstellung!S30="M",1,0) -> 0 | HE17: =IF(Vereine!E17=0,"",Vereine!E17) -> 
G18: Anfangsgewichte | X18: Weitere | AM18: Weitere | BB18: Foto | BP18: =COUNTIF(BP20:BP44,">0") -> 10 | CA18: =MAX(CA20:CA44)-1 -> 5 | CB18: =BP18+CA18 -> 15 | CC18: =IF(CB18<25,1,0) -> 1 | CD18: 0 | DN18: =MAX(DN20:DN44)-1 -> 0 | DO18: =COUNTIF(DL20:DL69,"<>"&$BY$17) -> 0 | DP18: =DN18+DO18 -> 0 | DQ18: =IF(DP18<11,1,0) -> 1 | DR18: 0 | DW18: 1 | DX18: 2 | DY18: 3 | DZ18: 4 | EA18: 5 | EB18: 6 | EC18: 7 | ED18: 8 | EE18: 9 | EF18: 10 | EG18: 11 | EH18: 12 | EI18: 13 | EJ18: 14 | EK18: 15 | EL18: 16 | EP18: 1 | EQ18: 2 | ER18: 3 | ES18: 4 | ET18: 5 | EU18: 6 | EV18: 7 | EW18: 8 | EX18: 9 | EY18: 10 | EZ18: 11 | FA18: 12 | FB18: 13 | FC18: 14 | FD18: 15 | FE18: 16 | FF18: 17 | FG18: 18 | FH18: 19 | FI18: 20 | FJ18: 21 | FK18: 22 | FL18: 23 | FM18: 24 | FN18: 25 | FP18: =Athl.!BB16 -> 0 | FT18: 1 | FU18: 2 | FV18: 3 | FW18: 4 | FX18: 5 | FY18: 6 | FZ18: 7 | GA18: 8 | GB18: 9 | GC18: 10 | GD18: 11 | GE18: 12 | GF18: 13 | GG18: 14 | GH18: 15 | GI18: 16 | GJ18: 17 | GK18: 18 | GL18: 19 | GM18: 20 | GN18: 21 | GO18: 22 | GP18: 23 | GQ18: 24 | GR18: 25 | HB18: HEIM | HC18: GAST | HE18: =IF(Vereine!E18=0,"",Vereine!E18) -> 
B19: Name | C19: Alter | D19: ID/Pass | E19: Startnummer | F19: K.Gew. | G19: Reißen | H19: Stoßen | I19: Kat. | X19: Kat. | AM19: Kat. | BB19: Datei Nr. | BC19: Datei | BN19: x | BP19: Adressnummer | BQ19: Name | BT19: IO? | BU19: Gefüllt? | BX19: Kategorien | BY19: Kat.Nr. | BZ19: Kat. Nr. Sort | CA19: Anzahl | CD19: Startnummer | CE19: Zeilen | DL19: Kat. Nr. Sort | DM19: Kat. Nr. Sort | DN19: Anzahl | DR19: Startnummer | EP19: =EO20 -> 108 | EQ19: =EO21 -> 766 | ER19: =EO22 -> 3 | ES19: =EO23 -> 552 | ET19: =EO24 -> 103 | EU19: =EO25 -> 631 | EV19: =EO26 -> 929 | EW19: =EO27 -> 109 | EX19: =EO28 -> 668 | EY19: =EO29 -> 147 | EZ19: =EO30 ->  | FA19: =EO31 ->  | FB19: =EO32 ->  | FC19: =EO33 ->  | FD19: =EO34 ->  | FE19: =EO35 ->  | FF19: =EO36 ->  | FG19: =EO37 ->  | FH19: =EO38 ->  | FI19: =EO39 ->  | FJ19: =EO40 ->  | FK19: =EO41 ->  | FL19: =EO42 ->  | FM19: =EO43 ->  | FN19: =EO44 ->  | FP19: =Athl.!BB17 -> 0 | FT19: =FS20 -> 1 | FU19: =FS21 -> 2 | FV19: =FS22 -> 3 | FW19: =FS23 -> 4 | FX19: =FS24 -> 5 | FY19: =FS25 -> 6 | FZ19: =FS26 -> 7 | GA19: =FS27 -> 8 | GB19: =FS28 -> 9 | GC19: =FS29 -> 10 | GD19: =FS30 -> 99 | GE19: =FS31 -> 99 | GF19: =FS32 -> 99 | GG19: =FS33 -> 99 | GH19: =FS34 -> 99 | GI19: =FS35 -> 99 | GJ19: =FS36 -> 99 | GK19: =FS37 -> 99 | GL19: =FS38 -> 99 | GM19: =FS39 -> 99 | GN19: =FS40 -> 99 | GO19: =FS41 -> 99 | GP19: =FS42 -> 99 | GQ19: =FS43 -> 99 | GR19: =FS44 -> 99 | GY19: HEIM | GZ19: GAST | HA19: Fehler | HB19: =IF($HB$17=0,0,SUM(HB20:HB44)) -> 0 | HC19: =IF($HB$17=0,0,SUM(HC20:HC44)) -> 0 | HE19: =IF(Vereine!E19=0,"",Vereine!E19) -> 
A20: 1 | B20: =IF(ISERROR(BQ20),"",IF(BQ20=0,"",BQ20)) -> Legel Bernhard, | C20: =BS20 -> 22 | D20: 4624 | E20: 1 | F20: 69.3 | G20: 80 | H20: 100 | I20: M-77 | N20: J | V20: J | BC20: =IF(ISNUMBER(BB20),$BC$13&TEXT(BB20,$BC$17)&".JPG","") ->  | BK20: =IF(D20<>"",1,0) -> 1 | BL20: =A20 -> 1 | BN20: =IF(UPPER(LEFT(TEXT(D20,"####"),1))="W",D20,IF(UPPER(LEFT(TEXT(D20,"####"),1))="M",D20,IF(UPPER(LEFT(TEXT(D20,"####"),1))="X",D20,""))) ->  | BO20: =IF(D20>0,IF(BN20="",D20,""),"") -> 4624 | BP20: =IF(BM20>"",IF(VLOOKUP(BM20,Athl02,1)=BL20,VLOOKUP(BL20,Athl02,2),""), IF(BN20>"",IF(VLOOKUP(BN20,Athl06,1)=BN20,VLOOKUP(BN20,Athl06,2),""), IF(BO20<>"",IF(VLOOKUP(BO20,Athl04,1)=BO20,VLOOKUP(BO20,Athl04,2),""),""))) -> 108 | BQ20: =IF(BP20<>"",VLOOKUP(BP20, Athl01,2)&", "&VLOOKUP(BP20,Athl01,$BQ$3),"") -> Legel Bernhard, | BR20: =IF(BP20<>"",VLOOKUP(BP20, Athl01,4),"") -> 34068 | BS20: =IF(ISNUMBER(BR20),YEAR(Wiegeliste!$D$4)-YEAR(BR20),"") -> 22 | BT20: =IF(ISERROR(BP20),0,1) -> 1 | BU20: =IF(D20<>"",1,0) -> 1 | BX20: =IF(ISBLANK(I20),"",I20) -> M-77 | BY20: =IF(BX20="",$BY$17,VLOOKUP(BX20,Gruppe,2,FALSE)) -> 23 | BZ20: =SMALL($BY$20:$BY$44,BL20) -> 15 | CA20: 1 | CB20: =IF($CC$18=1,BZ20,$BY$17) -> 15 | CC20: =IF(CB20=$BY$17,$CE$17,CB20*$CE$1+$CE$13) -> 1599999999 | CD20: =IF(BP20="",$CD$18,E20) -> 1 | CE20: =IF(BP20="",$CE$17,BY20*$CE$1+CD20*$CE$12+BL20) -> 2300000101 | CF20: =SMALL($CE$20:$CE$74,BL20) -> 1500001010 | CG20: =IF(CF20=$CE$17,99,MOD(CF20,$CE$12)) -> 10 | CH20: =IF(CG20<>$CG$13,VLOOKUP(CG20,$A$20:$W$44,9),"") -> W-69 | CI20: =IF(CG20<>$CG$13,VLOOKUP(CG20,$A$20:$W$44,4),"") -> 4527 | CJ20: =IF(CG20<>$CG$13,VLOOKUP(CG20,$A$20:$W$44,6),"") -> 64.7 | CK20: =IF(CG20<>$CG$13,VLOOKUP(CG20,$A$20:$W$44,7),"") -> 55 | CL20: =IF(CG20<>$CG$13,VLOOKUP(CG20,$A$20:$W$44,8),"") -> 60 | CM20: =IF(CG20<>$CG$13,VLOOKUP(CG20,$A$20:$W$44,10),"") -> 0 | CN20: =IF(CG20<>$CG$13,VLOOKUP(CG20,$A$20:$W$44,11),"") -> 0 | CO20: =IF(CG20<>$CG$13,VLOOKUP(CG20,$A$20:$W$44,12),"") -> 0 | CP20: =IF(CG20<>$CG$13,VLOOKUP(CG20,$A$20:$W$44,13),"") -> 0 | CQ20: =IF(CG20<>$CG$13,VLOOKUP(CG20,$A$20:$W$44,14),"") -> 0 | CR20: =IF(CG20<>$CG$13,VLOOKUP(CG20,$A$20:$W$44,15),"") -> 0 | CS20: =IF(CG20<>$CG$13,VLOOKUP(CG20,$A$20:$W$44,16),"") -> 0 | CT20: =IF(CG20<>$CG$13,VLOOKUP(CG20,$A$20:$W$44,17),"") -> 0 | CU20: =IF(CG20<>$CG$13,VLOOKUP(CG20,$A$20:$W$44,18),"") -> 0 | CV20: =IF(CG20<>$CG$13,VLOOKUP(CG20,$A$20:$W$44,19),"") -> 0 | CW20: =IF(CG20<>$CG$13,VLOOKUP(CG20,$A$20:$W$44,20),"") -> 0 | CX20: =IF(CG20<>$CG$13,VLOOKUP(CG20,$A$20:$W$44,21),"") -> J | CY20: =IF(CG20<>$CG$13,VLOOKUP(CG20,$A$20:$W$44,22),"") -> 0 | CZ20: =IF(CG20<>$CG$13,VLOOKUP(CG20,$A$20:$W$44,23),"") -> 0 | DA20: =IF(CG20<>$CG$13,VLOOKUP(CG20,$A$20:$W$44,5),"") -> 10 | DC20: =CG20*$DC$1+BL20 -> 10001 | DD20: =SMALL($DC$20:$DC$44,BL20) -> 1003 | DE20: =ROUND((DD20-DF20)/$DC$1,0) -> 1 | DF20: =MOD(DD20,$DC$1) -> 3 | DH20: 1 | DI20: 1 | DJ20: =IF(X20<>"",IF(BU20=1,X20,""),"") ->  | DK20: =IF(DJ20="",$BY$17,IF(ISERROR(VLOOKUP(DJ20,Gruppe,2,FALSE)),$BY$17,VLOOKUP(DJ20,Gruppe,2,FALSE)*$DK$17+DI20)) -> 99999 | DL20: =SMALL($DK$20:$DK$69,DH20) -> 99999 | DM20: =(DL20-MOD(DL20,$DK$17))/$DK$17 -> 999 | DN20: 1 | DP20: =IF($DQ$18=1,DM20,$BY$17) -> 999 | DQ20: =IF(DP20=$BY$17,$CE$17,DP20*$CE$1+$CE$13) -> 99999999999 | DR20: =IF(BP20="",$CD$18,E20) -> 1 | DS20: =IF(BP20="",$CE$17,IF(DK20=$BY$17,$CE$17,DK20*$CE$1/100+DR20*$CE$12+BL20)) -> 99999999999 | DT20: =SMALL($DS$20:$DS$294,BL20) -> 99999999999 | DU20: =IF(DT20=$CE$17,0,(MOD(DT20,$CE$1)-MOD(DT20,$CE$11))/($CE$11*100)) -> 0 | DV20: =IF(DT20=$CE$17,99,MOD(DT20,$CE$12)) -> 99 | DW20: =IF($DV20<>$CG$13,VLOOKUP($DV20,$A$20:$BA$44,(IF($DU20=1,23,38))+DW$18),"") ->  | DX20: =IF($DV20<>$CG$13,VLOOKUP($DV20,$A$20:$BA$44,(IF($DU20=1,23,38))+DX$18),"") ->  | DY20: =IF($DV20<>$CG$13,VLOOKUP($DV20,$A$20:$BA$44,(IF($DU20=1,23,38))+DY$18),"") ->  | EL20: =IF(DV20<>$CG$13,VLOOKUP(DV20,$DE$20:$DF$44,2),"") ->  | EN20: 1 | EO20: =BP20 -> 108 | EP20: =IF($EN20=EP$18,0,IF($EO20="",0,IF($EO20=EP$19,1,0))) -> 0 | EQ20: =IF($EN20=EQ$18,0,IF($EO20="",0,IF($EO20=EQ$19,1,0))) -> 0 | ER20: 0 | ES20: 0 | ET20: 0 | EU20: 0 | EV20: 0 | EW20: 0 | EX20: 0 | EY20: 0 | EZ20: 0 | FA20: 0 | FB20: 0 | FC20: 0 | FD20: 0 | FE20: 0 | FF20: 0 | FG20: 0 | FH20: 0 | FI20: 0 | FJ20: 0 | FK20: 0 | FL20: 0 | FM20: 0 | FN20: 0 | FO20: =SUM(EP20:FN20) -> 0 | FP20: =IF(BP20="",0,IF(BP20=$FP$16,1,IF(BP20=$FP$17,1,IF(BP20=$FP$18,1,IF(BP20=$FP$19,1,0))))) -> 0 | FQ20: =IF(Einstellung!A11=0,"",Einstellung!A11) -> M+105 | FR20: 1 | FS20: =IF(B20="",99,E20) -> 1 | FT20: =IF($FR20=FT$18,0,IF($FS20="",0,IF($FS20=FT$19,1,0))) -> 0 | FU20: =IF($FR20=FU$18,0,IF($FS20="",0,IF($FS20=FU$19,1,0))) -> 0 | FV20: 0 | FW20: 0 | FX20: 0 | FY20: 0 | FZ20: 0 | GA20: 0 | GB20: 0 | GC20: 0 | GD20: 0 | GE20: 0 | GF20: 0 | GG20: 0 | GH20: 0 | GI20: 0 | GJ20: 0 | GK20: 0 | GL20: 0 | GM20: 0 | GN20: 0 | GO20: 0 | GP20: 0 | GQ20: 0 | GR20: 0 | GS20: =SUM(FT20:GR20) -> 0 | GT20: =IF($GT$17="J",IF(GU20="",IF(B20="",0,1),GS20),IF(GU20<>"",1,0)) -> 0 | GU20: =IF(E20=0,"",E20) -> 1 | GW20: =BP20 -> 108 | GX20: =IF(BX20="HEIMF",1,IF(BX20="HEIMM",1,IF(BX20="GASTF",2,IF(BX20="GASTM",2,0)))) -> 0 | GY20: =IF(ISBLANK($N$7),0,IF($N$7="",0,IF($GX20<>1,0,IF(ISERROR(VLOOKUP($GW20,SB_HEIM,1,FALSE)),1,0)))) -> 0 | GZ20: =IF(ISBLANK($N$9),0,IF($N$9="",0,IF($GX20<>2,0,IF(ISERROR(VLOOKUP($GW20,SB_GAST,1,FALSE)),1,0)))) -> 0 | HA20: =IF(GY20=1,1,IF(GZ20=1,1,0)) -> 0 | HB20: =IF(GX20=1,1,0) -> 0 | HC20: =IF(GX20=2,1,0) -> 0 | HE20: =IF(Vereine!E20=0,"",Vereine!E20) ->  | HF20: =Einstellung!A40 -> 1 | HG20: =CG20 -> 10
A21: 2 | B21: Wallner Matthias, | C21: =BS21 -> 21 | D21: 4745 | E21: 2 | F21: 91.2 | G21: 100 | H21: 120 | I21: M-94 | N21: J | V21: J | BC21: =IF(ISNUMBER(BB21),$BC$13&TEXT(BB21,$BC$17)&".JPG","") ->  | BL21: =A21 -> 2 | BN21: =IF(UPPER(LEFT(TEXT(D21,"####"),1))="W",D21,IF(UPPER(LEFT(TEXT(D21,"####"),1))="M",D21,IF(UPPER(LEFT(TEXT(D21,"####"),1))="X",D21,""))) ->  | BO21: =IF(D21>0,IF(BN21="",D21,""),"") -> 4745 | BP21: 766 | BQ21: Wallner Matthias, | BR21: 34386 | BS21: =IF(ISNUMBER(BR21),YEAR(Wiegeliste!$D$4)-YEAR(BR21),"") -> 21 | BT21: =IF(ISERROR(BP21),0,1) -> 1 | BU21: =IF(D21<>"",1,0) -> 1 | BX21: =IF(ISBLANK(I21),"",I21) -> M-94 | BY21: 25 | BZ21: =SMALL($BY$20:$BY$44,BL21) -> 23 | CA21: =IF(BZ21<>$BY$17,IF(BZ21<>BZ20,CA20+1,CA20),CA20) -> 2 | CB21: =IF($CC$18=1,IF(BZ21<>BZ20,BZ21,$BY$17),$BY$17) -> 23 | CC21: 2399999999 | CD21: =IF(BP21="",$CD$18,E21) -> 2 | CE21: 2500000202 | CF21: =SMALL($CE$20:$CE$74,BL21) -> 1599999999 | CG21: =IF(CF21=$CE$17,99,MOD(CF21,$CE$12)) -> 99 | CH21: =IF(CG21<>$CG$13,VLOOKUP(CG21,$A$20:$W$44,9),"") ->  | CJ21: =IF(CG21<>$CG$13,VLOOKUP(CG21,$A$20:$W$44,6),"") ->  | CK21: =IF(CG21<>$CG$13,VLOOKUP(CG21,$A$20:$W$44,7),"") ->  | CL21: =IF(CG21<>$CG$13,VLOOKUP(CG21,$A$20:$W$44,8),"") ->  | CM21: =IF(CG21<>$CG$13,VLOOKUP(CG21,$A$20:$W$44,10),"") ->  | CN21: =IF(CG21<>$CG$13,VLOOKUP(CG21,$A$20:$W$44,11),"") ->  | CO21: =IF(CG21<>$CG$13,VLOOKUP(CG21,$A$20:$W$44,12),"") ->  | CP21: =IF(CG21<>$CG$13,VLOOKUP(CG21,$A$20:$W$44,13),"") ->  | CQ21: =IF(CG21<>$CG$13,VLOOKUP(CG21,$A$20:$W$44,14),"") ->  | CR21: =IF(CG21<>$CG$13,VLOOKUP(CG21,$A$20:$W$44,15),"") ->  | CS21: =IF(CG21<>$CG$13,VLOOKUP(CG21,$A$20:$W$44,16),"") ->  | CT21: =IF(CG21<>$CG$13,VLOOKUP(CG21,$A$20:$W$44,17),"") ->  | CU21: =IF(CG21<>$CG$13,VLOOKUP(CG21,$A$20:$W$44,18),"") ->  | CV21: =IF(CG21<>$CG$13,VLOOKUP(CG21,$A$20:$W$44,19),"") ->  | CW21: =IF(CG21<>$CG$13,VLOOKUP(CG21,$A$20:$W$44,20),"") ->  | CX21: =IF(CG21<>$CG$13,VLOOKUP(CG21,$A$20:$W$44,21),"") ->  | CY21: =IF(CG21<>$CG$13,VLOOKUP(CG21,$A$20:$W$44,22),"") ->  | CZ21: =IF(CG21<>$CG$13,VLOOKUP(CG21,$A$20:$W$44,23),"") ->  | DA21: =IF(CG21<>$CG$13,VLOOKUP(CG21,$A$20:$W$44,5),"") ->  | DC21: =CG21*$DC$1+BL21 -> 99002 | DD21: =SMALL($DC$20:$DC$44,BL21) -> 2008 | DE21: =ROUND((DD21-DF21)/$DC$1,0) -> 2 | DF21: =MOD(DD21,$DC$1) -> 8 | DH21: =DH20+1 -> 2 | DI21: 1 | DJ21: =IF(X21<>"",IF(BU21=1,X21,""),"") ->  | DK21: 99999 | DL21: =SMALL($DK$20:$DK$69,DH21) -> 99999 | DM21: =(DL21-MOD(DL21,$DK$17))/$DK$17 -> 999 | DN21: =IF(DL21<>$BY$17,IF(DM21<>DM20,DN20+1,DN20),DN20) -> 1 | DP21: =IF($DQ$18=1,IF(DM21<>DM20,IF(DM21<>999,DM21,$BY$17),$BY$17),$BY$17) -> 99999 | DQ21: 99999999999 | DR21: =IF(BP21="",$CD$18,E21) -> 2 | DS21: 99999999999 | DT21: 99999999999 | DU21: 0 | DV21: =IF(DT21=$CE$17,99,MOD(DT21,$CE$12)) -> 99 | DW21: =IF($DV21<>$CG$13,VLOOKUP($DV21,$A$20:$BA$44,(IF($DU21=1,23,38))+DW$18),"") ->  | DX21: =IF($DV21<>$CG$13,VLOOKUP($DV21,$A$20:$BA$44,(IF($DU21=1,23,38))+DX$18),"") ->  | EL21: =IF(DV21<>$CG$13,VLOOKUP(DV21,$DE$20:$DF$44,2),"") ->  | EN21: 2 | EO21: =BP21 -> 766 | EP21: 0 | EQ21: =IF($EN21=EQ$18,0,IF($EO21="",0,IF($EO21=EQ$19,1,0))) -> 0 | ER21: 0 | ES21: 0 | ET21: 0 | EU21: 0 | EV21: 0 | EW21: 0 | EX21: 0 | EY21: 0 | EZ21: 0 | FA21: 0 | FB21: 0 | FC21: 0 | FD21: 0 | FE21: 0 | FF21: 0 | FG21: 0 | FH21: 0 | FI21: 0 | FJ21: 0 | FK21: 0 | FL21: 0 | FM21: 0 | FN21: 0 | FO21: =SUM(EP21:FN21) -> 0 | FP21: =IF(BP21="",0,IF(BP21=$FP$16,1,IF(BP21=$FP$17,1,IF(BP21=$FP$18,1,IF(BP21=$FP$19,1,0))))) -> 0 | FQ21: =IF(Einstellung!A12=0,"",Einstellung!A12) -> M+94 | FR21: 2 | FS21: =IF(B21="",99,E21) -> 2 | FT21: 0 | FU21: =IF($FR21=FU$18,0,IF($FS21="",0,IF($FS21=FU$19,1,0))) -> 0 | FV21: 0 | FW21: 0 | FX21: 0 | FY21: 0 | FZ21: 0 | GA21: 0 | GB21: 0 | GC21: 0 | GD21: 0 | GE21: 0 | GF21: 0 | GG21: 0 | GH21: 0 | GI21: 0 | GJ21: 0 | GK21: 0 | GL21: 0 | GM21: 0 | GN21: 0 | GO21: 0 | GP21: 0 | GQ21: 0 | GR21: 0 | GS21: =SUM(FT21:GR21) -> 0 | GT21: =IF($GT$17="J",IF(GU21="",IF(B21="",0,1),GS21),IF(GU21<>"",1,0)) -> 0 | GU21: =IF(E21=0,"",E21) -> 2 | GW21: =BP21 -> 766 | GX21: =IF(BX21="HEIMF",1,IF(BX21="HEIMM",1,IF(BX21="GASTF",2,IF(BX21="GASTM",2,0)))) -> 0 | GY21: 0 | GZ21: 0 | HA21: =IF(GY21=1,1,IF(GZ21=1,1,0)) -> 0 | HB21: =IF(GX21=1,1,0) -> 0 | HC21: =IF(GX21=2,1,0) -> 0 | HE21: =IF(Vereine!E21=0,"",Vereine!E21) ->  | HF21: =Einstellung!A41 -> 2 | HG21: 99
A22: 3 | B22: Ceidl Martin, | C22: 25 | D22: 4586 | E22: 3 | F22: 91.3 | G22: 80 | H22: 100 | I22: M-94 | N22: J | V22: J | BC22: =IF(ISNUMBER(BB22),$BC$13&TEXT(BB22,$BC$17)&".JPG","") ->  | BL22: 3 | BO22: 4586 | BP22: 3 | BQ22: Ceidl Martin, | BR22: 33005 | BS22: =IF(ISNUMBER(BR22),YEAR(Wiegeliste!$D$4)-YEAR(BR22),"") -> 25 | BT22: 1 | BU22: 1 | BX22: M-94 | BY22: 25 | BZ22: 24 | CA22: =IF(BZ22<>$BY$17,IF(BZ22<>BZ21,CA21+1,CA21),CA21) -> 3 | CB22: =IF($CC$18=1,IF(BZ22<>BZ21,BZ22,$BY$17),$BY$17) -> 24 | CC22: 2499999999 | CD22: 3 | CE22: 2500000303 | CF22: 2300000101 | CG22: 1 | CH22: M-77 | CI22: 4624 | CJ22: 69.3 | CK22: 80 | CL22: 100 | CM22: 0 | CN22: 0 | CO22: 0 | CP22: 0 | CQ22: J | CR22: 0 | CS22: 0 | CT22: 0 | CU22: 0 | CV22: 0 | CW22: 0 | CX22: 0 | CY22: J | CZ22: 0 | DA22: 1 | DC22: 1003 | DD22: 3009 | DE22: 3 | DF22: 9 | DH22: =DH21+1 -> 3 | DI22: 1 | DK22: 99999 | DL22: 99999 | DM22: 999 | DN22: =IF(DL22<>$BY$17,IF(DM22<>DM21,DN21+1,DN21),DN21) -> 1 | DP22: =IF($DQ$18=1,IF(DM22<>DM21,IF(DM22<>999,DM22,$BY$17),$BY$17),$BY$17) -> 99999 | DQ22: 99999999999 | DR22: 3 | DS22: 99999999999 | DT22: 99999999999 | DU22: 0 | DV22: 99 | EN22: 3 | EO22: 3 | EP22: 0 | EQ22: 0 | ER22: 0 | ES22: 0 | ET22: 0 | EU22: 0 | EV22: 0 | EW22: 0 | EX22: 0 | EY22: 0 | EZ22: 0 | FA22: 0 | FB22: 0 | FC22: 0 | FD22: 0 | FE22: 0 | FF22: 0 | FG22: 0 | FH22: 0 | FI22: 0 | FJ22: 0 | FK22: 0 | FL22: 0 | FM22: 0 | FN22: 0 | FO22: 0 | FP22: 0 | FQ22: =IF(Einstellung!A13=0,"",Einstellung!A13) -> M-105 | FR22: 3 | FS22: 3 | FT22: 0 | FU22: 0 | FV22: 0 | FW22: 0 | FX22: 0 | FY22: 0 | FZ22: 0 | GA22: 0 | GB22: 0 | GC22: 0 | GD22: 0 | GE22: 0 | GF22: 0 | GG22: 0 | GH22: 0 | GI22: 0 | GJ22: 0 | GK22: 0 | GL22: 0 | GM22: 0 | GN22: 0 | GO22: 0 | GP22: 0 | GQ22: 0 | GR22: 0 | GS22: 0 | GT22: 0 | GU22: 3 | GW22: 3 | GX22: 0 | GY22: 0 | GZ22: 0 | HA22: 0 | HB22: 0 | HC22: 0 | HE22: =IF(Vereine!E22=0,"",Vereine!E22) ->  | HF22: =Einstellung!A42 -> 3 | HG22: 1
A23: 4 | B23: Legel Christoph, | C23: 24 | D23: 4635 | E23: 4 | F23: 82 | G23: 85 | H23: 105 | I23: M-85 | N23: J | V23: J | BL23: 4 | BO23: 4635 | BP23: 552 | BQ23: Legel Christoph, | BR23: 33382 | BS23: =IF(ISNUMBER(BR23),YEAR(Wiegeliste!$D$4)-YEAR(BR23),"") -> 24 | BT23: 1 | BU23: 1 | BX23: M-85 | BY23: 24 | BZ23: 24 | CA23: 3 | CB23: 99999 | CC23: 99999999999 | CD23: 4 | CE23: 2400000404 | CF23: 2399999999 | CG23: 99 | DC23: 99004 | DD23: 4005 | DE23: 4 | DF23: 5 | DH23: 4 | DI23: 1 | DK23: 99999 | DL23: 99999 | DM23: 999 | DN23: 1 | DP23: 99999 | DQ23: 99999999999 | DR23: 4 | DS23: 99999999999 | DT23: 99999999999 | DU23: 0 | DV23: 99 | EN23: 4 | EO23: 552 | EP23: 0 | EQ23: 0 | ER23: 0 | ES23: 0 | ET23: 0 | EU23: 0 | EV23: 0 | EW23: 0 | EX23: 0 | EY23: 0 | EZ23: 0 | FA23: 0 | FB23: 0 | FC23: 0 | FD23: 0 | FE23: 0 | FF23: 0 | FG23: 0 | FH23: 0 | FI23: 0 | FJ23: 0 | FK23: 0 | FL23: 0 | FM23: 0 | FN23: 0 | FO23: 0 | FP23: 0 | FQ23: =IF(Einstellung!A14=0,"",Einstellung!A14) -> M-50 | FR23: 4 | FS23: 4 | FT23: 0 | FU23: 0 | FV23: 0 | FW23: 0 | FX23: 0 | FY23: 0 | FZ23: 0 | GA23: 0 | GB23: 0 | GC23: 0 | GD23: 0 | GE23: 0 | GF23: 0 | GG23: 0 | GH23: 0 | GI23: 0 | GJ23: 0 | GK23: 0 | GL23: 0 | GM23: 0 | GN23: 0 | GO23: 0 | GP23: 0 | GQ23: 0 | GR23: 0 | GS23: 0 | GT23: 0 | GU23: 4 | GW23: 552 | GX23: 0 | GY23: 0 | GZ23: 0 | HA23: 0 | HB23: 0 | HC23: 0 | HE23: =IF(Vereine!E23=0,"",Vereine!E23) ->  | HF23: =Einstellung!A43 -> 4 | HG23: 99
A24: 5 | B24: Abraham Martin, | C24: 32 | D24: 4027 | E24: 5 | F24: 106.8 | G24: 90 | H24: 110 | I24: M+105 | N24: J | V24: J | BL24: 5 | BO24: 4027 | BP24: 103 | BQ24: Abraham Martin, | BR24: 30513 | BS24: =IF(ISNUMBER(BR24),YEAR(Wiegeliste!$D$4)-YEAR(BR24),"") -> 32 | BT24: 1 | BU24: 1 | BX24: M+105 | BY24: 27 | BZ24: 25 | CA24: 4 | CB24: 25 | CC24: 2599999999 | CD24: 5 | CE24: 2700000505 | CF24: 2400000404 | CG24: 4 | CH24: M-85 | CI24: 4635 | CJ24: 82 | CK24: 85 | CL24: 105 | CM24: 0 | CN24: 0 | CO24: 0 | CP24: 0 | CQ24: J | CR24: 0 | CS24: 0 | CT24: 0 | CU24: 0 | CV24: 0 | CW24: 0 | CX24: 0 | CY24: J | CZ24: 0 | DA24: 4 | DC24: 4005 | DD24: 5013 | DE24: 5 | DF24: 13 | DH24: 5 | DI24: 1 | DK24: 99999 | DL24: 99999 | DM24: 999 | DN24: 1 | DP24: 99999 | DQ24: 99999999999 | DR24: 5 | DS24: 99999999999 | DT24: 99999999999 | DU24: 0 | DV24: 99 | EN24: 5 | EO24: 103 | EP24: 0 | EQ24: 0 | ER24: 0 | ES24: 0 | ET24: 0 | EU24: 0 | EV24: 0 | EW24: 0 | EX24: 0 | EY24: 0 | EZ24: 0 | FA24: 0 | FB24: 0 | FC24: 0 | FD24: 0 | FE24: 0 | FF24: 0 | FG24: 0 | FH24: 0 | FI24: 0 | FJ24: 0 | FK24: 0 | FL24: 0 | FM24: 0 | FN24: 0 | FO24: 0 | FP24: 0 | FQ24: =IF(Einstellung!A15=0,"",Einstellung!A15) -> M-56 | FR24: 5 | FS24: 5 | FT24: 0 | FU24: 0 | FV24: 0 | FW24: 0 | FX24: 0 | FY24: 0 | FZ24: 0 | GA24: 0 | GB24: 0 | GC24: 0 | GD24: 0 | GE24: 0 | GF24: 0 | GG24: 0 | GH24: 0 | GI24: 0 | GJ24: 0 | GK24: 0 | GL24: 0 | GM24: 0 | GN24: 0 | GO24: 0 | GP24: 0 | GQ24: 0 | GR24: 0 | GS24: 0 | GT24: 0 | GU24: 5 | GW24: 103 | GX24: 0 | GY24: 0 | GZ24: 0 | HA24: 0 | HB24: 0 | HC24: 0 | HE24: =IF(Vereine!E24=0,"",Vereine!E24) ->  | HF24: =Einstellung!A44 -> 5 | HG24: 4
A25: 6 | B25: Lenardt Matthias, | C25: 25 | D25: 4666 | E25: 6 | F25: 84.8 | G25: 80 | H25: 100 | I25: M-94 | M25: J | T25: J | BL25: 6 | BO25: 4666 | BP25: 631 | BQ25: Lenardt Matthias, | BR25: 33033 | BS25: =IF(ISNUMBER(BR25),YEAR(Wiegeliste!$D$4)-YEAR(BR25),"") -> 25 | BT25: 1 | BU25: 1 | BX25: M-94 | BY25: 25 | BZ25: 25 | CA25: 4 | CB25: 99999 | CC25: 99999999999 | CD25: 6 | CE25: 2500000606 | CF25: 2400000808 | CG25: 8 | CH25: M-85 | CI25: 1535 | CJ25: 81 | CK25: 60 | CL25: 80 | CM25: 0 | CN25: 0 | CO25: 0 | CP25: 0 | CQ25: 0 | CR25: 0 | CS25: 0 | CT25: 0 | CU25: 0 | CV25: 0 | CW25: 0 | CX25: 0 | CY25: J | CZ25: 0 | DA25: 8 | DC25: 8006 | DD25: 6010 | DE25: 6 | DF25: 10 | DH25: 6 | DI25: 1 | DK25: 99999 | DL25: 99999 | DM25: 999 | DN25: 1 | DP25: 99999 | DQ25: 99999999999 | DR25: 6 | DS25: 99999999999 | DT25: 99999999999 | DU25: 0 | DV25: 99 | EN25: 6 | EO25: 631 | EP25: 0 | EQ25: 0 | ER25: 0 | ES25: 0 | ET25: 0 | EU25: 0 | EV25: 0 | EW25: 0 | EX25: 0 | EY25: 0 | EZ25: 0 | FA25: 0 | FB25: 0 | FC25: 0 | FD25: 0 | FE25: 0 | FF25: 0 | FG25: 0 | FH25: 0 | FI25: 0 | FJ25: 0 | FK25: 0 | FL25: 0 | FM25: 0 | FN25: 0 | FO25: 0 | FP25: 0 | FQ25: =IF(Einstellung!A16=0,"",Einstellung!A16) -> M-62 | FR25: 6 | FS25: 6 | FT25: 0 | FU25: 0 | FV25: 0 | FW25: 0 | FX25: 0 | FY25: 0 | FZ25: 0 | GA25: 0 | GB25: 0 | GC25: 0 | GD25: 0 | GE25: 0 | GF25: 0 | GG25: 0 | GH25: 0 | GI25: 0 | GJ25: 0 | GK25: 0 | GL25: 0 | GM25: 0 | GN25: 0 | GO25: 0 | GP25: 0 | GQ25: 0 | GR25: 0 | GS25: 0 | GT25: 0 | GU25: 6 | GW25: 631 | GX25: 0 | GY25: 0 | GZ25: 0 | HA25: 0 | HB25: 0 | HC25: 0 | HE25: =IF(Vereine!E25=0,"",Vereine!E25) ->  | HF25: =Einstellung!A45 -> 6 | HG25: 8
A26: 7 | B26: Kanyka Michael, | C26: 50 | D26: 2404 | E26: 7 | F26: 90.6 | G26: 80 | H26: 100 | I26: M-94 | V26: J | BL26: 7 | BN26: =IF(UPPER(LEFT(TEXT(D26,"####"),1))="W",D26,IF(UPPER(LEFT(TEXT(D26,"####"),1))="M",D26,IF(UPPER(LEFT(TEXT(D26,"####"),1))="X",D26,""))) ->  | BO26: =IF(D26>0,IF(BN26="",D26,""),"") -> 2404 | BP26: 929 | BQ26: Kanyka Michael, | BR26: 24091 | BS26: =IF(ISNUMBER(BR26),YEAR(Wiegeliste!$D$4)-YEAR(BR26),"") -> 50 | BT26: 1 | BU26: =IF(D26<>"",1,0) -> 1 | BX26: =IF(ISBLANK(I26),"",I26) -> M-94 | BY26: 25 | BZ26: 25 | CA26: 4 | CB26: 99999 | CC26: 99999999999 | CD26: =IF(BP26="",$CD$18,E26) -> 7 | CE26: 2500000707 | CF26: 2499999999 | CG26: 99 | DC26: 99007 | DD26: 7011 | DE26: 7 | DF26: 11 | DH26: 7 | DI26: 1 | DK26: 99999 | DL26: 99999 | DM26: 999 | DN26: 1 | DP26: 99999 | DQ26: 99999999999 | DR26: =IF(BP26="",$CD$18,E26) -> 7 | DS26: 99999999999 | DT26: 99999999999 | DU26: 0 | DV26: 99 | EN26: 7 | EO26: 929 | EP26: 0 | EQ26: 0 | ER26: 0 | ES26: 0 | ET26: 0 | EU26: 0 | EV26: 0 | EW26: 0 | EX26: 0 | EY26: 0 | EZ26: 0 | FA26: 0 | FB26: 0 | FC26: 0 | FD26: 0 | FE26: 0 | FF26: 0 | FG26: 0 | FH26: 0 | FI26: 0 | FJ26: 0 | FK26: 0 | FL26: 0 | FM26: 0 | FN26: 0 | FO26: 0 | FP26: 0 | FQ26: =IF(Einstellung!A17=0,"",Einstellung!A17) -> M-69 | FR26: 7 | FS26: 7 | FT26: 0 | FU26: 0 | FV26: 0 | FW26: 0 | FX26: 0 | FY26: 0 | FZ26: 0 | GA26: 0 | GB26: 0 | GC26: 0 | GD26: 0 | GE26: 0 | GF26: 0 | GG26: 0 | GH26: 0 | GI26: 0 | GJ26: 0 | GK26: 0 | GL26: 0 | GM26: 0 | GN26: 0 | GO26: 0 | GP26: 0 | GQ26: 0 | GR26: 0 | GS26: 0 | GT26: 0 | GU26: 7 | GW26: 929 | GX26: 0 | GY26: 0 | GZ26: 0 | HA26: 0 | HB26: 0 | HC26: 0 | HE26: =IF(Vereine!E26=0,"",Vereine!E26) ->  | HF26: =Einstellung!A46 -> 7 | HG26: 99
A27: 8 | B27: Legel Walter, | C27: 52 | D27: 1535 | E27: 8 | F27: 81 | G27: 60 | H27: 80 | I27: M-85 | V27: J | BL27: 8 | BO27: 1535 | BP27: 109 | BQ27: Legel Walter, | BR27: 23089 | BS27: =IF(ISNUMBER(BR27),YEAR(Wiegeliste!$D$4)-YEAR(BR27),"") -> 52 | BT27: 1 | BU27: 1 | BX27: M-85 | BY27: 24 | BZ27: 25 | CA27: 4 | CB27: 99999 | CC27: 99999999999 | CD27: 8 | CE27: 2400000808 | CF27: 2500000202 | CG27: 2 | CH27: M-94 | CI27: 4745 | CJ27: 91.2 | CK27: 100 | CL27: 120 | CM27: 0 | CN27: 0 | CO27: 0 | CP27: 0 | CQ27: J | CR27: 0 | CS27: 0 | CT27: 0 | CU27: 0 | CV27: 0 | CW27: 0 | CX27: 0 | CY27: J | CZ27: 0 | DA27: 2 | DC27: 2008 | DD27: 8006 | DE27: 8 | DF27: 6 | DH27: 8 | DI27: 1 | DK27: 99999 | DL27: 99999 | DM27: 999 | DN27: 1 | DP27: 99999 | DQ27: 99999999999 | DR27: 8 | DS27: 99999999999 | DT27: 99999999999 | DU27: 0 | DV27: 99 | EN27: 8 | EO27: 109 | EP27: 0 | EQ27: 0 | ER27: 0 | ES27: 0 | ET27: 0 | EU27: 0 | EV27: 0 | EW27: 0 | EX27: 0 | EY27: 0 | EZ27: 0 | FA27: 0 | FB27: 0 | FC27: 0 | FD27: 0 | FE27: 0 | FF27: 0 | FG27: 0 | FH27: 0 | FI27: 0 | FJ27: 0 | FK27: 0 | FL27: 0 | FM27: 0 | FN27: 0 | FO27: 0 | FP27: 0 | FQ27: =IF(Einstellung!A18=0,"",Einstellung!A18) -> M-77 | FR27: 8 | FS27: 8 | FT27: 0 | FU27: 0 | FV27: 0 | FW27: 0 | FX27: 0 | FY27: 0 | FZ27: 0 | GA27: 0 | GB27: 0 | GC27: 0 | GD27: 0 | GE27: 0 | GF27: 0 | GG27: 0 | GH27: 0 | GI27: 0 | GJ27: 0 | GK27: 0 | GL27: 0 | GM27: 0 | GN27: 0 | GO27: 0 | GP27: 0 | GQ27: 0 | GR27: 0 | GS27: 0 | GT27: 0 | GU27: 8 | GW27: 109 | GX27: 0 | GY27: 0 | GZ27: 0 | HA27: 0 | HB27: 0 | HC27: 0 | HE27: =IF(Vereine!E27=0,"",Vereine!E27) ->  | HF27: =Einstellung!A47 -> 8 | HG27: 2
A28: 9 | B28: Kanyka Mario, | C28: 13 | D28: M377 | E28: 9 | F28: 40.1 | G28: 30 | H28: 40 | I28: M-50 | J28: J | BL28: 9 | BN28: M377 | BP28: 668 | BQ28: Kanyka Mario, | BR28: 37287 | BS28: =IF(ISNUMBER(BR28),YEAR(Wiegeliste!$D$4)-YEAR(BR28),"") -> 13 | BT28: 1 | BU28: 1 | BX28: M-50 | BY28: 28 | BZ28: 27 | CA28: 5 | CB28: 27 | CC28: 2799999999 | CD28: 9 | CE28: 2800000909 | CF28: 2500000303 | CG28: 3 | CH28: M-94 | CI28: 4586 | CJ28: 91.3 | CK28: 80 | CL28: 100 | CM28: 0 | CN28: 0 | CO28: 0 | CP28: 0 | CQ28: J | CR28: 0 | CS28: 0 | CT28: 0 | CU28: 0 | CV28: 0 | CW28: 0 | CX28: 0 | CY28: J | CZ28: 0 | DA28: 3 | DC28: 3009 | DD28: 9015 | DE28: 9 | DF28: 15 | DH28: 9 | DI28: 1 | DK28: 99999 | DL28: 99999 | DM28: 999 | DN28: 1 | DP28: 99999 | DQ28: 99999999999 | DR28: 9 | DS28: 99999999999 | DT28: 99999999999 | DU28: 0 | DV28: 99 | EN28: 9 | EO28: 668 | EP28: 0 | EQ28: 0 | ER28: 0 | ES28: 0 | ET28: 0 | EU28: 0 | EV28: 0 | EW28: 0 | EX28: 0 | EY28: 0 | EZ28: 0 | FA28: 0 | FB28: 0 | FC28: 0 | FD28: 0 | FE28: 0 | FF28: 0 | FG28: 0 | FH28: 0 | FI28: 0 | FJ28: 0 | FK28: 0 | FL28: 0 | FM28: 0 | FN28: 0 | FO28: 0 | FP28: 0 | FQ28: =IF(Einstellung!A19=0,"",Einstellung!A19) -> M-85 | FR28: 9 | FS28: 9 | FT28: 0 | FU28: 0 | FV28: 0 | FW28: 0 | FX28: 0 | FY28: 0 | FZ28: 0 | GA28: 0 | GB28: 0 | GC28: 0 | GD28: 0 | GE28: 0 | GF28: 0 | GG28: 0 | GH28: 0 | GI28: 0 | GJ28: 0 | GK28: 0 | GL28: 0 | GM28: 0 | GN28: 0 | GO28: 0 | GP28: 0 | GQ28: 0 | GR28: 0 | GS28: 0 | GT28: 0 | GU28: 9 | GW28: 668 | GX28: 0 | GY28: 0 | GZ28: 0 | HA28: 0 | HB28: 0 | HC28: 0 | HE28: =IF(Vereine!E28=0,"",Vereine!E28) ->  | HF28: =Einstellung!A48 -> 9 | HG28: 3
A29: 10 | B29: Faltin Cäcilia, | C29: 28 | D29: 4527 | E29: 10 | F29: 64.7 | G29: 55 | H29: 60 | I29: W-69 | U29: J | BL29: 10 | BO29: 4527 | BP29: 147 | BQ29: Faltin Cäcilia, | BR29: 31905 | BS29: =IF(ISNUMBER(BR29),YEAR(Wiegeliste!$D$4)-YEAR(BR29),"") -> 28 | BT29: 1 | BU29: 1 | BX29: W-69 | BY29: 15 | BZ29: 28 | CA29: 6 | CB29: 28 | CC29: 2899999999 | CD29: 10 | CE29: 1500001010 | CF29: 2500000606 | CG29: 6 | CH29: M-94 | CI29: 4666 | CJ29: 84.8 | CK29: 80 | CL29: 100 | CM29: 0 | CN29: 0 | CO29: 0 | CP29: J | CQ29: 0 | CR29: 0 | CS29: 0 | CT29: 0 | CU29: 0 | CV29: 0 | CW29: J | CX29: 0 | CY29: 0 | CZ29: 0 | DA29: 6 | DC29: 6010 | DD29: 10001 | DE29: 10 | DF29: 1 | DH29: 10 | DI29: 1 | DK29: 99999 | DL29: 99999 | DM29: 999 | DN29: 1 | DP29: 99999 | DQ29: 99999999999 | DR29: 10 | DS29: 99999999999 | DT29: 99999999999 | DU29: 0 | DV29: 99 | EN29: 10 | EO29: 147 | EP29: 0 | EQ29: 0 | ER29: 0 | ES29: 0 | ET29: 0 | EU29: 0 | EV29: 0 | EW29: 0 | EX29: 0 | EY29: 0 | EZ29: 0 | FA29: 0 | FB29: 0 | FC29: 0 | FD29: 0 | FE29: 0 | FF29: 0 | FG29: 0 | FH29: 0 | FI29: 0 | FJ29: 0 | FK29: 0 | FL29: 0 | FM29: 0 | FN29: 0 | FO29: 0 | FP29: 1 | FQ29: =IF(Einstellung!A20=0,"",Einstellung!A20) -> M-94 | FR29: 10 | FS29: 10 | FT29: 0 | FU29: 0 | FV29: 0 | FW29: 0 | FX29: 0 | FY29: 0 | FZ29: 0 | GA29: 0 | GB29: 0 | GC29: 0 | GD29: 0 | GE29: 0 | GF29: 0 | GG29: 0 | GH29: 0 | GI29: 0 | GJ29: 0 | GK29: 0 | GL29: 0 | GM29: 0 | GN29: 0 | GO29: 0 | GP29: 0 | GQ29: 0 | GR29: 0 | GS29: 0 | GT29: 0 | GU29: 10 | GW29: 147 | GX29: 0 | GY29: 0 | GZ29: 0 | HA29: 0 | HB29: 0 | HC29: 0 | HE29: =IF(Vereine!E29=0,"",Vereine!E29) ->  | HF29: =Einstellung!A49 -> 10 | HG29: 6
A30: 11 | BL30: 11 | BS30: =IF(ISNUMBER(BR30),YEAR(Wiegeliste!$D$4)-YEAR(BR30),"") ->  | BT30: 1 | BU30: 0 | BY30: 99999 | BZ30: 99999 | CA30: 6 | CB30: 99999 | CC30: 99999999999 | CD30: 0 | CE30: 99999999999 | CF30: 2500000707 | CG30: 7 | CH30: M-94 | CI30: 2404 | CJ30: 90.6 | CK30: 80 | CL30: 100 | CM30: 0 | CN30: 0 | CO30: 0 | CP30: 0 | CQ30: 0 | CR30: 0 | CS30: 0 | CT30: 0 | CU30: 0 | CV30: 0 | CW30: 0 | CX30: 0 | CY30: J | CZ30: 0 | DA30: 7 | DC30: 7011 | DD30: 99002 | DE30: 99 | DF30: 2 | DH30: 11 | DI30: 1 | DK30: 99999 | DL30: 99999 | DM30: 999 | DN30: 1 | DP30: 99999 | DQ30: 99999999999 | DR30: 0 | DS30: 99999999999 | DT30: 99999999999 | DU30: 0 | DV30: 99 | EN30: 11 | EP30: 0 | EQ30: 0 | ER30: 0 | ES30: 0 | ET30: 0 | EU30: 0 | EV30: 0 | EW30: 0 | EX30: 0 | EY30: 0 | EZ30: 0 | FA30: 0 | FB30: 0 | FC30: 0 | FD30: 0 | FE30: 0 | FF30: 0 | FG30: 0 | FH30: 0 | FI30: 0 | FJ30: 0 | FK30: 0 | FL30: 0 | FM30: 0 | FN30: 0 | FO30: 0 | FP30: 0 | FQ30: =IF(Einstellung!A21=0,"",Einstellung!A21) -> W+69 | FR30: 11 | FS30: 99 | FT30: 0 | FU30: 0 | FV30: 0 | FW30: 0 | FX30: 0 | FY30: 0 | FZ30: 0 | GA30: 0 | GB30: 0 | GC30: 0 | GD30: 0 | GE30: 1 | GF30: 1 | GG30: 1 | GH30: 1 | GI30: 1 | GJ30: 1 | GK30: 1 | GL30: 1 | GM30: 1 | GN30: 1 | GO30: 1 | GP30: 1 | GQ30: 1 | GR30: 1 | GS30: 14 | GT30: 0 | GX30: 0 | GY30: 0 | GZ30: 0 | HA30: 0 | HB30: 0 | HC30: 0 | HE30: =IF(Vereine!E30=0,"",Vereine!E30) ->  | HF30: =Einstellung!A50 -> 11 | HG30: 7
A31: 12 | BL31: 12 | BS31: =IF(ISNUMBER(BR31),YEAR(Wiegeliste!$D$4)-YEAR(BR31),"") ->  | BT31: 1 | BU31: 0 | BY31: 99999 | BZ31: 99999 | CA31: 6 | CB31: 99999 | CC31: 99999999999 | CD31: 0 | CE31: 99999999999 | CF31: 2599999999 | CG31: 99 | DC31: 99012 | DD31: 99004 | DE31: 99 | DF31: 4 | DH31: 12 | DI31: 1 | DK31: 99999 | DL31: 99999 | DM31: 999 | DN31: 1 | DP31: 99999 | DQ31: 99999999999 | DR31: 0 | DS31: 99999999999 | DT31: 99999999999 | DU31: 0 | DV31: 99 | EN31: 12 | EP31: 0 | EQ31: 0 | ER31: 0 | ES31: 0 | ET31: 0 | EU31: 0 | EV31: 0 | EW31: =IF($EN31=EW$18,0,IF($EO31="",0,IF($EO31=EW$19,1,0))) -> 0 | EX31: 0 | EY31: 0 | EZ31: 0 | FA31: 0 | FB31: 0 | FC31: 0 | FD31: 0 | FE31: 0 | FF31: 0 | FG31: 0 | FH31: 0 | FI31: 0 | FJ31: 0 | FK31: 0 | FL31: 0 | FM31: 0 | FN31: 0 | FO31: 0 | FP31: 0 | FQ31: =IF(Einstellung!A22=0,"",Einstellung!A22) -> W+75 | FR31: 12 | FS31: 99 | FT31: 0 | FU31: 0 | FV31: 0 | FW31: 0 | FX31: 0 | FY31: 0 | FZ31: 0 | GA31: =IF($FR31=GA$18,0,IF($FS31="",0,IF($FS31=GA$19,1,0))) -> 0 | GB31: 0 | GC31: 0 | GD31: 1 | GE31: 0 | GF31: 1 | GG31: 1 | GH31: 1 | GI31: 1 | GJ31: 1 | GK31: 1 | GL31: 1 | GM31: 1 | GN31: 1 | GO31: 1 | GP31: 1 | GQ31: 1 | GR31: 1 | GS31: 14 | GT31: 0 | GX31: 0 | GY31: 0 | GZ31: 0 | HA31: 0 | HB31: 0 | HC31: 0 | HE31: =IF(Vereine!E31=0,"",Vereine!E31) ->  | HF31: =Einstellung!A51 -> 12 | HG31: 99
A32: 13 | BL32: 13 | BN32: =IF(UPPER(LEFT(TEXT(D32,"####"),1))="W",D32,IF(UPPER(LEFT(TEXT(D32,"####"),1))="M",D32,IF(UPPER(LEFT(TEXT(D32,"####"),1))="X",D32,""))) ->  | BO32: =IF(D32>0,IF(BN32="",D32,""),"") ->  | BS32: =IF(ISNUMBER(BR32),YEAR(Wiegeliste!$D$4)-YEAR(BR32),"") ->  | BT32: 1 | BU32: =IF(D32<>"",1,0) -> 0 | BX32: =IF(ISBLANK(I32),"",I32) ->  | BY32: 99999 | BZ32: 99999 | CA32: 6 | CB32: 99999 | CC32: 99999999999 | CD32: =IF(BP32="",$CD$18,E32) -> 0 | CE32: 99999999999 | CF32: 2700000505 | CG32: 5 | CH32: M+105 | CI32: 4027 | CJ32: 106.8 | CK32: 90 | CL32: 110 | CM32: 0 | CN32: 0 | CO32: 0 | CP32: 0 | CQ32: J | CR32: 0 | CS32: 0 | CT32: 0 | CU32: 0 | CV32: 0 | CW32: 0 | CX32: 0 | CY32: J | CZ32: 0 | DA32: 5 | DC32: 5013 | DD32: 99007 | DE32: 99 | DF32: 7 | DH32: 13 | DI32: 1 | DK32: 99999 | DL32: 99999 | DM32: 999 | DN32: 1 | DP32: 99999 | DQ32: 99999999999 | DR32: =IF(BP32="",$CD$18,E32) -> 0 | DS32: 99999999999 | DT32: 99999999999 | DU32: 0 | DV32: 99 | EN32: 13 | EP32: 0 | EQ32: 0 | ER32: 0 | ES32: 0 | ET32: 0 | EU32: 0 | EV32: 0 | EW32: 0 | EX32: 0 | EY32: 0 | EZ32: 0 | FA32: 0 | FB32: 0 | FC32: 0 | FD32: 0 | FE32: 0 | FF32: 0 | FG32: 0 | FH32: 0 | FI32: 0 | FJ32: 0 | FK32: 0 | FL32: 0 | FM32: 0 | FN32: 0 | FO32: 0 | FP32: 0 | FQ32: =IF(Einstellung!A23=0,"",Einstellung!A23) -> W-44 | FR32: 13 | FS32: 99 | FT32: 0 | FU32: 0 | FV32: 0 | FW32: 0 | FX32: 0 | FY32: 0 | FZ32: 0 | GA32: 0 | GB32: 0 | GC32: 0 | GD32: 1 | GE32: 1 | GF32: 0 | GG32: 1 | GH32: 1 | GI32: 1 | GJ32: 1 | GK32: 1 | GL32: 1 | GM32: 1 | GN32: 1 | GO32: 1 | GP32: 1 | GQ32: 1 | GR32: 1 | GS32: 14 | GT32: 0 | GX32: 0 | GY32: 0 | GZ32: 0 | HA32: 0 | HB32: 0 | HC32: 0 | HE32: =IF(Vereine!E32=0,"",Vereine!E32) ->  | HF32: =Einstellung!A52 -> 13 | HG32: 5
A33: 14 | BL33: 14 | BS33: =IF(ISNUMBER(BR33),YEAR(Wiegeliste!$D$4)-YEAR(BR33),"") ->  | BT33: 1 | BU33: 0 | BY33: 99999 | BZ33: 99999 | CA33: 6 | CB33: 99999 | CC33: 99999999999 | CD33: 0 | CE33: 99999999999 | CF33: 2799999999 | CG33: 99 | DC33: 99014 | DD33: 99012 | DE33: 99 | DF33: 12 | DH33: 14 | DI33: 1 | DK33: 99999 | DL33: 99999 | DM33: 999 | DN33: 1 | DP33: 99999 | DQ33: 99999999999 | DR33: 0 | DS33: 99999999999 | DT33: 99999999999 | DU33: 0 | DV33: 99 | EN33: 14 | EP33: 0 | EQ33: 0 | ER33: 0 | ES33: 0 | ET33: 0 | EU33: 0 | EV33: 0 | EW33: 0 | EX33: 0 | EY33: 0 | EZ33: 0 | FA33: 0 | FB33: 0 | FC33: 0 | FD33: 0 | FE33: 0 | FF33: 0 | FG33: 0 | FH33: 0 | FI33: 0 | FJ33: 0 | FK33: 0 | FL33: 0 | FM33: 0 | FN33: 0 | FO33: 0 | FP33: 0 | FQ33: =IF(Einstellung!A24=0,"",Einstellung!A24) -> W-48 | FR33: 14 | FS33: 99 | FT33: 0 | FU33: 0 | FV33: 0 | FW33: 0 | FX33: 0 | FY33: 0 | FZ33: 0 | GA33: 0 | GB33: 0 | GC33: 0 | GD33: 1 | GE33: 1 | GF33: 1 | GG33: 0 | GH33: 1 | GI33: 1 | GJ33: 1 | GK33: 1 | GL33: 1 | GM33: 1 | GN33: 1 | GO33: 1 | GP33: 1 | GQ33: 1 | GR33: 1 | GS33: 14 | GT33: 0 | GX33: 0 | GY33: 0 | GZ33: 0 | HA33: 0 | HB33: 0 | HC33: 0 | HE33: =IF(Vereine!E33=0,"",Vereine!E33) ->  | HF33: =Einstellung!A53 -> 14 | HG33: 99
A34: 15 | BL34: 15 | BS34: =IF(ISNUMBER(BR34),YEAR(Wiegeliste!$D$4)-YEAR(BR34),"") ->  | BT34: 1 | BU34: 0 | BY34: 99999 | BZ34: 99999 | CA34: 6 | CB34: 99999 | CC34: 99999999999 | CD34: 0 | CE34: 99999999999 | CF34: 2800000909 | CG34: 9 | CH34: M-50 | CI34: M377 | CJ34: 40.1 | CK34: 30 | CL34: 40 | CM34: J | CN34: 0 | CO34: 0 | CP34: 0 | CQ34: 0 | CR34: 0 | CS34: 0 | CT34: 0 | CU34: 0 | CV34: 0 | CW34: 0 | CX34: 0 | CY34: 0 | CZ34: 0 | DA34: 9 | DC34: 9015 | DD34: 99014 | DE34: 99 | DF34: 14 | DH34: 15 | DI34: 1 | DK34: 99999 | DL34: 99999 | DM34: 999 | DN34: 1 | DP34: 99999 | DQ34: 99999999999 | DR34: 0 | DS34: 99999999999 | DT34: 99999999999 | DU34: 0 | DV34: 99 | EN34: 15 | EP34: 0 | EQ34: 0 | ER34: 0 | ES34: 0 | ET34: 0 | EU34: 0 | EV34: 0 | EW34: 0 | EX34: 0 | EY34: 0 | EZ34: 0 | FA34: 0 | FB34: 0 | FC34: 0 | FD34: 0 | FE34: 0 | FF34: 0 | FG34: 0 | FH34: 0 | FI34: 0 | FJ34: 0 | FK34: 0 | FL34: 0 | FM34: 0 | FN34: 0 | FO34: 0 | FP34: 0 | FQ34: =IF(Einstellung!A25=0,"",Einstellung!A25) -> W-53 | FR34: 15 | FS34: 99 | FT34: 0 | FU34: 0 | FV34: 0 | FW34: 0 | FX34: 0 | FY34: 0 | FZ34: 0 | GA34: 0 | GB34: 0 | GC34: 0 | GD34: 1 | GE34: 1 | GF34: 1 | GG34: 1 | GH34: 0 | GI34: 1 | GJ34: 1 | GK34: 1 | GL34: 1 | GM34: 1 | GN34: 1 | GO34: 1 | GP34: 1 | GQ34: 1 | GR34: 1 | GS34: 14 | GT34: 0 | GX34: 0 | GY34: 0 | GZ34: 0 | HA34: 0 | HB34: 0 | HC34: 0 | HE34: =IF(Vereine!E34=0,"",Vereine!E34) ->  | HF34: =Einstellung!A54 -> 15 | HG34: 9
A35: 16 | BL35: 16 | BS35: =IF(ISNUMBER(BR35),YEAR(Wiegeliste!$D$4)-YEAR(BR35),"") ->  | BT35: 1 | BU35: 0 | BY35: 99999 | BZ35: 99999 | CA35: 6 | CB35: 99999 | CC35: 99999999999 | CD35: 0 | CE35: 99999999999 | CF35: 2899999999 | CG35: 99 | DC35: 99016 | DD35: 99016 | DE35: 99 | DF35: 16 | DH35: 16 | DI35: 1 | DK35: 99999 | DL35: 99999 | DM35: 999 | DN35: 1 | DP35: 99999 | DQ35: 99999999999 | DR35: 0 | DS35: 99999999999 | DT35: 99999999999 | DU35: 0 | DV35: 99 | EN35: 16 | EP35: 0 | EQ35: 0 | ER35: 0 | ES35: 0 | ET35: 0 | EU35: 0 | EV35: 0 | EW35: 0 | EX35: 0 | EY35: 0 | EZ35: 0 | FA35: 0 | FB35: 0 | FC35: 0 | FD35: 0 | FE35: 0 | FF35: 0 | FG35: 0 | FH35: 0 | FI35: 0 | FJ35: 0 | FK35: 0 | FL35: 0 | FM35: 0 | FN35: 0 | FO35: 0 | FP35: 0 | FQ35: =IF(Einstellung!A26=0,"",Einstellung!A26) -> W-58 | FR35: 16 | FS35: 99 | FT35: 0 | FU35: 0 | FV35: 0 | FW35: 0 | FX35: 0 | FY35: 0 | FZ35: 0 | GA35: 0 | GB35: 0 | GC35: 0 | GD35: 1 | GE35: 1 | GF35: 1 | GG35: 1 | GH35: 1 | GI35: 0 | GJ35: 1 | GK35: 1 | GL35: 1 | GM35: 1 | GN35: 1 | GO35: 1 | GP35: 1 | GQ35: 1 | GR35: 1 | GS35: 14 | GT35: 0 | GX35: 0 | GY35: 0 | GZ35: 0 | HA35: 0 | HB35: 0 | HC35: 0 | HE35: =IF(Vereine!E35=0,"",Vereine!E35) ->  | HF35: =Einstellung!A55 -> 16 | HG35: 99
A36: 17 | BL36: 17 | BS36: =IF(ISNUMBER(BR36),YEAR(Wiegeliste!$D$4)-YEAR(BR36),"") ->  | BT36: 1 | BU36: 0 | BY36: 99999 | BZ36: 99999 | CA36: 6 | CB36: 99999 | CC36: 99999999999 | CD36: 0 | CE36: 99999999999 | CF36: 99999999999 | CG36: 99 | DC36: 99017 | DD36: 99017 | DE36: 99 | DF36: 17 | DH36: 17 | DI36: 1 | DK36: 99999 | DL36: 99999 | DM36: 999 | DN36: 1 | DP36: 99999 | DQ36: 99999999999 | DR36: 0 | DS36: 99999999999 | DT36: 99999999999 | DU36: 0 | DV36: 99 | EN36: 17 | EP36: 0 | EQ36: 0 | ER36: 0 | ES36: 0 | ET36: 0 | EU36: 0 | EV36: 0 | EW36: 0 | EX36: 0 | EY36: 0 | EZ36: 0 | FA36: 0 | FB36: 0 | FC36: 0 | FD36: 0 | FE36: 0 | FF36: 0 | FG36: 0 | FH36: 0 | FI36: 0 | FJ36: 0 | FK36: 0 | FL36: 0 | FM36: 0 | FN36: 0 | FO36: 0 | FP36: 0 | FQ36: =IF(Einstellung!A27=0,"",Einstellung!A27) -> W-63 | FR36: 17 | FS36: 99 | FT36: 0 | FU36: 0 | FV36: 0 | FW36: 0 | FX36: 0 | FY36: 0 | FZ36: 0 | GA36: 0 | GB36: 0 | GC36: 0 | GD36: 1 | GE36: 1 | GF36: 1 | GG36: 1 | GH36: 1 | GI36: 1 | GJ36: 0 | GK36: 1 | GL36: 1 | GM36: 1 | GN36: 1 | GO36: 1 | GP36: 1 | GQ36: 1 | GR36: 1 | GS36: 14 | GT36: 0 | GX36: 0 | GY36: 0 | GZ36: 0 | HA36: 0 | HB36: 0 | HC36: 0 | HE36: =IF(Vereine!E36=0,"",Vereine!E36) ->  | HF36: =Einstellung!A56 -> 17 | HG36: 99
A37: 18 | BL37: 18 | BS37: =IF(ISNUMBER(BR37),YEAR(Wiegeliste!$D$4)-YEAR(BR37),"") ->  | BT37: 1 | BU37: 0 | BY37: 99999 | BZ37: 99999 | CA37: 6 | CB37: 99999 | CC37: 99999999999 | CD37: 0 | CE37: 99999999999 | CF37: 99999999999 | CG37: 99 | DC37: 99018 | DD37: 99018 | DE37: 99 | DF37: 18 | DH37: 18 | DI37: 1 | DK37: 99999 | DL37: 99999 | DM37: 999 | DN37: 1 | DP37: 99999 | DQ37: 99999999999 | DR37: 0 | DS37: 99999999999 | DT37: 99999999999 | DU37: 0 | DV37: 99 | EN37: 18 | EP37: 0 | EQ37: 0 | ER37: 0 | ES37: 0 | ET37: 0 | EU37: 0 | EV37: 0 | EW37: 0 | EX37: 0 | EY37: 0 | EZ37: 0 | FA37: 0 | FB37: 0 | FC37: 0 | FD37: 0 | FE37: 0 | FF37: 0 | FG37: 0 | FH37: 0 | FI37: 0 | FJ37: 0 | FK37: 0 | FL37: 0 | FM37: 0 | FN37: 0 | FO37: 0 | FP37: 0 | FQ37: =IF(Einstellung!A28=0,"",Einstellung!A28) -> W-69 | FR37: 18 | FS37: 99 | FT37: 0 | FU37: 0 | FV37: 0 | FW37: 0 | FX37: 0 | FY37: 0 | FZ37: 0 | GA37: 0 | GB37: 0 | GC37: 0 | GD37: 1 | GE37: 1 | GF37: 1 | GG37: 1 | GH37: 1 | GI37: 1 | GJ37: 1 | GK37: 0 | GL37: 1 | GM37: 1 | GN37: 1 | GO37: 1 | GP37: 1 | GQ37: 1 | GR37: 1 | GS37: 14 | GT37: 0 | GX37: 0 | GY37: 0 | GZ37: 0 | HA37: 0 | HB37: 0 | HC37: 0 | HE37: =IF(Vereine!E37=0,"",Vereine!E37) ->  | HF37: =Einstellung!A57 -> 18 | HG37: 99
A38: 19 | BL38: 19 | BS38: =IF(ISNUMBER(BR38),YEAR(Wiegeliste!$D$4)-YEAR(BR38),"") ->  | BT38: 1 | BU38: 0 | BY38: 99999 | BZ38: 99999 | CA38: 6 | CB38: 99999 | CC38: 99999999999 | CD38: 0 | CE38: 99999999999 | CF38: 99999999999 | CG38: 99 | DC38: 99019 | DD38: 99019 | DE38: 99 | DF38: 19 | DH38: 19 | DI38: 1 | DK38: 99999 | DL38: 99999 | DM38: 999 | DN38: 1 | DP38: 99999 | DQ38: 99999999999 | DR38: 0 | DS38: 99999999999 | DT38: 99999999999 | DU38: 0 | DV38: 99 | EN38: 19 | EP38: 0 | EQ38: 0 | ER38: 0 | ES38: 0 | ET38: 0 | EU38: 0 | EV38: 0 | EW38: 0 | EX38: 0 | EY38: 0 | EZ38: 0 | FA38: 0 | FB38: 0 | FC38: 0 | FD38: 0 | FE38: 0 | FF38: 0 | FG38: 0 | FH38: 0 | FI38: 0 | FJ38: 0 | FK38: 0 | FL38: 0 | FM38: 0 | FN38: 0 | FO38: 0 | FP38: 0 | FQ38: =IF(Einstellung!A29=0,"",Einstellung!A29) -> W-75 | FR38: 19 | FS38: 99 | FT38: 0 | FU38: 0 | FV38: 0 | FW38: 0 | FX38: 0 | FY38: 0 | FZ38: 0 | GA38: 0 | GB38: 0 | GC38: 0 | GD38: 1 | GE38: 1 | GF38: 1 | GG38: 1 | GH38: 1 | GI38: 1 | GJ38: 1 | GK38: 1 | GL38: 0 | GM38: 1 | GN38: 1 | GO38: 1 | GP38: 1 | GQ38: 1 | GR38: 1 | GS38: 14 | GT38: 0 | GX38: 0 | GY38: 0 | GZ38: 0 | HA38: 0 | HB38: 0 | HC38: 0 | HE38: =IF(Vereine!E38=0,"",Vereine!E38) ->  | HF38: =Einstellung!A58 -> 19 | HG38: 99
A39: 20 | BL39: 20 | BS39: =IF(ISNUMBER(BR39),YEAR(Wiegeliste!$D$4)-YEAR(BR39),"") ->  | BT39: 1 | BU39: 0 | BY39: 99999 | BZ39: 99999 | CA39: 6 | CB39: 99999 | CC39: 99999999999 | CD39: 0 | CE39: 99999999999 | CF39: 99999999999 | CG39: 99 | DC39: 99020 | DD39: 99020 | DE39: 99 | DF39: 20 | DH39: 20 | DI39: 1 | DK39: 99999 | DL39: 99999 | DM39: 999 | DN39: 1 | DP39: 99999 | DQ39: 99999999999 | DR39: 0 | DS39: 99999999999 | DT39: 99999999999 | DU39: 0 | DV39: 99 | EN39: 20 | EP39: 0 | EQ39: 0 | ER39: 0 | ES39: 0 | ET39: 0 | EU39: 0 | EV39: 0 | EW39: 0 | EX39: 0 | EY39: 0 | EZ39: 0 | FA39: 0 | FB39: 0 | FC39: 0 | FD39: 0 | FE39: 0 | FF39: 0 | FG39: 0 | FH39: 0 | FI39: 0 | FJ39: 0 | FK39: 0 | FL39: 0 | FM39: 0 | FN39: 0 | FO39: 0 | FP39: 0 | FQ39: =IF(Einstellung!A30=0,"",Einstellung!A30) ->  | FR39: 20 | FS39: 99 | FT39: 0 | FU39: 0 | FV39: 0 | FW39: 0 | FX39: 0 | FY39: 0 | FZ39: 0 | GA39: 0 | GB39: 0 | GC39: 0 | GD39: 1 | GE39: 1 | GF39: 1 | GG39: 1 | GH39: 1 | GI39: 1 | GJ39: 1 | GK39: 1 | GL39: 1 | GM39: 0 | GN39: 1 | GO39: 1 | GP39: 1 | GQ39: 1 | GR39: 1 | GS39: 14 | GT39: 0 | GX39: 0 | GY39: 0 | GZ39: 0 | HA39: 0 | HB39: 0 | HC39: 0 | HE39: =IF(Vereine!E39=0,"",Vereine!E39) ->  | HF39: =Einstellung!A59 -> 20 | HG39: 99
A40: 21 | BL40: 21 | BS40: =IF(ISNUMBER(BR40),YEAR(Wiegeliste!$D$4)-YEAR(BR40),"") ->  | BT40: 1 | BU40: 0 | BY40: 99999 | BZ40: 99999 | CA40: 6 | CB40: 99999 | CC40: 99999999999 | CD40: 0 | CE40: 99999999999 | CF40: 99999999999 | CG40: 99 | DC40: 99021 | DD40: 99021 | DE40: 99 | DF40: 21 | DH40: 21 | DI40: 1 | DK40: 99999 | DL40: 99999 | DM40: 999 | DN40: 1 | DP40: 99999 | DQ40: 99999999999 | DR40: 0 | DS40: 99999999999 | DT40: 99999999999 | DU40: 0 | DV40: 99 | EN40: 21 | EP40: 0 | EQ40: 0 | ER40: 0 | ES40: 0 | ET40: 0 | EU40: 0 | EV40: 0 | EW40: 0 | EX40: 0 | EY40: 0 | EZ40: 0 | FA40: 0 | FB40: 0 | FC40: 0 | FD40: 0 | FE40: 0 | FF40: 0 | FG40: 0 | FH40: 0 | FI40: 0 | FJ40: 0 | FK40: 0 | FL40: 0 | FM40: 0 | FN40: 0 | FO40: 0 | FP40: 0 | FR40: 21 | FS40: 99 | FT40: 0 | FU40: 0 | FV40: 0 | FW40: 0 | FX40: 0 | FY40: 0 | FZ40: 0 | GA40: 0 | GB40: 0 | GC40: 0 | GD40: 1 | GE40: 1 | GF40: 1 | GG40: 1 | GH40: 1 | GI40: 1 | GJ40: 1 | GK40: 1 | GL40: 1 | GM40: 1 | GN40: 0 | GO40: 1 | GP40: 1 | GQ40: 1 | GR40: 1 | GS40: 14 | GT40: 0 | GX40: 0 | GY40: 0 | GZ40: 0 | HA40: 0 | HB40: 0 | HC40: 0 | HE40: =IF(Vereine!E40=0,"",Vereine!E40) ->  | HF40: =Einstellung!A60 -> 21 | HG40: 99
A41: 22 | BL41: 22 | BS41: =IF(ISNUMBER(BR41),YEAR(Wiegeliste!$D$4)-YEAR(BR41),"") ->  | BT41: 1 | BU41: 0 | BY41: 99999 | BZ41: 99999 | CA41: 6 | CB41: 99999 | CC41: 99999999999 | CD41: 0 | CE41: 99999999999 | CF41: 99999999999 | CG41: 99 | DC41: 99022 | DD41: 99022 | DE41: 99 | DF41: 22 | DH41: 22 | DI41: 1 | DK41: 99999 | DL41: 99999 | DM41: 999 | DN41: 1 | DP41: 99999 | DQ41: 99999999999 | DR41: 0 | DS41: 99999999999 | DT41: 99999999999 | DU41: 0 | DV41: 99 | EN41: 22 | EP41: 0 | EQ41: 0 | ER41: 0 | ES41: 0 | ET41: 0 | EU41: 0 | EV41: 0 | EW41: 0 | EX41: 0 | EY41: 0 | EZ41: 0 | FA41: 0 | FB41: 0 | FC41: 0 | FD41: 0 | FE41: 0 | FF41: 0 | FG41: 0 | FH41: 0 | FI41: 0 | FJ41: 0 | FK41: 0 | FL41: =IF($EN41=FL$18,0,IF($EO41="",0,IF($EO41=FL$19,1,0))) -> 0 | FM41: 0 | FN41: 0 | FO41: 0 | FP41: 0 | FR41: 22 | FS41: 99 | FT41: 0 | FU41: 0 | FV41: 0 | FW41: 0 | FX41: 0 | FY41: 0 | FZ41: 0 | GA41: 0 | GB41: 0 | GC41: 0 | GD41: 1 | GE41: 1 | GF41: 1 | GG41: 1 | GH41: 1 | GI41: 1 | GJ41: 1 | GK41: 1 | GL41: 1 | GM41: 1 | GN41: 1 | GO41: 0 | GP41: =IF($FR41=GP$18,0,IF($FS41="",0,IF($FS41=GP$19,1,0))) -> 1 | GQ41: 1 | GR41: 1 | GS41: 14 | GT41: 0 | GX41: 0 | GY41: 0 | GZ41: 0 | HA41: 0 | HB41: 0 | HC41: 0 | HE41: =IF(Vereine!E41=0,"",Vereine!E41) ->  | HF41: =Einstellung!A61 -> 22 | HG41: 99
A42: 23 | BL42: =A42 -> 23 | BN42: =IF(UPPER(LEFT(TEXT(D42,"####"),1))="W",D42,IF(UPPER(LEFT(TEXT(D42,"####"),1))="M",D42,IF(UPPER(LEFT(TEXT(D42,"####"),1))="X",D42,""))) ->  | BO42: =IF(D42>0,IF(BN42="",D42,""),"") ->  | BS42: =IF(ISNUMBER(BR42),YEAR(Wiegeliste!$D$4)-YEAR(BR42),"") ->  | BT42: 1 | BU42: 0 | BY42: 99999 | BZ42: 99999 | CA42: 6 | CB42: 99999 | CC42: 99999999999 | CD42: 0 | CE42: 99999999999 | CF42: 99999999999 | CG42: 99 | DC42: 99023 | DD42: 99023 | DE42: 99 | DF42: 23 | DH42: 23 | DI42: 1 | DK42: 99999 | DL42: 99999 | DM42: 999 | DN42: 1 | DP42: 99999 | DQ42: 99999999999 | DR42: 0 | DS42: 99999999999 | DT42: 99999999999 | DU42: 0 | DV42: 99 | EN42: 23 | EP42: 0 | EQ42: 0 | ER42: 0 | ES42: 0 | ET42: 0 | EU42: 0 | EV42: 0 | EW42: 0 | EX42: 0 | EY42: 0 | EZ42: 0 | FA42: 0 | FB42: 0 | FC42: 0 | FD42: 0 | FE42: 0 | FF42: 0 | FG42: 0 | FH42: 0 | FI42: 0 | FJ42: 0 | FK42: 0 | FL42: 0 | FM42: 0 | FN42: 0 | FO42: 0 | FP42: 0 | FR42: 23 | FS42: 99 | FT42: 0 | FU42: 0 | FV42: 0 | FW42: 0 | FX42: 0 | FY42: 0 | FZ42: 0 | GA42: 0 | GB42: 0 | GC42: 0 | GD42: 1 | GE42: 1 | GF42: 1 | GG42: 1 | GH42: 1 | GI42: 1 | GJ42: 1 | GK42: 1 | GL42: 1 | GM42: 1 | GN42: 1 | GO42: 1 | GP42: 0 | GQ42: 1 | GR42: 1 | GS42: 14 | GT42: 0 | GX42: 0 | GY42: 0 | GZ42: 0 | HA42: 0 | HB42: 0 | HC42: 0 | HE42: =IF(Vereine!E42=0,"",Vereine!E42) ->  | HF42: =Einstellung!A62 -> 23 | HG42: 99
A43: 24 | BL43: =A43 -> 24 | BN43: =IF(UPPER(LEFT(TEXT(D43,"####"),1))="W",D43,IF(UPPER(LEFT(TEXT(D43,"####"),1))="M",D43,IF(UPPER(LEFT(TEXT(D43,"####"),1))="X",D43,""))) ->  | BO43: =IF(D43>0,IF(BN43="",D43,""),"") ->  | BS43: =IF(ISNUMBER(BR43),YEAR(Wiegeliste!$D$4)-YEAR(BR43),"") ->  | BT43: 1 | BU43: 0 | BY43: 99999 | BZ43: 99999 | CA43: 6 | CB43: 99999 | CC43: 99999999999 | CD43: 0 | CE43: 99999999999 | CF43: 99999999999 | CG43: 99 | DC43: 99024 | DD43: 99024 | DE43: 99 | DF43: 24 | DH43: 24 | DI43: 1 | DK43: 99999 | DL43: 99999 | DM43: 999 | DN43: 1 | DP43: 99999 | DQ43: 99999999999 | DR43: 0 | DS43: 99999999999 | DT43: 99999999999 | DU43: 0 | DV43: 99 | EN43: 24 | EP43: 0 | EQ43: 0 | ER43: 0 | ES43: 0 | ET43: 0 | EU43: 0 | EV43: 0 | EW43: 0 | EX43: 0 | EY43: 0 | EZ43: 0 | FA43: 0 | FB43: 0 | FC43: 0 | FD43: 0 | FE43: 0 | FF43: 0 | FG43: 0 | FH43: 0 | FI43: 0 | FJ43: 0 | FK43: 0 | FL43: 0 | FM43: 0 | FN43: 0 | FO43: 0 | FP43: 0 | FR43: 24 | FS43: 99 | FT43: 0 | FU43: 0 | FV43: 0 | FW43: 0 | FX43: 0 | FY43: 0 | FZ43: 0 | GA43: 0 | GB43: 0 | GC43: 0 | GD43: 1 | GE43: 1 | GF43: 1 | GG43: 1 | GH43: 1 | GI43: 1 | GJ43: 1 | GK43: 1 | GL43: 1 | GM43: 1 | GN43: 1 | GO43: 1 | GP43: 1 | GQ43: 0 | GR43: 1 | GS43: 14 | GT43: 0 | GX43: 0 | GY43: 0 | GZ43: 0 | HA43: 0 | HB43: 0 | HC43: 0 | HE43: =IF(Vereine!E43=0,"",Vereine!E43) ->  | HF43: =Einstellung!A63 -> 24 | HG43: 99
A44: 25 | BL44: =A44 -> 25 | BN44: =IF(UPPER(LEFT(TEXT(D44,"####"),1))="W",D44,IF(UPPER(LEFT(TEXT(D44,"####"),1))="M",D44,IF(UPPER(LEFT(TEXT(D44,"####"),1))="X",D44,""))) ->  | BO44: =IF(D44>0,IF(BN44="",D44,""),"") ->  | BS44: =IF(ISNUMBER(BR44),YEAR(Wiegeliste!$D$4)-YEAR(BR44),"") ->  | BT44: 1 | BU44: 0 | BY44: 99999 | BZ44: 99999 | CA44: 6 | CB44: 99999 | CC44: 99999999999 | CD44: 0 | CE44: 99999999999 | CF44: 99999999999 | CG44: 99 | DC44: 99025 | DD44: 99025 | DE44: 99 | DF44: 25 | DH44: 25 | DI44: 1 | DK44: 99999 | DL44: 99999 | DM44: 999 | DN44: 1 | DP44: 99999 | DQ44: 99999999999 | DR44: 0 | DS44: 99999999999 | DT44: 99999999999 | DU44: 0 | DV44: 99 | EN44: 25 | EO44: =BP44 ->  | EP44: 0 | EQ44: 0 | ER44: 0 | ES44: 0 | ET44: 0 | EU44: 0 | EV44: 0 | EW44: 0 | EX44: 0 | EY44: 0 | EZ44: 0 | FA44: 0 | FB44: 0 | FC44: 0 | FD44: 0 | FE44: 0 | FF44: 0 | FG44: 0 | FH44: 0 | FI44: 0 | FJ44: 0 | FK44: 0 | FL44: 0 | FM44: 0 | FN44: 0 | FO44: 0 | FP44: 0 | FR44: 25 | FS44: 99 | FT44: 0 | FU44: 0 | FV44: 0 | FW44: 0 | FX44: 0 | FY44: 0 | FZ44: 0 | GA44: 0 | GB44: 0 | GC44: 0 | GD44: 1 | GE44: 1 | GF44: 1 | GG44: 1 | GH44: 1 | GI44: 1 | GJ44: 1 | GK44: 1 | GL44: 1 | GM44: 1 | GN44: 1 | GO44: 1 | GP44: 1 | GQ44: 1 | GR44: 0 | GS44: 14 | GT44: 0 | GX44: 0 | GY44: 0 | GZ44: 0 | HA44: 0 | HB44: 0 | HC44: 0 | HE44: =IF(Vereine!E44=0,"",Vereine!E44) -> 
CE45: =CC20 -> 1599999999 | DH45: 26 | DI45: 2 | DJ45: =IF(AM20<>"",IF(BU20=1,AM20,""),"") ->  | DK45: 99999 | DL45: 99999 | DM45: 999 | DN45: 1 | DR45: =IF(BP20="",$CD$18,E20) -> 1 | DS45: =IF(BP20="",$CE$17,IF(DK45=$BY$17,$CE$17,DK45*$CE$1/100+DR45*$CE$12+BL20)) -> 99999999999 | HE45: =IF(Vereine!E45=0,"",Vereine!E45) -> 
CE46: =CC21 -> 2399999999 | DH46: 27 | DI46: 2 | DJ46: =IF(AM21<>"",IF(BU21=1,AM21,""),"") ->  | DK46: 99999 | DL46: 99999 | DM46: 999 | DN46: 1 | DR46: =IF(BP21="",$CD$18,E21) -> 2 | DS46: 99999999999 | HE46: =IF(Vereine!E46=0,"",Vereine!E46) -> 
CE47: 2499999999 | DH47: 28 | DI47: 2 | DK47: 99999 | DL47: 99999 | DM47: 999 | DN47: 1 | DR47: =IF(BP22="",$CD$18,E22) -> 3 | DS47: 99999999999 | HE47: =IF(Vereine!E47=0,"",Vereine!E47) -> 
CE48: 99999999999 | DH48: 29 | DI48: 2 | DK48: 99999 | DL48: 99999 | DM48: 999 | DN48: 1 | DR48: =IF(BP23="",$CD$18,E23) -> 4 | DS48: 99999999999 | HE48: =IF(Vereine!E48=0,"",Vereine!E48) -> 
CE49: 2599999999 | DH49: 30 | DI49: 2 | DK49: 99999 | DL49: 99999 | DM49: 999 | DN49: 1 | DR49: =IF(BP24="",$CD$18,E24) -> 5 | DS49: 99999999999 | HE49: =IF(Vereine!E49=0,"",Vereine!E49) -> 
CE50: 99999999999 | DH50: 31 | DI50: 2 | DK50: 99999 | DL50: 99999 | DM50: 999 | DN50: 1 | DR50: 6 | DS50: 99999999999 | HE50: =IF(Vereine!E50=0,"",Vereine!E50) -> 
CE51: 99999999999 | DH51: 32 | DI51: 2 | DK51: 99999 | DL51: 99999 | DM51: 999 | DN51: 1 | DR51: =IF(BP26="",$CD$18,E26) -> 7 | DS51: 99999999999 | HE51: =IF(Vereine!E51=0,"",Vereine!E51) -> X
CE52: 99999999999 | DH52: 33 | DI52: 2 | DK52: =IF(DJ52="",$BY$17,IF(ISERROR(VLOOKUP(DJ52,Gruppe,2,FALSE)),$BY$17,VLOOKUP(DJ52,Gruppe,2,FALSE)*$DK$17+DI52)) -> 99999 | DL52: 99999 | DM52: 999 | DN52: 1 | DR52: 8 | DS52: 99999999999
CE53: 2799999999 | DH53: 34 | DI53: 2 | DK53: 99999 | DL53: 99999 | DM53: 999 | DN53: 1 | DR53: 9 | DS53: 99999999999
CE54: 2899999999 | DH54: 35 | DI54: 2 | DK54: 99999 | DL54: 99999 | DM54: 999 | DN54: 1 | DR54: 10 | DS54: 99999999999
CE55: 99999999999 | DH55: 36 | DI55: 2 | DK55: 99999 | DL55: 99999 | DM55: 999 | DN55: 1 | DR55: 0 | DS55: 99999999999
CE56: 99999999999 | DH56: 37 | DI56: 2 | DK56: 99999 | DL56: 99999 | DM56: 999 | DN56: 1 | DR56: 0 | DS56: 99999999999
CE57: 99999999999 | DH57: 38 | DI57: 2 | DK57: 99999 | DL57: 99999 | DM57: 999 | DN57: 1 | DR57: =IF(BP32="",$CD$18,E32) -> 0 | DS57: 99999999999
CE58: 99999999999 | DH58: 39 | DI58: 2 | DK58: 99999 | DL58: 99999 | DM58: 999 | DN58: 1 | DR58: 0 | DS58: 99999999999
CE59: 99999999999 | DH59: 40 | DI59: 2 | DK59: 99999 | DL59: 99999 | DM59: 999 | DN59: 1 | DR59: 0 | DS59: 99999999999
CE60: 99999999999 | DH60: 41 | DI60: 2 | DK60: 99999 | DL60: 99999 | DM60: 999 | DN60: 1 | DR60: 0 | DS60: 99999999999
CE61: 99999999999 | DH61: 42 | DI61: 2 | DK61: 99999 | DL61: 99999 | DM61: 999 | DN61: 1 | DR61: 0 | DS61: 99999999999
CE62: 99999999999 | DH62: 43 | DI62: 2 | DK62: 99999 | DL62: 99999 | DM62: 999 | DN62: 1 | DR62: 0 | DS62: 99999999999
CE63: 99999999999 | DH63: 44 | DI63: 2 | DK63: 99999 | DL63: 99999 | DM63: 999 | DN63: 1 | DR63: 0 | DS63: 99999999999
CE64: 99999999999 | DH64: 45 | DI64: 2 | DK64: 99999 | DL64: 99999 | DM64: 999 | DN64: 1 | DR64: 0 | DS64: 99999999999
CE65: 99999999999 | DH65: 46 | DI65: 2 | DK65: 99999 | DL65: 99999 | DM65: 999 | DN65: 1 | DR65: 0 | DS65: 99999999999
CE66: 99999999999 | DH66: 47 | DI66: 2 | DK66: 99999 | DL66: 99999 | DM66: 999 | DN66: 1 | DR66: 0 | DS66: 99999999999
CE67: 99999999999 | DH67: 48 | DI67: 2 | DK67: 99999 | DL67: 99999 | DM67: 999 | DN67: 1 | DR67: 0 | DS67: 99999999999
CE68: 99999999999 | DH68: 49 | DI68: 2 | DK68: 99999 | DL68: 99999 | DM68: 999 | DN68: 1 | DR68: 0 | DS68: 99999999999
CE69: =CC44 -> 99999999999 | DH69: 50 | DI69: 2 | DK69: 99999 | DL69: 99999 | DM69: 999 | DN69: 1 | DR69: 0 | DS69: 99999999999
CE70: =IF($Y$3=8,IF($CA5>0,$CC$20,$CE$17),$CE$17) -> 99999999999 | DS70: =DQ20 -> 99999999999
CE71: =IF($Y$3=8,IF($CA6>0,$CC$20,$CE$17),$CE$17) -> 99999999999 | DS71: =DQ21 -> 99999999999
CE72: =IF($Y$3=8,IF($CA7>0,$CC$20,$CE$17),$CE$17) -> 99999999999
CE73: =IF($Y$3=8,IF($CA8>0,$CC$20,$CE$17),$CE$17) -> 99999999999
CE74: =IF($Y$3=8,IF($CA9>0,$CC$20,$CE$17),$CE$17) -> 99999999999
DS272: =DQ22 -> 99999999999
DS273: 99999999999
DS274: 99999999999
DS275: 99999999999
DS276: 99999999999
DS277: 99999999999
DS278: 99999999999
DS279: 99999999999
DS280: 99999999999
DS281: 99999999999
DS282: 99999999999
DS283: 99999999999
DS284: 99999999999
DS285: 99999999999
DS286: 99999999999
DS287: 99999999999
DS288: 99999999999
DS289: 99999999999
DS290: 99999999999
DS291: 99999999999
DS292: 99999999999
DS293: 99999999999
DS294: 99999999999

Sheet Druck Erstversuchsliste
A1: =Wiegeliste!D3 & " " & DAY(Wiegeliste!D4)&"."&MONTH(Wiegeliste!D4)&"."&YEAR(Wiegeliste!D4) -> Klubmeisterschaft 14.2.2015 | AC1: =Einstellung!W29 -> 2
A3: =VLOOKUP(5,texte,$AC$1) -> Gruppe | B3: =VLOOKUP(78,texte,$AC$1) -> Pass/ID | C3: =VLOOKUP(1,texte,$AC$1) -> Athlet | D3: =IF(Einstellung!$S$28="V",VLOOKUP(20,texte,$AC$1),IF(Einstellung!$S$28="N",VLOOKUP(23,texte,$AC$1),VLOOKUP(20,texte,$AC$1))) -> Verein | E3: =VLOOKUP(75,texte,$AC$1) -> Körpergewicht | F3: =IF(Einstellung!S26="M",VLOOKUP(76,texte,$AC$1),VLOOKUP(77,texte,$AC$1)) -> Sinclair Faktor | G3: =VLOOKUP(79,texte,$AC$1) -> Reißen, 1. Versuch | H3: =VLOOKUP(80,texte,$AC$1) -> Reißen, 2. Versuch | I3: =VLOOKUP(81,texte,$AC$1) -> Reißen, 3. Versuch | J3: =VLOOKUP(82,texte,$AC$1) -> Stoßen, 1. Versuch | K3: =VLOOKUP(83,texte,$AC$1) -> Stoßen, 2. Versuch | L3: =VLOOKUP(84,texte,$AC$1) -> Stoßen, 3. Versuch | M3: =Einstellung!L32 -> U15-Zweikampf | N3: =Einstellung!M32 -> U17-Zweikampf | O3: =Einstellung!N32 -> U20-Zweikampf | P3: =Einstellung!O32 -> U23-Zweikampf | Q3: =Einstellung!P32 -> Allgemeine Klasse | R3: =Einstellung!Q32 -> Reißen allg. Klasse | S3: =Einstellung!R32 -> Stoßen allg. Klasse | T3: =Einstellung!S32 -> U15 nach Sinclair | U3: =Einstellung!T32 -> U17 nach Sinclair | V3: =Einstellung!U32 -> U20 nach Sinclair | W3: =Einstellung!V32 -> U23 nach Sinclair | X3: =Einstellung!W32 -> Frauen nach Sinclair | Y3: =Einstellung!X32 -> Männer nach Sinclair | Z3: =Einstellung!Y32 -> Ausländer nach Sinclair | AA3: =Einstellung!Z34 -> Startnummer
A4: =Einstellung!B40 -> W-69 | B4: =Einstellung!C40 -> 4527 | C4: =Einstellung!D40 -> Faltin Cäcilia | D4: =IF(Einstellung!$S$28="N",IF(Wettkampf!BK6<>"",VLOOKUP(Wettkampf!BK6,Athl01,13),""),IF(Wettkampf!BK6<>"",VLOOKUP(Wettkampf!BK6,Athl01,Einstellung!$I$2),"")) -> 0 | E4: =Einstellung!F40 -> 64.7 | F4: =Einstellung!G40 -> 1.3059 | G4: =Einstellung!H40 -> 55 | J4: =Einstellung!I40 -> 60 | M4: =Einstellung!L40 ->  | N4: =Einstellung!M40 ->  | O4: =Einstellung!N40 ->  | P4: =Einstellung!O40 ->  | Q4: =Einstellung!P40 ->  | R4: =Einstellung!Q40 ->  | S4: =Einstellung!R40 ->  | T4: =Einstellung!S40 ->  | U4: =Einstellung!T40 ->  | V4: =Einstellung!U40 ->  | W4: =Einstellung!V40 ->  | X4: =Einstellung!W40 -> J | Y4: =Einstellung!X40 ->  | Z4: =Einstellung!Y40 ->  | AA4: =Einstellung!Z40 -> 10
A7: =Einstellung!B41 ->  | B7: =Einstellung!C41 ->  | C7: =Einstellung!D41 ->  | D7: =IF(Einstellung!$S$28="N",IF(Wettkampf!BK7<>"",VLOOKUP(Wettkampf!BK7,Athl01,13),""),IF(Wettkampf!BK7<>"",VLOOKUP(Wettkampf!BK7,Athl01,Einstellung!$I$2),"")) ->  | E7: =Einstellung!F41 ->  | F7: =Einstellung!G41 ->  | G7: =Einstellung!H41 ->  | J7: =Einstellung!I41 ->  | M7: =Einstellung!L41 ->  | N7: =Einstellung!M41 ->  | O7: =Einstellung!N41 ->  | P7: =Einstellung!O41 ->  | Q7: =Einstellung!P41 ->  | R7: =Einstellung!Q41 ->  | S7: =Einstellung!R41 ->  | T7: =Einstellung!S41 ->  | U7: =Einstellung!T41 ->  | V7: =Einstellung!U41 ->  | W7: =Einstellung!V41 ->  | X7: =Einstellung!W41 ->  | Y7: =Einstellung!X41 ->  | Z7: =Einstellung!Y41 ->  | AA7: =Einstellung!Z41 -> 
A10: =Einstellung!B42 -> M-77 | B10: =Einstellung!C42 -> 4624 | C10: =Einstellung!D42 -> Legel Bernhard | D10: =IF(Einstellung!$S$28="N",IF(Wettkampf!BK8<>"",VLOOKUP(Wettkampf!BK8,Athl01,13),""),IF(Wettkampf!BK8<>"",VLOOKUP(Wettkampf!BK8,Athl01,Einstellung!$I$2),"")) -> 0 | E10: =Einstellung!F42 -> 69.3 | F10: =Einstellung!G42 -> 1.3415 | G10: =Einstellung!H42 -> 80 | J10: =Einstellung!I42 -> 100 | M10: =Einstellung!L42 ->  | N10: =Einstellung!M42 ->  | O10: =Einstellung!N42 ->  | P10: =Einstellung!O42 ->  | Q10: =Einstellung!P42 -> J | R10: =Einstellung!Q42 ->  | S10: =Einstellung!R42 ->  | T10: =Einstellung!S42 ->  | U10: =Einstellung!T42 ->  | V10: =Einstellung!U42 ->  | W10: =Einstellung!V42 ->  | X10: =Einstellung!W42 ->  | Y10: =Einstellung!X42 -> J | Z10: =Einstellung!Y42 ->  | AA10: =Einstellung!Z42 -> 1
A13: =Einstellung!B43 ->  | B13: =Einstellung!C43 ->  | C13: =Einstellung!D43 ->  | D13: =IF(Einstellung!$S$28="N",IF(Wettkampf!BK9<>"",VLOOKUP(Wettkampf!BK9,Athl01,13),""),IF(Wettkampf!BK9<>"",VLOOKUP(Wettkampf!BK9,Athl01,Einstellung!$I$2),"")) ->  | E13: =Einstellung!F43 ->  | F13: =Einstellung!G43 ->  | G13: =Einstellung!H43 ->  | J13: =Einstellung!I43 ->  | M13: =Einstellung!L43 ->  | N13: =Einstellung!M43 ->  | O13: =Einstellung!N43 ->  | P13: =Einstellung!O43 ->  | Q13: =Einstellung!P43 ->  | R13: =Einstellung!Q43 ->  | S13: =Einstellung!R43 ->  | T13: =Einstellung!S43 ->  | U13: =Einstellung!T43 ->  | V13: =Einstellung!U43 ->  | W13: =Einstellung!V43 ->  | X13: =Einstellung!W43 ->  | Y13: =Einstellung!X43 ->  | Z13: =Einstellung!Y43 ->  | AA13: =Einstellung!Z43 -> 
A16: =Einstellung!B44 -> M-85 | B16: =Einstellung!C44 -> 4635 | C16: =Einstellung!D44 -> Legel Christoph | D16: =IF(Einstellung!$S$28="N",IF(Wettkampf!BK10<>"",VLOOKUP(Wettkampf!BK10,Athl01,13),""),IF(Wettkampf!BK10<>"",VLOOKUP(Wettkampf!BK10,Athl01,Einstellung!$I$2),"")) -> 0 | E16: =Einstellung!F44 -> 82 | F16: =Einstellung!G44 -> 1.2171 | G16: =Einstellung!H44 -> 85 | J16: =Einstellung!I44 -> 105 | M16: =Einstellung!L44 ->  | N16: =Einstellung!M44 ->  | O16: =Einstellung!N44 ->  | P16: =Einstellung!O44 ->  | Q16: =Einstellung!P44 -> J | R16: =Einstellung!Q44 ->  | S16: =Einstellung!R44 ->  | T16: =Einstellung!S44 ->  | U16: =Einstellung!T44 ->  | V16: =Einstellung!U44 ->  | W16: =Einstellung!V44 ->  | X16: =Einstellung!W44 ->  | Y16: =Einstellung!X44 -> J | Z16: =Einstellung!Y44 ->  | AA16: =Einstellung!Z44 -> 4
A19: =Einstellung!B45 -> M-85 | B19: =Einstellung!C45 -> 1535 | C19: =Einstellung!D45 -> Legel Walter | D19: =IF(Einstellung!$S$28="N",IF(Wettkampf!BK11<>"",VLOOKUP(Wettkampf!BK11,Athl01,13),""),IF(Wettkampf!BK11<>"",VLOOKUP(Wettkampf!BK11,Athl01,Einstellung!$I$2),"")) -> 0 | E19: =Einstellung!F45 -> 81 | F19: =Einstellung!G45 -> 1.2249 | G19: =Einstellung!H45 -> 60 | J19: =Einstellung!I45 -> 80 | M19: =Einstellung!L45 ->  | N19: =Einstellung!M45 ->  | O19: =Einstellung!N45 ->  | P19: =Einstellung!O45 ->  | Q19: =Einstellung!P45 ->  | R19: =Einstellung!Q45 ->  | S19: =Einstellung!R45 ->  | T19: =Einstellung!S45 ->  | U19: =Einstellung!T45 ->  | V19: =Einstellung!U45 ->  | W19: =Einstellung!V45 ->  | X19: =Einstellung!W45 ->  | Y19: =Einstellung!X45 -> J | Z19: =Einstellung!Y45 ->  | AA19: =Einstellung!Z45 -> 8
A22: =Einstellung!B46 ->  | B22: =Einstellung!C46 ->  | C22: =Einstellung!D46 ->  | D22: =IF(Einstellung!$S$28="N",IF(Wettkampf!BK12<>"",VLOOKUP(Wettkampf!BK12,Athl01,13),""),IF(Wettkampf!BK12<>"",VLOOKUP(Wettkampf!BK12,Athl01,Einstellung!$I$2),"")) ->  | E22: =Einstellung!F46 ->  | F22: =Einstellung!G46 ->  | G22: =Einstellung!H46 ->  | J22: =Einstellung!I46 ->  | M22: =Einstellung!L46 ->  | N22: =Einstellung!M46 ->  | O22: =Einstellung!N46 ->  | P22: =Einstellung!O46 ->  | Q22: =Einstellung!P46 ->  | R22: =Einstellung!Q46 ->  | S22: =Einstellung!R46 ->  | T22: =Einstellung!S46 ->  | U22: =Einstellung!T46 ->  | V22: =Einstellung!U46 ->  | W22: =Einstellung!V46 ->  | X22: =Einstellung!W46 ->  | Y22: =Einstellung!X46 ->  | Z22: =Einstellung!Y46 ->  | AA22: =Einstellung!Z46 -> 
A25: =Einstellung!B47 -> M-94 | B25: =Einstellung!C47 -> 4745 | C25: =Einstellung!D47 -> Wallner Matthias | D25: =IF(Einstellung!$S$28="N",IF(Wettkampf!BK13<>"",VLOOKUP(Wettkampf!BK13,Athl01,13),""),IF(Wettkampf!BK13<>"",VLOOKUP(Wettkampf!BK13,Athl01,Einstellung!$I$2),"")) -> 0 | E25: =Einstellung!F47 -> 91.2 | F25: =Einstellung!G47 -> 1.156 | G25: =Einstellung!H47 -> 100 | J25: =Einstellung!I47 -> 120 | M25: =Einstellung!L47 ->  | N25: =Einstellung!M47 ->  | O25: =Einstellung!N47 ->  | P25: =Einstellung!O47 ->  | Q25: =Einstellung!P47 -> J | R25: =Einstellung!Q47 ->  | S25: =Einstellung!R47 ->  | T25: =Einstellung!S47 ->  | U25: =Einstellung!T47 ->  | V25: =Einstellung!U47 ->  | W25: =Einstellung!V47 ->  | X25: =Einstellung!W47 ->  | Y25: =Einstellung!X47 -> J | Z25: =Einstellung!Y47 ->  | AA25: =Einstellung!Z47 -> 2
A28: =Einstellung!B48 -> M-94 | B28: =Einstellung!C48 -> 4586 | C28: =Einstellung!D48 -> Ceidl Martin | D28: =IF(Einstellung!$S$28="N",IF(Wettkampf!BK14<>"",VLOOKUP(Wettkampf!BK14,Athl01,13),""),IF(Wettkampf!BK14<>"",VLOOKUP(Wettkampf!BK14,Athl01,Einstellung!$I$2),"")) -> 0 | E28: =Einstellung!F48 -> 91.3 | F28: =Einstellung!G48 -> 1.1554 | G28: =Einstellung!H48 -> 80 | J28: =Einstellung!I48 -> 100 | M28: =Einstellung!L48 ->  | N28: =Einstellung!M48 ->  | O28: =Einstellung!N48 ->  | P28: =Einstellung!O48 ->  | Q28: =Einstellung!P48 -> J | R28: =Einstellung!Q48 ->  | S28: =Einstellung!R48 ->  | T28: =Einstellung!S48 ->  | U28: =Einstellung!T48 ->  | V28: =Einstellung!U48 ->  | W28: =Einstellung!V48 ->  | X28: =Einstellung!W48 ->  | Y28: =Einstellung!X48 -> J | Z28: =Einstellung!Y48 ->  | AA28: =Einstellung!Z48 -> 3
A31: =Einstellung!B49 -> M-94 | B31: =Einstellung!C49 -> 4666 | C31: =Einstellung!D49 -> Lenardt Matthias | D31: =IF(Einstellung!$S$28="N",IF(Wettkampf!BK15<>"",VLOOKUP(Wettkampf!BK15,Athl01,13),""),IF(Wettkampf!BK15<>"",VLOOKUP(Wettkampf!BK15,Athl01,Einstellung!$I$2),"")) -> 0 | E31: =Einstellung!F49 -> 84.8 | F31: =Einstellung!G49 -> 1.1964 | G31: =Einstellung!H49 -> 80 | J31: =Einstellung!I49 -> 100 | M31: =Einstellung!L49 ->  | N31: =Einstellung!M49 ->  | O31: =Einstellung!N49 ->  | P31: =Einstellung!O49 -> J | Q31: =Einstellung!P49 ->  | R31: =Einstellung!Q49 ->  | S31: =Einstellung!R49 ->  | T31: =Einstellung!S49 ->  | U31: =Einstellung!T49 ->  | V31: =Einstellung!U49 ->  | W31: =Einstellung!V49 -> J | X31: =Einstellung!W49 ->  | Y31: =Einstellung!X49 ->  | Z31: =Einstellung!Y49 ->  | AA31: =Einstellung!Z49 -> 6
A34: =Einstellung!B50 -> M-94 | B34: =Einstellung!C50 -> 2404 | C34: =Einstellung!D50 -> Kanyka Michael | D34: =IF(Einstellung!$S$28="N",IF(Wettkampf!BK16<>"",VLOOKUP(Wettkampf!BK16,Athl01,13),""),IF(Wettkampf!BK16<>"",VLOOKUP(Wettkampf!BK16,Athl01,Einstellung!$I$2),"")) -> 0 | E34: =Einstellung!F50 -> 90.6 | F34: =Einstellung!G50 -> 1.1594 | G34: =Einstellung!H50 -> 80 | J34: =Einstellung!I50 -> 100 | M34: =Einstellung!L50 ->  | N34: =Einstellung!M50 ->  | O34: =Einstellung!N50 ->  | P34: =Einstellung!O50 ->  | Q34: =Einstellung!P50 ->  | R34: =Einstellung!Q50 ->  | S34: =Einstellung!R50 ->  | T34: =Einstellung!S50 ->  | U34: =Einstellung!T50 ->  | V34: =Einstellung!U50 ->  | W34: =Einstellung!V50 ->  | X34: =Einstellung!W50 ->  | Y34: =Einstellung!X50 -> J | Z34: =Einstellung!Y50 ->  | AA34: =Einstellung!Z50 -> 7
A37: =Einstellung!B51 ->  | B37: =Einstellung!C51 ->  | C37: =Einstellung!D51 ->  | D37: =IF(Einstellung!$S$28="N",IF(Wettkampf!BK17<>"",VLOOKUP(Wettkampf!BK17,Athl01,13),""),IF(Wettkampf!BK17<>"",VLOOKUP(Wettkampf!BK17,Athl01,Einstellung!$I$2),"")) ->  | E37: =Einstellung!F51 ->  | F37: =Einstellung!G51 ->  | G37: =Einstellung!H51 ->  | J37: =Einstellung!I51 ->  | M37: =Einstellung!L51 ->  | N37: =Einstellung!M51 ->  | O37: =Einstellung!N51 ->  | P37: =Einstellung!O51 ->  | Q37: =Einstellung!P51 ->  | R37: =Einstellung!Q51 ->  | S37: =Einstellung!R51 ->  | T37: =Einstellung!S51 ->  | U37: =Einstellung!T51 ->  | V37: =Einstellung!U51 ->  | W37: =Einstellung!V51 ->  | X37: =Einstellung!W51 ->  | Y37: =Einstellung!X51 ->  | Z37: =Einstellung!Y51 ->  | AA37: =Einstellung!Z51 -> 
A40: =Einstellung!B52 -> M+105 | B40: =Einstellung!C52 -> 4027 | C40: =Einstellung!D52 -> Abraham Martin | D40: =IF(Einstellung!$S$28="N",IF(Wettkampf!BK18<>"",VLOOKUP(Wettkampf!BK18,Athl01,13),""),IF(Wettkampf!BK18<>"",VLOOKUP(Wettkampf!BK18,Athl01,Einstellung!$I$2),"")) -> 0 | E40: =Einstellung!F52 -> 106.8 | F40: =Einstellung!G52 -> 1.0865 | G40: =Einstellung!H52 -> 90 | J40: =Einstellung!I52 -> 110 | M40: =Einstellung!L52 ->  | N40: =Einstellung!M52 ->  | O40: =Einstellung!N52 ->  | P40: =Einstellung!O52 ->  | Q40: =Einstellung!P52 -> J | R40: =Einstellung!Q52 ->  | S40: =Einstellung!R52 ->  | T40: =Einstellung!S52 ->  | U40: =Einstellung!T52 ->  | V40: =Einstellung!U52 ->  | W40: =Einstellung!V52 ->  | X40: =Einstellung!W52 ->  | Y40: =Einstellung!X52 -> J | Z40: =Einstellung!Y52 ->  | AA40: =Einstellung!Z52 -> 5
A43: =Einstellung!B53 ->  | B43: =Einstellung!C53 ->  | C43: =Einstellung!D53 ->  | D43: =IF(Einstellung!$S$28="N",IF(Wettkampf!BK19<>"",VLOOKUP(Wettkampf!BK19,Athl01,13),""),IF(Wettkampf!BK19<>"",VLOOKUP(Wettkampf!BK19,Athl01,Einstellung!$I$2),"")) ->  | E43: =Einstellung!F53 ->  | F43: =Einstellung!G53 ->  | G43: =Einstellung!H53 ->  | J43: =Einstellung!I53 ->  | M43: =Einstellung!L53 ->  | N43: =Einstellung!M53 ->  | O43: =Einstellung!N53 ->  | P43: =Einstellung!O53 ->  | Q43: =Einstellung!P53 ->  | R43: =Einstellung!Q53 ->  | S43: =Einstellung!R53 ->  | T43: =Einstellung!S53 ->  | U43: =Einstellung!T53 ->  | V43: =Einstellung!U53 ->  | W43: =Einstellung!V53 ->  | X43: =Einstellung!W53 ->  | Y43: =Einstellung!X53 ->  | Z43: =Einstellung!Y53 ->  | AA43: =Einstellung!Z53 -> 
A46: =Einstellung!B54 -> M-50 | B46: =Einstellung!C54 -> M377 | C46: =Einstellung!D54 -> Kanyka Mario | D46: =IF(Einstellung!$S$28="N",IF(Wettkampf!BK20<>"",VLOOKUP(Wettkampf!BK20,Athl01,13),""),IF(Wettkampf!BK20<>"",VLOOKUP(Wettkampf!BK20,Athl01,Einstellung!$I$2),"")) -> 0 | E46: =Einstellung!F54 -> 40.1 | F46: =Einstellung!G54 -> 2.1073 | G46: =Einstellung!H54 -> 30 | J46: =Einstellung!I54 -> 40 | M46: =Einstellung!L54 -> J | N46: =Einstellung!M54 ->  | O46: =Einstellung!N54 ->  | P46: =Einstellung!O54 ->  | Q46: =Einstellung!P54 ->  | R46: =Einstellung!Q54 ->  | S46: =Einstellung!R54 ->  | T46: =Einstellung!S54 ->  | U46: =Einstellung!T54 ->  | V46: =Einstellung!U54 ->  | W46: =Einstellung!V54 ->  | X46: =Einstellung!W54 ->  | Y46: =Einstellung!X54 ->  | Z46: =Einstellung!Y54 ->  | AA46: =Einstellung!Z54 -> 9
A49: =Einstellung!B55 ->  | B49: =Einstellung!C55 ->  | C49: =Einstellung!D55 ->  | D49: =IF(Einstellung!$S$28="N",IF(Wettkampf!BK21<>"",VLOOKUP(Wettkampf!BK21,Athl01,13),""),IF(Wettkampf!BK21<>"",VLOOKUP(Wettkampf!BK21,Athl01,Einstellung!$I$2),"")) ->  | E49: =Einstellung!F55 ->  | F49: =Einstellung!G55 ->  | G49: =Einstellung!H55 ->  | J49: =Einstellung!I55 ->  | M49: =Einstellung!L55 ->  | N49: =Einstellung!M55 ->  | O49: =Einstellung!N55 ->  | P49: =Einstellung!O55 ->  | Q49: =Einstellung!P55 ->  | R49: =Einstellung!Q55 ->  | S49: =Einstellung!R55 ->  | T49: =Einstellung!S55 ->  | U49: =Einstellung!T55 ->  | V49: =Einstellung!U55 ->  | W49: =Einstellung!V55 ->  | X49: =Einstellung!W55 ->  | Y49: =Einstellung!X55 ->  | Z49: =Einstellung!Y55 ->  | AA49: =Einstellung!Z55 -> 
A52: =Einstellung!B56 ->  | B52: =Einstellung!C56 ->  | C52: =Einstellung!D56 ->  | D52: =IF(Einstellung!$S$28="N",IF(Wettkampf!BK22<>"",VLOOKUP(Wettkampf!BK22,Athl01,13),""),IF(Wettkampf!BK22<>"",VLOOKUP(Wettkampf!BK22,Athl01,Einstellung!$I$2),"")) ->  | E52: =Einstellung!F56 ->  | F52: =Einstellung!G56 ->  | G52: =Einstellung!H56 ->  | J52: =Einstellung!I56 ->  | M52: =Einstellung!L56 ->  | N52: =Einstellung!M56 ->  | O52: =Einstellung!N56 ->  | P52: =Einstellung!O56 ->  | Q52: =Einstellung!P56 ->  | R52: =Einstellung!Q56 ->  | S52: =Einstellung!R56 ->  | T52: =Einstellung!S56 ->  | U52: =Einstellung!T56 ->  | V52: =Einstellung!U56 ->  | W52: =Einstellung!V56 ->  | X52: =Einstellung!W56 ->  | Y52: =Einstellung!X56 ->  | Z52: =Einstellung!Y56 ->  | AA52: =Einstellung!Z56 -> 
A55: =Einstellung!B57 ->  | B55: =Einstellung!C57 ->  | C55: =Einstellung!D57 ->  | D55: =IF(Einstellung!$S$28="N",IF(Wettkampf!BK23<>"",VLOOKUP(Wettkampf!BK23,Athl01,13),""),IF(Wettkampf!BK23<>"",VLOOKUP(Wettkampf!BK23,Athl01,Einstellung!$I$2),"")) ->  | E55: =Einstellung!F57 ->  | F55: =Einstellung!G57 ->  | G55: =Einstellung!H57 ->  | J55: =Einstellung!I57 ->  | M55: =Einstellung!L57 ->  | N55: =Einstellung!M57 ->  | O55: =Einstellung!N57 ->  | P55: =Einstellung!O57 ->  | Q55: =Einstellung!P57 ->  | R55: =Einstellung!Q57 ->  | S55: =Einstellung!R57 ->  | T55: =Einstellung!S57 ->  | U55: =Einstellung!T57 ->  | V55: =Einstellung!U57 ->  | W55: =Einstellung!V57 ->  | X55: =Einstellung!W57 ->  | Y55: =Einstellung!X57 ->  | Z55: =Einstellung!Y57 ->  | AA55: =Einstellung!Z57 -> 
A58: =Einstellung!B58 ->  | B58: =Einstellung!C58 ->  | C58: =Einstellung!D58 ->  | D58: =IF(Einstellung!$S$28="N",IF(Wettkampf!BK24<>"",VLOOKUP(Wettkampf!BK24,Athl01,13),""),IF(Wettkampf!BK24<>"",VLOOKUP(Wettkampf!BK24,Athl01,Einstellung!$I$2),"")) ->  | E58: =Einstellung!F58 ->  | F58: =Einstellung!G58 ->  | G58: =Einstellung!H58 ->  | J58: =Einstellung!I58 ->  | M58: =Einstellung!L58 ->  | N58: =Einstellung!M58 ->  | O58: =Einstellung!N58 ->  | P58: =Einstellung!O58 ->  | Q58: =Einstellung!P58 ->  | R58: =Einstellung!Q58 ->  | S58: =Einstellung!R58 ->  | T58: =Einstellung!S58 ->  | U58: =Einstellung!T58 ->  | V58: =Einstellung!U58 ->  | W58: =Einstellung!V58 ->  | X58: =Einstellung!W58 ->  | Y58: =Einstellung!X58 ->  | Z58: =Einstellung!Y58 ->  | AA58: =Einstellung!Z58 -> 
A61: =Einstellung!B59 ->  | B61: =Einstellung!C59 ->  | C61: =Einstellung!D59 ->  | D61: =IF(Einstellung!$S$28="N",IF(Wettkampf!BK25<>"",VLOOKUP(Wettkampf!BK25,Athl01,13),""),IF(Wettkampf!BK25<>"",VLOOKUP(Wettkampf!BK25,Athl01,Einstellung!$I$2),"")) ->  | E61: =Einstellung!F59 ->  | F61: =Einstellung!G59 ->  | G61: =Einstellung!H59 ->  | J61: =Einstellung!I59 ->  | M61: =Einstellung!L59 ->  | N61: =Einstellung!M59 ->  | O61: =Einstellung!N59 ->  | P61: =Einstellung!O59 ->  | Q61: =Einstellung!P59 ->  | R61: =Einstellung!Q59 ->  | S61: =Einstellung!R59 ->  | T61: =Einstellung!S59 ->  | U61: =Einstellung!T59 ->  | V61: =Einstellung!U59 ->  | W61: =Einstellung!V59 ->  | X61: =Einstellung!W59 ->  | Y61: =Einstellung!X59 ->  | Z61: =Einstellung!Y59 ->  | AA61: =Einstellung!Z59 -> 
A64: =Einstellung!B60 ->  | B64: =Einstellung!C60 ->  | C64: =Einstellung!D60 ->  | D64: =IF(Einstellung!$S$28="N",IF(Wettkampf!BK26<>"",VLOOKUP(Wettkampf!BK26,Athl01,13),""),IF(Wettkampf!BK26<>"",VLOOKUP(Wettkampf!BK26,Athl01,Einstellung!$I$2),"")) ->  | E64: =Einstellung!F60 ->  | F64: =Einstellung!G60 ->  | G64: =Einstellung!H60 ->  | J64: =Einstellung!I60 ->  | M64: =Einstellung!L60 ->  | N64: =Einstellung!M60 ->  | O64: =Einstellung!N60 ->  | P64: =Einstellung!O60 ->  | Q64: =Einstellung!P60 ->  | R64: =Einstellung!Q60 ->  | S64: =Einstellung!R60 ->  | T64: =Einstellung!S60 ->  | U64: =Einstellung!T60 ->  | V64: =Einstellung!U60 ->  | W64: =Einstellung!V60 ->  | X64: =Einstellung!W60 ->  | Y64: =Einstellung!X60 ->  | Z64: =Einstellung!Y60 ->  | AA64: =Einstellung!Z60 -> 
A67: =Einstellung!B61 ->  | B67: =Einstellung!C61 ->  | C67: =Einstellung!D61 ->  | D67: =IF(Einstellung!$S$28="N",IF(Wettkampf!BK27<>"",VLOOKUP(Wettkampf!BK27,Athl01,13),""),IF(Wettkampf!BK27<>"",VLOOKUP(Wettkampf!BK27,Athl01,Einstellung!$I$2),"")) ->  | E67: =Einstellung!F61 ->  | F67: =Einstellung!G61 ->  | G67: =Einstellung!H61 ->  | J67: =Einstellung!I61 ->  | M67: =Einstellung!L61 ->  | N67: =Einstellung!M61 ->  | O67: =Einstellung!N61 ->  | P67: =Einstellung!O61 ->  | Q67: =Einstellung!P61 ->  | R67: =Einstellung!Q61 ->  | S67: =Einstellung!R61 ->  | T67: =Einstellung!S61 ->  | U67: =Einstellung!T61 ->  | V67: =Einstellung!U61 ->  | W67: =Einstellung!V61 ->  | X67: =Einstellung!W61 ->  | Y67: =Einstellung!X61 ->  | Z67: =Einstellung!Y61 ->  | AA67: =Einstellung!Z61 -> 
A70: =Einstellung!B62 ->  | B70: =Einstellung!C62 ->  | C70: =Einstellung!D62 ->  | D70: =IF(Einstellung!$S$28="N",IF(Wettkampf!BK28<>"",VLOOKUP(Wettkampf!BK28,Athl01,13),""),IF(Wettkampf!BK28<>"",VLOOKUP(Wettkampf!BK28,Athl01,Einstellung!$I$2),"")) ->  | E70: =Einstellung!F62 ->  | F70: =Einstellung!G62 ->  | G70: =Einstellung!H62 ->  | J70: =Einstellung!I62 ->  | M70: =Einstellung!L62 ->  | N70: =Einstellung!M62 ->  | O70: =Einstellung!N62 ->  | P70: =Einstellung!O62 ->  | Q70: =Einstellung!P62 ->  | R70: =Einstellung!Q62 ->  | S70: =Einstellung!R62 ->  | T70: =Einstellung!S62 ->  | U70: =Einstellung!T62 ->  | V70: =Einstellung!U62 ->  | W70: =Einstellung!V62 ->  | X70: =Einstellung!W62 ->  | Y70: =Einstellung!X62 ->  | Z70: =Einstellung!Y62 ->  | AA70: =Einstellung!Z62 -> 
A73: =Einstellung!B63 ->  | B73: =Einstellung!C63 ->  | C73: =Einstellung!D63 ->  | D73: =IF(Einstellung!$S$28="N",IF(Wettkampf!BK29<>"",VLOOKUP(Wettkampf!BK29,Athl01,13),""),IF(Wettkampf!BK29<>"",VLOOKUP(Wettkampf!BK29,Athl01,Einstellung!$I$2),"")) ->  | E73: =Einstellung!F63 ->  | F73: =Einstellung!G63 ->  | G73: =Einstellung!H63 ->  | J73: =Einstellung!I63 ->  | M73: =Einstellung!L63 ->  | N73: =Einstellung!M63 ->  | O73: =Einstellung!N63 ->  | P73: =Einstellung!O63 ->  | Q73: =Einstellung!P63 ->  | R73: =Einstellung!Q63 ->  | S73: =Einstellung!R63 ->  | T73: =Einstellung!S63 ->  | U73: =Einstellung!T63 ->  | V73: =Einstellung!U63 ->  | W73: =Einstellung!V63 ->  | X73: =Einstellung!W63 ->  | Y73: =Einstellung!X63 ->  | Z73: =Einstellung!Y63 ->  | AA73: =Einstellung!Z63 -> 
A76: =Einstellung!B64 ->  | B76: =Einstellung!C64 ->  | C76: =Einstellung!D64 ->  | D76: =IF(Einstellung!$S$28="N",IF(Wettkampf!BK30<>"",VLOOKUP(Wettkampf!BK30,Athl01,13),""),IF(Wettkampf!BK30<>"",VLOOKUP(Wettkampf!BK30,Athl01,Einstellung!$I$2),"")) ->  | E76: =Einstellung!F64 ->  | F76: =Einstellung!G64 ->  | G76: =Einstellung!H64 ->  | J76: =Einstellung!I64 ->  | M76: =Einstellung!L64 ->  | N76: =Einstellung!M64 ->  | O76: =Einstellung!N64 ->  | P76: =Einstellung!O64 ->  | Q76: =Einstellung!P64 ->  | R76: =Einstellung!Q64 ->  | S76: =Einstellung!R64 ->  | T76: =Einstellung!S64 ->  | U76: =Einstellung!T64 ->  | V76: =Einstellung!U64 ->  | W76: =Einstellung!V64 ->  | X76: =Einstellung!W64 ->  | Y76: =Einstellung!X64 ->  | Z76: =Einstellung!Y64 ->  | AA76: =Einstellung!Z64 -> 

Sheet Wettkampf Mannschaft
B1: =Wettkampf!B1 -> Reißen | E1: =Wettkampf!H1 -> Klubmeisterschaft | W1: =Wettkampf!U1 -> 2015-02-14 | BX1: =Einstellung!I30 -> dunkel
B2: =IF(Wettkampf!AI3="M",IF(Rechenhilfe!N68=99,IF(AN23=1,B20,B28) & " siegt mit " & AV23 & " Pkt.",Wettkampf!B2),"Keine Einzelwettkämpfe hier möglich!") -> Keine Einzelwettkämpfe hier möglich!
B3: =IF(Wettkampf!CA4=1,B20,IF(Wettkampf!CB4=1,B28,"")) ->  | W3: =Wettkampf!U3 -> Uhrzeit: 19:54 | AL3: =IF(Wettkampf!CA4=1,1,IF(Wettkampf!CB4=1,2,0)) -> 0
L4: =Wettkampf!J4 ->  | M4: =Wettkampf!K4 -> Körp. | R4: =Wettkampf!P4 -> Reißen | Y4: =Wettkampf!W4 -> Stoßen
B5: =Wettkampf!B5 -> #Vers. | C5: =Wettkampf!C5 -> Athlet | E5: =Wettkampf!D5 -> Vers. | F5: =Wettkampf!E5 -> Gew. | H5: =Wettkampf!G5 -> Pl. | I5: =Wettkampf!H5 -> Gruppe | J5: =Wettkampf!I5 -> Name | L5: =Wettkampf!J5 -> Verein | M5: =Wettkampf!K5 -> Gew. | N5: =Wettkampf!L5 -> S.F. | O5: =Wettkampf!M5 -> Zw.K. | P5: =Wettkampf!N5 -> Punkte | R5: =Wettkampf!P5 -> 1.V. | T5: =Wettkampf!R5 -> 2.V. | V5: =Wettkampf!T5 -> 3.V. | X5: =Wettkampf!V5 -> 0 | Y5: =Wettkampf!W5 -> 1.V. | AA5: =Wettkampf!Y5 -> 2.V. | AC5: =Wettkampf!AA5 -> 3.V.
B6: =Wettkampf!B6 ->  | C6: =Wettkampf!C6 ->  | E6: =Wettkampf!D6 ->  | F6: =Wettkampf!E6 ->  | H6: =Wettkampf!G6 -> 1 | I6: =Wettkampf!H6 -> W-69 | J6: =Wettkampf!I6 -> Faltin Cäcilia | L6: =Wettkampf!J6 -> 0 | M6: =Wettkampf!K6 -> 64.7 | N6: =Wettkampf!L6 -> 1.3059 | O6: =Wettkampf!M6 -> 129 | P6: =IF(Wettkampf!BZ6=0,"",Wettkampf!BZ6) -> 168.47 | AG6: =Einstellung!H40 -> 55 | AH6: =Einstellung!I40 -> 60 | AL6: =Wettkampf!AJ6 -> 0 | AQ6: =Wettkampf!AO6 -> 2 | AR6: =Wettkampf!AP6 -> 2 | AS6: =Wettkampf!AQ6 -> 2 | AT6: =Wettkampf!AR6 -> 2 | AU6: =Wettkampf!AS6 -> 2 | AV6: =Wettkampf!AT6 -> 2 | BU6: =Einstellung!$C$34 -> 0 | BV6: =Wettkampf!BV6 -> 250
B7: =Wettkampf!B7 ->  | C7: =Wettkampf!C7 ->  | E7: =Wettkampf!D7 ->  | F7: =Wettkampf!E7 ->  | H7: =Wettkampf!G7 ->  | I7: =Wettkampf!H7 ->  | J7: =Wettkampf!I7 ->  | L7: =Wettkampf!J7 ->  | M7: =Wettkampf!K7 ->  | N7: =Wettkampf!L7 ->  | O7: =Wettkampf!M7 -> 0 | P7: =IF(Wettkampf!BZ7=0,"",Wettkampf!BZ7) ->  | AG7: =Einstellung!H41 ->  | AH7: =Einstellung!I41 ->  | AL7: =Wettkampf!AJ7 -> 0 | AQ7: =Wettkampf!AO7 -> 1 | AR7: =Wettkampf!AP7 -> 1 | AS7: =Wettkampf!AQ7 -> 1 | AT7: =Wettkampf!AR7 -> 1 | AU7: =Wettkampf!AS7 -> 1 | AV7: =Wettkampf!AT7 -> 1 | BU7: =Einstellung!$C$34 -> 0 | BV7: =Wettkampf!BV7 -> 0
B8: =Wettkampf!B8 ->  | C8: =Wettkampf!C8 ->  | E8: =Wettkampf!D8 ->  | F8: =Wettkampf!E8 ->  | H8: =Wettkampf!G8 -> 1 | I8: =Wettkampf!H8 -> M-77 | J8: =Wettkampf!I8 -> Legel Bernhard | L8: =Wettkampf!J8 -> 0 | M8: =Wettkampf!K8 -> 69.3 | N8: =Wettkampf!L8 -> 1.3415 | O8: =Wettkampf!M8 -> 218 | P8: =IF(Wettkampf!BZ8=0,"",Wettkampf!BZ8) -> 292.44 | AG8: =Einstellung!H42 -> 80 | AH8: =Einstellung!I42 -> 100 | AL8: =Wettkampf!AJ8 -> 0 | AQ8: =Wettkampf!AO8 -> 2 | AR8: =Wettkampf!AP8 -> 2 | AS8: =Wettkampf!AQ8 -> 2 | AT8: =Wettkampf!AR8 -> 2 | AU8: =Wettkampf!AS8 -> 2 | AV8: =Wettkampf!AT8 -> 2 | BU8: =Einstellung!$C$34 -> 0 | BV8: =Wettkampf!BV8 -> 250
B9: =Wettkampf!B9 ->  | C9: =Wettkampf!C9 ->  | E9: =Wettkampf!D9 ->  | F9: =Wettkampf!E9 ->  | H9: =Wettkampf!G9 ->  | I9: =Wettkampf!H9 ->  | J9: =Wettkampf!I9 ->  | L9: =Wettkampf!J9 ->  | M9: =Wettkampf!K9 ->  | N9: =Wettkampf!L9 ->  | O9: =Wettkampf!M9 -> 0 | P9: =IF(Wettkampf!BZ9=0,"",Wettkampf!BZ9) ->  | AG9: =Einstellung!H43 ->  | AH9: =Einstellung!I43 ->  | AL9: =Wettkampf!AJ9 -> 0 | AQ9: =Wettkampf!AO9 -> 1 | AR9: =Wettkampf!AP9 -> 1 | AS9: =Wettkampf!AQ9 -> 1 | AT9: =Wettkampf!AR9 -> 1 | AU9: =Wettkampf!AS9 -> 1 | AV9: =Wettkampf!AT9 -> 1 | BU9: =Einstellung!$C$34 -> 0 | BV9: =Wettkampf!BV9 -> 0
B10: =Wettkampf!B10 ->  | C10: =Wettkampf!C10 ->  | E10: =Wettkampf!D10 ->  | F10: =Wettkampf!E10 ->  | H10: =Wettkampf!G10 -> 1 | I10: =Wettkampf!H10 -> M-85 | J10: =Wettkampf!I10 -> Legel Christoph | L10: =Wettkampf!J10 -> 0 | M10: =Wettkampf!K10 -> 82 | N10: =Wettkampf!L10 -> 1.2171 | O10: =Wettkampf!M10 -> 212 | P10: =IF(Wettkampf!BZ10=0,"",Wettkampf!BZ10) -> 258.02 | AG10: =Einstellung!H44 -> 85 | AH10: =Einstellung!I44 -> 105 | AL10: =Wettkampf!AJ10 -> 0 | AQ10: =Wettkampf!AO10 -> 2 | AR10: =Wettkampf!AP10 -> 2 | AS10: =Wettkampf!AQ10 -> 3 | AT10: =Wettkampf!AR10 -> 2 | AU10: =Wettkampf!AS10 -> 2 | AV10: =Wettkampf!AT10 -> 3 | BU10: =Einstellung!$C$34 -> 0 | BV10: =Wettkampf!BV10 -> 250
B11: =Wettkampf!B11 ->  | C11: =Wettkampf!C11 ->  | E11: =Wettkampf!D11 ->  | F11: =Wettkampf!E11 ->  | H11: =Wettkampf!G11 -> 2 | I11: =Wettkampf!H11 -> M-85 | J11: =Wettkampf!I11 -> Legel Walter | L11: =Wettkampf!J11 -> 0 | M11: =Wettkampf!K11 -> 81 | N11: =Wettkampf!L11 -> 1.2249 | O11: =Wettkampf!M11 -> 180 | P11: =IF(Wettkampf!BZ11=0,"",Wettkampf!BZ11) -> 220.48 | AG11: =Einstellung!H45 -> 60 | AH11: =Einstellung!I45 -> 80 | AL11: =Wettkampf!AJ11 -> 0 | AQ11: =Wettkampf!AO11 -> 2 | AR11: =Wettkampf!AP11 -> 2 | AS11: =Wettkampf!AQ11 -> 2 | AT11: =Wettkampf!AR11 -> 2 | AU11: =Wettkampf!AS11 -> 2 | AV11: =Wettkampf!AT11 -> 2 | BU11: =Einstellung!$C$34 -> 0 | BV11: =Wettkampf!BV11 -> 250
B12: =Wettkampf!B12 ->  | C12: =Wettkampf!C12 ->  | E12: =Wettkampf!D12 ->  | F12: =Wettkampf!E12 ->  | H12: =Wettkampf!G12 ->  | I12: =Wettkampf!H12 ->  | J12: =Wettkampf!I12 ->  | L12: =Wettkampf!J12 ->  | M12: =Wettkampf!K12 ->  | N12: =Wettkampf!L12 ->  | O12: =Wettkampf!M12 -> 0 | P12: =IF(Wettkampf!BZ12=0,"",Wettkampf!BZ12) ->  | AG12: =Einstellung!H46 ->  | AH12: =Einstellung!I46 ->  | AL12: =Wettkampf!AJ12 -> 0 | AQ12: =Wettkampf!AO12 -> 1 | AR12: =Wettkampf!AP12 -> 1 | AS12: =Wettkampf!AQ12 -> 1 | AT12: =Wettkampf!AR12 -> 1 | AU12: =Wettkampf!AS12 -> 1 | AV12: =Wettkampf!AT12 -> 1 | BU12: =Einstellung!$C$34 -> 0 | BV12: =Wettkampf!BV12 -> 0
B13: =Wettkampf!B13 ->  | C13: =Wettkampf!C13 ->  | E13: =Wettkampf!D13 ->  | F13: =Wettkampf!E13 ->  | H13: =Wettkampf!G13 -> 2 | I13: =Wettkampf!H13 -> M-94 | J13: =Wettkampf!I13 -> Wallner Matthias | L13: =Wettkampf!J13 -> 0 | M13: =Wettkampf!K13 -> 91.2 | N13: =Wettkampf!L13 -> 1.156 | O13: =Wettkampf!M13 -> 235 | P13: =IF(Wettkampf!BZ13=0,"",Wettkampf!BZ13) -> 271.66 | AG13: =Einstellung!H47 -> 100 | AH13: =Einstellung!I47 -> 120 | AL13: =Wettkampf!AJ13 -> 0 | AQ13: =Wettkampf!AO13 -> 3 | AR13: =Wettkampf!AP13 -> 2 | AS13: =Wettkampf!AQ13 -> 2 | AT13: =Wettkampf!AR13 -> 2 | AU13: =Wettkampf!AS13 -> 2 | AV13: =Wettkampf!AT13 -> 3 | BU13: =Einstellung!$C$34 -> 0 | BV13: =Wettkampf!BV13 -> 250
B14: =Wettkampf!B14 ->  | C14: =Wettkampf!C14 ->  | E14: =Wettkampf!D14 ->  | F14: =Wettkampf!E14 ->  | H14: =Wettkampf!G14 -> 1 | I14: =Wettkampf!H14 -> M-94 | J14: =Wettkampf!I14 -> Ceidl Martin | L14: =Wettkampf!J14 -> 0 | M14: =Wettkampf!K14 -> 91.3 | N14: =Wettkampf!L14 -> 1.1554 | O14: =Wettkampf!M14 -> 236 | P14: =IF(Wettkampf!BZ14=0,"",Wettkampf!BZ14) -> 272.68 | AG14: =Einstellung!H48 -> 80 | AH14: =Einstellung!I48 -> 100 | AL14: =Wettkampf!AJ14 -> 0 | AQ14: =Wettkampf!AO14 -> 2 | AR14: =Wettkampf!AP14 -> 2 | AS14: =Wettkampf!AQ14 -> 3 | AT14: =Wettkampf!AR14 -> 2 | AU14: =Wettkampf!AS14 -> 2 | AV14: =Wettkampf!AT14 -> 2 | BU14: =Einstellung!$C$34 -> 0 | BV14: =Wettkampf!BV14 -> 250
B15: =Wettkampf!B15 ->  | C15: =Wettkampf!C15 ->  | E15: =Wettkampf!D15 ->  | F15: =Wettkampf!E15 ->  | H15: =Wettkampf!G15 -> 3 | I15: =Wettkampf!H15 -> M-94 | J15: =Wettkampf!I15 -> Lenardt Matthias | L15: =Wettkampf!J15 -> 0 | M15: =Wettkampf!K15 -> 84.8 | N15: =Wettkampf!L15 -> 1.1964 | O15: =Wettkampf!M15 -> 202 | P15: =IF(Wettkampf!BZ15=0,"",Wettkampf!BZ15) -> 241.68 | AG15: =Einstellung!H49 -> 80 | AH15: =Einstellung!I49 -> 100 | AL15: =Wettkampf!AJ15 -> 0 | AQ15: =Wettkampf!AO15 -> 2 | AR15: =Wettkampf!AP15 -> 2 | AS15: =Wettkampf!AQ15 -> 2 | AT15: =Wettkampf!AR15 -> 2 | AU15: =Wettkampf!AS15 -> 2 | AV15: =Wettkampf!AT15 -> 3 | BU15: =Einstellung!$C$34 -> 0 | BV15: =Wettkampf!BV15 -> 250
B16: =Wettkampf!B16 ->  | C16: =Wettkampf!C16 ->  | E16: =Wettkampf!D16 ->  | F16: =Wettkampf!E16 ->  | H16: =Wettkampf!G16 -> 4 | I16: =Wettkampf!H16 -> M-94 | J16: =Wettkampf!I16 -> Kanyka Michael | L16: =Wettkampf!J16 -> 0 | M16: =Wettkampf!K16 -> 90.6 | N16: =Wettkampf!L16 -> 1.1594 | O16: =Wettkampf!M16 -> 195 | P16: =IF(Wettkampf!BZ16=0,"",Wettkampf!BZ16) -> 226.08 | AG16: =Einstellung!H50 -> 80 | AH16: =Einstellung!I50 -> 100 | AL16: =Wettkampf!AJ16 -> 0 | AQ16: =Wettkampf!AO16 -> 2 | AR16: =Wettkampf!AP16 -> 3 | AS16: =Wettkampf!AQ16 -> 3 | AT16: =Wettkampf!AR16 -> 2 | AU16: =Wettkampf!AS16 -> 2 | AV16: =Wettkampf!AT16 -> 2 | BU16: =Einstellung!$C$34 -> 0 | BV16: =Wettkampf!BV16 -> 250
B17: =Wettkampf!B17 ->  | C17: =Wettkampf!C17 ->  | E17: =Wettkampf!D17 ->  | F17: =Wettkampf!E17 ->  | H17: =Wettkampf!G17 ->  | I17: =Wettkampf!H17 ->  | J17: =Wettkampf!I17 ->  | L17: =Wettkampf!J17 ->  | M17: =Wettkampf!K17 ->  | N17: =Wettkampf!L17 ->  | O17: =Wettkampf!M17 -> 0 | P17: =IF(Wettkampf!BZ17=0,"",Wettkampf!BZ17) ->  | AG17: =Einstellung!H51 ->  | AH17: =Einstellung!I51 ->  | AL17: =Wettkampf!AJ17 -> 0 | AQ17: =Wettkampf!AO17 -> 1 | AR17: =Wettkampf!AP17 -> 1 | AS17: =Wettkampf!AQ17 -> 1 | AT17: =Wettkampf!AR17 -> 1 | AU17: =Wettkampf!AS17 -> 1 | AV17: =Wettkampf!AT17 -> 1 | BU17: =Einstellung!$C$34 -> 0 | BV17: =Wettkampf!BV17 -> 0
B18: =Wettkampf!B18 ->  | C18: =Wettkampf!C18 ->  | E18: =Wettkampf!D18 ->  | F18: =Wettkampf!E18 ->  | H18: =Wettkampf!G18 -> 1 | I18: =Wettkampf!H18 -> M+105 | J18: =Wettkampf!I18 -> Abraham Martin | L18: =Wettkampf!J18 -> 0 | M18: =Wettkampf!K18 -> 106.8 | N18: =Wettkampf!L18 -> 1.0865 | O18: =Wettkampf!M18 -> 220 | P18: =IF(Wettkampf!BZ18=0,"",Wettkampf!BZ18) -> 239.03 | AG18: =Einstellung!H52 -> 90 | AH18: =Einstellung!I52 -> 110 | AL18: =Wettkampf!AJ18 -> 0 | AQ18: =Wettkampf!AO18 -> 2 | AR18: =Wettkampf!AP18 -> 2 | AS18: =Wettkampf!AQ18 -> 3 | AT18: =Wettkampf!AR18 -> 2 | AU18: =Wettkampf!AS18 -> 2 | AV18: =Wettkampf!AT18 -> 3 | BU18: =Einstellung!$C$34 -> 0 | BV18: =Wettkampf!BV18 -> 250
B20: =IF(Wiegeliste!Q6=0,Wiegeliste!Q7,Wiegeliste!Q6) -> KSV-Mödling | R20: =IF(AN23=1,IF(Rechenhilfe!N68=99,"siegt mit","führt mit"),"") -> siegt mit | Y20: =IF(AN23=1,AV23,"") -> 2 : 0
D21: P u n k t e R e i ß e n | K21: P u n k t e S t o ß e n | P21: P u n k t e Z w e i k a m p f
C22: JP: | D22: =IF(Wiegeliste!Y6=0,"",Wiegeliste!Y6) ->  | F22: =IF(D22="",0,D22)+D23 -> 108.65 | K22: =IF(Wiegeliste!AC6=0,"",Wiegeliste!AC6) ->  | L22: =IF(K22="",0,K22)+K23 -> 130.38 | P22: =IF(D22="","",D22+K22) ->  | T22: =IF(P22="",0,P22)+P23 -> 239.03
C23: erreicht ohne JP: | D23: =Wettkampf!CC4 -> 108.65 | K23: =Wettkampf!CE4 -> 130.38 | P23: =Wettkampf!CG4 -> 239.03 | AL23: =IF(F22>=F30,1,0) -> 1 | AM23: =IF(L22>=L30,1,0) -> 1 | AN23: =IF(T22>=T30,1,0) -> 1 | AO23: =F22-F30 -> 39.11 | AP23: =L22-L30 -> 35.55 | AQ23: =T22-T30 -> 74.66 | AS23: =IF(F22>F30,IF(L30>L22,1,0),IF(L22>L30,1,0)) -> 0 | AT23: =IF(T22>T30,T22-T30,T30-T22) -> 74.66 | AU23: =IF(AT23>=250,6,IF(AT23>=200,5,IF(AT23>=150,4,IF(AT23>=100,3,IF(AT23>=50,2,IF(AT23>=0,1,0)))))) -> 2 | AV23: =IF(AS23=0, AU23 & " : 0", AU23 + 1 & " : 1") -> 2 : 0 | AX23: 50 | AY23: 200
C24: geplant incl JP: | D24: =IF(D22="",0,D22)+Wettkampf!CT4 -> 108.65 | K24: =IF(K22="",0,K22)+Wettkampf!CV4 -> 130.38 | P24: =IF(P22="",0,P22)+Wettkampf!CX4 -> 239.03 | AO24: =D24-D32 -> 39.11 | AP24: =K24-K32 -> 35.55 | AQ24: =P24-P32 -> 74.66 | AV24: =IF(AS23=1,1,0) -> 0 | AX24: 100 | AY24: 250
D25: =IF(AO24>0,"+","")&TEXT(AO24,"#.###,00") -> +39,11 | F25: =IF(AO23>0,"+","")&TEXT(AO23,"#.###,00") -> +39,11 | K25: =IF(AP24>0,"+","")&TEXT(AP24,"#.###,00") -> +35,55 | L25: =IF(AP23>0,"+","")&TEXT(AP23,"#.###,00") -> +35,55 | P25: =IF(AQ24>0,"+","")&TEXT(AQ24,"#.###,00") -> +74,66 | T25: =IF(AQ23>0,"+","")&TEXT(AQ23,"#.###,00") -> +74,66 | AX25: 150 | AY25: 300
B28: =IF(Wiegeliste!Q8=0,Wiegeliste!Q9,Wiegeliste!Q8) -> Gäste | R28: =IF(AN31=1,IF(Rechenhilfe!N68=99,"siegt mit","führt mit"),"") ->  | Y28: =IF(AN31=1,AV23,"") -> 
D29: P u n k t e R e i ß e n | K29: P u n k t e S t o ß e n | P29: P u n k t e Z w e i k a m p f
C30: JP: | D30: =IF(Wiegeliste!Y8=0,"",Wiegeliste!Y8) ->  | F30: =IF(D30="",0,D30)+D31 -> 69.54 | K30: =IF(Wiegeliste!AC8=0,"",Wiegeliste!AC8) ->  | L30: =IF(K30="",0,K30)+K31 -> 94.83 | P30: =IF(D30="","",D30+K30) ->  | T30: =IF(P30="",0,P30)+P31 -> 164.37
C31: erreicht ohne JP: | D31: =Wettkampf!CD4 -> 69.54 | K31: =Wettkampf!CF4 -> 94.83 | P31: =Wettkampf!CH4 -> 164.37 | AL31: =IF(F30>=F22,1,0) -> 0 | AM31: =IF(L30>=L22,1,0) -> 0 | AN31: =IF(T30>=T22,1,0) -> 0 | AO31: =F30-F22 -> -39.11 | AP31: =L30-L22 -> -35.55 | AQ31: =T30-T22 -> -74.66
C32: geplant incl JP: | D32: =IF(D30="",0,D30)+Wettkampf!CU4 -> 69.54 | K32: =IF(K30="",0,K30)+Wettkampf!CW4 -> 94.83 | P32: =IF(P30="",0,P30)+Wettkampf!CY4 -> 164.37 | AO32: =D32-D24 -> -39.11 | AP32: =K32-K24 -> -35.55 | AQ32: =P32-P24 -> -74.66
D33: =IF(AO32>0,"+","")&TEXT(AO32,"#.###,00") -> -39,11 | F33: =IF(AO31>0,"+","")&TEXT(AO31,"#.###,00") -> -39,11 | K33: =IF(AP32>0,"+","")&TEXT(AP32,"#.###,00") -> -35,55 | L33: =IF(AP31>0,"+","")&TEXT(AP31,"#.###,00") -> -35,55 | P33: =IF(AQ32>0,"+","")&TEXT(AQ32,"#.###,00") -> -74,66 | T33: =IF(AQ31>0,"+","")&TEXT(AQ31,"#.###,00") -> -74,66

Sheet Wettkampf Einzel
B1: =Wettkampf!B1 -> Reißen | D1: =Wettkampf!H1 -> Klubmeisterschaft | U1: =Wettkampf!U1 -> 2015-02-14 | BW1: =Einstellung!I30 -> dunkel | BX1: =Einstellung!I28 -> Nein
B2: =IF(Wettkampf!AI3="E",Wettkampf!B2,"Keine Mannschaftswettk. hier möglich!") -> 
B3: =Wettkampf!B3 ->  | U3: =Wettkampf!U3 -> Uhrzeit: 19:54
B4: =IF(Rechenhilfe!W75="","","Team: "&Rechenhilfe!W75) ->  | J4: =Wettkampf!J4 ->  | K4: =Wettkampf!K4 -> Körp. | P4: =Wettkampf!P4 -> Reißen | W4: =Wettkampf!W4 -> Stoßen
B5: =Wettkampf!B5 -> #Vers. | C5: =Wettkampf!C5 -> Athlet | D5: =Wettkampf!D5 -> Vers. | E5: =Wettkampf!E5 -> Gew. | G5: =Wettkampf!G5 -> Pl. | H5: =Wettkampf!H5 -> Gruppe | I5: =Wettkampf!I5 -> Name | J5: =Wettkampf!J5 -> Verein | K5: =Wettkampf!K5 -> Gew. | L5: =Wettkampf!L5 -> S.F. | M5: =Wettkampf!M5 -> Zw.K. | N5: =Wettkampf!N5 -> Punkte | P5: =Wettkampf!P5 -> 1.V. | R5: =Wettkampf!R5 -> 2.V. | T5: =Wettkampf!T5 -> 3.V. | V5: =Wettkampf!V5 -> 0 | W5: =Wettkampf!W5 -> 1.V. | Y5: =Wettkampf!Y5 -> 2.V. | AA5: =Wettkampf!AA5 -> 3.V.
B6: =Wettkampf!B6 ->  | C6: =Wettkampf!C6 ->  | D6: =Wettkampf!D6 ->  | E6: =Wettkampf!E6 ->  | G6: =Wettkampf!G6 -> 1 | H6: =Wettkampf!H6 -> W-69 | I6: =Wettkampf!I6 -> Faltin Cäcilia | J6: =Wettkampf!J6 -> 0 | K6: =Wettkampf!K6 -> 64.7 | L6: =Wettkampf!L6 -> 1.3059 | M6: =Wettkampf!M6 -> 129 | N6: =Wettkampf!N6 -> 168.46 | P6: 57 | Q6: + | R6: 60 | S6: + | T6: 62 | U6: + | W6: 62 | X6: + | Y6: 65 | Z6: + | AA6: 67 | AB6: + | AE6: =Einstellung!H40 -> 55 | AF6: =Einstellung!I40 -> 60 | AJ6: =Wettkampf!AJ6 -> 0 | AO6: =Wettkampf!AO6 -> 2 | AP6: =Wettkampf!AP6 -> 2 | AQ6: =Wettkampf!AQ6 -> 2 | AR6: =Wettkampf!AR6 -> 2 | AS6: =Wettkampf!AS6 -> 2 | AT6: =Wettkampf!AT6 -> 2 | BU6: =Einstellung!$C$34 -> 0 | BV6: =Wettkampf!BV6 -> 250
B7: =Wettkampf!B7 ->  | C7: =Wettkampf!C7 ->  | D7: =Wettkampf!D7 ->  | E7: =Wettkampf!E7 ->  | G7: =Wettkampf!G7 ->  | H7: =Wettkampf!H7 ->  | I7: =Wettkampf!I7 ->  | J7: =Wettkampf!J7 ->  | K7: =Wettkampf!K7 ->  | L7: =Wettkampf!L7 ->  | M7: =Wettkampf!M7 -> 0 | N7: =Wettkampf!N7 ->  | AE7: =Einstellung!H41 ->  | AF7: =Einstellung!I41 ->  | AJ7: =Wettkampf!AJ7 -> 0 | AO7: =Wettkampf!AO7 -> 1 | AP7: =Wettkampf!AP7 -> 1 | AQ7: =Wettkampf!AQ7 -> 1 | AR7: =Wettkampf!AR7 -> 1 | AS7: =Wettkampf!AS7 -> 1 | AT7: =Wettkampf!AT7 -> 1 | BU7: =Einstellung!$C$34 -> 0 | BV7: =Wettkampf!BV7 -> 0
B8: =Wettkampf!B8 ->  | C8: =Wettkampf!C8 ->  | D8: =Wettkampf!D8 ->  | E8: =Wettkampf!E8 ->  | G8: =Wettkampf!G8 -> 1 | H8: =Wettkampf!H8 -> M-77 | I8: =Wettkampf!I8 -> Legel Bernhard | J8: =Wettkampf!J8 -> 0 | K8: =Wettkampf!K8 -> 69.3 | L8: =Wettkampf!L8 -> 1.3415 | M8: =Wettkampf!M8 -> 218 | N8: =Wettkampf!N8 -> 292.45 | P8: 85 | Q8: + | R8: 92 | S8: + | T8: 95 | U8: + | W8: 113 | X8: + | Y8: 119 | Z8: + | AA8: 123 | AB8: + | AE8: =Einstellung!H42 -> 80 | AF8: =Einstellung!I42 -> 100 | AJ8: =Wettkampf!AJ8 -> 0 | AO8: =Wettkampf!AO8 -> 2 | AP8: =Wettkampf!AP8 -> 2 | AQ8: =Wettkampf!AQ8 -> 2 | AR8: =Wettkampf!AR8 -> 2 | AS8: =Wettkampf!AS8 -> 2 | AT8: =Wettkampf!AT8 -> 2 | BU8: =Einstellung!$C$34 -> 0 | BV8: =Wettkampf!BV8 -> 250
B9: =Wettkampf!B9 ->  | C9: =Wettkampf!C9 ->  | D9: =Wettkampf!D9 ->  | E9: =Wettkampf!E9 ->  | G9: =Wettkampf!G9 ->  | H9: =Wettkampf!H9 ->  | I9: =Wettkampf!I9 ->  | J9: =Wettkampf!J9 ->  | K9: =Wettkampf!K9 ->  | L9: =Wettkampf!L9 ->  | M9: =Wettkampf!M9 -> 0 | N9: =Wettkampf!N9 ->  | AE9: =Einstellung!H43 ->  | AF9: =Einstellung!I43 ->  | AJ9: =Wettkampf!AJ9 -> 0 | AO9: =Wettkampf!AO9 -> 1 | AP9: =Wettkampf!AP9 -> 1 | AQ9: =Wettkampf!AQ9 -> 1 | AR9: =Wettkampf!AR9 -> 1 | AS9: =Wettkampf!AS9 -> 1 | AT9: =Wettkampf!AT9 -> 1 | BU9: =Einstellung!$C$34 -> 0 | BV9: =Wettkampf!BV9 -> 0
B10: =Wettkampf!B10 ->  | C10: =Wettkampf!C10 ->  | D10: =Wettkampf!D10 ->  | E10: =Wettkampf!E10 ->  | G10: =Wettkampf!G10 -> 1 | H10: =Wettkampf!H10 -> M-85 | I10: =Wettkampf!I10 -> Legel Christoph | J10: =Wettkampf!J10 -> 0 | K10: =Wettkampf!K10 -> 82 | L10: =Wettkampf!L10 -> 1.2171 | M10: =Wettkampf!M10 -> 212 | N10: =Wettkampf!N10 -> 258.03 | P10: 91 | Q10: + | R10: 96 | S10: + | T10: 100 | U10: - | W10: 110 | X10: + | Y10: 116 | Z10: + | AA10: 120 | AB10: - | AE10: =Einstellung!H44 -> 85 | AF10: =Einstellung!I44 -> 105 | AJ10: =Wettkampf!AJ10 -> 0 | AO10: =Wettkampf!AO10 -> 2 | AP10: =Wettkampf!AP10 -> 2 | AQ10: =Wettkampf!AQ10 -> 3 | AR10: =Wettkampf!AR10 -> 2 | AS10: =Wettkampf!AS10 -> 2 | AT10: =Wettkampf!AT10 -> 3 | BU10: =Einstellung!$C$34 -> 0 | BV10: =Wettkampf!BV10 -> 250
B11: =Wettkampf!B11 ->  | C11: =Wettkampf!C11 ->  | D11: =Wettkampf!D11 ->  | E11: =Wettkampf!E11 ->  | G11: =Wettkampf!G11 -> 2 | H11: =Wettkampf!H11 -> M-85 | I11: =Wettkampf!I11 -> Legel Walter | J11: =Wettkampf!J11 -> 0 | K11: =Wettkampf!K11 -> 81 | L11: =Wettkampf!L11 -> 1.2249 | M11: =Wettkampf!M11 -> 180 | N11: =Wettkampf!N11 -> 220.48 | P11: 60 | Q11: + | R11: 70 | S11: + | T11: 80 | U11: + | W11: 80 | X11: + | Y11: 90 | Z11: + | AA11: 100 | AB11: + | AE11: =Einstellung!H45 -> 60 | AF11: =Einstellung!I45 -> 80 | AJ11: =Wettkampf!AJ11 -> 0 | AO11: =Wettkampf!AO11 -> 2 | AP11: =Wettkampf!AP11 -> 2 | AQ11: =Wettkampf!AQ11 -> 2 | AR11: =Wettkampf!AR11 -> 2 | AS11: =Wettkampf!AS11 -> 2 | AT11: =Wettkampf!AT11 -> 2 | BU11: =Einstellung!$C$34 -> 0 | BV11: =Wettkampf!BV11 -> 250
B12: =Wettkampf!B12 ->  | C12: =Wettkampf!C12 ->  | D12: =Wettkampf!D12 ->  | E12: =Wettkampf!E12 ->  | G12: =Wettkampf!G12 ->  | H12: =Wettkampf!H12 ->  | I12: =Wettkampf!I12 ->  | J12: =Wettkampf!J12 ->  | K12: =Wettkampf!K12 ->  | L12: =Wettkampf!L12 ->  | M12: =Wettkampf!M12 -> 0 | N12: =Wettkampf!N12 ->  | AE12: =Einstellung!H46 ->  | AF12: =Einstellung!I46 ->  | AJ12: =Wettkampf!AJ12 -> 0 | AO12: =Wettkampf!AO12 -> 1 | AP12: =Wettkampf!AP12 -> 1 | AQ12: =Wettkampf!AQ12 -> 1 | AR12: =Wettkampf!AR12 -> 1 | AS12: =Wettkampf!AS12 -> 1 | AT12: =Wettkampf!AT12 -> 1 | BU12: =Einstellung!$C$34 -> 0 | BV12: =Wettkampf!BV12 -> 0
B13: =Wettkampf!B13 ->  | C13: =Wettkampf!C13 ->  | D13: =Wettkampf!D13 ->  | E13: =Wettkampf!E13 ->  | G13: =Wettkampf!G13 -> 2 | H13: =Wettkampf!H13 -> M-94 | I13: =Wettkampf!I13 -> Wallner Matthias | J13: =Wettkampf!J13 -> 0 | K13: =Wettkampf!K13 -> 91.2 | L13: =Wettkampf!L13 -> 1.156 | M13: =Wettkampf!M13 -> 235 | N13: =Wettkampf!N13 -> 271.66 | P13: 100 | Q13: - | R13: 100 | S13: + | T13: 105 | U13: + | W13: 120 | X13: + | Y13: 130 | Z13: + | AA13: 135 | AB13: - | AE13: =Einstellung!H47 -> 100 | AF13: =Einstellung!I47 -> 120 | AJ13: =Wettkampf!AJ13 -> 0 | AO13: =Wettkampf!AO13 -> 3 | AP13: =Wettkampf!AP13 -> 2 | AQ13: =Wettkampf!AQ13 -> 2 | AR13: =Wettkampf!AR13 -> 2 | AS13: =Wettkampf!AS13 -> 2 | AT13: =Wettkampf!AT13 -> 3 | BU13: =Einstellung!$C$34 -> 0 | BV13: =Wettkampf!BV13 -> 250
B14: =Wettkampf!B14 ->  | C14: =Wettkampf!C14 ->  | D14: =Wettkampf!D14 ->  | E14: =Wettkampf!E14 ->  | G14: =Wettkampf!G14 -> 1 | H14: =Wettkampf!H14 -> M-94 | I14: =Wettkampf!I14 -> Ceidl Martin | J14: =Wettkampf!J14 -> 0 | K14: =Wettkampf!K14 -> 91.3 | L14: =Wettkampf!L14 -> 1.1554 | M14: =Wettkampf!M14 -> 236 | N14: =Wettkampf!N14 -> 272.67 | P14: 97 | Q14: + | R14: 103 | S14: + | T14: 106 | U14: - | W14: 125 | X14: + | Y14: 130 | Z14: + | AA14: 133 | AB14: + | AE14: =Einstellung!H48 -> 80 | AF14: =Einstellung!I48 -> 100 | AJ14: =Wettkampf!AJ14 -> 0 | AO14: =Wettkampf!AO14 -> 2 | AP14: =Wettkampf!AP14 -> 2 | AQ14: =Wettkampf!AQ14 -> 3 | AR14: =Wettkampf!AR14 -> 2 | AS14: =Wettkampf!AS14 -> 2 | AT14: =Wettkampf!AT14 -> 2 | BU14: =Einstellung!$C$34 -> 0 | BV14: =Wettkampf!BV14 -> 250
B15: =Wettkampf!B15 ->  | C15: =Wettkampf!C15 ->  | D15: =Wettkampf!D15 ->  | E15: =Wettkampf!E15 ->  | G15: =Wettkampf!G15 -> 3 | H15: =Wettkampf!H15 -> M-94 | I15: =Wettkampf!I15 -> Lenardt Matthias | J15: =Wettkampf!J15 -> 0 | K15: =Wettkampf!K15 -> 84.8 | L15: =Wettkampf!L15 -> 1.1964 | M15: =Wettkampf!M15 -> 202 | N15: =Wettkampf!N15 -> 241.67 | P15: 80 | Q15: + | R15: 85 | S15: + | T15: 90 | U15: + | W15: 105 | X15: + | Y15: 112 | Z15: + | AA15: 115 | AB15: - | AE15: =Einstellung!H49 -> 80 | AF15: =Einstellung!I49 -> 100 | AJ15: =Wettkampf!AJ15 -> 0 | AO15: =Wettkampf!AO15 -> 2 | AP15: =Wettkampf!AP15 -> 2 | AQ15: =Wettkampf!AQ15 -> 2 | AR15: =Wettkampf!AR15 -> 2 | AS15: =Wettkampf!AS15 -> 2 | AT15: =Wettkampf!AT15 -> 3 | BU15: =Einstellung!$C$34 -> 0 | BV15: =Wettkampf!BV15 -> 250
B16: =Wettkampf!B16 ->  | C16: =Wettkampf!C16 ->  | D16: =Wettkampf!D16 ->  | E16: =Wettkampf!E16 ->  | G16: =Wettkampf!G16 -> 4 | H16: =Wettkampf!H16 -> M-94 | I16: =Wettkampf!I16 -> Kanyka Michael | J16: =Wettkampf!J16 -> 0 | K16: =Wettkampf!K16 -> 90.6 | L16: =Wettkampf!L16 -> 1.1594 | M16: =Wettkampf!M16 -> 195 | N16: =Wettkampf!N16 -> 226.08 | P16: 83 | Q16: + | R16: 90 | S16: - | T16: 93 | U16: - | W16: 103 | X16: + | Y16: 110 | Z16: + | AA16: 112 | AB16: + | AE16: =Einstellung!H50 -> 80 | AF16: =Einstellung!I50 -> 100 | AJ16: =Wettkampf!AJ16 -> 0 | AO16: =Wettkampf!AO16 -> 2 | AP16: =Wettkampf!AP16 -> 3 | AQ16: =Wettkampf!AQ16 -> 3 | AR16: =Wettkampf!AR16 -> 2 | AS16: =Wettkampf!AS16 -> 2 | AT16: =Wettkampf!AT16 -> 2 | BU16: =Einstellung!$C$34 -> 0 | BV16: =Wettkampf!BV16 -> 250
B17: =Wettkampf!B17 ->  | C17: =Wettkampf!C17 ->  | D17: =Wettkampf!D17 ->  | E17: =Wettkampf!E17 ->  | G17: =Wettkampf!G17 ->  | H17: =Wettkampf!H17 ->  | I17: =Wettkampf!I17 ->  | J17: =Wettkampf!J17 ->  | K17: =Wettkampf!K17 ->  | L17: =Wettkampf!L17 ->  | M17: =Wettkampf!M17 -> 0 | N17: =Wettkampf!N17 ->  | AE17: =Einstellung!H51 ->  | AF17: =Einstellung!I51 ->  | AJ17: =Wettkampf!AJ17 -> 0 | AO17: =Wettkampf!AO17 -> 1 | AP17: =Wettkampf!AP17 -> 1 | AQ17: =Wettkampf!AQ17 -> 1 | AR17: =Wettkampf!AR17 -> 1 | AS17: =Wettkampf!AS17 -> 1 | AT17: =Wettkampf!AT17 -> 1 | BU17: =Einstellung!$C$34 -> 0 | BV17: =Wettkampf!BV17 -> 0
B18: =Wettkampf!B18 ->  | C18: =Wettkampf!C18 ->  | D18: =Wettkampf!D18 ->  | E18: =Wettkampf!E18 ->  | G18: =Wettkampf!G18 -> 1 | H18: =Wettkampf!H18 -> M+105 | I18: =Wettkampf!I18 -> Abraham Martin | J18: =Wettkampf!J18 -> 0 | K18: =Wettkampf!K18 -> 106.8 | L18: =Wettkampf!L18 -> 1.0865 | M18: =Wettkampf!M18 -> 220 | N18: =Wettkampf!N18 -> 239.03 | P18: 90 | Q18: + | R18: 100 | S18: + | U18: - | W18: 110 | X18: + | Y18: 120 | Z18: + | AB18: - | AE18: =Einstellung!H52 -> 90 | AF18: =Einstellung!I52 -> 110 | AJ18: =Wettkampf!AJ18 -> 0 | AO18: =Wettkampf!AO18 -> 2 | AP18: =Wettkampf!AP18 -> 2 | AQ18: =Wettkampf!AQ18 -> 3 | AR18: =Wettkampf!AR18 -> 2 | AS18: =Wettkampf!AS18 -> 2 | AT18: =Wettkampf!AT18 -> 3 | BU18: =Einstellung!$C$34 -> 0 | BV18: =Wettkampf!BV18 -> 250
B19: =Wettkampf!B19 ->  | C19: =Wettkampf!C19 ->  | D19: =Wettkampf!D19 ->  | E19: =Wettkampf!E19 ->  | G19: =Wettkampf!G19 ->  | H19: =Wettkampf!H19 ->  | I19: =Wettkampf!I19 ->  | J19: =Wettkampf!J19 ->  | K19: =Wettkampf!K19 ->  | L19: =Wettkampf!L19 ->  | M19: =Wettkampf!M19 -> 0 | N19: =Wettkampf!N19 ->  | AE19: =Einstellung!H53 ->  | AF19: =Einstellung!I53 ->  | AJ19: =Wettkampf!AJ19 -> 0 | AO19: =Wettkampf!AO19 -> 1 | AP19: =Wettkampf!AP19 -> 1 | AQ19: =Wettkampf!AQ19 -> 1 | AR19: =Wettkampf!AR19 -> 1 | AS19: =Wettkampf!AS19 -> 1 | AT19: =Wettkampf!AT19 -> 1 | BU19: =Einstellung!$C$34 -> 0 | BV19: =Wettkampf!BV19 -> 0
B20: =Wettkampf!B20 ->  | C20: =Wettkampf!C20 ->  | D20: =Wettkampf!D20 ->  | E20: =Wettkampf!E20 ->  | G20: =Wettkampf!G20 -> 1 | H20: =Wettkampf!H20 -> M-50 | I20: =Wettkampf!I20 -> Kanyka Mario | J20: =Wettkampf!J20 -> 0 | K20: =Wettkampf!K20 -> 40.1 | L20: =Wettkampf!L20 -> 2.1073 | M20: =Wettkampf!M20 -> 78 | N20: =Wettkampf!N20 -> 164.37 | P20: 30 | Q20: + | R20: 33 | S20: + | T20: 36 | U20: - | W20: 40 | X20: + | Y20: 43 | Z20: + | AA20: 45 | AB20: + | AE20: =Einstellung!H54 -> 30 | AF20: =Einstellung!I54 -> 40 | AJ20: =Wettkampf!AJ20 -> 0 | AO20: =Wettkampf!AO20 -> 2 | AP20: =Wettkampf!AP20 -> 2 | AQ20: =Wettkampf!AQ20 -> 3 | AR20: =Wettkampf!AR20 -> 2 | AS20: =Wettkampf!AS20 -> 2 | AT20: =Wettkampf!AT20 -> 2 | BU20: =Einstellung!$C$34 -> 0 | BV20: =Wettkampf!BV20 -> 250
B21: =Wettkampf!B21 ->  | C21: =Wettkampf!C21 ->  | D21: =Wettkampf!D21 ->  | E21: =Wettkampf!E21 ->  | G21: =Wettkampf!G21 ->  | H21: =Wettkampf!H21 ->  | I21: =Wettkampf!I21 ->  | J21: =Wettkampf!J21 ->  | K21: =Wettkampf!K21 ->  | L21: =Wettkampf!L21 ->  | M21: =Wettkampf!M21 -> 0 | N21: =Wettkampf!N21 ->  | AE21: =Einstellung!H55 ->  | AF21: =Einstellung!I55 ->  | AJ21: =Wettkampf!AJ21 -> 0 | AO21: =Wettkampf!AO21 -> 1 | AP21: =Wettkampf!AP21 -> 1 | AQ21: =Wettkampf!AQ21 -> 1 | AR21: =Wettkampf!AR21 -> 1 | AS21: =Wettkampf!AS21 -> 1 | AT21: =Wettkampf!AT21 -> 1 | BU21: =Einstellung!$C$34 -> 0 | BV21: =Wettkampf!BV21 -> 0
B22: =Wettkampf!B22 ->  | C22: =Wettkampf!C22 ->  | D22: =Wettkampf!D22 ->  | E22: =Wettkampf!E22 ->  | G22: =Wettkampf!G22 ->  | H22: =Wettkampf!H22 ->  | I22: =Wettkampf!I22 ->  | J22: =Wettkampf!J22 ->  | K22: =Wettkampf!K22 ->  | L22: =Wettkampf!L22 ->  | M22: =Wettkampf!M22 -> 0 | N22: =Wettkampf!N22 ->  | AE22: =Einstellung!H56 ->  | AF22: =Einstellung!I56 ->  | AJ22: =Wettkampf!AJ22 -> 0 | AO22: =Wettkampf!AO22 -> 1 | AP22: =Wettkampf!AP22 -> 1 | AQ22: =Wettkampf!AQ22 -> 1 | AR22: =Wettkampf!AR22 -> 1 | AS22: =Wettkampf!AS22 -> 1 | AT22: =Wettkampf!AT22 -> 1 | BU22: =Einstellung!$C$34 -> 0 | BV22: =Wettkampf!BV22 -> 0
B23: =Wettkampf!B23 ->  | C23: =Wettkampf!C23 ->  | D23: =Wettkampf!D23 ->  | E23: =Wettkampf!E23 ->  | G23: =Wettkampf!G23 ->  | H23: =Wettkampf!H23 ->  | I23: =Wettkampf!I23 ->  | J23: =Wettkampf!J23 ->  | K23: =Wettkampf!K23 ->  | L23: =Wettkampf!L23 ->  | M23: =Wettkampf!M23 -> 0 | N23: =Wettkampf!N23 ->  | AE23: =Einstellung!H57 ->  | AF23: =Einstellung!I57 ->  | AJ23: =Wettkampf!AJ23 -> 0 | AO23: =Wettkampf!AO23 -> 1 | AP23: =Wettkampf!AP23 -> 1 | AQ23: =Wettkampf!AQ23 -> 1 | AR23: =Wettkampf!AR23 -> 1 | AS23: =Wettkampf!AS23 -> 1 | AT23: =Wettkampf!AT23 -> 1 | BU23: =Einstellung!$C$34 -> 0 | BV23: =Wettkampf!BV23 -> 0
B24: =Wettkampf!B24 ->  | C24: =Wettkampf!C24 ->  | D24: =Wettkampf!D24 ->  | E24: =Wettkampf!E24 ->  | G24: =Wettkampf!G24 ->  | H24: =Wettkampf!H24 ->  | I24: =Wettkampf!I24 ->  | J24: =Wettkampf!J24 ->  | K24: =Wettkampf!K24 ->  | L24: =Wettkampf!L24 ->  | M24: =Wettkampf!M24 -> 0 | N24: =Wettkampf!N24 ->  | AE24: =Einstellung!H58 ->  | AF24: =Einstellung!I58 ->  | AJ24: =Wettkampf!AJ24 -> 0 | AO24: =Wettkampf!AO24 -> 1 | AP24: =Wettkampf!AP24 -> 1 | AQ24: =Wettkampf!AQ24 -> 1 | AR24: =Wettkampf!AR24 -> 1 | AS24: =Wettkampf!AS24 -> 1 | AT24: =Wettkampf!AT24 -> 1 | BU24: =Einstellung!$C$34 -> 0 | BV24: =Wettkampf!BV24 -> 0
B25: =Wettkampf!B25 ->  | C25: =Wettkampf!C25 ->  | D25: =Wettkampf!D25 ->  | E25: =Wettkampf!E25 ->  | G25: =Wettkampf!G25 ->  | H25: =Wettkampf!H25 ->  | I25: =Wettkampf!I25 ->  | J25: =Wettkampf!J25 ->  | K25: =Wettkampf!K25 ->  | L25: =Wettkampf!L25 ->  | M25: =Wettkampf!M25 -> 0 | N25: =Wettkampf!N25 ->  | AE25: =Einstellung!H59 ->  | AF25: =Einstellung!I59 ->  | AJ25: =Wettkampf!AJ25 -> 0 | AO25: =Wettkampf!AO25 -> 1 | AP25: =Wettkampf!AP25 -> 1 | AQ25: =Wettkampf!AQ25 -> 1 | AR25: =Wettkampf!AR25 -> 1 | AS25: =Wettkampf!AS25 -> 1 | AT25: =Wettkampf!AT25 -> 1 | BU25: =Einstellung!$C$34 -> 0 | BV25: =Wettkampf!BV25 -> 0
B26: =Wettkampf!B26 ->  | C26: =Wettkampf!C26 ->  | D26: =Wettkampf!D26 ->  | E26: =Wettkampf!E26 ->  | G26: =Wettkampf!G26 ->  | H26: =Wettkampf!H26 ->  | I26: =Wettkampf!I26 ->  | J26: =Wettkampf!J26 ->  | K26: =Wettkampf!K26 ->  | L26: =Wettkampf!L26 ->  | M26: =Wettkampf!M26 -> 0 | N26: =Wettkampf!N26 ->  | AE26: =Einstellung!H60 ->  | AF26: =Einstellung!I60 ->  | AJ26: =Wettkampf!AJ26 -> 0 | AO26: =Wettkampf!AO26 -> 1 | AP26: =Wettkampf!AP26 -> 1 | AQ26: =Wettkampf!AQ26 -> 1 | AR26: =Wettkampf!AR26 -> 1 | AS26: =Wettkampf!AS26 -> 1 | AT26: =Wettkampf!AT26 -> 1 | BU26: =Einstellung!$C$34 -> 0 | BV26: =Wettkampf!BV26 -> 0
B27: =Wettkampf!B27 ->  | C27: =Wettkampf!C27 ->  | D27: =Wettkampf!D27 ->  | E27: =Wettkampf!E27 ->  | G27: =Wettkampf!G27 ->  | H27: =Wettkampf!H27 ->  | I27: =Wettkampf!I27 ->  | J27: =Wettkampf!J27 ->  | K27: =Wettkampf!K27 ->  | L27: =Wettkampf!L27 ->  | M27: =Wettkampf!M27 -> 0 | N27: =Wettkampf!N27 ->  | AE27: =Einstellung!H61 ->  | AF27: =Einstellung!I61 ->  | AJ27: =Wettkampf!AJ27 -> 0 | AO27: =Wettkampf!AO27 -> 1 | AP27: =Wettkampf!AP27 -> 1 | AQ27: =Wettkampf!AQ27 -> 1 | AR27: =Wettkampf!AR27 -> 1 | AS27: =Wettkampf!AS27 -> 1 | AT27: =Wettkampf!AT27 -> 1 | BU27: =Einstellung!$C$34 -> 0 | BV27: =Wettkampf!BV27 -> 0
B28: =Wettkampf!B28 ->  | C28: =Wettkampf!C28 ->  | D28: =Wettkampf!D28 ->  | E28: =Wettkampf!E28 ->  | G28: =Wettkampf!G28 ->  | H28: =Wettkampf!H28 ->  | I28: =Wettkampf!I28 ->  | J28: =Wettkampf!J28 ->  | K28: =Wettkampf!K28 ->  | L28: =Wettkampf!L28 ->  | M28: =Wettkampf!M28 -> 0 | N28: =Wettkampf!N28 ->  | AE28: =Einstellung!H62 ->  | AF28: =Einstellung!I62 ->  | AJ28: =Wettkampf!AJ28 -> 0 | AO28: =Wettkampf!AO28 -> 1 | AP28: =Wettkampf!AP28 -> 1 | AQ28: =Wettkampf!AQ28 -> 1 | AR28: =Wettkampf!AR28 -> 1 | AS28: =Wettkampf!AS28 -> 1 | AT28: =Wettkampf!AT28 -> 1 | BU28: =Einstellung!$C$34 -> 0 | BV28: =Wettkampf!BV28 -> 0
B29: =Wettkampf!B29 ->  | C29: =Wettkampf!C29 ->  | D29: =Wettkampf!D29 ->  | E29: =Wettkampf!E29 ->  | G29: =Wettkampf!G29 ->  | H29: =Wettkampf!H29 ->  | I29: =Wettkampf!I29 ->  | J29: =Wettkampf!J29 ->  | K29: =Wettkampf!K29 ->  | L29: =Wettkampf!L29 ->  | M29: =Wettkampf!M29 -> 0 | N29: =Wettkampf!N29 ->  | AE29: =Einstellung!H63 ->  | AF29: =Einstellung!I63 ->  | AJ29: =Wettkampf!AJ29 -> 0 | AO29: =Wettkampf!AO29 -> 1 | AP29: =Wettkampf!AP29 -> 1 | AQ29: =Wettkampf!AQ29 -> 1 | AR29: =Wettkampf!AR29 -> 1 | AS29: =Wettkampf!AS29 -> 1 | AT29: =Wettkampf!AT29 -> 1 | BU29: =Einstellung!$C$34 -> 0 | BV29: =Wettkampf!BV29 -> 0
B30: =Wettkampf!B30 ->  | C30: =Wettkampf!C30 ->  | D30: =Wettkampf!D30 ->  | E30: =Wettkampf!E30 ->  | G30: =Wettkampf!G30 ->  | H30: =Wettkampf!H30 ->  | I30: =Wettkampf!I30 ->  | J30: =Wettkampf!J30 ->  | K30: =Wettkampf!K30 ->  | L30: =Wettkampf!L30 ->  | M30: =Wettkampf!M30 -> 0 | N30: =Wettkampf!N30 ->  | AE30: =Einstellung!H64 ->  | AF30: =Einstellung!I64 ->  | AJ30: =Wettkampf!AJ30 -> 0 | AO30: =Wettkampf!AO30 -> 1 | AP30: =Wettkampf!AP30 -> 1 | AQ30: =Wettkampf!AQ30 -> 1 | AR30: =Wettkampf!AR30 -> 1 | AS30: =Wettkampf!AS30 -> 1 | AT30: =Wettkampf!AT30 -> 1 | BU30: =Einstellung!$C$34 -> 0 | BV30: =Wettkampf!BV30 -> 0
AE31: =Einstellung!H65 -> 
BW38: - | BX38: =BW38 -> -
BW39: + | BX39: =BW39 -> +
AI40: 0.1 | BW40: 0 | BX40: =IF($BX$1="Ja",BW40*1,$BW$39) -> +
BW41: 0.1 | BX41: =IF($BX$1="Ja",BW41*1,$BW$39) -> +
BW42: 0.2 | BX42: +
BW43: 0.3 | BX43: +
BW44: 0.4 | BX44: +
BW45: 0.5 | BX45: +
BW46: 0.6 | BX46: +
BW47: 0.7 | BX47: +
BW48: 0.8 | BX48: +
BW49: 0.9 | BX49: +
BW50: 1 | BX50: +
BW51: 1.1 | BX51: +
BW52: 1.2 | BX52: +
BW53: 1.3 | BX53: +
BW54: 1.4 | BX54: +
BW55: 1.5 | BX55: +
BW56: 1.6 | BX56: +
BW57: 1.7 | BX57: +
BW58: 1.8 | BX58: +
BW59: 1.9 | BX59: +
BW60: 2 | BX60: +
BW61: 2.1 | BX61: +
BW62: 2.2 | BX62: +
BW63: 2.3 | BX63: +
BW64: 2.4 | BX64: +
BW65: 2.5 | BX65: +
BW66: 2.6 | BX66: +
BW67: 2.7 | BX67: +
BW68: 2.8 | BX68: +
BW69: 2.9 | BX69: +
BW70: 3 | BX70: +
BW71: 3.1 | BX71: +
BW72: 3.2 | BX72: +
BW73: 3.3 | BX73: +
BW74: 3.4 | BX74: +
BW75: 3.5 | BX75: +
BW76: 3.6 | BX76: +
BW77: 3.7 | BX77: +
BW78: 3.8 | BX78: +
BW79: 3.9 | BX79: +
BW80: 4 | BX80: +
BW81: 4.1 | BX81: +
BW82: 4.2 | BX82: +
BW83: 4.3 | BX83: +
BW84: 4.4 | BX84: +
BW85: 4.5 | BX85: +
BW86: 4.6 | BX86: +
BW87: 4.7 | BX87: +
BW88: 4.8 | BX88: +
BW89: 4.9 | BX89: +
BW90: 5 | BX90: +

Sheet Wettkampf (hidden)
B1: =IF(Rechenhilfe!Q68 = 2,VLOOKUP(17,texte,$AF$1),VLOOKUP(16,texte,$AF$1)) -> Reißen | H1: =Wiegeliste!D3 -> Klubmeisterschaft | U1: =Wiegeliste!D4 -> 2015-02-14 | AF1: =Einstellung!W29 -> 2 | AH1: =Einstellung!I28 -> Nein | AI1: =Wiegeliste!T3 -> 15 | CA1: Heim | CB1: GAST | CC1: Nächster Athlet | DC1: Technikbewertung | DT1: 9999999999
B2: =IF(Rechenhilfe!N68=99,"",Rechenhilfe!T68) ->  | AI2: =IF(AI1=0,"",AI1&" "&VLOOKUP(39,texte,$AF$1)) -> 15 Min. Pause | BR2: =Einstellung!I26 -> 0.5 | CA2: =Einstellung!B11 -> 27 | CB2: =Einstellung!B13 -> 26 | CC2: =Rechenhilfe!V76 -> 0 | DC2: =IF(DC3<>"Ja",0,IF(ISNUMBER(Einstellung!I29),Einstellung!I29,0)) -> 0
B3: =IF(B2="","",IF(DC3="Ja","",Rechenhilfe!W72)) ->  | U3: =VLOOKUP(18,texte,$AF$1)&" " & TEXT(HOUR(NOW()),"##")&":"&IF(MINUTE(NOW())<10,"0",IF(MINUTE(NOW())=0,"00",""))&TEXT(MINUTE(NOW()),"##") -> Uhrzeit: 19:54 | AI3: =Einstellung!S30 -> E | BR3: =AI3 -> E | CA3: =Einstellung!B12 -> 29 | CB3: =Einstellung!B14 -> 28 | DC3: =IF(DC4="Einzel!",Einstellung!I28,"Nein") -> Nein | DT3: 100000000
J4: =IF(Einstellung!$S$28="P","Pass","") ->  | K4: =VLOOKUP(7,texte,$AF$1) -> Körp. | P4: =VLOOKUP(16,texte,$AF$1) -> Reißen | W4: =VLOOKUP(17,texte,$AF$1) -> Stoßen | CA4: =IF(CC2=CA2,1,IF(CC2=CA3,1,0)) -> 0 | CB4: =IF(CC2=CB2,1,IF(CC2=CB3,1,0)) -> 0 | CC4: =SUM(CC6:CC30) -> 108.65 | CD4: 69.54 | CE4: 130.38 | CF4: 94.83 | CG4: 239.03 | CH4: 164.37 | CT4: =SUM(CT6:CT30) -> 108.65 | CU4: 69.54 | CV4: 130.38 | CW4: 94.83 | CX4: 239.03 | CY4: 164.37 | DC4: =IF(Wiegeliste!Y3<>8,"Einzel!","Keine Technikbewertung!") -> Einzel! | DT4: 100000
B5: =VLOOKUP(19,texte,$AF$1) -> #Vers. | C5: =VLOOKUP(1,texte,$AF$1) -> Athlet | D5: =VLOOKUP(2,texte,$AF$1) -> Vers. | E5: =VLOOKUP(3,texte,$AF$1) -> Gew. | G5: =VLOOKUP(4,texte,$AF$1) -> Pl. | H5: =VLOOKUP(5,texte,$AF$1) -> Gruppe | I5: =VLOOKUP(6,texte,$AF$1) -> Name | J5: =IF(Einstellung!$S$28="V",VLOOKUP(20,texte,$AF$1),IF(Einstellung!$S$28="N",VLOOKUP(23,texte,$AF$1),VLOOKUP(22,texte,$AF$1))) -> Verein | K5: =VLOOKUP(8,texte,$AF$1) -> Gew. | L5: =IF(Einstellung!S26="M",VLOOKUP(10,texte,$AF$1),VLOOKUP(9,texte,$AF$1)) -> S.F. | M5: =VLOOKUP(11,texte,$AF$1) -> Zw.K. | N5: =VLOOKUP(12,texte,$AF$1) -> Punkte | P5: =VLOOKUP(13,texte,$AF$1) -> 1.V. | R5: =VLOOKUP(14,texte,$AF$1) -> 2.V. | T5: =VLOOKUP(15,texte,$AF$1) -> 3.V. | W5: =VLOOKUP(13,texte,$AF$1) -> 1.V. | Y5: =VLOOKUP(14,texte,$AF$1) -> 2.V. | AA5: =VLOOKUP(15,texte,$AF$1) -> 3.V. | AK5: Zeile | AL5: Gruppe | AM5: Athlet | AN5: Gruppe | AO5: Status R1 | AP5: Status R2 | AQ5: StatusR3 | AR5: Status S1 | AS5: Status S2 | AT5: Status S3 | AX5: Wert R1 | AY5: Wert R2 | AZ5: Wert R3 | BA5: Best. R | BB5: Status S1 | BC5: Status S2 | BD5: Status S3 | BE5: Best S | BF5: Zweikampf | BK5: Athlet | BN5: Geb.Datum | BO5: Geb. Jahr | BP5: Alter | BQ5: Melzer | BR5: Sinclair | BS5: Sinclair/Melzer | BT5: Verwenden | BV5: =Einstellung!C35 -> 250 | BX5: Pkt RE | BY5: PKT ST | BZ5: PKT ZK Mann. | CC5: RM1 | CD5: RM2 | CE5: SM1 | CF5: SM2 | CG5: ZKM1 | CH5: ZKM2 | CN5: gepl. R | CO5: gepl.S | CQ5: Pkt. Gepl.R | CR5: Best. gepl.S | CS5: Pkt. Gepl. | CT5: RM1 | CU5: RM2 | CV5: SM1 | CW5: SM2 | CX5: ZKM1 | CY5: ZKM2 | DC5: R1 | DD5: R2 | DE5: R3 | DF5: S1 | DG5: S2 | DH5: S3 | DI5: PR1 | DJ5: PR2 | DK5: PR3 | DL5: PS1 | DM5: PS2 | DN5: PS3 | DO5: MAXPR | DP5: MAXPS | DQ5: P+Technik | DR5: Gruppe | DS5: Zeile | DT5: 100 | DV5: Gruppe | DW5: Zeile | DX5: Platz | EA5: Zeile | EB5: Platz
B6: =IF(Rechenhilfe!N69=99,"",IF(Rechenhilfe!O69=0,"",Rechenhilfe!N69-1)) ->  | C6: =IF(Rechenhilfe!N69=99,"",IF(Rechenhilfe!O69=0,$AI$2,VLOOKUP(Rechenhilfe!O69,Zeilen_Athleten,3))) ->  | D6: =IF(Rechenhilfe!N69=99,"",IF(Rechenhilfe!O69=0,"",Rechenhilfe!R69)) ->  | E6: =IF(Rechenhilfe!N69=99,"",IF(Rechenhilfe!O69=0,"",Rechenhilfe!S69)) ->  | G6: =IF(M6>0,IF($DC$3="Ja",IF(ISERROR(VLOOKUP(AK6,$EA$6:$EB$30,2,FALSE)),"",VLOOKUP(AK6,$EA$6:$EB$30,2,FALSE)),IF(ISERROR(VLOOKUP(AK6,Rang_Gruppe,2,FALSE)),"",VLOOKUP(AK6,Rang_Gruppe,2,FALSE))),"") -> 1 | H6: =IF(Einstellung!B40<>"",Einstellung!B40,"") -> W-69 | I6: =IF(BK6<>"",VLOOKUP(BK6, Athl01,2),"") -> Faltin Cäcilia | J6: =IF(Einstellung!$S$28="V",IF(Einstellung!K40<>"",Einstellung!K40,""),IF(Einstellung!$S$28="N",IF(Einstellung!AA40<>"",Einstellung!AA40,""),IF(Einstellung!C40<>"",Einstellung!C40,""))) -> 0 | K6: =IF(Einstellung!F40<>"",Einstellung!F40,"") -> 64.7 | L6: =BT6 -> 1.3059 | M6: =BF6 -> 129 | N6: =IF(M6=0,"",IF($DC$3="Ja",ROUND(DQ6,2),ROUND(L6*M6,2))) -> 168.46 | P6: =IF($AI$3="E",IF('Wettkampf Einzel'!P6=0,0,'Wettkampf Einzel'!P6),IF('Wettkampf Mannschaft'!R6=0,0,'Wettkampf Mannschaft'!R6)) -> 57 | Q6: =IF($AI$3="E",IF('Wettkampf Einzel'!Q6=0,0, IF($AH$1="Ja",IF(ISNUMBER('Wettkampf Einzel'!Q6),"+",'Wettkampf Einzel'!Q6),'Wettkampf Einzel'!Q6)),IF(AH6=3,"-",IF('Wettkampf Mannschaft'!S6=0,0,'Wettkampf Mannschaft'!S6))) -> + | R6: =IF($AI$3="E",IF('Wettkampf Einzel'!R6=0,0,'Wettkampf Einzel'!R6),IF('Wettkampf Mannschaft'!T6=0,0,'Wettkampf Mannschaft'!T6)) -> 60 | S6: =IF($AI$3="E",IF('Wettkampf Einzel'!S6=0,0, IF($AH$1="Ja",IF(ISNUMBER('Wettkampf Einzel'!S6),"+",'Wettkampf Einzel'!S6),'Wettkampf Einzel'!S6)),IF(AH6=3,"-",IF('Wettkampf Mannschaft'!U6=0,0,'Wettkampf Mannschaft'!U6))) -> + | T6: =IF($AI$3="E",IF('Wettkampf Einzel'!T6=0,0,'Wettkampf Einzel'!T6),IF('Wettkampf Mannschaft'!V6=0,0,'Wettkampf Mannschaft'!V6)) -> 62 | U6: =IF($AI$3="E",IF('Wettkampf Einzel'!U6=0,0, IF($AH$1="Ja",IF(ISNUMBER('Wettkampf Einzel'!U6),"+",'Wettkampf Einzel'!U6),'Wettkampf Einzel'!U6)),IF(AH6=3,"-",IF('Wettkampf Mannschaft'!W6=0,0,'Wettkampf Mannschaft'!W6))) -> + | W6: =IF($AI$3="E",IF('Wettkampf Einzel'!W6=0,0,'Wettkampf Einzel'!W6),IF('Wettkampf Mannschaft'!Y6=0,0,'Wettkampf Mannschaft'!Y6)) -> 62 | X6: =IF($AI$3="E",IF('Wettkampf Einzel'!X6=0,0, IF($AH$1="Ja",IF(ISNUMBER('Wettkampf Einzel'!X6),"+",'Wettkampf Einzel'!X6),'Wettkampf Einzel'!X6)),IF(AH6=2,"-",IF('Wettkampf Mannschaft'!Z6=0,0,'Wettkampf Mannschaft'!Z6))) -> + | Y6: =IF($AI$3="E",IF('Wettkampf Einzel'!Y6=0,0,'Wettkampf Einzel'!Y6),IF('Wettkampf Mannschaft'!AA6=0,0,'Wettkampf Mannschaft'!AA6)) -> 65 | Z6: =IF($AI$3="E",IF('Wettkampf Einzel'!Z6=0,0, IF($AH$1="Ja",IF(ISNUMBER('Wettkampf Einzel'!Z6),"+",'Wettkampf Einzel'!Z6),'Wettkampf Einzel'!Z6)),IF(AH6=2,"-",IF('Wettkampf Mannschaft'!AB6=0,0,'Wettkampf Mannschaft'!AB6))) -> + | AA6: =IF($AI$3="E",IF('Wettkampf Einzel'!AA6=0,0,'Wettkampf Einzel'!AA6),IF('Wettkampf Mannschaft'!AC6=0,0,'Wettkampf Mannschaft'!AC6)) -> 67 | AB6: =IF($AI$3="E",IF('Wettkampf Einzel'!AB6=0,0, IF($AH$1="Ja",IF(ISNUMBER('Wettkampf Einzel'!AB6),"+",'Wettkampf Einzel'!AB6),'Wettkampf Einzel'!AB6)),IF(AH6=2,"-",IF('Wettkampf Mannschaft'!AD6=0,0,'Wettkampf Mannschaft'!AD6))) -> + | AH6: =IF(Einstellung!L40="J",1,IF(Einstellung!M40="J",2,IF(Einstellung!N40="J",3,""))) ->  | AI6: =IF(Einstellung!C40<>"",Einstellung!C40,"") -> 4527 | AJ6: =IF(Rechenhilfe!$O$68=AK6,1,0) -> 0 | AK6: 1 | AL6: =Rechenhilfe!F5 -> 15 | AM6: =I6 -> Faltin Cäcilia | AN6: =H6 -> W-69 | AO6: =IF(Q6="",1,IF(Q6=0,1,IF(Q6="+",2,IF(ISNUMBER(Q6),4,3)))) -> 2 | AP6: =IF(S6="",1,IF(S6=0,1,IF(S6="+",2,3))) -> 2 | AQ6: =IF(U6="",1,IF(U6=0,1,IF(U6="+",2,3))) -> 2 | AR6: =IF(X6="",1,IF(X6=0,1,IF(X6="+",2,3))) -> 2 | AS6: =IF(Z6="",1,IF(Z6=0,1,IF(Z6="+",2,3))) -> 2 | AT6: =IF(AB6="",1,IF(AB6=0,1,IF(AB6="+",2,3))) -> 2 | AX6: =IF(AO6=2,P6,0) -> 57 | AY6: =IF(AP6=2,R6,0) -> 60 | AZ6: =IF(AQ6=2,T6,0) -> 62 | BA6: =MAX(AX6:AZ6) -> 62 | BB6: =IF(AR6=2,W6,0) -> 62 | BC6: =IF(AS6=2,Y6,0) -> 65 | BD6: =IF(AT6=2,AA6,0) -> 67 | BE6: =MAX(BB6:BD6) -> 67 | BF6: =BA6+BE6 -> 129 | BI6: =IF(UPPER(LEFT(TEXT(AI6,"####"),1))="W",AI6,IF(UPPER(LEFT(TEXT(AI6,"####"),1))="M",AI6,IF(UPPER(LEFT(TEXT(AI6,"####"),1))="X",AI6,""))) ->  | BJ6: =IF(AI6>0,IF(BI6="",AI6,""),"") -> 4527 | BK6: =IF(BH6>"",IF(VLOOKUP(BH6,Athl02,1)=BH6,VLOOKUP(BH6,Athl02,2),""), IF(BI6>"",IF(VLOOKUP(BI6,Athl06,1)=BI6,VLOOKUP(BI6,Athl06,2),""), IF(BJ6<>"",IF(VLOOKUP(BJ6,Athl04,1)=BJ6,VLOOKUP(BJ6,Athl04,2),""),""))) -> 147 | BL6: =IF(BK6<> "",VLOOKUP(BK6, Athl01, 3),"") -> W | BM6: =IF(Wiegeliste!$D$4<>0,IF($BL6="M",VLOOKUP(Wiegeliste!$D$4,SFGUELTIGAB,6),IF($BR$3="E",VLOOKUP(Wiegeliste!$D$4,SFGUELTIGAB,10), VLOOKUP(Wiegeliste!$D$4,SFGUELTIGAB,6))),"") -> 14 | BN6: =IF(Wettkampf!BK6<>"",VLOOKUP(Wettkampf!BK6, Athl01,4),"") -> 1987-05-08 | BO6: =IF(Wettkampf!BK6<>"",YEAR(VLOOKUP(Wettkampf!BK6, Athl01,4)),"") -> 1987 | BP6: =IF(K6<>"",YEAR(Wiegeliste!$D$4) - BO6,0) -> 28 | BQ6: =IF(BP6>=35,VLOOKUP(BP6,MMK,2),0) -> 0 | BR6: =IF(K6<>"",IF(BL6="W",IF($BR$3="M",$BR$2,0),0)+ROUND(VLOOKUP($K6,SINCLAIRTABELLE,$BM6),4),"") -> 1.3059 | BS6: =IF(K6<>"",ROUND(IF(BQ6=0,BR6,BR6*BQ6),4),"") -> 1.3059 | BT6: =IF(Einstellung!$S$26="M",BS6,BR6) -> 1.3059 | BV6: =IF(L6="",0,$BV$5) -> 250 | BX6: =IF(BR6<>"",ROUND(BA6*BR6,2),0) -> 80.97 | BY6: =IF(BR6<>"",ROUND(BE6*BR6,2),0) -> 87.5 | BZ6: =BX6+BY6 -> 168.47 | CA6: =IF($AL6=CA$2,1,IF($AL6=CA$3,1,0)) -> 0 | CB6: =IF($AL6=CB$2,1,IF($AL6=CB$3,1,0)) -> 0 | CC6: =IF(CA6=1,BX6,0) -> 0 | CD6: =IF(CB6=1,BX6,0) -> 0 | CE6: =IF(CA6=1,BY6,0) -> 0 | CF6: =IF(CB6=1,BY6,0) -> 0 | CG6: =IF(CA6=1,BZ6,0) -> 0 | CH6: =IF(CB6=1,BZ6,0) -> 0 | CK6: =AK6 -> 1 | CL6: =J6 -> 0 | CN6: =IF(ISERROR(VLOOKUP(CK6,Rechenhilfe!$BQ$68:$BR$217,2,FALSE)),0,VLOOKUP(CK6,Rechenhilfe!$BQ$68:$BR$217,2,FALSE)) -> 0 | CO6: =IF(ISERROR(VLOOKUP(CK6,Rechenhilfe!$BZ$68:$CA$217,2,FALSE)),0,VLOOKUP(CK6,Rechenhilfe!$BZ$68:$CA$217,2,FALSE)) -> 0 | CQ6: =ROUND(IF(BR6<>"",MAX(BA6,CN6)*BR6,0),2) -> 80.97 | CR6: =ROUND(IF(BR6<>"",MAX(BE6,CO6)*BR6,0),2) -> 87.5 | CS6: =CQ6+CR6 -> 168.47 | CT6: =IF(CA6=1,CQ6,0) -> 0 | CU6: =IF(CB6=1,CQ6,0) -> 0 | CV6: =IF(CA6=1,CR6,0) -> 0 | CW6: =IF(CB6=1,CR6,0) -> 0 | CX6: =IF(CA6=1,CS6,0) -> 0 | CY6: =IF(CB6=1,CS6,0) -> 0 | DC6: =IF($DC$3<>"Ja",0,IF(AX6>0,IF(ISNUMBER('Wettkampf Einzel'!Q6 ),'Wettkampf Einzel'!Q6*$DC$2,0),0)) -> 0 | DD6: =IF($DC$3<>"Ja",0,IF(AY6>0,IF(ISNUMBER('Wettkampf Einzel'!S6 ),'Wettkampf Einzel'!S6*$DC$2,0),0)) -> 0 | DE6: =IF($DC$3<>"Ja",0,IF(AZ6>0,IF(ISNUMBER('Wettkampf Einzel'!U6 ),'Wettkampf Einzel'!U6*$DC$2,0),0)) -> 0 | DF6: =IF($DC$3<>"Ja",0,IF(BB6>0,IF(ISNUMBER('Wettkampf Einzel'!X6 ),'Wettkampf Einzel'!X6*$DC$2,0),0)) -> 0 | DG6: =IF($DC$3<>"Ja",0,IF(BC6>0,IF(ISNUMBER('Wettkampf Einzel'!Z6 ),'Wettkampf Einzel'!Z6*$DC$2,0),0)) -> 0 | DH6: =IF($DC$3<>"Ja",0,IF(BD6>0,IF(ISNUMBER('Wettkampf Einzel'!AB6 ),'Wettkampf Einzel'!AB6*$DC$2,0),0)) -> 0 | DI6: =IF(ISNUMBER($L6),$L6*AX6+DC6,0) -> 74.4363 | DJ6: =IF(ISNUMBER($L6),$L6*AY6+DD6,0) -> 78.354 | DK6: =IF(ISNUMBER($L6),$L6*AZ6+DE6,0) -> 80.9658 | DL6: =IF(ISNUMBER($L6),$L6*BB6+DF6,0) -> 80.9658 | DM6: =IF(ISNUMBER($L6),$L6*BC6+DG6,0) -> 84.8835 | DN6: =IF(ISNUMBER($L6),$L6*BD6+DH6,0) -> 87.4953 | DO6: =ROUND(MAX(DI6:DK6),2) -> 80.97 | DP6: =ROUND(MAX(DL6:DN6),2) -> 87.5 | DQ6: =DO6+DP6 -> 168.47 | DR6: =AL6 -> 15 | DS6: =AK6 -> 1 | DT6: =IF(DQ6=0,$DT$1,IF(DR6="",$DT$1,DR6*$DT$3+DQ6*$DT$4+DS6)) -> 1516847001 | DU6: =LARGE($DT$6:$DT$30,DS6) -> 9999999999 | DV6: =IF(DU6=$DT$1,$DT$1,(DU6-MOD(DU6,$DT$3))/$DT$3) -> 9999999999 | DW6: =IF(DU6=$DT$1,$DT$1,MOD(DU6,$DT$5)) -> 9999999999 | DX6: =IF(DU6=$DT$1,$DT$1,IF(DV6=DV5,DX5+1,1)) -> 9999999999 | DY6: =IF(DX6=$DT$1,$DT$1,DW6*$DT$5+DX6) -> 9999999999 | DZ6: =SMALL($DY$6:$DY$30,DS6) -> 101 | EA6: =(DZ6-EB6)/$DT$5 -> 1 | EB6: =MOD(DZ6,$DT$5) -> 1
B7: =IF(Rechenhilfe!N70=99,"",IF(Rechenhilfe!O70=0,"",Rechenhilfe!N70-1)) ->  | C7: =IF(Rechenhilfe!N70=99,"",IF(Rechenhilfe!O70=0,$AI$2,VLOOKUP(Rechenhilfe!O70,Zeilen_Athleten,3))) ->  | D7: =IF(Rechenhilfe!N70=99,"",IF(Rechenhilfe!O70=0,"",Rechenhilfe!R70)) ->  | E7: =IF(Rechenhilfe!N70=99,"",IF(Rechenhilfe!O70=0,"",Rechenhilfe!S70)) ->  | H7: =IF(Einstellung!B41<>"",Einstellung!B41,"") ->  | J7: =IF(Einstellung!$S$28="V",IF(Einstellung!K41<>"",Einstellung!K41,""),IF(Einstellung!$S$28="N",IF(Einstellung!AA41<>"",Einstellung!AA41,""),IF(Einstellung!C41<>"",Einstellung!C41,""))) ->  | K7: =IF(Einstellung!F41<>"",Einstellung!F41,"") ->  | L7: =BT7 ->  | M7: =BF7 -> 0 | N7: =IF(M7=0,"",IF($DC$3="Ja",ROUND(DQ7,2),ROUND(L7*M7,2))) ->  | P7: =IF($AI$3="E",IF('Wettkampf Einzel'!P7=0,0,'Wettkampf Einzel'!P7),IF('Wettkampf Mannschaft'!R7=0,0,'Wettkampf Mannschaft'!R7)) -> 0 | Q7: =IF($AI$3="E",IF('Wettkampf Einzel'!Q7=0,0, IF($AH$1="Ja",IF(ISNUMBER('Wettkampf Einzel'!Q7),"+",'Wettkampf Einzel'!Q7),'Wettkampf Einzel'!Q7)),IF(AH7=3,"-",IF('Wettkampf Mannschaft'!S7=0,0,'Wettkampf Mannschaft'!S7))) -> 0 | R7: =IF($AI$3="E",IF('Wettkampf Einzel'!R7=0,0,'Wettkampf Einzel'!R7),IF('Wettkampf Mannschaft'!T7=0,0,'Wettkampf Mannschaft'!T7)) -> 0 | S7: =IF($AI$3="E",IF('Wettkampf Einzel'!S7=0,0, IF($AH$1="Ja",IF(ISNUMBER('Wettkampf Einzel'!S7),"+",'Wettkampf Einzel'!S7),'Wettkampf Einzel'!S7)),IF(AH7=3,"-",IF('Wettkampf Mannschaft'!U7=0,0,'Wettkampf Mannschaft'!U7))) -> 0 | T7: =IF($AI$3="E",IF('Wettkampf Einzel'!T7=0,0,'Wettkampf Einzel'!T7),IF('Wettkampf Mannschaft'!V7=0,0,'Wettkampf Mannschaft'!V7)) -> 0 | U7: =IF($AI$3="E",IF('Wettkampf Einzel'!U7=0,0, IF($AH$1="Ja",IF(ISNUMBER('Wettkampf Einzel'!U7),"+",'Wettkampf Einzel'!U7),'Wettkampf Einzel'!U7)),IF(AH7=3,"-",IF('Wettkampf Mannschaft'!W7=0,0,'Wettkampf Mannschaft'!W7))) -> 0 | W7: =IF($AI$3="E",IF('Wettkampf Einzel'!W7=0,0,'Wettkampf Einzel'!W7),IF('Wettkampf Mannschaft'!Y7=0,0,'Wettkampf Mannschaft'!Y7)) -> 0 | X7: =IF($AI$3="E",IF('Wettkampf Einzel'!X7=0,0, IF($AH$1="Ja",IF(ISNUMBER('Wettkampf Einzel'!X7),"+",'Wettkampf Einzel'!X7),'Wettkampf Einzel'!X7)),IF(AH7=2,"-",IF('Wettkampf Mannschaft'!Z7=0,0,'Wettkampf Mannschaft'!Z7))) -> 0 | Y7: =IF($AI$3="E",IF('Wettkampf Einzel'!Y7=0,0,'Wettkampf Einzel'!Y7),IF('Wettkampf Mannschaft'!AA7=0,0,'Wettkampf Mannschaft'!AA7)) -> 0 | Z7: =IF($AI$3="E",IF('Wettkampf Einzel'!Z7=0,0, IF($AH$1="Ja",IF(ISNUMBER('Wettkampf Einzel'!Z7),"+",'Wettkampf Einzel'!Z7),'Wettkampf Einzel'!Z7)),IF(AH7=2,"-",IF('Wettkampf Mannschaft'!AB7=0,0,'Wettkampf Mannschaft'!AB7))) -> 0 | AA7: =IF($AI$3="E",IF('Wettkampf Einzel'!AA7=0,0,'Wettkampf Einzel'!AA7),IF('Wettkampf Mannschaft'!AC7=0,0,'Wettkampf Mannschaft'!AC7)) -> 0 | AB7: =IF($AI$3="E",IF('Wettkampf Einzel'!AB7=0,0, IF($AH$1="Ja",IF(ISNUMBER('Wettkampf Einzel'!AB7),"+",'Wettkampf Einzel'!AB7),'Wettkampf Einzel'!AB7)),IF(AH7=2,"-",IF('Wettkampf Mannschaft'!AD7=0,0,'Wettkampf Mannschaft'!AD7))) -> 0 | AH7: =IF(Einstellung!L41="J",1,IF(Einstellung!M41="J",2,IF(Einstellung!N41="J",3,""))) ->  | AI7: =IF(Einstellung!C41<>"",Einstellung!C41,"") ->  | AJ7: =IF(Rechenhilfe!$O$68=AK7,1,0) -> 0 | AK7: 2 | AL7: =Rechenhilfe!F6 ->  | AM7: =I7 ->  | AN7: =H7 ->  | AO7: =IF(Q7="",1,IF(Q7=0,1,IF(Q7="+",2,3))) -> 1 | AP7: =IF(S7="",1,IF(S7=0,1,IF(S7="+",2,3))) -> 1 | AQ7: =IF(U7="",1,IF(U7=0,1,IF(U7="+",2,3))) -> 1 | AR7: =IF(X7="",1,IF(X7=0,1,IF(X7="+",2,3))) -> 1 | AS7: =IF(Z7="",1,IF(Z7=0,1,IF(Z7="+",2,3))) -> 1 | AT7: =IF(AB7="",1,IF(AB7=0,1,IF(AB7="+",2,3))) -> 1 | AX7: 0 | AY7: 0 | AZ7: 0 | BA7: =MAX(AX7:AZ7) -> 0 | BB7: 0 | BC7: 0 | BD7: 0 | BE7: =MAX(BB7:BD7) -> 0 | BF7: =BA7+BE7 -> 0 | BI7: =IF(UPPER(LEFT(TEXT(AI7,"####"),1))="W",AI7,IF(UPPER(LEFT(TEXT(AI7,"####"),1))="M",AI7,IF(UPPER(LEFT(TEXT(AI7,"####"),1))="X",AI7,""))) ->  | BJ7: =IF(AI7>0,IF(BI7="",AI7,""),"") ->  | BM7: =IF(Wiegeliste!$D$4<>0,IF($BL7="M",VLOOKUP(Wiegeliste!$D$4,SFGUELTIGAB,6),IF($BR$3="E",VLOOKUP(Wiegeliste!$D$4,SFGUELTIGAB,10), VLOOKUP(Wiegeliste!$D$4,SFGUELTIGAB,6))),"") -> 14 | BN7: =IF(Wettkampf!BK7<>"",VLOOKUP(Wettkampf!BK7, Athl01,4),"") ->  | BO7: =IF(Wettkampf!BK7<>"",YEAR(VLOOKUP(Wettkampf!BK7, Athl01,4)),"") ->  | BP7: =IF(K7<>"",YEAR(Wiegeliste!$D$4) - BO7,0) -> 0 | BQ7: 0 | BS7: =IF(K7<>"",ROUND(IF(BQ7=0,BR7,BR7*BQ7),4),"") ->  | BT7: =IF(Einstellung!$S$26="M",BS7,BR7) ->  | BV7: =IF(L7="",0,$BV$5) -> 0 | BX7: =IF(BR7<>"",ROUND(BA7*BR7,2),0) -> 0 | BY7: =IF(BR7<>"",ROUND(BE7*BR7,2),0) -> 0 | BZ7: =BX7+BY7 -> 0 | CA7: =IF($AL7=CA$2,1,IF($AL7=CA$3,1,0)) -> 0 | CB7: 0 | CC7: =IF(CA7=1,BX7,0) -> 0 | CD7: =IF(CB7=1,BX7,0) -> 0 | CE7: =IF(CA7=1,BY7,0) -> 0 | CF7: =IF(CB7=1,BY7,0) -> 0 | CG7: =IF(CA7=1,BZ7,0) -> 0 | CH7: =IF(CB7=1,BZ7,0) -> 0 | CK7: =AK7 -> 2 | CN7: =IF(ISERROR(VLOOKUP(CK7,Rechenhilfe!$BQ$68:$BR$217,2,FALSE)),0,VLOOKUP(CK7,Rechenhilfe!$BQ$68:$BR$217,2,FALSE)) -> 0 | CO7: =IF(ISERROR(VLOOKUP(CK7,Rechenhilfe!$BZ$68:$CA$217,2,FALSE)),0,VLOOKUP(CK7,Rechenhilfe!$BZ$68:$CA$217,2,FALSE)) -> 0 | CQ7: =ROUND(IF(BR7<>"",MAX(BA7,CN7)*BR7,0),2) -> 0 | CR7: =ROUND(IF(BR7<>"",MAX(BE7,CO7)*BR7,0),2) -> 0 | CS7: =CQ7+CR7 -> 0 | CT7: =IF(CA7=1,CQ7,0) -> 0 | CU7: =IF(CB7=1,CQ7,0) -> 0 | CV7: =IF(CA7=1,CR7,0) -> 0 | CW7: =IF(CB7=1,CR7,0) -> 0 | CX7: =IF(CA7=1,CS7,0) -> 0 | CY7: =IF(CB7=1,CS7,0) -> 0 | DC7: =IF($DC$3<>"Ja",0,IF(AX7>0,IF(ISNUMBER('Wettkampf Einzel'!Q7 ),'Wettkampf Einzel'!Q7*$DC$2,0),0)) -> 0 | DD7: =IF($DC$3<>"Ja",0,IF(AY7>0,IF(ISNUMBER('Wettkampf Einzel'!S7 ),'Wettkampf Einzel'!S7*$DC$2,0),0)) -> 0 | DE7: =IF($DC$3<>"Ja",0,IF(AZ7>0,IF(ISNUMBER('Wettkampf Einzel'!U7 ),'Wettkampf Einzel'!U7*$DC$2,0),0)) -> 0 | DF7: =IF($DC$3<>"Ja",0,IF(BB7>0,IF(ISNUMBER('Wettkampf Einzel'!X7 ),'Wettkampf Einzel'!X7*$DC$2,0),0)) -> 0 | DG7: =IF($DC$3<>"Ja",0,IF(BC7>0,IF(ISNUMBER('Wettkampf Einzel'!Z7 ),'Wettkampf Einzel'!Z7*$DC$2,0),0)) -> 0 | DH7: =IF($DC$3<>"Ja",0,IF(BD7>0,IF(ISNUMBER('Wettkampf Einzel'!AB7 ),'Wettkampf Einzel'!AB7*$DC$2,0),0)) -> 0 | DI7: =IF(ISNUMBER(L7),L7*AX7+DC7,0) -> 0 | DJ7: =IF(ISNUMBER($L7),$L7*AY7+DD7,0) -> 0 | DK7: =IF(ISNUMBER($L7),$L7*AZ7+DE7,0) -> 0 | DL7: =IF(ISNUMBER($L7),$L7*BB7+DF7,0) -> 0 | DM7: =IF(ISNUMBER($L7),$L7*BC7+DG7,0) -> 0 | DN7: =IF(ISNUMBER($L7),$L7*BD7+DH7,0) -> 0 | DO7: =ROUND(MAX(DI7:DK7),2) -> 0 | DP7: =ROUND(MAX(DL7:DN7),2) -> 0 | DQ7: =DO7+DP7 -> 0 | DR7: =AL7 ->  | DS7: =AK7 -> 2 | DT7: =IF(DQ7=0,$DT$1,IF(DR7="",$DT$1,DR7*$DT$3+DQ7*$DT$4+DS7)) -> 9999999999 | DU7: =LARGE($DT$6:$DT$30,DS7) -> 9999999999 | DV7: =IF(DU7=$DT$1,$DT$1,(DU7-MOD(DU7,$DT$3))/$DT$3) -> 9999999999 | DW7: =IF(DU7=$DT$1,$DT$1,MOD(DU7,$DT$5)) -> 9999999999 | DX7: =IF(DU7=$DT$1,$DT$1,IF(DV7=DV6,DX6+1,1)) -> 9999999999 | DY7: =IF(DX7=$DT$1,$DT$1,DW7*$DT$5+DX7) -> 9999999999 | DZ7: =SMALL($DY$6:$DY$30,DS7) -> 301 | EA7: =(DZ7-EB7)/$DT$5 -> 3 | EB7: =MOD(DZ7,$DT$5) -> 1
B8: =IF(Rechenhilfe!N71=99,"",IF(Rechenhilfe!O71=0,"",Rechenhilfe!N71-1)) ->  | C8: =IF(Rechenhilfe!N71=99,"",IF(Rechenhilfe!O71=0,$AI$2,VLOOKUP(Rechenhilfe!O71,Zeilen_Athleten,3))) ->  | D8: =IF(Rechenhilfe!N71=99,"",IF(Rechenhilfe!O71=0,"",Rechenhilfe!R71)) ->  | E8: =IF(Rechenhilfe!N71=99,"",IF(Rechenhilfe!O71=0,"",Rechenhilfe!S71)) ->  | G8: 1 | H8: =IF(Einstellung!B42<>"",Einstellung!B42,"") -> M-77 | I8: Legel Bernhard | J8: =IF(Einstellung!$S$28="V",IF(Einstellung!K42<>"",Einstellung!K42,""),IF(Einstellung!$S$28="N",IF(Einstellung!AA42<>"",Einstellung!AA42,""),IF(Einstellung!C42<>"",Einstellung!C42,""))) -> 0 | K8: =IF(Einstellung!F42<>"",Einstellung!F42,"") -> 69.3 | L8: 1.3415 | M8: 218 | N8: 292.45 | P8: =IF($AI$3="E",IF('Wettkampf Einzel'!P8=0,0,'Wettkampf Einzel'!P8),IF('Wettkampf Mannschaft'!R8=0,0,'Wettkampf Mannschaft'!R8)) -> 85 | Q8: =IF($AI$3="E",IF('Wettkampf Einzel'!Q8=0,0, IF($AH$1="Ja",IF(ISNUMBER('Wettkampf Einzel'!Q8),"+",'Wettkampf Einzel'!Q8),'Wettkampf Einzel'!Q8)),IF(AH8=3,"-",IF('Wettkampf Mannschaft'!S8=0,0,'Wettkampf Mannschaft'!S8))) -> + | R8: =IF($AI$3="E",IF('Wettkampf Einzel'!R8=0,0,'Wettkampf Einzel'!R8),IF('Wettkampf Mannschaft'!T8=0,0,'Wettkampf Mannschaft'!T8)) -> 92 | S8: =IF($AI$3="E",IF('Wettkampf Einzel'!S8=0,0, IF($AH$1="Ja",IF(ISNUMBER('Wettkampf Einzel'!S8),"+",'Wettkampf Einzel'!S8),'Wettkampf Einzel'!S8)),IF(AH8=3,"-",IF('Wettkampf Mannschaft'!U8=0,0,'Wettkampf Mannschaft'!U8))) -> + | T8: =IF($AI$3="E",IF('Wettkampf Einzel'!T8=0,0,'Wettkampf Einzel'!T8),IF('Wettkampf Mannschaft'!V8=0,0,'Wettkampf Mannschaft'!V8)) -> 95 | U8: =IF($AI$3="E",IF('Wettkampf Einzel'!U8=0,0, IF($AH$1="Ja",IF(ISNUMBER('Wettkampf Einzel'!U8),"+",'Wettkampf Einzel'!U8),'Wettkampf Einzel'!U8)),IF(AH8=3,"-",IF('Wettkampf Mannschaft'!W8=0,0,'Wettkampf Mannschaft'!W8))) -> + | W8: =IF($AI$3="E",IF('Wettkampf Einzel'!W8=0,0,'Wettkampf Einzel'!W8),IF('Wettkampf Mannschaft'!Y8=0,0,'Wettkampf Mannschaft'!Y8)) -> 113 | X8: =IF($AI$3="E",IF('Wettkampf Einzel'!X8=0,0, IF($AH$1="Ja",IF(ISNUMBER('Wettkampf Einzel'!X8),"+",'Wettkampf Einzel'!X8),'Wettkampf Einzel'!X8)),IF(AH8=2,"-",IF('Wettkampf Mannschaft'!Z8=0,0,'Wettkampf Mannschaft'!Z8))) -> + | Y8: =IF($AI$3="E",IF('Wettkampf Einzel'!Y8=0,0,'Wettkampf Einzel'!Y8),IF('Wettkampf Mannschaft'!AA8=0,0,'Wettkampf Mannschaft'!AA8)) -> 119 | Z8: =IF($AI$3="E",IF('Wettkampf Einzel'!Z8=0,0, IF($AH$1="Ja",IF(ISNUMBER('Wettkampf Einzel'!Z8),"+",'Wettkampf Einzel'!Z8),'Wettkampf Einzel'!Z8)),IF(AH8=2,"-",IF('Wettkampf Mannschaft'!AB8=0,0,'Wettkampf Mannschaft'!AB8))) -> + | AA8: =IF($AI$3="E",IF('Wettkampf Einzel'!AA8=0,0,'Wettkampf Einzel'!AA8),IF('Wettkampf Mannschaft'!AC8=0,0,'Wettkampf Mannschaft'!AC8)) -> 123 | AB8: =IF($AI$3="E",IF('Wettkampf Einzel'!AB8=0,0, IF($AH$1="Ja",IF(ISNUMBER('Wettkampf Einzel'!AB8),"+",'Wettkampf Einzel'!AB8),'Wettkampf Einzel'!AB8)),IF(AH8=2,"-",IF('Wettkampf Mannschaft'!AD8=0,0,'Wettkampf Mannschaft'!AD8))) -> + | AH8: =IF(Einstellung!L42="J",1,IF(Einstellung!M42="J",2,IF(Einstellung!N42="J",3,""))) ->  | AI8: =IF(Einstellung!C42<>"",Einstellung!C42,"") -> 4624 | AJ8: =IF(Rechenhilfe!$O$68=AK8,1,0) -> 0 | AK8: 3 | AL8: =Rechenhilfe!F7 -> 23 | AM8: Legel Bernhard | AN8: M-77 | AO8: 2 | AP8: 2 | AQ8: 2 | AR8: 2 | AS8: 2 | AT8: 2 | AX8: 85 | AY8: 92 | AZ8: 95 | BA8: 95 | BB8: 113 | BC8: 119 | BD8: 123 | BE8: 123 | BF8: 218 | BJ8: 4624 | BK8: 108 | BL8: M | BM8: =IF(Wiegeliste!$D$4<>0,IF($BL8="M",VLOOKUP(Wiegeliste!$D$4,SFGUELTIGAB,6),IF($BR$3="E",VLOOKUP(Wiegeliste!$D$4,SFGUELTIGAB,10), VLOOKUP(Wiegeliste!$D$4,SFGUELTIGAB,6))),"") -> 7 | BN8: =IF(Wettkampf!BK8<>"",VLOOKUP(Wettkampf!BK8, Athl01,4),"") -> 1993-04-09 | BO8: =IF(Wettkampf!BK8<>"",YEAR(VLOOKUP(Wettkampf!BK8, Athl01,4)),"") -> 1993 | BP8: =IF(K8<>"",YEAR(Wiegeliste!$D$4) - BO8,0) -> 22 | BQ8: 0 | BR8: 1.3415 | BS8: 1.3415 | BT8: =IF(Einstellung!$S$26="M",BS8,BR8) -> 1.3415 | BV8: 250 | BX8: 127.44 | BY8: 165 | BZ8: 292.44 | CA8: 0 | CB8: 0 | CC8: 0 | CD8: 0 | CE8: 0 | CF8: 0 | CG8: 0 | CH8: 0 | CK8: 3 | CL8: 0 | CN8: =IF(ISERROR(VLOOKUP(CK8,Rechenhilfe!$BQ$68:$BR$217,2,FALSE)),0,VLOOKUP(CK8,Rechenhilfe!$BQ$68:$BR$217,2,FALSE)) -> 0 | CO8: =IF(ISERROR(VLOOKUP(CK8,Rechenhilfe!$BZ$68:$CA$217,2,FALSE)),0,VLOOKUP(CK8,Rechenhilfe!$BZ$68:$CA$217,2,FALSE)) -> 0 | CQ8: 127.44 | CR8: 165 | CS8: 292.44 | CT8: 0 | CU8: 0 | CV8: 0 | CW8: 0 | CX8: 0 | CY8: 0 | DC8: =IF($DC$3<>"Ja",0,IF(AX8>0,IF(ISNUMBER('Wettkampf Einzel'!Q8 ),'Wettkampf Einzel'!Q8*$DC$2,0),0)) -> 0 | DD8: =IF($DC$3<>"Ja",0,IF(AY8>0,IF(ISNUMBER('Wettkampf Einzel'!S8 ),'Wettkampf Einzel'!S8*$DC$2,0),0)) -> 0 | DE8: =IF($DC$3<>"Ja",0,IF(AZ8>0,IF(ISNUMBER('Wettkampf Einzel'!U8 ),'Wettkampf Einzel'!U8*$DC$2,0),0)) -> 0 | DF8: =IF($DC$3<>"Ja",0,IF(BB8>0,IF(ISNUMBER('Wettkampf Einzel'!X8 ),'Wettkampf Einzel'!X8*$DC$2,0),0)) -> 0 | DG8: =IF($DC$3<>"Ja",0,IF(BC8>0,IF(ISNUMBER('Wettkampf Einzel'!Z8 ),'Wettkampf Einzel'!Z8*$DC$2,0),0)) -> 0 | DH8: =IF($DC$3<>"Ja",0,IF(BD8>0,IF(ISNUMBER('Wettkampf Einzel'!AB8 ),'Wettkampf Einzel'!AB8*$DC$2,0),0)) -> 0 | DI8: 114.0275 | DJ8: 123.418 | DK8: 127.4425 | DL8: 151.5895 | DM8: 159.6385 | DN8: 165.0045 | DO8: 127.44 | DP8: 165 | DQ8: 292.44 | DR8: 23 | DS8: 3 | DT8: 2329244003 | DU8: 9999999999 | DV8: 9999999999 | DW8: 9999999999 | DX8: 9999999999 | DY8: 9999999999 | DZ8: 501 | EA8: 5 | EB8: 1
B9: =IF(Rechenhilfe!N72=99,"",IF(Rechenhilfe!O72=0,"",Rechenhilfe!N72-1)) ->  | C9: =IF(Rechenhilfe!N72=99,"",IF(Rechenhilfe!O72=0,$AI$2,VLOOKUP(Rechenhilfe!O72,Zeilen_Athleten,3))) ->  | D9: =IF(Rechenhilfe!N72=99,"",IF(Rechenhilfe!O72=0,"",Rechenhilfe!R72)) ->  | E9: =IF(Rechenhilfe!N72=99,"",IF(Rechenhilfe!O72=0,"",Rechenhilfe!S72)) ->  | H9: =IF(Einstellung!B43<>"",Einstellung!B43,"") ->  | J9: =IF(Einstellung!$S$28="V",IF(Einstellung!K43<>"",Einstellung!K43,""),IF(Einstellung!$S$28="N",IF(Einstellung!AA43<>"",Einstellung!AA43,""),IF(Einstellung!C43<>"",Einstellung!C43,""))) ->  | K9: =IF(Einstellung!F43<>"",Einstellung!F43,"") ->  | M9: 0 | P9: =IF($AI$3="E",IF('Wettkampf Einzel'!P9=0,0,'Wettkampf Einzel'!P9),IF('Wettkampf Mannschaft'!R9=0,0,'Wettkampf Mannschaft'!R9)) -> 0 | Q9: =IF($AI$3="E",IF('Wettkampf Einzel'!Q9=0,0, IF($AH$1="Ja",IF(ISNUMBER('Wettkampf Einzel'!Q9),"+",'Wettkampf Einzel'!Q9),'Wettkampf Einzel'!Q9)),IF(AH9=3,"-",IF('Wettkampf Mannschaft'!S9=0,0,'Wettkampf Mannschaft'!S9))) -> 0 | R9: =IF($AI$3="E",IF('Wettkampf Einzel'!R9=0,0,'Wettkampf Einzel'!R9),IF('Wettkampf Mannschaft'!T9=0,0,'Wettkampf Mannschaft'!T9)) -> 0 | S9: =IF($AI$3="E",IF('Wettkampf Einzel'!S9=0,0, IF($AH$1="Ja",IF(ISNUMBER('Wettkampf Einzel'!S9),"+",'Wettkampf Einzel'!S9),'Wettkampf Einzel'!S9)),IF(AH9=3,"-",IF('Wettkampf Mannschaft'!U9=0,0,'Wettkampf Mannschaft'!U9))) -> 0 | T9: =IF($AI$3="E",IF('Wettkampf Einzel'!T9=0,0,'Wettkampf Einzel'!T9),IF('Wettkampf Mannschaft'!V9=0,0,'Wettkampf Mannschaft'!V9)) -> 0 | U9: =IF($AI$3="E",IF('Wettkampf Einzel'!U9=0,0, IF($AH$1="Ja",IF(ISNUMBER('Wettkampf Einzel'!U9),"+",'Wettkampf Einzel'!U9),'Wettkampf Einzel'!U9)),IF(AH9=3,"-",IF('Wettkampf Mannschaft'!W9=0,0,'Wettkampf Mannschaft'!W9))) -> 0 | W9: =IF($AI$3="E",IF('Wettkampf Einzel'!W9=0,0,'Wettkampf Einzel'!W9),IF('Wettkampf Mannschaft'!Y9=0,0,'Wettkampf Mannschaft'!Y9)) -> 0 | X9: =IF($AI$3="E",IF('Wettkampf Einzel'!X9=0,0, IF($AH$1="Ja",IF(ISNUMBER('Wettkampf Einzel'!X9),"+",'Wettkampf Einzel'!X9),'Wettkampf Einzel'!X9)),IF(AH9=2,"-",IF('Wettkampf Mannschaft'!Z9=0,0,'Wettkampf Mannschaft'!Z9))) -> 0 | Y9: =IF($AI$3="E",IF('Wettkampf Einzel'!Y9=0,0,'Wettkampf Einzel'!Y9),IF('Wettkampf Mannschaft'!AA9=0,0,'Wettkampf Mannschaft'!AA9)) -> 0 | Z9: =IF($AI$3="E",IF('Wettkampf Einzel'!Z9=0,0, IF($AH$1="Ja",IF(ISNUMBER('Wettkampf Einzel'!Z9),"+",'Wettkampf Einzel'!Z9),'Wettkampf Einzel'!Z9)),IF(AH9=2,"-",IF('Wettkampf Mannschaft'!AB9=0,0,'Wettkampf Mannschaft'!AB9))) -> 0 | AA9: =IF($AI$3="E",IF('Wettkampf Einzel'!AA9=0,0,'Wettkampf Einzel'!AA9),IF('Wettkampf Mannschaft'!AC9=0,0,'Wettkampf Mannschaft'!AC9)) -> 0 | AB9: =IF($AI$3="E",IF('Wettkampf Einzel'!AB9=0,0, IF($AH$1="Ja",IF(ISNUMBER('Wettkampf Einzel'!AB9),"+",'Wettkampf Einzel'!AB9),'Wettkampf Einzel'!AB9)),IF(AH9=2,"-",IF('Wettkampf Mannschaft'!AD9=0,0,'Wettkampf Mannschaft'!AD9))) -> 0 | AH9: =IF(Einstellung!L43="J",1,IF(Einstellung!M43="J",2,IF(Einstellung!N43="J",3,""))) ->  | AI9: =IF(Einstellung!C43<>"",Einstellung!C43,"") ->  | AJ9: =IF(Rechenhilfe!$O$68=AK9,1,0) -> 0 | AK9: 4 | AL9: =Rechenhilfe!F8 ->  | AO9: 1 | AP9: 1 | AQ9: 1 | AR9: 1 | AS9: 1 | AT9: 1 | AX9: 0 | AY9: 0 | AZ9: 0 | BA9: 0 | BB9: 0 | BC9: 0 | BD9: 0 | BE9: 0 | BF9: 0 | BM9: =IF(Wiegeliste!$D$4<>0,IF($BL9="M",VLOOKUP(Wiegeliste!$D$4,SFGUELTIGAB,6),IF($BR$3="E",VLOOKUP(Wiegeliste!$D$4,SFGUELTIGAB,10), VLOOKUP(Wiegeliste!$D$4,SFGUELTIGAB,6))),"") -> 14 | BN9: =IF(Wettkampf!BK9<>"",VLOOKUP(Wettkampf!BK9, Athl01,4),"") ->  | BO9: =IF(Wettkampf!BK9<>"",YEAR(VLOOKUP(Wettkampf!BK9, Athl01,4)),"") ->  | BP9: =IF(K9<>"",YEAR(Wiegeliste!$D$4) - BO9,0) -> 0 | BQ9: 0 | BT9: =IF(Einstellung!$S$26="M",BS9,BR9) ->  | BV9: 0 | BX9: 0 | BY9: 0 | BZ9: 0 | CA9: 0 | CB9: 0 | CC9: 0 | CD9: 0 | CE9: 0 | CF9: 0 | CG9: 0 | CH9: 0 | CK9: 4 | CN9: =IF(ISERROR(VLOOKUP(CK9,Rechenhilfe!$BQ$68:$BR$217,2,FALSE)),0,VLOOKUP(CK9,Rechenhilfe!$BQ$68:$BR$217,2,FALSE)) -> 0 | CO9: =IF(ISERROR(VLOOKUP(CK9,Rechenhilfe!$BZ$68:$CA$217,2,FALSE)),0,VLOOKUP(CK9,Rechenhilfe!$BZ$68:$CA$217,2,FALSE)) -> 0 | CQ9: 0 | CR9: 0 | CS9: 0 | CT9: 0 | CU9: 0 | CV9: 0 | CW9: 0 | CX9: 0 | CY9: 0 | DC9: =IF($DC$3<>"Ja",0,IF(AX9>0,IF(ISNUMBER('Wettkampf Einzel'!Q9 ),'Wettkampf Einzel'!Q9*$DC$2,0),0)) -> 0 | DD9: =IF($DC$3<>"Ja",0,IF(AY9>0,IF(ISNUMBER('Wettkampf Einzel'!S9 ),'Wettkampf Einzel'!S9*$DC$2,0),0)) -> 0 | DE9: =IF($DC$3<>"Ja",0,IF(AZ9>0,IF(ISNUMBER('Wettkampf Einzel'!U9 ),'Wettkampf Einzel'!U9*$DC$2,0),0)) -> 0 | DF9: =IF($DC$3<>"Ja",0,IF(BB9>0,IF(ISNUMBER('Wettkampf Einzel'!X9 ),'Wettkampf Einzel'!X9*$DC$2,0),0)) -> 0 | DG9: =IF($DC$3<>"Ja",0,IF(BC9>0,IF(ISNUMBER('Wettkampf Einzel'!Z9 ),'Wettkampf Einzel'!Z9*$DC$2,0),0)) -> 0 | DH9: =IF($DC$3<>"Ja",0,IF(BD9>0,IF(ISNUMBER('Wettkampf Einzel'!AB9 ),'Wettkampf Einzel'!AB9*$DC$2,0),0)) -> 0 | DI9: 0 | DJ9: 0 | DK9: 0 | DL9: 0 | DM9: 0 | DN9: 0 | DO9: 0 | DP9: 0 | DQ9: 0 | DS9: 4 | DT9: 9999999999 | DU9: 9999999999 | DV9: 9999999999 | DW9: 9999999999 | DX9: 9999999999 | DY9: 9999999999 | DZ9: 602 | EA9: 6 | EB9: 2
B10: =IF(Rechenhilfe!N73=99,"",IF(Rechenhilfe!O73=0,"",Rechenhilfe!N73-1)) ->  | C10: =IF(Rechenhilfe!N73=99,"",IF(Rechenhilfe!O73=0,$AI$2,VLOOKUP(Rechenhilfe!O73,Zeilen_Athleten,3))) ->  | D10: =IF(Rechenhilfe!N73=99,"",IF(Rechenhilfe!O73=0,"",Rechenhilfe!R73)) ->  | E10: =IF(Rechenhilfe!N73=99,"",IF(Rechenhilfe!O73=0,"",Rechenhilfe!S73)) ->  | G10: 1 | H10: =IF(Einstellung!B44<>"",Einstellung!B44,"") -> M-85 | I10: Legel Christoph | J10: =IF(Einstellung!$S$28="V",IF(Einstellung!K44<>"",Einstellung!K44,""),IF(Einstellung!$S$28="N",IF(Einstellung!AA44<>"",Einstellung!AA44,""),IF(Einstellung!C44<>"",Einstellung!C44,""))) -> 0 | K10: =IF(Einstellung!F44<>"",Einstellung!F44,"") -> 82 | L10: 1.2171 | M10: 212 | N10: 258.03 | P10: =IF($AI$3="E",IF('Wettkampf Einzel'!P10=0,0,'Wettkampf Einzel'!P10),IF('Wettkampf Mannschaft'!R10=0,0,'Wettkampf Mannschaft'!R10)) -> 91 | Q10: =IF($AI$3="E",IF('Wettkampf Einzel'!Q10=0,0, IF($AH$1="Ja",IF(ISNUMBER('Wettkampf Einzel'!Q10),"+",'Wettkampf Einzel'!Q10),'Wettkampf Einzel'!Q10)),IF(AH10=3,"-",IF('Wettkampf Mannschaft'!S10=0,0,'Wettkampf Mannschaft'!S10))) -> + | R10: =IF($AI$3="E",IF('Wettkampf Einzel'!R10=0,0,'Wettkampf Einzel'!R10),IF('Wettkampf Mannschaft'!T10=0,0,'Wettkampf Mannschaft'!T10)) -> 96 | S10: =IF($AI$3="E",IF('Wettkampf Einzel'!S10=0,0, IF($AH$1="Ja",IF(ISNUMBER('Wettkampf Einzel'!S10),"+",'Wettkampf Einzel'!S10),'Wettkampf Einzel'!S10)),IF(AH10=3,"-",IF('Wettkampf Mannschaft'!U10=0,0,'Wettkampf Mannschaft'!U10))) -> + | T10: =IF($AI$3="E",IF('Wettkampf Einzel'!T10=0,0,'Wettkampf Einzel'!T10),IF('Wettkampf Mannschaft'!V10=0,0,'Wettkampf Mannschaft'!V10)) -> 100 | U10: =IF($AI$3="E",IF('Wettkampf Einzel'!U10=0,0, IF($AH$1="Ja",IF(ISNUMBER('Wettkampf Einzel'!U10),"+",'Wettkampf Einzel'!U10),'Wettkampf Einzel'!U10)),IF(AH10=3,"-",IF('Wettkampf Mannschaft'!W10=0,0,'Wettkampf Mannschaft'!W10))) -> - | W10: =IF($AI$3="E",IF('Wettkampf Einzel'!W10=0,0,'Wettkampf Einzel'!W10),IF('Wettkampf Mannschaft'!Y10=0,0,'Wettkampf Mannschaft'!Y10)) -> 110 | X10: =IF($AI$3="E",IF('Wettkampf Einzel'!X10=0,0, IF($AH$1="Ja",IF(ISNUMBER('Wettkampf Einzel'!X10),"+",'Wettkampf Einzel'!X10),'Wettkampf Einzel'!X10)),IF(AH10=2,"-",IF('Wettkampf Mannschaft'!Z10=0,0,'Wettkampf Mannschaft'!Z10))) -> + | Y10: =IF($AI$3="E",IF('Wettkampf Einzel'!Y10=0,0,'Wettkampf Einzel'!Y10),IF('Wettkampf Mannschaft'!AA10=0,0,'Wettkampf Mannschaft'!AA10)) -> 116 | Z10: =IF($AI$3="E",IF('Wettkampf Einzel'!Z10=0,0, IF($AH$1="Ja",IF(ISNUMBER('Wettkampf Einzel'!Z10),"+",'Wettkampf Einzel'!Z10),'Wettkampf Einzel'!Z10)),IF(AH10=2,"-",IF('Wettkampf Mannschaft'!AB10=0,0,'Wettkampf Mannschaft'!AB10))) -> + | AA10: =IF($AI$3="E",IF('Wettkampf Einzel'!AA10=0,0,'Wettkampf Einzel'!AA10),IF('Wettkampf Mannschaft'!AC10=0,0,'Wettkampf Mannschaft'!AC10)) -> 120 | AB10: =IF($AI$3="E",IF('Wettkampf Einzel'!AB10=0,0, IF($AH$1="Ja",IF(ISNUMBER('Wettkampf Einzel'!AB10),"+",'Wettkampf Einzel'!AB10),'Wettkampf Einzel'!AB10)),IF(AH10=2,"-",IF('Wettkampf Mannschaft'!AD10=0,0,'Wettkampf Mannschaft'!AD10))) -> - | AH10: =IF(Einstellung!L44="J",1,IF(Einstellung!M44="J",2,IF(Einstellung!N44="J",3,""))) ->  | AI10: =IF(Einstellung!C44<>"",Einstellung!C44,"") -> 4635 | AJ10: =IF(Rechenhilfe!$O$68=AK10,1,0) -> 0 | AK10: 5 | AL10: =Rechenhilfe!F9 -> 24 | AM10: Legel Christoph | AN10: M-85 | AO10: 2 | AP10: 2 | AQ10: 3 | AR10: 2 | AS10: 2 | AT10: 3 | AX10: 91 | AY10: 96 | AZ10: 0 | BA10: 96 | BB10: 110 | BC10: 116 | BD10: 0 | BE10: 116 | BF10: 212 | BJ10: 4635 | BK10: 552 | BL10: M | BM10: =IF(Wiegeliste!$D$4<>0,IF($BL10="M",VLOOKUP(Wiegeliste!$D$4,SFGUELTIGAB,6),IF($BR$3="E",VLOOKUP(Wiegeliste!$D$4,SFGUELTIGAB,10), VLOOKUP(Wiegeliste!$D$4,SFGUELTIGAB,6))),"") -> 7 | BN10: =IF(Wettkampf!BK10<>"",VLOOKUP(Wettkampf!BK10, Athl01,4),"") -> 1991-05-24 | BO10: =IF(Wettkampf!BK10<>"",YEAR(VLOOKUP(Wettkampf!BK10, Athl01,4)),"") -> 1991 | BP10: =IF(K10<>"",YEAR(Wiegeliste!$D$4) - BO10,0) -> 24 | BQ10: 0 | BR10: 1.2171 | BS10: 1.2171 | BT10: =IF(Einstellung!$S$26="M",BS10,BR10) -> 1.2171 | BV10: 250 | BX10: 116.84 | BY10: 141.18 | BZ10: 258.02 | CA10: 0 | CB10: 0 | CC10: 0 | CD10: 0 | CE10: 0 | CF10: 0 | CG10: 0 | CH10: 0 | CK10: 5 | CL10: 0 | CN10: =IF(ISERROR(VLOOKUP(CK10,Rechenhilfe!$BQ$68:$BR$217,2,FALSE)),0,VLOOKUP(CK10,Rechenhilfe!$BQ$68:$BR$217,2,FALSE)) -> 0 | CO10: =IF(ISERROR(VLOOKUP(CK10,Rechenhilfe!$BZ$68:$CA$217,2,FALSE)),0,VLOOKUP(CK10,Rechenhilfe!$BZ$68:$CA$217,2,FALSE)) -> 0 | CQ10: 116.84 | CR10: 141.18 | CS10: 258.02 | CT10: 0 | CU10: 0 | CV10: 0 | CW10: 0 | CX10: 0 | CY10: 0 | DC10: =IF($DC$3<>"Ja",0,IF(AX10>0,IF(ISNUMBER('Wettkampf Einzel'!Q10 ),'Wettkampf Einzel'!Q10*$DC$2,0),0)) -> 0 | DD10: =IF($DC$3<>"Ja",0,IF(AY10>0,IF(ISNUMBER('Wettkampf Einzel'!S10 ),'Wettkampf Einzel'!S10*$DC$2,0),0)) -> 0 | DE10: =IF($DC$3<>"Ja",0,IF(AZ10>0,IF(ISNUMBER('Wettkampf Einzel'!U10 ),'Wettkampf Einzel'!U10*$DC$2,0),0)) -> 0 | DF10: =IF($DC$3<>"Ja",0,IF(BB10>0,IF(ISNUMBER('Wettkampf Einzel'!X10 ),'Wettkampf Einzel'!X10*$DC$2,0),0)) -> 0 | DG10: =IF($DC$3<>"Ja",0,IF(BC10>0,IF(ISNUMBER('Wettkampf Einzel'!Z10 ),'Wettkampf Einzel'!Z10*$DC$2,0),0)) -> 0 | DH10: =IF($DC$3<>"Ja",0,IF(BD10>0,IF(ISNUMBER('Wettkampf Einzel'!AB10 ),'Wettkampf Einzel'!AB10*$DC$2,0),0)) -> 0 | DI10: 110.7561 | DJ10: 116.8416 | DK10: 0 | DL10: 133.881 | DM10: 141.1836 | DN10: 0 | DO10: 116.84 | DP10: 141.18 | DQ10: 258.02 | DR10: 24 | DS10: 5 | DT10: 2425802005 | DU10: 9999999999 | DV10: 9999999999 | DW10: 9999999999 | DX10: 9999999999 | DY10: 9999999999 | DZ10: 802 | EA10: 8 | EB10: 2
B11: =IF(Rechenhilfe!N74=99,"",IF(Rechenhilfe!O74=0,"",Rechenhilfe!N74-1)) ->  | C11: =IF(Rechenhilfe!N74=99,"",IF(Rechenhilfe!O74=0,$AI$2,VLOOKUP(Rechenhilfe!O74,Zeilen_Athleten,3))) ->  | D11: =IF(Rechenhilfe!N74=99,"",IF(Rechenhilfe!O74=0,"",Rechenhilfe!R74)) ->  | E11: =IF(Rechenhilfe!N74=99,"",IF(Rechenhilfe!O74=0,"",Rechenhilfe!S74)) ->  | G11: 2 | H11: =IF(Einstellung!B45<>"",Einstellung!B45,"") -> M-85 | I11: Legel Walter | J11: =IF(Einstellung!$S$28="V",IF(Einstellung!K45<>"",Einstellung!K45,""),IF(Einstellung!$S$28="N",IF(Einstellung!AA45<>"",Einstellung!AA45,""),IF(Einstellung!C45<>"",Einstellung!C45,""))) -> 0 | K11: =IF(Einstellung!F45<>"",Einstellung!F45,"") -> 81 | L11: 1.2249 | M11: 180 | N11: 220.48 | P11: =IF($AI$3="E",IF('Wettkampf Einzel'!P11=0,0,'Wettkampf Einzel'!P11),IF('Wettkampf Mannschaft'!R11=0,0,'Wettkampf Mannschaft'!R11)) -> 60 | Q11: =IF($AI$3="E",IF('Wettkampf Einzel'!Q11=0,0, IF($AH$1="Ja",IF(ISNUMBER('Wettkampf Einzel'!Q11),"+",'Wettkampf Einzel'!Q11),'Wettkampf Einzel'!Q11)),IF(AH11=3,"-",IF('Wettkampf Mannschaft'!S11=0,0,'Wettkampf Mannschaft'!S11))) -> + | R11: =IF($AI$3="E",IF('Wettkampf Einzel'!R11=0,0,'Wettkampf Einzel'!R11),IF('Wettkampf Mannschaft'!T11=0,0,'Wettkampf Mannschaft'!T11)) -> 70 | S11: =IF($AI$3="E",IF('Wettkampf Einzel'!S11=0,0, IF($AH$1="Ja",IF(ISNUMBER('Wettkampf Einzel'!S11),"+",'Wettkampf Einzel'!S11),'Wettkampf Einzel'!S11)),IF(AH11=3,"-",IF('Wettkampf Mannschaft'!U11=0,0,'Wettkampf Mannschaft'!U11))) -> + | T11: =IF($AI$3="E",IF('Wettkampf Einzel'!T11=0,0,'Wettkampf Einzel'!T11),IF('Wettkampf Mannschaft'!V11=0,0,'Wettkampf Mannschaft'!V11)) -> 80 | U11: =IF($AI$3="E",IF('Wettkampf Einzel'!U11=0,0, IF($AH$1="Ja",IF(ISNUMBER('Wettkampf Einzel'!U11),"+",'Wettkampf Einzel'!U11),'Wettkampf Einzel'!U11)),IF(AH11=3,"-",IF('Wettkampf Mannschaft'!W11=0,0,'Wettkampf Mannschaft'!W11))) -> + | W11: =IF($AI$3="E",IF('Wettkampf Einzel'!W11=0,0,'Wettkampf Einzel'!W11),IF('Wettkampf Mannschaft'!Y11=0,0,'Wettkampf Mannschaft'!Y11)) -> 80 | X11: =IF($AI$3="E",IF('Wettkampf Einzel'!X11=0,0, IF($AH$1="Ja",IF(ISNUMBER('Wettkampf Einzel'!X11),"+",'Wettkampf Einzel'!X11),'Wettkampf Einzel'!X11)),IF(AH11=2,"-",IF('Wettkampf Mannschaft'!Z11=0,0,'Wettkampf Mannschaft'!Z11))) -> + | Y11: =IF($AI$3="E",IF('Wettkampf Einzel'!Y11=0,0,'Wettkampf Einzel'!Y11),IF('Wettkampf Mannschaft'!AA11=0,0,'Wettkampf Mannschaft'!AA11)) -> 90 | Z11: =IF($AI$3="E",IF('Wettkampf Einzel'!Z11=0,0, IF($AH$1="Ja",IF(ISNUMBER('Wettkampf Einzel'!Z11),"+",'Wettkampf Einzel'!Z11),'Wettkampf Einzel'!Z11)),IF(AH11=2,"-",IF('Wettkampf Mannschaft'!AB11=0,0,'Wettkampf Mannschaft'!AB11))) -> + | AA11: =IF($AI$3="E",IF('Wettkampf Einzel'!AA11=0,0,'Wettkampf Einzel'!AA11),IF('Wettkampf Mannschaft'!AC11=0,0,'Wettkampf Mannschaft'!AC11)) -> 100 | AB11: =IF($AI$3="E",IF('Wettkampf Einzel'!AB11=0,0, IF($AH$1="Ja",IF(ISNUMBER('Wettkampf Einzel'!AB11),"+",'Wettkampf Einzel'!AB11),'Wettkampf Einzel'!AB11)),IF(AH11=2,"-",IF('Wettkampf Mannschaft'!AD11=0,0,'Wettkampf Mannschaft'!AD11))) -> + | AH11: =IF(Einstellung!L45="J",1,IF(Einstellung!M45="J",2,IF(Einstellung!N45="J",3,""))) ->  | AI11: =IF(Einstellung!C45<>"",Einstellung!C45,"") -> 1535 | AJ11: =IF(Rechenhilfe!$O$68=AK11,1,0) -> 0 | AK11: 6 | AL11: =Rechenhilfe!F10 -> 24 | AM11: Legel Walter | AN11: M-85 | AO11: 2 | AP11: 2 | AQ11: 2 | AR11: 2 | AS11: 2 | AT11: 2 | AX11: 60 | AY11: 70 | AZ11: 80 | BA11: 80 | BB11: 80 | BC11: 90 | BD11: 100 | BE11: 100 | BF11: 180 | BJ11: 1535 | BK11: 109 | BL11: M | BM11: =IF(Wiegeliste!$D$4<>0,IF($BL11="M",VLOOKUP(Wiegeliste!$D$4,SFGUELTIGAB,6),IF($BR$3="E",VLOOKUP(Wiegeliste!$D$4,SFGUELTIGAB,10), VLOOKUP(Wiegeliste!$D$4,SFGUELTIGAB,6))),"") -> 7 | BN11: =IF(Wettkampf!BK11<>"",VLOOKUP(Wettkampf!BK11, Athl01,4),"") -> 1963-03-19 | BO11: =IF(Wettkampf!BK11<>"",YEAR(VLOOKUP(Wettkampf!BK11, Athl01,4)),"") -> 1963 | BP11: =IF(K11<>"",YEAR(Wiegeliste!$D$4) - BO11,0) -> 52 | BQ11: 1.271 | BR11: 1.2249 | BS11: 1.5568 | BT11: =IF(Einstellung!$S$26="M",BS11,BR11) -> 1.2249 | BV11: 250 | BX11: 97.99 | BY11: 122.49 | BZ11: 220.48 | CA11: 0 | CB11: 0 | CC11: 0 | CD11: 0 | CE11: 0 | CF11: 0 | CG11: 0 | CH11: 0 | CK11: 6 | CL11: 0 | CN11: =IF(ISERROR(VLOOKUP(CK11,Rechenhilfe!$BQ$68:$BR$217,2,FALSE)),0,VLOOKUP(CK11,Rechenhilfe!$BQ$68:$BR$217,2,FALSE)) -> 0 | CO11: =IF(ISERROR(VLOOKUP(CK11,Rechenhilfe!$BZ$68:$CA$217,2,FALSE)),0,VLOOKUP(CK11,Rechenhilfe!$BZ$68:$CA$217,2,FALSE)) -> 0 | CQ11: 97.99 | CR11: 122.49 | CS11: 220.48 | CT11: 0 | CU11: 0 | CV11: 0 | CW11: 0 | CX11: 0 | CY11: 0 | DC11: =IF($DC$3<>"Ja",0,IF(AX11>0,IF(ISNUMBER('Wettkampf Einzel'!Q11 ),'Wettkampf Einzel'!Q11*$DC$2,0),0)) -> 0 | DD11: =IF($DC$3<>"Ja",0,IF(AY11>0,IF(ISNUMBER('Wettkampf Einzel'!S11 ),'Wettkampf Einzel'!S11*$DC$2,0),0)) -> 0 | DE11: =IF($DC$3<>"Ja",0,IF(AZ11>0,IF(ISNUMBER('Wettkampf Einzel'!U11 ),'Wettkampf Einzel'!U11*$DC$2,0),0)) -> 0 | DF11: =IF($DC$3<>"Ja",0,IF(BB11>0,IF(ISNUMBER('Wettkampf Einzel'!X11 ),'Wettkampf Einzel'!X11*$DC$2,0),0)) -> 0 | DG11: =IF($DC$3<>"Ja",0,IF(BC11>0,IF(ISNUMBER('Wettkampf Einzel'!Z11 ),'Wettkampf Einzel'!Z11*$DC$2,0),0)) -> 0 | DH11: =IF($DC$3<>"Ja",0,IF(BD11>0,IF(ISNUMBER('Wettkampf Einzel'!AB11 ),'Wettkampf Einzel'!AB11*$DC$2,0),0)) -> 0 | DI11: 73.494 | DJ11: 85.743 | DK11: 97.992 | DL11: 97.992 | DM11: 110.241 | DN11: 122.49 | DO11: 97.99 | DP11: 122.49 | DQ11: 220.48 | DR11: 24 | DS11: 6 | DT11: 2422048006 | DU11: 9999999999 | DV11: 9999999999 | DW11: 9999999999 | DX11: 9999999999 | DY11: 9999999999 | DZ11: 901 | EA11: 9 | EB11: 1
B12: =IF(Rechenhilfe!N75=99,"",IF(Rechenhilfe!O75=0,"",Rechenhilfe!N75-1)) ->  | C12: =IF(Rechenhilfe!N75=99,"",IF(Rechenhilfe!O75=0,$AI$2,VLOOKUP(Rechenhilfe!O75,Zeilen_Athleten,3))) ->  | D12: =IF(Rechenhilfe!N75=99,"",IF(Rechenhilfe!O75=0,"",Rechenhilfe!R75)) ->  | E12: =IF(Rechenhilfe!N75=99,"",IF(Rechenhilfe!O75=0,"",Rechenhilfe!S75)) ->  | H12: =IF(Einstellung!B46<>"",Einstellung!B46,"") ->  | J12: =IF(Einstellung!$S$28="V",IF(Einstellung!K46<>"",Einstellung!K46,""),IF(Einstellung!$S$28="N",IF(Einstellung!AA46<>"",Einstellung!AA46,""),IF(Einstellung!C46<>"",Einstellung!C46,""))) ->  | K12: =IF(Einstellung!F46<>"",Einstellung!F46,"") ->  | M12: 0 | P12: =IF($AI$3="E",IF('Wettkampf Einzel'!P12=0,0,'Wettkampf Einzel'!P12),IF('Wettkampf Mannschaft'!R12=0,0,'Wettkampf Mannschaft'!R12)) -> 0 | Q12: =IF($AI$3="E",IF('Wettkampf Einzel'!Q12=0,0, IF($AH$1="Ja",IF(ISNUMBER('Wettkampf Einzel'!Q12),"+",'Wettkampf Einzel'!Q12),'Wettkampf Einzel'!Q12)),IF(AH12=3,"-",IF('Wettkampf Mannschaft'!S12=0,0,'Wettkampf Mannschaft'!S12))) -> 0 | R12: =IF($AI$3="E",IF('Wettkampf Einzel'!R12=0,0,'Wettkampf Einzel'!R12),IF('Wettkampf Mannschaft'!T12=0,0,'Wettkampf Mannschaft'!T12)) -> 0 | S12: =IF($AI$3="E",IF('Wettkampf Einzel'!S12=0,0, IF($AH$1="Ja",IF(ISNUMBER('Wettkampf Einzel'!S12),"+",'Wettkampf Einzel'!S12),'Wettkampf Einzel'!S12)),IF(AH12=3,"-",IF('Wettkampf Mannschaft'!U12=0,0,'Wettkampf Mannschaft'!U12))) -> 0 | T12: =IF($AI$3="E",IF('Wettkampf Einzel'!T12=0,0,'Wettkampf Einzel'!T12),IF('Wettkampf Mannschaft'!V12=0,0,'Wettkampf Mannschaft'!V12)) -> 0 | U12: =IF($AI$3="E",IF('Wettkampf Einzel'!U12=0,0, IF($AH$1="Ja",IF(ISNUMBER('Wettkampf Einzel'!U12),"+",'Wettkampf Einzel'!U12),'Wettkampf Einzel'!U12)),IF(AH12=3,"-",IF('Wettkampf Mannschaft'!W12=0,0,'Wettkampf Mannschaft'!W12))) -> 0 | W12: =IF($AI$3="E",IF('Wettkampf Einzel'!W12=0,0,'Wettkampf Einzel'!W12),IF('Wettkampf Mannschaft'!Y12=0,0,'Wettkampf Mannschaft'!Y12)) -> 0 | X12: =IF($AI$3="E",IF('Wettkampf Einzel'!X12=0,0, IF($AH$1="Ja",IF(ISNUMBER('Wettkampf Einzel'!X12),"+",'Wettkampf Einzel'!X12),'Wettkampf Einzel'!X12)),IF(AH12=2,"-",IF('Wettkampf Mannschaft'!Z12=0,0,'Wettkampf Mannschaft'!Z12))) -> 0 | Y12: =IF($AI$3="E",IF('Wettkampf Einzel'!Y12=0,0,'Wettkampf Einzel'!Y12),IF('Wettkampf Mannschaft'!AA12=0,0,'Wettkampf Mannschaft'!AA12)) -> 0 | Z12: =IF($AI$3="E",IF('Wettkampf Einzel'!Z12=0,0, IF($AH$1="Ja",IF(ISNUMBER('Wettkampf Einzel'!Z12),"+",'Wettkampf Einzel'!Z12),'Wettkampf Einzel'!Z12)),IF(AH12=2,"-",IF('Wettkampf Mannschaft'!AB12=0,0,'Wettkampf Mannschaft'!AB12))) -> 0 | AA12: =IF($AI$3="E",IF('Wettkampf Einzel'!AA12=0,0,'Wettkampf Einzel'!AA12),IF('Wettkampf Mannschaft'!AC12=0,0,'Wettkampf Mannschaft'!AC12)) -> 0 | AB12: =IF($AI$3="E",IF('Wettkampf Einzel'!AB12=0,0, IF($AH$1="Ja",IF(ISNUMBER('Wettkampf Einzel'!AB12),"+",'Wettkampf Einzel'!AB12),'Wettkampf Einzel'!AB12)),IF(AH12=2,"-",IF('Wettkampf Mannschaft'!AD12=0,0,'Wettkampf Mannschaft'!AD12))) -> 0 | AH12: =IF(Einstellung!L46="J",1,IF(Einstellung!M46="J",2,IF(Einstellung!N46="J",3,""))) ->  | AI12: =IF(Einstellung!C46<>"",Einstellung!C46,"") ->  | AJ12: =IF(Rechenhilfe!$O$68=AK12,1,0) -> 0 | AK12: 7 | AL12: =Rechenhilfe!F11 ->  | AO12: 1 | AP12: 1 | AQ12: 1 | AR12: 1 | AS12: 1 | AT12: 1 | AX12: 0 | AY12: 0 | AZ12: 0 | BA12: 0 | BB12: 0 | BC12: 0 | BD12: 0 | BE12: 0 | BF12: 0 | BM12: =IF(Wiegeliste!$D$4<>0,IF($BL12="M",VLOOKUP(Wiegeliste!$D$4,SFGUELTIGAB,6),IF($BR$3="E",VLOOKUP(Wiegeliste!$D$4,SFGUELTIGAB,10), VLOOKUP(Wiegeliste!$D$4,SFGUELTIGAB,6))),"") -> 14 | BN12: =IF(Wettkampf!BK12<>"",VLOOKUP(Wettkampf!BK12, Athl01,4),"") ->  | BO12: =IF(Wettkampf!BK12<>"",YEAR(VLOOKUP(Wettkampf!BK12, Athl01,4)),"") ->  | BP12: =IF(K12<>"",YEAR(Wiegeliste!$D$4) - BO12,0) -> 0 | BQ12: 0 | BT12: =IF(Einstellung!$S$26="M",BS12,BR12) ->  | BV12: 0 | BX12: 0 | BY12: 0 | BZ12: 0 | CA12: 0 | CB12: 0 | CC12: 0 | CD12: 0 | CE12: 0 | CF12: 0 | CG12: 0 | CH12: 0 | CK12: 7 | CN12: =IF(ISERROR(VLOOKUP(CK12,Rechenhilfe!$BQ$68:$BR$217,2,FALSE)),0,VLOOKUP(CK12,Rechenhilfe!$BQ$68:$BR$217,2,FALSE)) -> 0 | CO12: =IF(ISERROR(VLOOKUP(CK12,Rechenhilfe!$BZ$68:$CA$217,2,FALSE)),0,VLOOKUP(CK12,Rechenhilfe!$BZ$68:$CA$217,2,FALSE)) -> 0 | CQ12: 0 | CR12: 0 | CS12: 0 | CT12: 0 | CU12: 0 | CV12: 0 | CW12: 0 | CX12: 0 | CY12: 0 | DC12: =IF($DC$3<>"Ja",0,IF(AX12>0,IF(ISNUMBER('Wettkampf Einzel'!Q12 ),'Wettkampf Einzel'!Q12*$DC$2,0),0)) -> 0 | DD12: =IF($DC$3<>"Ja",0,IF(AY12>0,IF(ISNUMBER('Wettkampf Einzel'!S12 ),'Wettkampf Einzel'!S12*$DC$2,0),0)) -> 0 | DE12: =IF($DC$3<>"Ja",0,IF(AZ12>0,IF(ISNUMBER('Wettkampf Einzel'!U12 ),'Wettkampf Einzel'!U12*$DC$2,0),0)) -> 0 | DF12: =IF($DC$3<>"Ja",0,IF(BB12>0,IF(ISNUMBER('Wettkampf Einzel'!X12 ),'Wettkampf Einzel'!X12*$DC$2,0),0)) -> 0 | DG12: =IF($DC$3<>"Ja",0,IF(BC12>0,IF(ISNUMBER('Wettkampf Einzel'!Z12 ),'Wettkampf Einzel'!Z12*$DC$2,0),0)) -> 0 | DH12: =IF($DC$3<>"Ja",0,IF(BD12>0,IF(ISNUMBER('Wettkampf Einzel'!AB12 ),'Wettkampf Einzel'!AB12*$DC$2,0),0)) -> 0 | DI12: 0 | DJ12: 0 | DK12: 0 | DL12: 0 | DM12: 0 | DN12: 0 | DO12: 0 | DP12: 0 | DQ12: 0 | DS12: 7 | DT12: 9999999999 | DU12: 9999999999 | DV12: 9999999999 | DW12: 9999999999 | DX12: 9999999999 | DY12: 9999999999 | DZ12: 1003 | EA12: 10 | EB12: 3
B13: =IF(Rechenhilfe!N76=99,"",IF(Rechenhilfe!O76=0,"",Rechenhilfe!N76-1)) ->  | C13: =IF(Rechenhilfe!N76=99,"",IF(Rechenhilfe!O76=0,$AI$2,VLOOKUP(Rechenhilfe!O76,Zeilen_Athleten,3))) ->  | D13: =IF(Rechenhilfe!N76=99,"",IF(Rechenhilfe!O76=0,"",Rechenhilfe!R76)) ->  | E13: =IF(Rechenhilfe!N76=99,"",IF(Rechenhilfe!O76=0,"",Rechenhilfe!S76)) ->  | G13: 2 | H13: =IF(Einstellung!B47<>"",Einstellung!B47,"") -> M-94 | I13: Wallner Matthias | J13: =IF(Einstellung!$S$28="V",IF(Einstellung!K47<>"",Einstellung!K47,""),IF(Einstellung!$S$28="N",IF(Einstellung!AA47<>"",Einstellung!AA47,""),IF(Einstellung!C47<>"",Einstellung!C47,""))) -> 0 | K13: =IF(Einstellung!F47<>"",Einstellung!F47,"") -> 91.2 | L13: 1.156 | M13: 235 | N13: 271.66 | P13: =IF($AI$3="E",IF('Wettkampf Einzel'!P13=0,0,'Wettkampf Einzel'!P13),IF('Wettkampf Mannschaft'!R13=0,0,'Wettkampf Mannschaft'!R13)) -> 100 | Q13: =IF($AI$3="E",IF('Wettkampf Einzel'!Q13=0,0, IF($AH$1="Ja",IF(ISNUMBER('Wettkampf Einzel'!Q13),"+",'Wettkampf Einzel'!Q13),'Wettkampf Einzel'!Q13)),IF(AH13=3,"-",IF('Wettkampf Mannschaft'!S13=0,0,'Wettkampf Mannschaft'!S13))) -> - | R13: =IF($AI$3="E",IF('Wettkampf Einzel'!R13=0,0,'Wettkampf Einzel'!R13),IF('Wettkampf Mannschaft'!T13=0,0,'Wettkampf Mannschaft'!T13)) -> 100 | S13: =IF($AI$3="E",IF('Wettkampf Einzel'!S13=0,0, IF($AH$1="Ja",IF(ISNUMBER('Wettkampf Einzel'!S13),"+",'Wettkampf Einzel'!S13),'Wettkampf Einzel'!S13)),IF(AH13=3,"-",IF('Wettkampf Mannschaft'!U13=0,0,'Wettkampf Mannschaft'!U13))) -> + | T13: =IF($AI$3="E",IF('Wettkampf Einzel'!T13=0,0,'Wettkampf Einzel'!T13),IF('Wettkampf Mannschaft'!V13=0,0,'Wettkampf Mannschaft'!V13)) -> 105 | U13: =IF($AI$3="E",IF('Wettkampf Einzel'!U13=0,0, IF($AH$1="Ja",IF(ISNUMBER('Wettkampf Einzel'!U13),"+",'Wettkampf Einzel'!U13),'Wettkampf Einzel'!U13)),IF(AH13=3,"-",IF('Wettkampf Mannschaft'!W13=0,0,'Wettkampf Mannschaft'!W13))) -> + | W13: =IF($AI$3="E",IF('Wettkampf Einzel'!W13=0,0,'Wettkampf Einzel'!W13),IF('Wettkampf Mannschaft'!Y13=0,0,'Wettkampf Mannschaft'!Y13)) -> 120 | X13: =IF($AI$3="E",IF('Wettkampf Einzel'!X13=0,0, IF($AH$1="Ja",IF(ISNUMBER('Wettkampf Einzel'!X13),"+",'Wettkampf Einzel'!X13),'Wettkampf Einzel'!X13)),IF(AH13=2,"-",IF('Wettkampf Mannschaft'!Z13=0,0,'Wettkampf Mannschaft'!Z13))) -> + | Y13: =IF($AI$3="E",IF('Wettkampf Einzel'!Y13=0,0,'Wettkampf Einzel'!Y13),IF('Wettkampf Mannschaft'!AA13=0,0,'Wettkampf Mannschaft'!AA13)) -> 130 | Z13: =IF($AI$3="E",IF('Wettkampf Einzel'!Z13=0,0, IF($AH$1="Ja",IF(ISNUMBER('Wettkampf Einzel'!Z13),"+",'Wettkampf Einzel'!Z13),'Wettkampf Einzel'!Z13)),IF(AH13=2,"-",IF('Wettkampf Mannschaft'!AB13=0,0,'Wettkampf Mannschaft'!AB13))) -> + | AA13: =IF($AI$3="E",IF('Wettkampf Einzel'!AA13=0,0,'Wettkampf Einzel'!AA13),IF('Wettkampf Mannschaft'!AC13=0,0,'Wettkampf Mannschaft'!AC13)) -> 135 | AB13: =IF($AI$3="E",IF('Wettkampf Einzel'!AB13=0,0, IF($AH$1="Ja",IF(ISNUMBER('Wettkampf Einzel'!AB13),"+",'Wettkampf Einzel'!AB13),'Wettkampf Einzel'!AB13)),IF(AH13=2,"-",IF('Wettkampf Mannschaft'!AD13=0,0,'Wettkampf Mannschaft'!AD13))) -> - | AH13: =IF(Einstellung!L47="J",1,IF(Einstellung!M47="J",2,IF(Einstellung!N47="J",3,""))) ->  | AI13: =IF(Einstellung!C47<>"",Einstellung!C47,"") -> 4745 | AJ13: =IF(Rechenhilfe!$O$68=AK13,1,0) -> 0 | AK13: 8 | AL13: =Rechenhilfe!F12 -> 25 | AM13: Wallner Matthias | AN13: M-94 | AO13: 3 | AP13: 2 | AQ13: 2 | AR13: 2 | AS13: 2 | AT13: 3 | AX13: 0 | AY13: 100 | AZ13: 105 | BA13: 105 | BB13: 120 | BC13: 130 | BD13: 0 | BE13: 130 | BF13: 235 | BJ13: 4745 | BK13: 766 | BL13: M | BM13: =IF(Wiegeliste!$D$4<>0,IF($BL13="M",VLOOKUP(Wiegeliste!$D$4,SFGUELTIGAB,6),IF($BR$3="E",VLOOKUP(Wiegeliste!$D$4,SFGUELTIGAB,10), VLOOKUP(Wiegeliste!$D$4,SFGUELTIGAB,6))),"") -> 7 | BN13: =IF(Wettkampf!BK13<>"",VLOOKUP(Wettkampf!BK13, Athl01,4),"") -> 1994-02-21 | BO13: =IF(Wettkampf!BK13<>"",YEAR(VLOOKUP(Wettkampf!BK13, Athl01,4)),"") -> 1994 | BP13: =IF(K13<>"",YEAR(Wiegeliste!$D$4) - BO13,0) -> 21 | BQ13: 0 | BR13: 1.156 | BS13: 1.156 | BT13: =IF(Einstellung!$S$26="M",BS13,BR13) -> 1.156 | BV13: 250 | BX13: 121.38 | BY13: 150.28 | BZ13: 271.66 | CA13: 0 | CB13: 0 | CC13: 0 | CD13: 0 | CE13: 0 | CF13: 0 | CG13: 0 | CH13: 0 | CK13: 8 | CL13: 0 | CN13: =IF(ISERROR(VLOOKUP(CK13,Rechenhilfe!$BQ$68:$BR$217,2,FALSE)),0,VLOOKUP(CK13,Rechenhilfe!$BQ$68:$BR$217,2,FALSE)) -> 0 | CO13: =IF(ISERROR(VLOOKUP(CK13,Rechenhilfe!$BZ$68:$CA$217,2,FALSE)),0,VLOOKUP(CK13,Rechenhilfe!$BZ$68:$CA$217,2,FALSE)) -> 0 | CQ13: 121.38 | CR13: 150.28 | CS13: 271.66 | CT13: 0 | CU13: 0 | CV13: 0 | CW13: 0 | CX13: 0 | CY13: 0 | DC13: =IF($DC$3<>"Ja",0,IF(AX13>0,IF(ISNUMBER('Wettkampf Einzel'!Q13 ),'Wettkampf Einzel'!Q13*$DC$2,0),0)) -> 0 | DD13: =IF($DC$3<>"Ja",0,IF(AY13>0,IF(ISNUMBER('Wettkampf Einzel'!S13 ),'Wettkampf Einzel'!S13*$DC$2,0),0)) -> 0 | DE13: =IF($DC$3<>"Ja",0,IF(AZ13>0,IF(ISNUMBER('Wettkampf Einzel'!U13 ),'Wettkampf Einzel'!U13*$DC$2,0),0)) -> 0 | DF13: =IF($DC$3<>"Ja",0,IF(BB13>0,IF(ISNUMBER('Wettkampf Einzel'!X13 ),'Wettkampf Einzel'!X13*$DC$2,0),0)) -> 0 | DG13: =IF($DC$3<>"Ja",0,IF(BC13>0,IF(ISNUMBER('Wettkampf Einzel'!Z13 ),'Wettkampf Einzel'!Z13*$DC$2,0),0)) -> 0 | DH13: =IF($DC$3<>"Ja",0,IF(BD13>0,IF(ISNUMBER('Wettkampf Einzel'!AB13 ),'Wettkampf Einzel'!AB13*$DC$2,0),0)) -> 0 | DI13: 0 | DJ13: 115.6 | DK13: 121.38 | DL13: 138.72 | DM13: 150.28 | DN13: 0 | DO13: 121.38 | DP13: 150.28 | DQ13: 271.66 | DR13: 25 | DS13: 8 | DT13: 2527166008 | DU13: 9999999999 | DV13: 9999999999 | DW13: 9999999999 | DX13: 9999999999 | DY13: 9999999999 | DZ13: 1104 | EA13: 11 | EB13: 4
B14: =IF(Rechenhilfe!N77=99,"",IF(Rechenhilfe!O77=0,"",Rechenhilfe!N77-1)) ->  | C14: =IF(Rechenhilfe!N77=99,"",IF(Rechenhilfe!O77=0,$AI$2,VLOOKUP(Rechenhilfe!O77,Zeilen_Athleten,3))) ->  | D14: =IF(Rechenhilfe!N77=99,"",IF(Rechenhilfe!O77=0,"",Rechenhilfe!R77)) ->  | E14: =IF(Rechenhilfe!N77=99,"",IF(Rechenhilfe!O77=0,"",Rechenhilfe!S77)) ->  | G14: 1 | H14: =IF(Einstellung!B48<>"",Einstellung!B48,"") -> M-94 | I14: Ceidl Martin | J14: =IF(Einstellung!$S$28="V",IF(Einstellung!K48<>"",Einstellung!K48,""),IF(Einstellung!$S$28="N",IF(Einstellung!AA48<>"",Einstellung!AA48,""),IF(Einstellung!C48<>"",Einstellung!C48,""))) -> 0 | K14: =IF(Einstellung!F48<>"",Einstellung!F48,"") -> 91.3 | L14: 1.1554 | M14: 236 | N14: 272.67 | P14: =IF($AI$3="E",IF('Wettkampf Einzel'!P14=0,0,'Wettkampf Einzel'!P14),IF('Wettkampf Mannschaft'!R14=0,0,'Wettkampf Mannschaft'!R14)) -> 97 | Q14: =IF($AI$3="E",IF('Wettkampf Einzel'!Q14=0,0, IF($AH$1="Ja",IF(ISNUMBER('Wettkampf Einzel'!Q14),"+",'Wettkampf Einzel'!Q14),'Wettkampf Einzel'!Q14)),IF(AH14=3,"-",IF('Wettkampf Mannschaft'!S14=0,0,'Wettkampf Mannschaft'!S14))) -> + | R14: =IF($AI$3="E",IF('Wettkampf Einzel'!R14=0,0,'Wettkampf Einzel'!R14),IF('Wettkampf Mannschaft'!T14=0,0,'Wettkampf Mannschaft'!T14)) -> 103 | S14: =IF($AI$3="E",IF('Wettkampf Einzel'!S14=0,0, IF($AH$1="Ja",IF(ISNUMBER('Wettkampf Einzel'!S14),"+",'Wettkampf Einzel'!S14),'Wettkampf Einzel'!S14)),IF(AH14=3,"-",IF('Wettkampf Mannschaft'!U14=0,0,'Wettkampf Mannschaft'!U14))) -> + | T14: =IF($AI$3="E",IF('Wettkampf Einzel'!T14=0,0,'Wettkampf Einzel'!T14),IF('Wettkampf Mannschaft'!V14=0,0,'Wettkampf Mannschaft'!V14)) -> 106 | U14: =IF($AI$3="E",IF('Wettkampf Einzel'!U14=0,0, IF($AH$1="Ja",IF(ISNUMBER('Wettkampf Einzel'!U14),"+",'Wettkampf Einzel'!U14),'Wettkampf Einzel'!U14)),IF(AH14=3,"-",IF('Wettkampf Mannschaft'!W14=0,0,'Wettkampf Mannschaft'!W14))) -> - | W14: =IF($AI$3="E",IF('Wettkampf Einzel'!W14=0,0,'Wettkampf Einzel'!W14),IF('Wettkampf Mannschaft'!Y14=0,0,'Wettkampf Mannschaft'!Y14)) -> 125 | X14: =IF($AI$3="E",IF('Wettkampf Einzel'!X14=0,0, IF($AH$1="Ja",IF(ISNUMBER('Wettkampf Einzel'!X14),"+",'Wettkampf Einzel'!X14),'Wettkampf Einzel'!X14)),IF(AH14=2,"-",IF('Wettkampf Mannschaft'!Z14=0,0,'Wettkampf Mannschaft'!Z14))) -> + | Y14: =IF($AI$3="E",IF('Wettkampf Einzel'!Y14=0,0,'Wettkampf Einzel'!Y14),IF('Wettkampf Mannschaft'!AA14=0,0,'Wettkampf Mannschaft'!AA14)) -> 130 | Z14: =IF($AI$3="E",IF('Wettkampf Einzel'!Z14=0,0, IF($AH$1="Ja",IF(ISNUMBER('Wettkampf Einzel'!Z14),"+",'Wettkampf Einzel'!Z14),'Wettkampf Einzel'!Z14)),IF(AH14=2,"-",IF('Wettkampf Mannschaft'!AB14=0,0,'Wettkampf Mannschaft'!AB14))) -> + | AA14: =IF($AI$3="E",IF('Wettkampf Einzel'!AA14=0,0,'Wettkampf Einzel'!AA14),IF('Wettkampf Mannschaft'!AC14=0,0,'Wettkampf Mannschaft'!AC14)) -> 133 | AB14: =IF($AI$3="E",IF('Wettkampf Einzel'!AB14=0,0, IF($AH$1="Ja",IF(ISNUMBER('Wettkampf Einzel'!AB14),"+",'Wettkampf Einzel'!AB14),'Wettkampf Einzel'!AB14)),IF(AH14=2,"-",IF('Wettkampf Mannschaft'!AD14=0,0,'Wettkampf Mannschaft'!AD14))) -> + | AH14: =IF(Einstellung!L48="J",1,IF(Einstellung!M48="J",2,IF(Einstellung!N48="J",3,""))) ->  | AI14: =IF(Einstellung!C48<>"",Einstellung!C48,"") -> 4586 | AJ14: =IF(Rechenhilfe!$O$68=AK14,1,0) -> 0 | AK14: 9 | AL14: =Rechenhilfe!F13 -> 25 | AM14: Ceidl Martin | AN14: M-94 | AO14: 2 | AP14: 2 | AQ14: 3 | AR14: 2 | AS14: 2 | AT14: 2 | AX14: 97 | AY14: 103 | AZ14: 0 | BA14: 103 | BB14: 125 | BC14: 130 | BD14: 133 | BE14: 133 | BF14: 236 | BJ14: 4586 | BK14: 3 | BL14: M | BM14: =IF(Wiegeliste!$D$4<>0,IF($BL14="M",VLOOKUP(Wiegeliste!$D$4,SFGUELTIGAB,6),IF($BR$3="E",VLOOKUP(Wiegeliste!$D$4,SFGUELTIGAB,10), VLOOKUP(Wiegeliste!$D$4,SFGUELTIGAB,6))),"") -> 7 | BN14: =IF(Wettkampf!BK14<>"",VLOOKUP(Wettkampf!BK14, Athl01,4),"") -> 1990-05-12 | BO14: =IF(Wettkampf!BK14<>"",YEAR(VLOOKUP(Wettkampf!BK14, Athl01,4)),"") -> 1990 | BP14: =IF(K14<>"",YEAR(Wiegeliste!$D$4) - BO14,0) -> 25 | BQ14: 0 | BR14: 1.1554 | BS14: 1.1554 | BT14: =IF(Einstellung!$S$26="M",BS14,BR14) -> 1.1554 | BV14: 250 | BX14: 119.01 | BY14: 153.67 | BZ14: 272.68 | CA14: 0 | CB14: 0 | CC14: 0 | CD14: 0 | CE14: 0 | CF14: 0 | CG14: 0 | CH14: 0 | CK14: 9 | CL14: 0 | CN14: =IF(ISERROR(VLOOKUP(CK14,Rechenhilfe!$BQ$68:$BR$217,2,FALSE)),0,VLOOKUP(CK14,Rechenhilfe!$BQ$68:$BR$217,2,FALSE)) -> 0 | CO14: =IF(ISERROR(VLOOKUP(CK14,Rechenhilfe!$BZ$68:$CA$217,2,FALSE)),0,VLOOKUP(CK14,Rechenhilfe!$BZ$68:$CA$217,2,FALSE)) -> 0 | CQ14: 119.01 | CR14: 153.67 | CS14: 272.68 | CT14: 0 | CU14: 0 | CV14: 0 | CW14: 0 | CX14: 0 | CY14: 0 | DC14: =IF($DC$3<>"Ja",0,IF(AX14>0,IF(ISNUMBER('Wettkampf Einzel'!Q14 ),'Wettkampf Einzel'!Q14*$DC$2,0),0)) -> 0 | DD14: =IF($DC$3<>"Ja",0,IF(AY14>0,IF(ISNUMBER('Wettkampf Einzel'!S14 ),'Wettkampf Einzel'!S14*$DC$2,0),0)) -> 0 | DE14: =IF($DC$3<>"Ja",0,IF(AZ14>0,IF(ISNUMBER('Wettkampf Einzel'!U14 ),'Wettkampf Einzel'!U14*$DC$2,0),0)) -> 0 | DF14: =IF($DC$3<>"Ja",0,IF(BB14>0,IF(ISNUMBER('Wettkampf Einzel'!X14 ),'Wettkampf Einzel'!X14*$DC$2,0),0)) -> 0 | DG14: =IF($DC$3<>"Ja",0,IF(BC14>0,IF(ISNUMBER('Wettkampf Einzel'!Z14 ),'Wettkampf Einzel'!Z14*$DC$2,0),0)) -> 0 | DH14: =IF($DC$3<>"Ja",0,IF(BD14>0,IF(ISNUMBER('Wettkampf Einzel'!AB14 ),'Wettkampf Einzel'!AB14*$DC$2,0),0)) -> 0 | DI14: 112.0738 | DJ14: 119.0062 | DK14: 0 | DL14: 144.425 | DM14: 150.202 | DN14: 153.6682 | DO14: 119.01 | DP14: 153.67 | DQ14: 272.68 | DR14: 25 | DS14: 9 | DT14: 2527268009 | DU14: 9999999999 | DV14: 9999999999 | DW14: 9999999999 | DX14: 9999999999 | DY14: 9999999999 | DZ14: 1301 | EA14: 13 | EB14: 1
B15: =IF(Rechenhilfe!N78=99,"",IF(Rechenhilfe!O78=0,"",Rechenhilfe!N78-1)) ->  | C15: =IF(Rechenhilfe!N78=99,"",IF(Rechenhilfe!O78=0,$AI$2,VLOOKUP(Rechenhilfe!O78,Zeilen_Athleten,3))) ->  | D15: =IF(Rechenhilfe!N78=99,"",IF(Rechenhilfe!O78=0,"",Rechenhilfe!R78)) ->  | E15: =IF(Rechenhilfe!N78=99,"",IF(Rechenhilfe!O78=0,"",Rechenhilfe!S78)) ->  | G15: 3 | H15: =IF(Einstellung!B49<>"",Einstellung!B49,"") -> M-94 | I15: Lenardt Matthias | J15: =IF(Einstellung!$S$28="V",IF(Einstellung!K49<>"",Einstellung!K49,""),IF(Einstellung!$S$28="N",IF(Einstellung!AA49<>"",Einstellung!AA49,""),IF(Einstellung!C49<>"",Einstellung!C49,""))) -> 0 | K15: =IF(Einstellung!F49<>"",Einstellung!F49,"") -> 84.8 | L15: 1.1964 | M15: 202 | N15: 241.67 | P15: =IF($AI$3="E",IF('Wettkampf Einzel'!P15=0,0,'Wettkampf Einzel'!P15),IF('Wettkampf Mannschaft'!R15=0,0,'Wettkampf Mannschaft'!R15)) -> 80 | Q15: =IF($AI$3="E",IF('Wettkampf Einzel'!Q15=0,0, IF($AH$1="Ja",IF(ISNUMBER('Wettkampf Einzel'!Q15),"+",'Wettkampf Einzel'!Q15),'Wettkampf Einzel'!Q15)),IF(AH15=3,"-",IF('Wettkampf Mannschaft'!S15=0,0,'Wettkampf Mannschaft'!S15))) -> + | R15: =IF($AI$3="E",IF('Wettkampf Einzel'!R15=0,0,'Wettkampf Einzel'!R15),IF('Wettkampf Mannschaft'!T15=0,0,'Wettkampf Mannschaft'!T15)) -> 85 | S15: =IF($AI$3="E",IF('Wettkampf Einzel'!S15=0,0, IF($AH$1="Ja",IF(ISNUMBER('Wettkampf Einzel'!S15),"+",'Wettkampf Einzel'!S15),'Wettkampf Einzel'!S15)),IF(AH15=3,"-",IF('Wettkampf Mannschaft'!U15=0,0,'Wettkampf Mannschaft'!U15))) -> + | T15: =IF($AI$3="E",IF('Wettkampf Einzel'!T15=0,0,'Wettkampf Einzel'!T15),IF('Wettkampf Mannschaft'!V15=0,0,'Wettkampf Mannschaft'!V15)) -> 90 | U15: =IF($AI$3="E",IF('Wettkampf Einzel'!U15=0,0, IF($AH$1="Ja",IF(ISNUMBER('Wettkampf Einzel'!U15),"+",'Wettkampf Einzel'!U15),'Wettkampf Einzel'!U15)),IF(AH15=3,"-",IF('Wettkampf Mannschaft'!W15=0,0,'Wettkampf Mannschaft'!W15))) -> + | W15: =IF($AI$3="E",IF('Wettkampf Einzel'!W15=0,0,'Wettkampf Einzel'!W15),IF('Wettkampf Mannschaft'!Y15=0,0,'Wettkampf Mannschaft'!Y15)) -> 105 | X15: =IF($AI$3="E",IF('Wettkampf Einzel'!X15=0,0, IF($AH$1="Ja",IF(ISNUMBER('Wettkampf Einzel'!X15),"+",'Wettkampf Einzel'!X15),'Wettkampf Einzel'!X15)),IF(AH15=2,"-",IF('Wettkampf Mannschaft'!Z15=0,0,'Wettkampf Mannschaft'!Z15))) -> + | Y15: =IF($AI$3="E",IF('Wettkampf Einzel'!Y15=0,0,'Wettkampf Einzel'!Y15),IF('Wettkampf Mannschaft'!AA15=0,0,'Wettkampf Mannschaft'!AA15)) -> 112 | Z15: =IF($AI$3="E",IF('Wettkampf Einzel'!Z15=0,0, IF($AH$1="Ja",IF(ISNUMBER('Wettkampf Einzel'!Z15),"+",'Wettkampf Einzel'!Z15),'Wettkampf Einzel'!Z15)),IF(AH15=2,"-",IF('Wettkampf Mannschaft'!AB15=0,0,'Wettkampf Mannschaft'!AB15))) -> + | AA15: =IF($AI$3="E",IF('Wettkampf Einzel'!AA15=0,0,'Wettkampf Einzel'!AA15),IF('Wettkampf Mannschaft'!AC15=0,0,'Wettkampf Mannschaft'!AC15)) -> 115 | AB15: =IF($AI$3="E",IF('Wettkampf Einzel'!AB15=0,0, IF($AH$1="Ja",IF(ISNUMBER('Wettkampf Einzel'!AB15),"+",'Wettkampf Einzel'!AB15),'Wettkampf Einzel'!AB15)),IF(AH15=2,"-",IF('Wettkampf Mannschaft'!AD15=0,0,'Wettkampf Mannschaft'!AD15))) -> - | AH15: =IF(Einstellung!L49="J",1,IF(Einstellung!M49="J",2,IF(Einstellung!N49="J",3,""))) ->  | AI15: =IF(Einstellung!C49<>"",Einstellung!C49,"") -> 4666 | AJ15: =IF(Rechenhilfe!$O$68=AK15,1,0) -> 0 | AK15: 10 | AL15: =Rechenhilfe!F14 -> 25 | AM15: Lenardt Matthias | AN15: M-94 | AO15: 2 | AP15: 2 | AQ15: 2 | AR15: 2 | AS15: 2 | AT15: 3 | AX15: 80 | AY15: 85 | AZ15: 90 | BA15: 90 | BB15: 105 | BC15: 112 | BD15: 0 | BE15: 112 | BF15: 202 | BJ15: 4666 | BK15: 631 | BL15: M | BM15: =IF(Wiegeliste!$D$4<>0,IF($BL15="M",VLOOKUP(Wiegeliste!$D$4,SFGUELTIGAB,6),IF($BR$3="E",VLOOKUP(Wiegeliste!$D$4,SFGUELTIGAB,10), VLOOKUP(Wiegeliste!$D$4,SFGUELTIGAB,6))),"") -> 7 | BN15: =IF(Wettkampf!BK15<>"",VLOOKUP(Wettkampf!BK15, Athl01,4),"") -> 1990-06-09 | BO15: =IF(Wettkampf!BK15<>"",YEAR(VLOOKUP(Wettkampf!BK15, Athl01,4)),"") -> 1990 | BP15: =IF(K15<>"",YEAR(Wiegeliste!$D$4) - BO15,0) -> 25 | BQ15: 0 | BR15: 1.1964 | BS15: 1.1964 | BT15: =IF(Einstellung!$S$26="M",BS15,BR15) -> 1.1964 | BV15: 250 | BX15: 107.68 | BY15: 134 | BZ15: 241.68 | CA15: 0 | CB15: 0 | CC15: 0 | CD15: 0 | CE15: 0 | CF15: 0 | CG15: 0 | CH15: 0 | CK15: 10 | CL15: 0 | CN15: =IF(ISERROR(VLOOKUP(CK15,Rechenhilfe!$BQ$68:$BR$217,2,FALSE)),0,VLOOKUP(CK15,Rechenhilfe!$BQ$68:$BR$217,2,FALSE)) -> 0 | CO15: =IF(ISERROR(VLOOKUP(CK15,Rechenhilfe!$BZ$68:$CA$217,2,FALSE)),0,VLOOKUP(CK15,Rechenhilfe!$BZ$68:$CA$217,2,FALSE)) -> 0 | CQ15: 107.68 | CR15: 134 | CS15: 241.68 | CT15: 0 | CU15: 0 | CV15: 0 | CW15: 0 | CX15: 0 | CY15: 0 | DC15: =IF($DC$3<>"Ja",0,IF(AX15>0,IF(ISNUMBER('Wettkampf Einzel'!Q15 ),'Wettkampf Einzel'!Q15*$DC$2,0),0)) -> 0 | DD15: =IF($DC$3<>"Ja",0,IF(AY15>0,IF(ISNUMBER('Wettkampf Einzel'!S15 ),'Wettkampf Einzel'!S15*$DC$2,0),0)) -> 0 | DE15: =IF($DC$3<>"Ja",0,IF(AZ15>0,IF(ISNUMBER('Wettkampf Einzel'!U15 ),'Wettkampf Einzel'!U15*$DC$2,0),0)) -> 0 | DF15: =IF($DC$3<>"Ja",0,IF(BB15>0,IF(ISNUMBER('Wettkampf Einzel'!X15 ),'Wettkampf Einzel'!X15*$DC$2,0),0)) -> 0 | DG15: =IF($DC$3<>"Ja",0,IF(BC15>0,IF(ISNUMBER('Wettkampf Einzel'!Z15 ),'Wettkampf Einzel'!Z15*$DC$2,0),0)) -> 0 | DH15: =IF($DC$3<>"Ja",0,IF(BD15>0,IF(ISNUMBER('Wettkampf Einzel'!AB15 ),'Wettkampf Einzel'!AB15*$DC$2,0),0)) -> 0 | DI15: 95.712 | DJ15: 101.694 | DK15: 107.676 | DL15: 125.622 | DM15: 133.9968 | DN15: 0 | DO15: 107.68 | DP15: 134 | DQ15: 241.68 | DR15: 25 | DS15: 10 | DT15: 2524168010 | DU15: 9999999999 | DV15: 9999999999 | DW15: 9999999999 | DX15: 9999999999 | DY15: 9999999999 | DZ15: 1501 | EA15: 15 | EB15: 1
B16: =IF(Rechenhilfe!N79=99,"",IF(Rechenhilfe!O79=0,"",Rechenhilfe!N79-1)) ->  | C16: =IF(Rechenhilfe!N79=99,"",IF(Rechenhilfe!O79=0,$AI$2,VLOOKUP(Rechenhilfe!O79,Zeilen_Athleten,3))) ->  | D16: =IF(Rechenhilfe!N79=99,"",IF(Rechenhilfe!O79=0,"",Rechenhilfe!R79)) ->  | E16: =IF(Rechenhilfe!N79=99,"",IF(Rechenhilfe!O79=0,"",Rechenhilfe!S79)) ->  | G16: 4 | H16: =IF(Einstellung!B50<>"",Einstellung!B50,"") -> M-94 | I16: Kanyka Michael | J16: =IF(Einstellung!$S$28="V",IF(Einstellung!K50<>"",Einstellung!K50,""),IF(Einstellung!$S$28="N",IF(Einstellung!AA50<>"",Einstellung!AA50,""),IF(Einstellung!C50<>"",Einstellung!C50,""))) -> 0 | K16: =IF(Einstellung!F50<>"",Einstellung!F50,"") -> 90.6 | L16: 1.1594 | M16: 195 | N16: 226.08 | P16: =IF($AI$3="E",IF('Wettkampf Einzel'!P16=0,0,'Wettkampf Einzel'!P16),IF('Wettkampf Mannschaft'!R16=0,0,'Wettkampf Mannschaft'!R16)) -> 83 | Q16: =IF($AI$3="E",IF('Wettkampf Einzel'!Q16=0,0, IF($AH$1="Ja",IF(ISNUMBER('Wettkampf Einzel'!Q16),"+",'Wettkampf Einzel'!Q16),'Wettkampf Einzel'!Q16)),IF(AH16=3,"-",IF('Wettkampf Mannschaft'!S16=0,0,'Wettkampf Mannschaft'!S16))) -> + | R16: =IF($AI$3="E",IF('Wettkampf Einzel'!R16=0,0,'Wettkampf Einzel'!R16),IF('Wettkampf Mannschaft'!T16=0,0,'Wettkampf Mannschaft'!T16)) -> 90 | S16: =IF($AI$3="E",IF('Wettkampf Einzel'!S16=0,0, IF($AH$1="Ja",IF(ISNUMBER('Wettkampf Einzel'!S16),"+",'Wettkampf Einzel'!S16),'Wettkampf Einzel'!S16)),IF(AH16=3,"-",IF('Wettkampf Mannschaft'!U16=0,0,'Wettkampf Mannschaft'!U16))) -> - | T16: =IF($AI$3="E",IF('Wettkampf Einzel'!T16=0,0,'Wettkampf Einzel'!T16),IF('Wettkampf Mannschaft'!V16=0,0,'Wettkampf Mannschaft'!V16)) -> 93 | U16: =IF($AI$3="E",IF('Wettkampf Einzel'!U16=0,0, IF($AH$1="Ja",IF(ISNUMBER('Wettkampf Einzel'!U16),"+",'Wettkampf Einzel'!U16),'Wettkampf Einzel'!U16)),IF(AH16=3,"-",IF('Wettkampf Mannschaft'!W16=0,0,'Wettkampf Mannschaft'!W16))) -> - | W16: =IF($AI$3="E",IF('Wettkampf Einzel'!W16=0,0,'Wettkampf Einzel'!W16),IF('Wettkampf Mannschaft'!Y16=0,0,'Wettkampf Mannschaft'!Y16)) -> 103 | X16: =IF($AI$3="E",IF('Wettkampf Einzel'!X16=0,0, IF($AH$1="Ja",IF(ISNUMBER('Wettkampf Einzel'!X16),"+",'Wettkampf Einzel'!X16),'Wettkampf Einzel'!X16)),IF(AH16=2,"-",IF('Wettkampf Mannschaft'!Z16=0,0,'Wettkampf Mannschaft'!Z16))) -> + | Y16: =IF($AI$3="E",IF('Wettkampf Einzel'!Y16=0,0,'Wettkampf Einzel'!Y16),IF('Wettkampf Mannschaft'!AA16=0,0,'Wettkampf Mannschaft'!AA16)) -> 110 | Z16: =IF($AI$3="E",IF('Wettkampf Einzel'!Z16=0,0, IF($AH$1="Ja",IF(ISNUMBER('Wettkampf Einzel'!Z16),"+",'Wettkampf Einzel'!Z16),'Wettkampf Einzel'!Z16)),IF(AH16=2,"-",IF('Wettkampf Mannschaft'!AB16=0,0,'Wettkampf Mannschaft'!AB16))) -> + | AA16: =IF($AI$3="E",IF('Wettkampf Einzel'!AA16=0,0,'Wettkampf Einzel'!AA16),IF('Wettkampf Mannschaft'!AC16=0,0,'Wettkampf Mannschaft'!AC16)) -> 112 | AB16: =IF($AI$3="E",IF('Wettkampf Einzel'!AB16=0,0, IF($AH$1="Ja",IF(ISNUMBER('Wettkampf Einzel'!AB16),"+",'Wettkampf Einzel'!AB16),'Wettkampf Einzel'!AB16)),IF(AH16=2,"-",IF('Wettkampf Mannschaft'!AD16=0,0,'Wettkampf Mannschaft'!AD16))) -> + | AH16: =IF(Einstellung!L50="J",1,IF(Einstellung!M50="J",2,IF(Einstellung!N50="J",3,""))) ->  | AI16: =IF(Einstellung!C50<>"",Einstellung!C50,"") -> 2404 | AJ16: =IF(Rechenhilfe!$O$68=AK16,1,0) -> 0 | AK16: 11 | AL16: =Rechenhilfe!F15 -> 25 | AM16: Kanyka Michael | AN16: M-94 | AO16: 2 | AP16: 3 | AQ16: 3 | AR16: 2 | AS16: 2 | AT16: 2 | AX16: 83 | AY16: 0 | AZ16: 0 | BA16: 83 | BB16: 103 | BC16: 110 | BD16: 112 | BE16: 112 | BF16: 195 | BJ16: 2404 | BK16: 929 | BL16: M | BM16: =IF(Wiegeliste!$D$4<>0,IF($BL16="M",VLOOKUP(Wiegeliste!$D$4,SFGUELTIGAB,6),IF($BR$3="E",VLOOKUP(Wiegeliste!$D$4,SFGUELTIGAB,10), VLOOKUP(Wiegeliste!$D$4,SFGUELTIGAB,6))),"") -> 7 | BN16: =IF(Wettkampf!BK16<>"",VLOOKUP(Wettkampf!BK16, Athl01,4),"") -> 1965-12-15 | BO16: =IF(Wettkampf!BK16<>"",YEAR(VLOOKUP(Wettkampf!BK16, Athl01,4)),"") -> 1965 | BP16: =IF(K16<>"",YEAR(Wiegeliste!$D$4) - BO16,0) -> 50 | BQ16: 1.243 | BR16: 1.1594 | BS16: 1.4411 | BT16: =IF(Einstellung!$S$26="M",BS16,BR16) -> 1.1594 | BV16: 250 | BX16: 96.23 | BY16: 129.85 | BZ16: 226.08 | CA16: 0 | CB16: 0 | CC16: 0 | CD16: 0 | CE16: 0 | CF16: 0 | CG16: 0 | CH16: 0 | CK16: 11 | CL16: 0 | CN16: =IF(ISERROR(VLOOKUP(CK16,Rechenhilfe!$BQ$68:$BR$217,2,FALSE)),0,VLOOKUP(CK16,Rechenhilfe!$BQ$68:$BR$217,2,FALSE)) -> 0 | CO16: =IF(ISERROR(VLOOKUP(CK16,Rechenhilfe!$BZ$68:$CA$217,2,FALSE)),0,VLOOKUP(CK16,Rechenhilfe!$BZ$68:$CA$217,2,FALSE)) -> 0 | CQ16: 96.23 | CR16: 129.85 | CS16: 226.08 | CT16: 0 | CU16: 0 | CV16: 0 | CW16: 0 | CX16: 0 | CY16: 0 | DC16: =IF($DC$3<>"Ja",0,IF(AX16>0,IF(ISNUMBER('Wettkampf Einzel'!Q16 ),'Wettkampf Einzel'!Q16*$DC$2,0),0)) -> 0 | DD16: =IF($DC$3<>"Ja",0,IF(AY16>0,IF(ISNUMBER('Wettkampf Einzel'!S16 ),'Wettkampf Einzel'!S16*$DC$2,0),0)) -> 0 | DE16: =IF($DC$3<>"Ja",0,IF(AZ16>0,IF(ISNUMBER('Wettkampf Einzel'!U16 ),'Wettkampf Einzel'!U16*$DC$2,0),0)) -> 0 | DF16: =IF($DC$3<>"Ja",0,IF(BB16>0,IF(ISNUMBER('Wettkampf Einzel'!X16 ),'Wettkampf Einzel'!X16*$DC$2,0),0)) -> 0 | DG16: =IF($DC$3<>"Ja",0,IF(BC16>0,IF(ISNUMBER('Wettkampf Einzel'!Z16 ),'Wettkampf Einzel'!Z16*$DC$2,0),0)) -> 0 | DH16: =IF($DC$3<>"Ja",0,IF(BD16>0,IF(ISNUMBER('Wettkampf Einzel'!AB16 ),'Wettkampf Einzel'!AB16*$DC$2,0),0)) -> 0 | DI16: 96.2302 | DJ16: 0 | DK16: 0 | DL16: 119.4182 | DM16: 127.534 | DN16: 129.8528 | DO16: 96.23 | DP16: 129.85 | DQ16: 226.08 | DR16: 25 | DS16: 11 | DT16: 2522608011 | DU16: 9999999999 | DV16: 9999999999 | DW16: 9999999999 | DX16: 9999999999 | DY16: 9999999999 | DZ16: 9999999999 | EA16: 99999999 | EB16: 99
B17: =IF(Rechenhilfe!N80=99,"",IF(Rechenhilfe!O80=0,"",Rechenhilfe!N80-1)) ->  | C17: =IF(Rechenhilfe!N80=99,"",IF(Rechenhilfe!O80=0,$AI$2,VLOOKUP(Rechenhilfe!O80,Zeilen_Athleten,3))) ->  | D17: =IF(Rechenhilfe!N80=99,"",IF(Rechenhilfe!O80=0,"",Rechenhilfe!R80)) ->  | E17: =IF(Rechenhilfe!N80=99,"",IF(Rechenhilfe!O80=0,"",Rechenhilfe!S80)) ->  | H17: =IF(Einstellung!B51<>"",Einstellung!B51,"") ->  | J17: =IF(Einstellung!$S$28="V",IF(Einstellung!K51<>"",Einstellung!K51,""),IF(Einstellung!$S$28="N",IF(Einstellung!AA51<>"",Einstellung!AA51,""),IF(Einstellung!C51<>"",Einstellung!C51,""))) ->  | K17: =IF(Einstellung!F51<>"",Einstellung!F51,"") ->  | M17: 0 | P17: =IF($AI$3="E",IF('Wettkampf Einzel'!P17=0,0,'Wettkampf Einzel'!P17),IF('Wettkampf Mannschaft'!R17=0,0,'Wettkampf Mannschaft'!R17)) -> 0 | Q17: =IF($AI$3="E",IF('Wettkampf Einzel'!Q17=0,0, IF($AH$1="Ja",IF(ISNUMBER('Wettkampf Einzel'!Q17),"+",'Wettkampf Einzel'!Q17),'Wettkampf Einzel'!Q17)),IF(AH17=3,"-",IF('Wettkampf Mannschaft'!S17=0,0,'Wettkampf Mannschaft'!S17))) -> 0 | R17: =IF($AI$3="E",IF('Wettkampf Einzel'!R17=0,0,'Wettkampf Einzel'!R17),IF('Wettkampf Mannschaft'!T17=0,0,'Wettkampf Mannschaft'!T17)) -> 0 | S17: =IF($AI$3="E",IF('Wettkampf Einzel'!S17=0,0, IF($AH$1="Ja",IF(ISNUMBER('Wettkampf Einzel'!S17),"+",'Wettkampf Einzel'!S17),'Wettkampf Einzel'!S17)),IF(AH17=3,"-",IF('Wettkampf Mannschaft'!U17=0,0,'Wettkampf Mannschaft'!U17))) -> 0 | T17: =IF($AI$3="E",IF('Wettkampf Einzel'!T17=0,0,'Wettkampf Einzel'!T17),IF('Wettkampf Mannschaft'!V17=0,0,'Wettkampf Mannschaft'!V17)) -> 0 | U17: =IF($AI$3="E",IF('Wettkampf Einzel'!U17=0,0, IF($AH$1="Ja",IF(ISNUMBER('Wettkampf Einzel'!U17),"+",'Wettkampf Einzel'!U17),'Wettkampf Einzel'!U17)),IF(AH17=3,"-",IF('Wettkampf Mannschaft'!W17=0,0,'Wettkampf Mannschaft'!W17))) -> 0 | W17: =IF($AI$3="E",IF('Wettkampf Einzel'!W17=0,0,'Wettkampf Einzel'!W17),IF('Wettkampf Mannschaft'!Y17=0,0,'Wettkampf Mannschaft'!Y17)) -> 0 | X17: =IF($AI$3="E",IF('Wettkampf Einzel'!X17=0,0, IF($AH$1="Ja",IF(ISNUMBER('Wettkampf Einzel'!X17),"+",'Wettkampf Einzel'!X17),'Wettkampf Einzel'!X17)),IF(AH17=2,"-",IF('Wettkampf Mannschaft'!Z17=0,0,'Wettkampf Mannschaft'!Z17))) -> 0 | Y17: =IF($AI$3="E",IF('Wettkampf Einzel'!Y17=0,0,'Wettkampf Einzel'!Y17),IF('Wettkampf Mannschaft'!AA17=0,0,'Wettkampf Mannschaft'!AA17)) -> 0 | Z17: =IF($AI$3="E",IF('Wettkampf Einzel'!Z17=0,0, IF($AH$1="Ja",IF(ISNUMBER('Wettkampf Einzel'!Z17),"+",'Wettkampf Einzel'!Z17),'Wettkampf Einzel'!Z17)),IF(AH17=2,"-",IF('Wettkampf Mannschaft'!AB17=0,0,'Wettkampf Mannschaft'!AB17))) -> 0 | AA17: =IF($AI$3="E",IF('Wettkampf Einzel'!AA17=0,0,'Wettkampf Einzel'!AA17),IF('Wettkampf Mannschaft'!AC17=0,0,'Wettkampf Mannschaft'!AC17)) -> 0 | AB17: =IF($AI$3="E",IF('Wettkampf Einzel'!AB17=0,0, IF($AH$1="Ja",IF(ISNUMBER('Wettkampf Einzel'!AB17),"+",'Wettkampf Einzel'!AB17),'Wettkampf Einzel'!AB17)),IF(AH17=2,"-",IF('Wettkampf Mannschaft'!AD17=0,0,'Wettkampf Mannschaft'!AD17))) -> 0 | AH17: =IF(Einstellung!L51="J",1,IF(Einstellung!M51="J",2,IF(Einstellung!N51="J",3,""))) ->  | AI17: =IF(Einstellung!C51<>"",Einstellung!C51,"") ->  | AJ17: =IF(Rechenhilfe!$O$68=AK17,1,0) -> 0 | AK17: 12 | AL17: =Rechenhilfe!F16 ->  | AO17: 1 | AP17: 1 | AQ17: 1 | AR17: 1 | AS17: 1 | AT17: 1 | AX17: 0 | AY17: 0 | AZ17: 0 | BA17: 0 | BB17: 0 | BC17: 0 | BD17: 0 | BE17: 0 | BF17: 0 | BM17: =IF(Wiegeliste!$D$4<>0,IF($BL17="M",VLOOKUP(Wiegeliste!$D$4,SFGUELTIGAB,6),IF($BR$3="E",VLOOKUP(Wiegeliste!$D$4,SFGUELTIGAB,10), VLOOKUP(Wiegeliste!$D$4,SFGUELTIGAB,6))),"") -> 14 | BN17: =IF(Wettkampf!BK17<>"",VLOOKUP(Wettkampf!BK17, Athl01,4),"") ->  | BO17: =IF(Wettkampf!BK17<>"",YEAR(VLOOKUP(Wettkampf!BK17, Athl01,4)),"") ->  | BP17: =IF(K17<>"",YEAR(Wiegeliste!$D$4) - BO17,0) -> 0 | BQ17: 0 | BT17: =IF(Einstellung!$S$26="M",BS17,BR17) ->  | BV17: 0 | BX17: 0 | BY17: 0 | BZ17: 0 | CA17: 0 | CB17: 0 | CC17: 0 | CD17: 0 | CE17: 0 | CF17: 0 | CG17: 0 | CH17: 0 | CK17: 12 | CL17: =J17 ->  | CN17: =IF(ISERROR(VLOOKUP(CK17,Rechenhilfe!$BQ$68:$BR$217,2,FALSE)),0,VLOOKUP(CK17,Rechenhilfe!$BQ$68:$BR$217,2,FALSE)) -> 0 | CO17: =IF(ISERROR(VLOOKUP(CK17,Rechenhilfe!$BZ$68:$CA$217,2,FALSE)),0,VLOOKUP(CK17,Rechenhilfe!$BZ$68:$CA$217,2,FALSE)) -> 0 | CQ17: 0 | CR17: 0 | CS17: 0 | CT17: 0 | CU17: 0 | CV17: 0 | CW17: 0 | CX17: 0 | CY17: 0 | DC17: =IF($DC$3<>"Ja",0,IF(AX17>0,IF(ISNUMBER('Wettkampf Einzel'!Q17 ),'Wettkampf Einzel'!Q17*$DC$2,0),0)) -> 0 | DD17: =IF($DC$3<>"Ja",0,IF(AY17>0,IF(ISNUMBER('Wettkampf Einzel'!S17 ),'Wettkampf Einzel'!S17*$DC$2,0),0)) -> 0 | DE17: =IF($DC$3<>"Ja",0,IF(AZ17>0,IF(ISNUMBER('Wettkampf Einzel'!U17 ),'Wettkampf Einzel'!U17*$DC$2,0),0)) -> 0 | DF17: =IF($DC$3<>"Ja",0,IF(BB17>0,IF(ISNUMBER('Wettkampf Einzel'!X17 ),'Wettkampf Einzel'!X17*$DC$2,0),0)) -> 0 | DG17: =IF($DC$3<>"Ja",0,IF(BC17>0,IF(ISNUMBER('Wettkampf Einzel'!Z17 ),'Wettkampf Einzel'!Z17*$DC$2,0),0)) -> 0 | DH17: =IF($DC$3<>"Ja",0,IF(BD17>0,IF(ISNUMBER('Wettkampf Einzel'!AB17 ),'Wettkampf Einzel'!AB17*$DC$2,0),0)) -> 0 | DI17: 0 | DJ17: 0 | DK17: 0 | DL17: 0 | DM17: 0 | DN17: 0 | DO17: 0 | DP17: 0 | DQ17: 0 | DS17: 12 | DT17: 9999999999 | DU17: 9999999999 | DV17: 9999999999 | DW17: 9999999999 | DX17: 9999999999 | DY17: 9999999999 | DZ17: 9999999999 | EA17: 99999999 | EB17: 99
B18: =IF(Rechenhilfe!N81=99,"",IF(Rechenhilfe!O81=0,"",Rechenhilfe!N81-1)) ->  | C18: =IF(Rechenhilfe!N81=99,"",IF(Rechenhilfe!O81=0,$AI$2,VLOOKUP(Rechenhilfe!O81,Zeilen_Athleten,3))) ->  | D18: =IF(Rechenhilfe!N81=99,"",IF(Rechenhilfe!O81=0,"",Rechenhilfe!R81)) ->  | E18: =IF(Rechenhilfe!N81=99,"",IF(Rechenhilfe!O81=0,"",Rechenhilfe!S81)) ->  | G18: 1 | H18: =IF(Einstellung!B52<>"",Einstellung!B52,"") -> M+105 | I18: Abraham Martin | J18: =IF(Einstellung!$S$28="V",IF(Einstellung!K52<>"",Einstellung!K52,""),IF(Einstellung!$S$28="N",IF(Einstellung!AA52<>"",Einstellung!AA52,""),IF(Einstellung!C52<>"",Einstellung!C52,""))) -> 0 | K18: =IF(Einstellung!F52<>"",Einstellung!F52,"") -> 106.8 | L18: 1.0865 | M18: 220 | N18: 239.03 | P18: =IF($AI$3="E",IF('Wettkampf Einzel'!P18=0,0,'Wettkampf Einzel'!P18),IF('Wettkampf Mannschaft'!R18=0,0,'Wettkampf Mannschaft'!R18)) -> 90 | Q18: =IF($AI$3="E",IF('Wettkampf Einzel'!Q18=0,0, IF($AH$1="Ja",IF(ISNUMBER('Wettkampf Einzel'!Q18),"+",'Wettkampf Einzel'!Q18),'Wettkampf Einzel'!Q18)),IF(AH18=3,"-",IF('Wettkampf Mannschaft'!S18=0,0,'Wettkampf Mannschaft'!S18))) -> + | R18: =IF($AI$3="E",IF('Wettkampf Einzel'!R18=0,0,'Wettkampf Einzel'!R18),IF('Wettkampf Mannschaft'!T18=0,0,'Wettkampf Mannschaft'!T18)) -> 100 | S18: =IF($AI$3="E",IF('Wettkampf Einzel'!S18=0,0, IF($AH$1="Ja",IF(ISNUMBER('Wettkampf Einzel'!S18),"+",'Wettkampf Einzel'!S18),'Wettkampf Einzel'!S18)),IF(AH18=3,"-",IF('Wettkampf Mannschaft'!U18=0,0,'Wettkampf Mannschaft'!U18))) -> + | T18: =IF($AI$3="E",IF('Wettkampf Einzel'!T18=0,0,'Wettkampf Einzel'!T18),IF('Wettkampf Mannschaft'!V18=0,0,'Wettkampf Mannschaft'!V18)) -> 0 | U18: =IF($AI$3="E",IF('Wettkampf Einzel'!U18=0,0, IF($AH$1="Ja",IF(ISNUMBER('Wettkampf Einzel'!U18),"+",'Wettkampf Einzel'!U18),'Wettkampf Einzel'!U18)),IF(AH18=3,"-",IF('Wettkampf Mannschaft'!W18=0,0,'Wettkampf Mannschaft'!W18))) -> - | W18: =IF($AI$3="E",IF('Wettkampf Einzel'!W18=0,0,'Wettkampf Einzel'!W18),IF('Wettkampf Mannschaft'!Y18=0,0,'Wettkampf Mannschaft'!Y18)) -> 110 | X18: =IF($AI$3="E",IF('Wettkampf Einzel'!X18=0,0, IF($AH$1="Ja",IF(ISNUMBER('Wettkampf Einzel'!X18),"+",'Wettkampf Einzel'!X18),'Wettkampf Einzel'!X18)),IF(AH18=2,"-",IF('Wettkampf Mannschaft'!Z18=0,0,'Wettkampf Mannschaft'!Z18))) -> + | Y18: =IF($AI$3="E",IF('Wettkampf Einzel'!Y18=0,0,'Wettkampf Einzel'!Y18),IF('Wettkampf Mannschaft'!AA18=0,0,'Wettkampf Mannschaft'!AA18)) -> 120 | Z18: =IF($AI$3="E",IF('Wettkampf Einzel'!Z18=0,0, IF($AH$1="Ja",IF(ISNUMBER('Wettkampf Einzel'!Z18),"+",'Wettkampf Einzel'!Z18),'Wettkampf Einzel'!Z18)),IF(AH18=2,"-",IF('Wettkampf Mannschaft'!AB18=0,0,'Wettkampf Mannschaft'!AB18))) -> + | AA18: =IF($AI$3="E",IF('Wettkampf Einzel'!AA18=0,0,'Wettkampf Einzel'!AA18),IF('Wettkampf Mannschaft'!AC18=0,0,'Wettkampf Mannschaft'!AC18)) -> 0 | AB18: =IF($AI$3="E",IF('Wettkampf Einzel'!AB18=0,0, IF($AH$1="Ja",IF(ISNUMBER('Wettkampf Einzel'!AB18),"+",'Wettkampf Einzel'!AB18),'Wettkampf Einzel'!AB18)),IF(AH18=2,"-",IF('Wettkampf Mannschaft'!AD18=0,0,'Wettkampf Mannschaft'!AD18))) -> - | AH18: =IF(Einstellung!L52="J",1,IF(Einstellung!M52="J",2,IF(Einstellung!N52="J",3,""))) ->  | AI18: =IF(Einstellung!C52<>"",Einstellung!C52,"") -> 4027 | AJ18: =IF(Rechenhilfe!$O$68=AK18,1,0) -> 0 | AK18: 13 | AL18: =Rechenhilfe!F17 -> 27 | AM18: Abraham Martin | AN18: M+105 | AO18: 2 | AP18: 2 | AQ18: 3 | AR18: 2 | AS18: 2 | AT18: 3 | AX18: 90 | AY18: 100 | AZ18: 0 | BA18: 100 | BB18: 110 | BC18: 120 | BD18: 0 | BE18: 120 | BF18: 220 | BJ18: 4027 | BK18: 103 | BL18: M | BM18: =IF(Wiegeliste!$D$4<>0,IF($BL18="M",VLOOKUP(Wiegeliste!$D$4,SFGUELTIGAB,6),IF($BR$3="E",VLOOKUP(Wiegeliste!$D$4,SFGUELTIGAB,10), VLOOKUP(Wiegeliste!$D$4,SFGUELTIGAB,6))),"") -> 7 | BN18: =IF(Wettkampf!BK18<>"",VLOOKUP(Wettkampf!BK18, Athl01,4),"") -> 1983-07-16 | BO18: =IF(Wettkampf!BK18<>"",YEAR(VLOOKUP(Wettkampf!BK18, Athl01,4)),"") -> 1983 | BP18: =IF(K18<>"",YEAR(Wiegeliste!$D$4) - BO18,0) -> 32 | BQ18: 0 | BR18: 1.0865 | BS18: 1.0865 | BT18: =IF(Einstellung!$S$26="M",BS18,BR18) -> 1.0865 | BV18: 250 | BX18: 108.65 | BY18: 130.38 | BZ18: 239.03 | CA18: 1 | CB18: 0 | CC18: 108.65 | CD18: 0 | CE18: 130.38 | CF18: 0 | CG18: 239.03 | CH18: 0 | CK18: 13 | CL18: 0 | CN18: =IF(ISERROR(VLOOKUP(CK18,Rechenhilfe!$BQ$68:$BR$217,2,FALSE)),0,VLOOKUP(CK18,Rechenhilfe!$BQ$68:$BR$217,2,FALSE)) -> 0 | CO18: =IF(ISERROR(VLOOKUP(CK18,Rechenhilfe!$BZ$68:$CA$217,2,FALSE)),0,VLOOKUP(CK18,Rechenhilfe!$BZ$68:$CA$217,2,FALSE)) -> 0 | CQ18: 108.65 | CR18: 130.38 | CS18: 239.03 | CT18: 108.65 | CU18: 0 | CV18: 130.38 | CW18: 0 | CX18: 239.03 | CY18: 0 | DC18: =IF($DC$3<>"Ja",0,IF(AX18>0,IF(ISNUMBER('Wettkampf Einzel'!Q18 ),'Wettkampf Einzel'!Q18*$DC$2,0),0)) -> 0 | DD18: =IF($DC$3<>"Ja",0,IF(AY18>0,IF(ISNUMBER('Wettkampf Einzel'!S18 ),'Wettkampf Einzel'!S18*$DC$2,0),0)) -> 0 | DE18: =IF($DC$3<>"Ja",0,IF(AZ18>0,IF(ISNUMBER('Wettkampf Einzel'!U18 ),'Wettkampf Einzel'!U18*$DC$2,0),0)) -> 0 | DF18: =IF($DC$3<>"Ja",0,IF(BB18>0,IF(ISNUMBER('Wettkampf Einzel'!X18 ),'Wettkampf Einzel'!X18*$DC$2,0),0)) -> 0 | DG18: =IF($DC$3<>"Ja",0,IF(BC18>0,IF(ISNUMBER('Wettkampf Einzel'!Z18 ),'Wettkampf Einzel'!Z18*$DC$2,0),0)) -> 0 | DH18: =IF($DC$3<>"Ja",0,IF(BD18>0,IF(ISNUMBER('Wettkampf Einzel'!AB18 ),'Wettkampf Einzel'!AB18*$DC$2,0),0)) -> 0 | DI18: 97.785 | DJ18: 108.65 | DK18: 0 | DL18: 119.515 | DM18: 130.38 | DN18: 0 | DO18: 108.65 | DP18: 130.38 | DQ18: 239.03 | DR18: 27 | DS18: 13 | DT18: 2723903013 | DU18: 9999999999 | DV18: 9999999999 | DW18: 9999999999 | DX18: 9999999999 | DY18: 9999999999 | DZ18: 9999999999 | EA18: 99999999 | EB18: 99
B19: =IF(Rechenhilfe!N82=99,"",IF(Rechenhilfe!O82=0,"",Rechenhilfe!N82-1)) ->  | C19: =IF(Rechenhilfe!N82=99,"",IF(Rechenhilfe!O82=0,$AI$2,VLOOKUP(Rechenhilfe!O82,Zeilen_Athleten,3))) ->  | D19: =IF(Rechenhilfe!N82=99,"",IF(Rechenhilfe!O82=0,"",Rechenhilfe!R82)) ->  | E19: =IF(Rechenhilfe!N82=99,"",IF(Rechenhilfe!O82=0,"",Rechenhilfe!S82)) ->  | H19: =IF(Einstellung!B53<>"",Einstellung!B53,"") ->  | J19: =IF(Einstellung!$S$28="V",IF(Einstellung!K53<>"",Einstellung!K53,""),IF(Einstellung!$S$28="N",IF(Einstellung!AA53<>"",Einstellung!AA53,""),IF(Einstellung!C53<>"",Einstellung!C53,""))) ->  | K19: =IF(Einstellung!F53<>"",Einstellung!F53,"") ->  | M19: 0 | P19: =IF($AI$3="E",IF('Wettkampf Einzel'!P19=0,0,'Wettkampf Einzel'!P19),0) -> 0 | Q19: =IF($AI$3="E",IF('Wettkampf Einzel'!Q19=0,0, IF($AH$1="Ja",IF(ISNUMBER('Wettkampf Einzel'!Q19),"+",'Wettkampf Einzel'!Q19),'Wettkampf Einzel'!Q19)),IF(AH19=3,"-",IF('Wettkampf Mannschaft'!S19=0,0,'Wettkampf Mannschaft'!S19))) -> 0 | R19: =IF($AI$3="E",IF('Wettkampf Einzel'!R19=0,0,'Wettkampf Einzel'!R19),0) -> 0 | S19: =IF($AI$3="E",IF('Wettkampf Einzel'!S19=0,0, IF($AH$1="Ja",IF(ISNUMBER('Wettkampf Einzel'!S19),"+",'Wettkampf Einzel'!S19),'Wettkampf Einzel'!S19)),IF(AH19=3,"-",IF('Wettkampf Mannschaft'!U19=0,0,'Wettkampf Mannschaft'!U19))) -> 0 | T19: =IF($AI$3="E",IF('Wettkampf Einzel'!T19=0,0,'Wettkampf Einzel'!T19),0) -> 0 | U19: =IF($AI$3="E",IF('Wettkampf Einzel'!U19=0,0, IF($AH$1="Ja",IF(ISNUMBER('Wettkampf Einzel'!U19),"+",'Wettkampf Einzel'!U19),'Wettkampf Einzel'!U19)),IF(AH19=3,"-",IF('Wettkampf Mannschaft'!W19=0,0,'Wettkampf Mannschaft'!W19))) -> 0 | W19: =IF($AI$3="E",IF('Wettkampf Einzel'!W19=0,0,'Wettkampf Einzel'!W19),IF('Wettkampf Mannschaft'!Y21=0,0,'Wettkampf Mannschaft'!Y21)) -> 0 | X19: =IF($AI$3="E",IF('Wettkampf Einzel'!X19=0,0, IF($AH$1="Ja",IF(ISNUMBER('Wettkampf Einzel'!X19),"+",'Wettkampf Einzel'!X19),'Wettkampf Einzel'!X19)),IF(AH19=2,"-",IF('Wettkampf Mannschaft'!Z19=0,0,'Wettkampf Mannschaft'!Z19))) -> 0 | Y19: =IF($AI$3="E",IF('Wettkampf Einzel'!Y19=0,0,'Wettkampf Einzel'!Y19),IF('Wettkampf Mannschaft'!AA21=0,0,'Wettkampf Mannschaft'!AA21)) -> 0 | Z19: =IF($AI$3="E",IF('Wettkampf Einzel'!Z19=0,0, IF($AH$1="Ja",IF(ISNUMBER('Wettkampf Einzel'!Z19),"+",'Wettkampf Einzel'!Z19),'Wettkampf Einzel'!Z19)),IF(AH19=2,"-",IF('Wettkampf Mannschaft'!AB19=0,0,'Wettkampf Mannschaft'!AB19))) -> 0 | AA19: =IF($AI$3="E",IF('Wettkampf Einzel'!AA19=0,0,'Wettkampf Einzel'!AA19),IF('Wettkampf Mannschaft'!AC21=0,0,'Wettkampf Mannschaft'!AC21)) -> 0 | AB19: =IF($AI$3="E",IF('Wettkampf Einzel'!AB19=0,0, IF($AH$1="Ja",IF(ISNUMBER('Wettkampf Einzel'!AB19),"+",'Wettkampf Einzel'!AB19),'Wettkampf Einzel'!AB19)),IF(AH19=2,"-",IF('Wettkampf Mannschaft'!AD19=0,0,'Wettkampf Mannschaft'!AD19))) -> 0 | AI19: =IF(Einstellung!C53<>"",Einstellung!C53,"") ->  | AJ19: =IF(Rechenhilfe!$O$68=AK19,1,0) -> 0 | AK19: 14 | AL19: =Rechenhilfe!F18 ->  | AO19: 1 | AP19: 1 | AQ19: 1 | AR19: 1 | AS19: 1 | AT19: 1 | AX19: 0 | AY19: 0 | AZ19: 0 | BA19: 0 | BB19: 0 | BC19: 0 | BD19: 0 | BE19: 0 | BF19: 0 | BM19: =IF(Wiegeliste!$D$4<>0,IF($BL19="M",VLOOKUP(Wiegeliste!$D$4,SFGUELTIGAB,6),IF($BR$3="E",VLOOKUP(Wiegeliste!$D$4,SFGUELTIGAB,10), VLOOKUP(Wiegeliste!$D$4,SFGUELTIGAB,6))),"") -> 14 | BN19: =IF(Wettkampf!BK19<>"",VLOOKUP(Wettkampf!BK19, Athl01,4),"") ->  | BO19: =IF(Wettkampf!BK19<>"",YEAR(VLOOKUP(Wettkampf!BK19, Athl01,4)),"") ->  | BP19: =IF(K19<>"",YEAR(Wiegeliste!$D$4) - BO19,0) -> 0 | BQ19: 0 | BT19: =IF(Einstellung!$S$26="M",BS19,BR19) ->  | BV19: 0 | BX19: 0 | BY19: 0 | BZ19: 0 | CA19: 0 | CB19: 0 | CC19: 0 | CD19: 0 | CE19: 0 | CF19: 0 | CG19: 0 | CH19: 0 | CK19: 14 | CN19: =IF(ISERROR(VLOOKUP(CK19,Rechenhilfe!$BQ$68:$BR$217,2,FALSE)),0,VLOOKUP(CK19,Rechenhilfe!$BQ$68:$BR$217,2,FALSE)) -> 0 | CO19: =IF(ISERROR(VLOOKUP(CK19,Rechenhilfe!$BZ$68:$CA$217,2,FALSE)),0,VLOOKUP(CK19,Rechenhilfe!$BZ$68:$CA$217,2,FALSE)) -> 0 | CQ19: 0 | CR19: 0 | CS19: 0 | CT19: 0 | CU19: 0 | CV19: 0 | CW19: 0 | CX19: 0 | CY19: 0 | DC19: =IF($DC$3<>"Ja",0,IF(AX19>0,IF(ISNUMBER('Wettkampf Einzel'!Q19 ),'Wettkampf Einzel'!Q19*$DC$2,0),0)) -> 0 | DD19: =IF($DC$3<>"Ja",0,IF(AY19>0,IF(ISNUMBER('Wettkampf Einzel'!S19 ),'Wettkampf Einzel'!S19*$DC$2,0),0)) -> 0 | DE19: =IF($DC$3<>"Ja",0,IF(AZ19>0,IF(ISNUMBER('Wettkampf Einzel'!U19 ),'Wettkampf Einzel'!U19*$DC$2,0),0)) -> 0 | DF19: =IF($DC$3<>"Ja",0,IF(BB19>0,IF(ISNUMBER('Wettkampf Einzel'!X19 ),'Wettkampf Einzel'!X19*$DC$2,0),0)) -> 0 | DG19: =IF($DC$3<>"Ja",0,IF(BC19>0,IF(ISNUMBER('Wettkampf Einzel'!Z19 ),'Wettkampf Einzel'!Z19*$DC$2,0),0)) -> 0 | DH19: =IF($DC$3<>"Ja",0,IF(BD19>0,IF(ISNUMBER('Wettkampf Einzel'!AB19 ),'Wettkampf Einzel'!AB19*$DC$2,0),0)) -> 0 | DI19: 0 | DJ19: 0 | DK19: 0 | DL19: 0 | DM19: 0 | DN19: 0 | DO19: 0 | DP19: 0 | DQ19: 0 | DS19: 14 | DT19: 9999999999 | DU19: 9999999999 | DV19: 9999999999 | DW19: 9999999999 | DX19: 9999999999 | DY19: 9999999999 | DZ19: 9999999999 | EA19: 99999999 | EB19: 99
B20: =IF(Rechenhilfe!N83=99,"",IF(Rechenhilfe!O83=0,"",Rechenhilfe!N83-1)) ->  | C20: =IF(Rechenhilfe!N83=99,"",IF(Rechenhilfe!O83=0,$AI$2,VLOOKUP(Rechenhilfe!O83,Zeilen_Athleten,3))) ->  | D20: =IF(Rechenhilfe!N83=99,"",IF(Rechenhilfe!O83=0,"",Rechenhilfe!R83)) ->  | E20: =IF(Rechenhilfe!N83=99,"",IF(Rechenhilfe!O83=0,"",Rechenhilfe!S83)) ->  | G20: 1 | H20: =IF(Einstellung!B54<>"",Einstellung!B54,"") -> M-50 | I20: Kanyka Mario | J20: =IF(Einstellung!$S$28="V",IF(Einstellung!K54<>"",Einstellung!K54,""),IF(Einstellung!$S$28="N",IF(Einstellung!AA54<>"",Einstellung!AA54,""),IF(Einstellung!C54<>"",Einstellung!C54,""))) -> 0 | K20: =IF(Einstellung!F54<>"",Einstellung!F54,"") -> 40.1 | L20: 2.1073 | M20: 78 | N20: 164.37 | P20: =IF($AI$3="E",IF('Wettkampf Einzel'!P20=0,0,'Wettkampf Einzel'!P20),0) -> 30 | Q20: =IF($AI$3="E",IF('Wettkampf Einzel'!Q20=0,0, IF($AH$1="Ja",IF(ISNUMBER('Wettkampf Einzel'!Q20),"+",'Wettkampf Einzel'!Q20),'Wettkampf Einzel'!Q20)),IF(AH20=3,"-",IF('Wettkampf Mannschaft'!S20=0,0,'Wettkampf Mannschaft'!S20))) -> + | R20: =IF($AI$3="E",IF('Wettkampf Einzel'!R20=0,0,'Wettkampf Einzel'!R20),0) -> 33 | S20: =IF($AI$3="E",IF('Wettkampf Einzel'!S20=0,0, IF($AH$1="Ja",IF(ISNUMBER('Wettkampf Einzel'!S20),"+",'Wettkampf Einzel'!S20),'Wettkampf Einzel'!S20)),IF(AH20=3,"-",IF('Wettkampf Mannschaft'!U20=0,0,'Wettkampf Mannschaft'!U20))) -> + | T20: =IF($AI$3="E",IF('Wettkampf Einzel'!T20=0,0,'Wettkampf Einzel'!T20),0) -> 36 | U20: =IF($AI$3="E",IF('Wettkampf Einzel'!U20=0,0, IF($AH$1="Ja",IF(ISNUMBER('Wettkampf Einzel'!U20),"+",'Wettkampf Einzel'!U20),'Wettkampf Einzel'!U20)),IF(AH20=3,"-",IF('Wettkampf Mannschaft'!W20=0,0,'Wettkampf Mannschaft'!W20))) -> - | W20: =IF($AI$3="E",IF('Wettkampf Einzel'!W20=0,0,'Wettkampf Einzel'!W20),IF('Wettkampf Mannschaft'!Y22=0,0,'Wettkampf Mannschaft'!Y22)) -> 40 | X20: =IF($AI$3="E",IF('Wettkampf Einzel'!X20=0,0, IF($AH$1="Ja",IF(ISNUMBER('Wettkampf Einzel'!X20),"+",'Wettkampf Einzel'!X20),'Wettkampf Einzel'!X20)),IF(AH20=2,"-",IF('Wettkampf Mannschaft'!Z20=0,0,'Wettkampf Mannschaft'!Z20))) -> + | Y20: =IF($AI$3="E",IF('Wettkampf Einzel'!Y20=0,0,'Wettkampf Einzel'!Y20),IF('Wettkampf Mannschaft'!AA22=0,0,'Wettkampf Mannschaft'!AA22)) -> 43 | Z20: =IF($AI$3="E",IF('Wettkampf Einzel'!Z20=0,0, IF($AH$1="Ja",IF(ISNUMBER('Wettkampf Einzel'!Z20),"+",'Wettkampf Einzel'!Z20),'Wettkampf Einzel'!Z20)),IF(AH20=2,"-",IF('Wettkampf Mannschaft'!AB20=0,0,'Wettkampf Mannschaft'!AB20))) -> + | AA20: =IF($AI$3="E",IF('Wettkampf Einzel'!AA20=0,0,'Wettkampf Einzel'!AA20),IF('Wettkampf Mannschaft'!AC22=0,0,'Wettkampf Mannschaft'!AC22)) -> 45 | AB20: =IF($AI$3="E",IF('Wettkampf Einzel'!AB20=0,0, IF($AH$1="Ja",IF(ISNUMBER('Wettkampf Einzel'!AB20),"+",'Wettkampf Einzel'!AB20),'Wettkampf Einzel'!AB20)),IF(AH20=2,"-",IF('Wettkampf Mannschaft'!AD20=0,0,'Wettkampf Mannschaft'!AD20))) -> + | AI20: =IF(Einstellung!C54<>"",Einstellung!C54,"") -> M377 | AJ20: =IF(Rechenhilfe!$O$68=AK20,1,0) -> 0 | AK20: 15 | AL20: =Rechenhilfe!F19 -> 28 | AM20: Kanyka Mario | AN20: M-50 | AO20: 2 | AP20: 2 | AQ20: 3 | AR20: 2 | AS20: 2 | AT20: 2 | AX20: 30 | AY20: 33 | AZ20: 0 | BA20: 33 | BB20: 40 | BC20: 43 | BD20: 45 | BE20: 45 | BF20: 78 | BI20: M377 | BK20: 668 | BL20: M | BM20: =IF(Wiegeliste!$D$4<>0,IF($BL20="M",VLOOKUP(Wiegeliste!$D$4,SFGUELTIGAB,6),IF($BR$3="E",VLOOKUP(Wiegeliste!$D$4,SFGUELTIGAB,10), VLOOKUP(Wiegeliste!$D$4,SFGUELTIGAB,6))),"") -> 7 | BN20: =IF(Wettkampf!BK20<>"",VLOOKUP(Wettkampf!BK20, Athl01,4),"") -> 2002-01-31 | BO20: =IF(Wettkampf!BK20<>"",YEAR(VLOOKUP(Wettkampf!BK20, Athl01,4)),"") -> 2002 | BP20: =IF(K20<>"",YEAR(Wiegeliste!$D$4) - BO20,0) -> 13 | BQ20: 0 | BR20: 2.1073 | BS20: 2.1073 | BT20: =IF(Einstellung!$S$26="M",BS20,BR20) -> 2.1073 | BV20: 250 | BX20: 69.54 | BY20: 94.83 | BZ20: 164.37 | CA20: 0 | CB20: 1 | CC20: 0 | CD20: 69.54 | CE20: 0 | CF20: 94.83 | CG20: 0 | CH20: 164.37 | CK20: 15 | CL20: 0 | CN20: =IF(ISERROR(VLOOKUP(CK20,Rechenhilfe!$BQ$68:$BR$217,2,FALSE)),0,VLOOKUP(CK20,Rechenhilfe!$BQ$68:$BR$217,2,FALSE)) -> 0 | CO20: =IF(ISERROR(VLOOKUP(CK20,Rechenhilfe!$BZ$68:$CA$217,2,FALSE)),0,VLOOKUP(CK20,Rechenhilfe!$BZ$68:$CA$217,2,FALSE)) -> 0 | CQ20: 69.54 | CR20: 94.83 | CS20: 164.37 | CT20: 0 | CU20: 69.54 | CV20: 0 | CW20: 94.83 | CX20: 0 | CY20: 164.37 | DC20: =IF($DC$3<>"Ja",0,IF(AX20>0,IF(ISNUMBER('Wettkampf Einzel'!Q20 ),'Wettkampf Einzel'!Q20*$DC$2,0),0)) -> 0 | DD20: =IF($DC$3<>"Ja",0,IF(AY20>0,IF(ISNUMBER('Wettkampf Einzel'!S20 ),'Wettkampf Einzel'!S20*$DC$2,0),0)) -> 0 | DE20: =IF($DC$3<>"Ja",0,IF(AZ20>0,IF(ISNUMBER('Wettkampf Einzel'!U20 ),'Wettkampf Einzel'!U20*$DC$2,0),0)) -> 0 | DF20: =IF($DC$3<>"Ja",0,IF(BB20>0,IF(ISNUMBER('Wettkampf Einzel'!X20 ),'Wettkampf Einzel'!X20*$DC$2,0),0)) -> 0 | DG20: =IF($DC$3<>"Ja",0,IF(BC20>0,IF(ISNUMBER('Wettkampf Einzel'!Z20 ),'Wettkampf Einzel'!Z20*$DC$2,0),0)) -> 0 | DH20: =IF($DC$3<>"Ja",0,IF(BD20>0,IF(ISNUMBER('Wettkampf Einzel'!AB20 ),'Wettkampf Einzel'!AB20*$DC$2,0),0)) -> 0 | DI20: 63.219 | DJ20: 69.5409 | DK20: 0 | DL20: 84.292 | DM20: 90.6139 | DN20: 94.8285 | DO20: 69.54 | DP20: 94.83 | DQ20: 164.37 | DR20: 28 | DS20: 15 | DT20: 2816437015 | DU20: 9999999999 | DV20: 9999999999 | DW20: 9999999999 | DX20: 9999999999 | DY20: 9999999999 | DZ20: 9999999999 | EA20: 99999999 | EB20: 99
B21: =IF(Rechenhilfe!N84=99,"",IF(Rechenhilfe!O84=0,"",Rechenhilfe!N84-1)) ->  | C21: =IF(Rechenhilfe!N84=99,"",IF(Rechenhilfe!O84=0,$AI$2,VLOOKUP(Rechenhilfe!O84,Zeilen_Athleten,3))) ->  | D21: =IF(Rechenhilfe!N84=99,"",IF(Rechenhilfe!O84=0,"",Rechenhilfe!R84)) ->  | E21: =IF(Rechenhilfe!N84=99,"",IF(Rechenhilfe!O84=0,"",Rechenhilfe!S84)) ->  | H21: =IF(Einstellung!B55<>"",Einstellung!B55,"") ->  | J21: =IF(Einstellung!$S$28="V",IF(Einstellung!K55<>"",Einstellung!K55,""),IF(Einstellung!$S$28="N",IF(Einstellung!AA55<>"",Einstellung!AA55,""),IF(Einstellung!C55<>"",Einstellung!C55,""))) ->  | K21: =IF(Einstellung!F55<>"",Einstellung!F55,"") ->  | M21: 0 | P21: =IF($AI$3="E",IF('Wettkampf Einzel'!P21=0,0,'Wettkampf Einzel'!P21),0) -> 0 | Q21: =IF($AI$3="E",IF('Wettkampf Einzel'!Q21=0,0, IF($AH$1="Ja",IF(ISNUMBER('Wettkampf Einzel'!Q21),"+",'Wettkampf Einzel'!Q21),'Wettkampf Einzel'!Q21)),IF(AH21=3,"-",IF('Wettkampf Mannschaft'!S21=0,0,'Wettkampf Mannschaft'!S21))) -> 0 | R21: =IF($AI$3="E",IF('Wettkampf Einzel'!R21=0,0,'Wettkampf Einzel'!R21),0) -> 0 | S21: =IF($AI$3="E",IF('Wettkampf Einzel'!S21=0,0, IF($AH$1="Ja",IF(ISNUMBER('Wettkampf Einzel'!S21),"+",'Wettkampf Einzel'!S21),'Wettkampf Einzel'!S21)),IF(AH21=3,"-",IF('Wettkampf Mannschaft'!U21=0,0,'Wettkampf Mannschaft'!U21))) -> 0 | T21: =IF($AI$3="E",IF('Wettkampf Einzel'!T21=0,0,'Wettkampf Einzel'!T21),0) -> 0 | U21: =IF($AI$3="E",IF('Wettkampf Einzel'!U21=0,0, IF($AH$1="Ja",IF(ISNUMBER('Wettkampf Einzel'!U21),"+",'Wettkampf Einzel'!U21),'Wettkampf Einzel'!U21)),IF(AH21=3,"-",IF('Wettkampf Mannschaft'!W21=0,0,'Wettkampf Mannschaft'!W21))) -> 0 | W21: =IF($AI$3="E",IF('Wettkampf Einzel'!W21=0,0,'Wettkampf Einzel'!W21),IF('Wettkampf Mannschaft'!Y23=0,0,'Wettkampf Mannschaft'!Y23)) -> 0 | X21: =IF($AI$3="E",IF('Wettkampf Einzel'!X21=0,0, IF($AH$1="Ja",IF(ISNUMBER('Wettkampf Einzel'!X21),"+",'Wettkampf Einzel'!X21),'Wettkampf Einzel'!X21)),IF(AH21=2,"-",IF('Wettkampf Mannschaft'!Z21=0,0,'Wettkampf Mannschaft'!Z21))) -> 0 | Y21: =IF($AI$3="E",IF('Wettkampf Einzel'!Y21=0,0,'Wettkampf Einzel'!Y21),IF('Wettkampf Mannschaft'!AA23=0,0,'Wettkampf Mannschaft'!AA23)) -> 0 | Z21: =IF($AI$3="E",IF('Wettkampf Einzel'!Z21=0,0, IF($AH$1="Ja",IF(ISNUMBER('Wettkampf Einzel'!Z21),"+",'Wettkampf Einzel'!Z21),'Wettkampf Einzel'!Z21)),IF(AH21=2,"-",IF('Wettkampf Mannschaft'!AB21=0,0,'Wettkampf Mannschaft'!AB21))) -> 0 | AA21: =IF($AI$3="E",IF('Wettkampf Einzel'!AA21=0,0,'Wettkampf Einzel'!AA21),IF('Wettkampf Mannschaft'!AC23=0,0,'Wettkampf Mannschaft'!AC23)) -> 0 | AB21: =IF($AI$3="E",IF('Wettkampf Einzel'!AB21=0,0, IF($AH$1="Ja",IF(ISNUMBER('Wettkampf Einzel'!AB21),"+",'Wettkampf Einzel'!AB21),'Wettkampf Einzel'!AB21)),IF(AH21=2,"-",IF('Wettkampf Mannschaft'!AD21=0,0,'Wettkampf Mannschaft'!AD21))) -> 0 | AI21: =IF(Einstellung!C55<>"",Einstellung!C55,"") ->  | AJ21: =IF(Rechenhilfe!$O$68=AK21,1,0) -> 0 | AK21: 16 | AL21: =Rechenhilfe!F20 ->  | AO21: 1 | AP21: 1 | AQ21: 1 | AR21: 1 | AS21: 1 | AT21: 1 | AX21: 0 | AY21: 0 | AZ21: 0 | BA21: 0 | BB21: 0 | BC21: 0 | BD21: 0 | BE21: 0 | BF21: 0 | BM21: =IF(Wiegeliste!$D$4<>0,IF($BL21="M",VLOOKUP(Wiegeliste!$D$4,SFGUELTIGAB,6),IF($BR$3="E",VLOOKUP(Wiegeliste!$D$4,SFGUELTIGAB,10), VLOOKUP(Wiegeliste!$D$4,SFGUELTIGAB,6))),"") -> 14 | BN21: =IF(Wettkampf!BK21<>"",VLOOKUP(Wettkampf!BK21, Athl01,4),"") ->  | BO21: =IF(Wettkampf!BK21<>"",YEAR(VLOOKUP(Wettkampf!BK21, Athl01,4)),"") ->  | BP21: =IF(K21<>"",YEAR(Wiegeliste!$D$4) - BO21,0) -> 0 | BQ21: 0 | BT21: =IF(Einstellung!$S$26="M",BS21,BR21) ->  | BV21: 0 | BX21: 0 | BY21: 0 | BZ21: 0 | CA21: 0 | CB21: 0 | CC21: 0 | CD21: 0 | CE21: 0 | CF21: 0 | CG21: 0 | CH21: 0 | CK21: 16 | CN21: =IF(ISERROR(VLOOKUP(CK21,Rechenhilfe!$BQ$68:$BR$217,2,FALSE)),0,VLOOKUP(CK21,Rechenhilfe!$BQ$68:$BR$217,2,FALSE)) -> 0 | CO21: =IF(ISERROR(VLOOKUP(CK21,Rechenhilfe!$BZ$68:$CA$217,2,FALSE)),0,VLOOKUP(CK21,Rechenhilfe!$BZ$68:$CA$217,2,FALSE)) -> 0 | CQ21: 0 | CR21: 0 | CS21: 0 | CT21: 0 | CU21: 0 | CV21: 0 | CW21: 0 | CX21: 0 | CY21: 0 | DC21: =IF($DC$3<>"Ja",0,IF(AX21>0,IF(ISNUMBER('Wettkampf Einzel'!Q21 ),'Wettkampf Einzel'!Q21*$DC$2,0),0)) -> 0 | DD21: =IF($DC$3<>"Ja",0,IF(AY21>0,IF(ISNUMBER('Wettkampf Einzel'!S21 ),'Wettkampf Einzel'!S21*$DC$2,0),0)) -> 0 | DE21: =IF($DC$3<>"Ja",0,IF(AZ21>0,IF(ISNUMBER('Wettkampf Einzel'!U21 ),'Wettkampf Einzel'!U21*$DC$2,0),0)) -> 0 | DF21: =IF($DC$3<>"Ja",0,IF(BB21>0,IF(ISNUMBER('Wettkampf Einzel'!X21 ),'Wettkampf Einzel'!X21*$DC$2,0),0)) -> 0 | DG21: =IF($DC$3<>"Ja",0,IF(BC21>0,IF(ISNUMBER('Wettkampf Einzel'!Z21 ),'Wettkampf Einzel'!Z21*$DC$2,0),0)) -> 0 | DH21: =IF($DC$3<>"Ja",0,IF(BD21>0,IF(ISNUMBER('Wettkampf Einzel'!AB21 ),'Wettkampf Einzel'!AB21*$DC$2,0),0)) -> 0 | DI21: 0 | DJ21: 0 | DK21: 0 | DL21: 0 | DM21: 0 | DN21: 0 | DO21: 0 | DP21: 0 | DQ21: 0 | DS21: 16 | DT21: 9999999999 | DU21: 2816437015 | DV21: 28 | DW21: 15 | DX21: 1 | DY21: 1501 | DZ21: 9999999999 | EA21: 99999999 | EB21: 99
B22: =IF(Rechenhilfe!N85=99,"",IF(Rechenhilfe!O85=0,"",Rechenhilfe!N85-1)) ->  | C22: =IF(Rechenhilfe!N85=99,"",IF(Rechenhilfe!O85=0,$AI$2,VLOOKUP(Rechenhilfe!O85,Zeilen_Athleten,3))) ->  | D22: =IF(Rechenhilfe!N85=99,"",IF(Rechenhilfe!O85=0,"",Rechenhilfe!R85)) ->  | E22: =IF(Rechenhilfe!N85=99,"",IF(Rechenhilfe!O85=0,"",Rechenhilfe!S85)) ->  | H22: =IF(Einstellung!B56<>"",Einstellung!B56,"") ->  | J22: =IF(Einstellung!$S$28="V",IF(Einstellung!K56<>"",Einstellung!K56,""),IF(Einstellung!$S$28="N",IF(Einstellung!AA56<>"",Einstellung!AA56,""),IF(Einstellung!C56<>"",Einstellung!C56,""))) ->  | K22: =IF(Einstellung!F56<>"",Einstellung!F56,"") ->  | M22: 0 | P22: =IF($AI$3="E",IF('Wettkampf Einzel'!P22=0,0,'Wettkampf Einzel'!P22),0) -> 0 | Q22: =IF($AI$3="E",IF('Wettkampf Einzel'!Q22=0,0, IF($AH$1="Ja",IF(ISNUMBER('Wettkampf Einzel'!Q22),"+",'Wettkampf Einzel'!Q22),'Wettkampf Einzel'!Q22)),IF(AH22=3,"-",IF('Wettkampf Mannschaft'!S22=0,0,'Wettkampf Mannschaft'!S22))) -> 0 | R22: =IF($AI$3="E",IF('Wettkampf Einzel'!R22=0,0,'Wettkampf Einzel'!R22),0) -> 0 | S22: =IF($AI$3="E",IF('Wettkampf Einzel'!S22=0,0, IF($AH$1="Ja",IF(ISNUMBER('Wettkampf Einzel'!S22),"+",'Wettkampf Einzel'!S22),'Wettkampf Einzel'!S22)),IF(AH22=3,"-",IF('Wettkampf Mannschaft'!U22=0,0,'Wettkampf Mannschaft'!U22))) -> 0 | T22: =IF($AI$3="E",IF('Wettkampf Einzel'!T22=0,0,'Wettkampf Einzel'!T22),0) -> 0 | U22: =IF($AI$3="E",IF('Wettkampf Einzel'!U22=0,0, IF($AH$1="Ja",IF(ISNUMBER('Wettkampf Einzel'!U22),"+",'Wettkampf Einzel'!U22),'Wettkampf Einzel'!U22)),IF(AH22=3,"-",IF('Wettkampf Mannschaft'!W22=0,0,'Wettkampf Mannschaft'!W22))) -> 0 | W22: =IF($AI$3="E",IF('Wettkampf Einzel'!W22=0,0,'Wettkampf Einzel'!W22),IF('Wettkampf Mannschaft'!Y24=0,0,'Wettkampf Mannschaft'!Y24)) -> 0 | X22: =IF($AI$3="E",IF('Wettkampf Einzel'!X22=0,0, IF($AH$1="Ja",IF(ISNUMBER('Wettkampf Einzel'!X22),"+",'Wettkampf Einzel'!X22),'Wettkampf Einzel'!X22)),IF(AH22=2,"-",IF('Wettkampf Mannschaft'!Z22=0,0,'Wettkampf Mannschaft'!Z22))) -> 0 | Y22: =IF($AI$3="E",IF('Wettkampf Einzel'!Y22=0,0,'Wettkampf Einzel'!Y22),IF('Wettkampf Mannschaft'!AA24=0,0,'Wettkampf Mannschaft'!AA24)) -> 0 | Z22: =IF($AI$3="E",IF('Wettkampf Einzel'!Z22=0,0, IF($AH$1="Ja",IF(ISNUMBER('Wettkampf Einzel'!Z22),"+",'Wettkampf Einzel'!Z22),'Wettkampf Einzel'!Z22)),IF(AH22=2,"-",IF('Wettkampf Mannschaft'!AB22=0,0,'Wettkampf Mannschaft'!AB22))) -> 0 | AA22: =IF($AI$3="E",IF('Wettkampf Einzel'!AA22=0,0,'Wettkampf Einzel'!AA22),IF('Wettkampf Mannschaft'!AC24=0,0,'Wettkampf Mannschaft'!AC24)) -> 0 | AB22: =IF($AI$3="E",IF('Wettkampf Einzel'!AB22=0,0, IF($AH$1="Ja",IF(ISNUMBER('Wettkampf Einzel'!AB22),"+",'Wettkampf Einzel'!AB22),'Wettkampf Einzel'!AB22)),IF(AH22=2,"-",IF('Wettkampf Mannschaft'!AD22=0,0,'Wettkampf Mannschaft'!AD22))) -> 0 | AI22: =IF(Einstellung!C56<>"",Einstellung!C56,"") ->  | AJ22: =IF(Rechenhilfe!$O$68=AK22,1,0) -> 0 | AK22: 17 | AL22: =Rechenhilfe!F21 ->  | AO22: 1 | AP22: 1 | AQ22: 1 | AR22: 1 | AS22: 1 | AT22: 1 | AX22: 0 | AY22: 0 | AZ22: 0 | BA22: 0 | BB22: 0 | BC22: 0 | BD22: 0 | BE22: 0 | BF22: 0 | BM22: =IF(Wiegeliste!$D$4<>0,IF($BL22="M",VLOOKUP(Wiegeliste!$D$4,SFGUELTIGAB,6),IF($BR$3="E",VLOOKUP(Wiegeliste!$D$4,SFGUELTIGAB,10), VLOOKUP(Wiegeliste!$D$4,SFGUELTIGAB,6))),"") -> 14 | BN22: =IF(Wettkampf!BK22<>"",VLOOKUP(Wettkampf!BK22, Athl01,4),"") ->  | BO22: =IF(Wettkampf!BK22<>"",YEAR(VLOOKUP(Wettkampf!BK22, Athl01,4)),"") ->  | BP22: =IF(K22<>"",YEAR(Wiegeliste!$D$4) - BO22,0) -> 0 | BQ22: 0 | BT22: =IF(Einstellung!$S$26="M",BS22,BR22) ->  | BV22: 0 | BX22: 0 | BY22: 0 | BZ22: 0 | CA22: 0 | CB22: 0 | CC22: 0 | CD22: 0 | CE22: 0 | CF22: 0 | CG22: 0 | CH22: 0 | CK22: 17 | CN22: =IF(ISERROR(VLOOKUP(CK22,Rechenhilfe!$BQ$68:$BR$217,2,FALSE)),0,VLOOKUP(CK22,Rechenhilfe!$BQ$68:$BR$217,2,FALSE)) -> 0 | CO22: =IF(ISERROR(VLOOKUP(CK22,Rechenhilfe!$BZ$68:$CA$217,2,FALSE)),0,VLOOKUP(CK22,Rechenhilfe!$BZ$68:$CA$217,2,FALSE)) -> 0 | CQ22: 0 | CR22: 0 | CS22: 0 | CT22: 0 | CU22: 0 | CV22: 0 | CW22: 0 | CX22: 0 | CY22: 0 | DC22: =IF($DC$3<>"Ja",0,IF(AX22>0,IF(ISNUMBER('Wettkampf Einzel'!Q22 ),'Wettkampf Einzel'!Q22*$DC$2,0),0)) -> 0 | DD22: =IF($DC$3<>"Ja",0,IF(AY22>0,IF(ISNUMBER('Wettkampf Einzel'!S22 ),'Wettkampf Einzel'!S22*$DC$2,0),0)) -> 0 | DE22: =IF($DC$3<>"Ja",0,IF(AZ22>0,IF(ISNUMBER('Wettkampf Einzel'!U22 ),'Wettkampf Einzel'!U22*$DC$2,0),0)) -> 0 | DF22: =IF($DC$3<>"Ja",0,IF(BB22>0,IF(ISNUMBER('Wettkampf Einzel'!X22 ),'Wettkampf Einzel'!X22*$DC$2,0),0)) -> 0 | DG22: =IF($DC$3<>"Ja",0,IF(BC22>0,IF(ISNUMBER('Wettkampf Einzel'!Z22 ),'Wettkampf Einzel'!Z22*$DC$2,0),0)) -> 0 | DH22: =IF($DC$3<>"Ja",0,IF(BD22>0,IF(ISNUMBER('Wettkampf Einzel'!AB22 ),'Wettkampf Einzel'!AB22*$DC$2,0),0)) -> 0 | DI22: 0 | DJ22: 0 | DK22: 0 | DL22: 0 | DM22: 0 | DN22: 0 | DO22: 0 | DP22: 0 | DQ22: 0 | DS22: 17 | DT22: 9999999999 | DU22: 2723903013 | DV22: 27 | DW22: 13 | DX22: 1 | DY22: 1301 | DZ22: 9999999999 | EA22: 99999999 | EB22: 99
B23: =IF(Rechenhilfe!N86=99,"",IF(Rechenhilfe!O86=0,"",Rechenhilfe!N86-1)) ->  | C23: =IF(Rechenhilfe!N86=99,"",IF(Rechenhilfe!O86=0,$AI$2,VLOOKUP(Rechenhilfe!O86,Zeilen_Athleten,3))) ->  | D23: =IF(Rechenhilfe!N86=99,"",IF(Rechenhilfe!O86=0,"",Rechenhilfe!R86)) ->  | E23: =IF(Rechenhilfe!N86=99,"",IF(Rechenhilfe!O86=0,"",Rechenhilfe!S86)) ->  | H23: =IF(Einstellung!B57<>"",Einstellung!B57,"") ->  | J23: =IF(Einstellung!$S$28="V",IF(Einstellung!K57<>"",Einstellung!K57,""),IF(Einstellung!$S$28="N",IF(Einstellung!AA57<>"",Einstellung!AA57,""),IF(Einstellung!C57<>"",Einstellung!C57,""))) ->  | K23: =IF(Einstellung!F57<>"",Einstellung!F57,"") ->  | M23: 0 | P23: =IF($AI$3="E",IF('Wettkampf Einzel'!P23=0,0,'Wettkampf Einzel'!P23),0) -> 0 | Q23: =IF($AI$3="E",IF('Wettkampf Einzel'!Q23=0,0, IF($AH$1="Ja",IF(ISNUMBER('Wettkampf Einzel'!Q23),"+",'Wettkampf Einzel'!Q23),'Wettkampf Einzel'!Q23)),IF(AH23=3,"-",IF('Wettkampf Mannschaft'!S23=0,0,'Wettkampf Mannschaft'!S23))) -> 0 | R23: =IF($AI$3="E",IF('Wettkampf Einzel'!R23=0,0,'Wettkampf Einzel'!R23),0) -> 0 | S23: =IF($AI$3="E",IF('Wettkampf Einzel'!S23=0,0, IF($AH$1="Ja",IF(ISNUMBER('Wettkampf Einzel'!S23),"+",'Wettkampf Einzel'!S23),'Wettkampf Einzel'!S23)),IF(AH23=3,"-",IF('Wettkampf Mannschaft'!U23=0,0,'Wettkampf Mannschaft'!U23))) -> 0 | T23: =IF($AI$3="E",IF('Wettkampf Einzel'!T23=0,0,'Wettkampf Einzel'!T23),0) -> 0 | U23: =IF($AI$3="E",IF('Wettkampf Einzel'!U23=0,0, IF($AH$1="Ja",IF(ISNUMBER('Wettkampf Einzel'!U23),"+",'Wettkampf Einzel'!U23),'Wettkampf Einzel'!U23)),IF(AH23=3,"-",IF('Wettkampf Mannschaft'!W23=0,0,'Wettkampf Mannschaft'!W23))) -> 0 | W23: =IF($AI$3="E",IF('Wettkampf Einzel'!W23=0,0,'Wettkampf Einzel'!W23),IF('Wettkampf Mannschaft'!Y25=0,0,'Wettkampf Mannschaft'!Y25)) -> 0 | X23: =IF($AI$3="E",IF('Wettkampf Einzel'!X23=0,0, IF($AH$1="Ja",IF(ISNUMBER('Wettkampf Einzel'!X23),"+",'Wettkampf Einzel'!X23),'Wettkampf Einzel'!X23)),IF(AH23=2,"-",IF('Wettkampf Mannschaft'!Z23=0,0,'Wettkampf Mannschaft'!Z23))) -> 0 | Y23: =IF($AI$3="E",IF('Wettkampf Einzel'!Y23=0,0,'Wettkampf Einzel'!Y23),IF('Wettkampf Mannschaft'!AA25=0,0,'Wettkampf Mannschaft'!AA25)) -> 0 | Z23: =IF($AI$3="E",IF('Wettkampf Einzel'!Z23=0,0, IF($AH$1="Ja",IF(ISNUMBER('Wettkampf Einzel'!Z23),"+",'Wettkampf Einzel'!Z23),'Wettkampf Einzel'!Z23)),IF(AH23=2,"-",IF('Wettkampf Mannschaft'!AB23=0,0,'Wettkampf Mannschaft'!AB23))) -> 0 | AA23: =IF($AI$3="E",IF('Wettkampf Einzel'!AA23=0,0,'Wettkampf Einzel'!AA23),IF('Wettkampf Mannschaft'!AC25=0,0,'Wettkampf Mannschaft'!AC25)) -> 0 | AB23: =IF($AI$3="E",IF('Wettkampf Einzel'!AB23=0,0, IF($AH$1="Ja",IF(ISNUMBER('Wettkampf Einzel'!AB23),"+",'Wettkampf Einzel'!AB23),'Wettkampf Einzel'!AB23)),IF(AH23=2,"-",IF('Wettkampf Mannschaft'!AD23=0,0,'Wettkampf Mannschaft'!AD23))) -> 0 | AI23: =IF(Einstellung!C57<>"",Einstellung!C57,"") ->  | AJ23: =IF(Rechenhilfe!$O$68=AK23,1,0) -> 0 | AK23: 18 | AL23: =Rechenhilfe!F22 ->  | AO23: 1 | AP23: 1 | AQ23: 1 | AR23: 1 | AS23: 1 | AT23: 1 | AX23: 0 | AY23: 0 | AZ23: 0 | BA23: 0 | BB23: 0 | BC23: 0 | BD23: 0 | BE23: 0 | BF23: 0 | BM23: =IF(Wiegeliste!$D$4<>0,IF($BL23="M",VLOOKUP(Wiegeliste!$D$4,SFGUELTIGAB,6),IF($BR$3="E",VLOOKUP(Wiegeliste!$D$4,SFGUELTIGAB,10), VLOOKUP(Wiegeliste!$D$4,SFGUELTIGAB,6))),"") -> 14 | BN23: =IF(Wettkampf!BK23<>"",VLOOKUP(Wettkampf!BK23, Athl01,4),"") ->  | BO23: =IF(Wettkampf!BK23<>"",YEAR(VLOOKUP(Wettkampf!BK23, Athl01,4)),"") ->  | BP23: =IF(K23<>"",YEAR(Wiegeliste!$D$4) - BO23,0) -> 0 | BQ23: 0 | BT23: =IF(Einstellung!$S$26="M",BS23,BR23) ->  | BV23: 0 | BX23: 0 | BY23: 0 | BZ23: 0 | CA23: 0 | CB23: 0 | CC23: 0 | CD23: 0 | CE23: 0 | CF23: 0 | CG23: 0 | CH23: 0 | CK23: 18 | CN23: =IF(ISERROR(VLOOKUP(CK23,Rechenhilfe!$BQ$68:$BR$217,2,FALSE)),0,VLOOKUP(CK23,Rechenhilfe!$BQ$68:$BR$217,2,FALSE)) -> 0 | CO23: =IF(ISERROR(VLOOKUP(CK23,Rechenhilfe!$BZ$68:$CA$217,2,FALSE)),0,VLOOKUP(CK23,Rechenhilfe!$BZ$68:$CA$217,2,FALSE)) -> 0 | CQ23: 0 | CR23: 0 | CS23: 0 | CT23: 0 | CU23: 0 | CV23: 0 | CW23: 0 | CX23: 0 | CY23: 0 | DC23: =IF($DC$3<>"Ja",0,IF(AX23>0,IF(ISNUMBER('Wettkampf Einzel'!Q23 ),'Wettkampf Einzel'!Q23*$DC$2,0),0)) -> 0 | DD23: =IF($DC$3<>"Ja",0,IF(AY23>0,IF(ISNUMBER('Wettkampf Einzel'!S23 ),'Wettkampf Einzel'!S23*$DC$2,0),0)) -> 0 | DE23: =IF($DC$3<>"Ja",0,IF(AZ23>0,IF(ISNUMBER('Wettkampf Einzel'!U23 ),'Wettkampf Einzel'!U23*$DC$2,0),0)) -> 0 | DF23: =IF($DC$3<>"Ja",0,IF(BB23>0,IF(ISNUMBER('Wettkampf Einzel'!X23 ),'Wettkampf Einzel'!X23*$DC$2,0),0)) -> 0 | DG23: =IF($DC$3<>"Ja",0,IF(BC23>0,IF(ISNUMBER('Wettkampf Einzel'!Z23 ),'Wettkampf Einzel'!Z23*$DC$2,0),0)) -> 0 | DH23: =IF($DC$3<>"Ja",0,IF(BD23>0,IF(ISNUMBER('Wettkampf Einzel'!AB23 ),'Wettkampf Einzel'!AB23*$DC$2,0),0)) -> 0 | DI23: 0 | DJ23: 0 | DK23: 0 | DL23: 0 | DM23: 0 | DN23: 0 | DO23: 0 | DP23: 0 | DQ23: 0 | DS23: 18 | DT23: 9999999999 | DU23: 2527268009 | DV23: 25 | DW23: 9 | DX23: 1 | DY23: 901 | DZ23: 9999999999 | EA23: 99999999 | EB23: 99
B24: =IF(Rechenhilfe!N87=99,"",IF(Rechenhilfe!O87=0,"",Rechenhilfe!N87-1)) ->  | C24: =IF(Rechenhilfe!N87=99,"",IF(Rechenhilfe!O87=0,$AI$2,VLOOKUP(Rechenhilfe!O87,Zeilen_Athleten,3))) ->  | D24: =IF(Rechenhilfe!N87=99,"",IF(Rechenhilfe!O87=0,"",Rechenhilfe!R87)) ->  | E24: =IF(Rechenhilfe!N87=99,"",IF(Rechenhilfe!O87=0,"",Rechenhilfe!S87)) ->  | H24: =IF(Einstellung!B58<>"",Einstellung!B58,"") ->  | J24: =IF(Einstellung!$S$28="V",IF(Einstellung!K58<>"",Einstellung!K58,""),IF(Einstellung!$S$28="N",IF(Einstellung!AA58<>"",Einstellung!AA58,""),IF(Einstellung!C58<>"",Einstellung!C58,""))) ->  | K24: =IF(Einstellung!F58<>"",Einstellung!F58,"") ->  | M24: 0 | P24: =IF($AI$3="E",IF('Wettkampf Einzel'!P24=0,0,'Wettkampf Einzel'!P24),0) -> 0 | Q24: =IF($AI$3="E",IF('Wettkampf Einzel'!Q24=0,0, IF($AH$1="Ja",IF(ISNUMBER('Wettkampf Einzel'!Q24),"+",'Wettkampf Einzel'!Q24),'Wettkampf Einzel'!Q24)),IF(AH24=3,"-",IF('Wettkampf Mannschaft'!S24=0,0,'Wettkampf Mannschaft'!S24))) -> 0 | R24: =IF($AI$3="E",IF('Wettkampf Einzel'!R24=0,0,'Wettkampf Einzel'!R24),0) -> 0 | S24: =IF($AI$3="E",IF('Wettkampf Einzel'!S24=0,0, IF($AH$1="Ja",IF(ISNUMBER('Wettkampf Einzel'!S24),"+",'Wettkampf Einzel'!S24),'Wettkampf Einzel'!S24)),IF(AH24=3,"-",IF('Wettkampf Mannschaft'!U24=0,0,'Wettkampf Mannschaft'!U24))) -> 0 | T24: =IF($AI$3="E",IF('Wettkampf Einzel'!T24=0,0,'Wettkampf Einzel'!T24),0) -> 0 | U24: =IF($AI$3="E",IF('Wettkampf Einzel'!U24=0,0, IF($AH$1="Ja",IF(ISNUMBER('Wettkampf Einzel'!U24),"+",'Wettkampf Einzel'!U24),'Wettkampf Einzel'!U24)),IF(AH24=3,"-",IF('Wettkampf Mannschaft'!W24=0,0,'Wettkampf Mannschaft'!W24))) -> 0 | W24: =IF($AI$3="E",IF('Wettkampf Einzel'!W24=0,0,'Wettkampf Einzel'!W24),IF('Wettkampf Mannschaft'!Y26=0,0,'Wettkampf Mannschaft'!Y26)) -> 0 | X24: =IF($AI$3="E",IF('Wettkampf Einzel'!X24=0,0, IF($AH$1="Ja",IF(ISNUMBER('Wettkampf Einzel'!X24),"+",'Wettkampf Einzel'!X24),'Wettkampf Einzel'!X24)),IF(AH24=2,"-",IF('Wettkampf Mannschaft'!Z24=0,0,'Wettkampf Mannschaft'!Z24))) -> 0 | Y24: =IF($AI$3="E",IF('Wettkampf Einzel'!Y24=0,0,'Wettkampf Einzel'!Y24),IF('Wettkampf Mannschaft'!AA26=0,0,'Wettkampf Mannschaft'!AA26)) -> 0 | Z24: =IF($AI$3="E",IF('Wettkampf Einzel'!Z24=0,0, IF($AH$1="Ja",IF(ISNUMBER('Wettkampf Einzel'!Z24),"+",'Wettkampf Einzel'!Z24),'Wettkampf Einzel'!Z24)),IF(AH24=2,"-",IF('Wettkampf Mannschaft'!AB24=0,0,'Wettkampf Mannschaft'!AB24))) -> 0 | AA24: =IF($AI$3="E",IF('Wettkampf Einzel'!AA24=0,0,'Wettkampf Einzel'!AA24),IF('Wettkampf Mannschaft'!AC26=0,0,'Wettkampf Mannschaft'!AC26)) -> 0 | AB24: =IF($AI$3="E",IF('Wettkampf Einzel'!AB24=0,0, IF($AH$1="Ja",IF(ISNUMBER('Wettkampf Einzel'!AB24),"+",'Wettkampf Einzel'!AB24),'Wettkampf Einzel'!AB24)),IF(AH24=2,"-",IF('Wettkampf Mannschaft'!AD24=0,0,'Wettkampf Mannschaft'!AD24))) -> 0 | AI24: =IF(Einstellung!C58<>"",Einstellung!C58,"") ->  | AJ24: =IF(Rechenhilfe!$O$68=AK24,1,0) -> 0 | AK24: 19 | AL24: =Rechenhilfe!F23 ->  | AO24: 1 | AP24: 1 | AQ24: 1 | AR24: 1 | AS24: 1 | AT24: 1 | AX24: 0 | AY24: 0 | AZ24: 0 | BA24: 0 | BB24: 0 | BC24: 0 | BD24: 0 | BE24: 0 | BF24: 0 | BM24: =IF(Wiegeliste!$D$4<>0,IF($BL24="M",VLOOKUP(Wiegeliste!$D$4,SFGUELTIGAB,6),IF($BR$3="E",VLOOKUP(Wiegeliste!$D$4,SFGUELTIGAB,10), VLOOKUP(Wiegeliste!$D$4,SFGUELTIGAB,6))),"") -> 14 | BN24: =IF(Wettkampf!BK24<>"",VLOOKUP(Wettkampf!BK24, Athl01,4),"") ->  | BO24: =IF(Wettkampf!BK24<>"",YEAR(VLOOKUP(Wettkampf!BK24, Athl01,4)),"") ->  | BP24: =IF(K24<>"",YEAR(Wiegeliste!$D$4) - BO24,0) -> 0 | BQ24: 0 | BT24: =IF(Einstellung!$S$26="M",BS24,BR24) ->  | BV24: 0 | BX24: 0 | BY24: 0 | BZ24: 0 | CA24: 0 | CB24: 0 | CC24: 0 | CD24: 0 | CE24: 0 | CF24: 0 | CG24: 0 | CH24: 0 | CK24: 19 | CN24: =IF(ISERROR(VLOOKUP(CK24,Rechenhilfe!$BQ$68:$BR$217,2,FALSE)),0,VLOOKUP(CK24,Rechenhilfe!$BQ$68:$BR$217,2,FALSE)) -> 0 | CO24: =IF(ISERROR(VLOOKUP(CK24,Rechenhilfe!$BZ$68:$CA$217,2,FALSE)),0,VLOOKUP(CK24,Rechenhilfe!$BZ$68:$CA$217,2,FALSE)) -> 0 | CQ24: 0 | CR24: 0 | CS24: 0 | CT24: 0 | CU24: 0 | CV24: 0 | CW24: 0 | CX24: 0 | CY24: 0 | DC24: =IF($DC$3<>"Ja",0,IF(AX24>0,IF(ISNUMBER('Wettkampf Einzel'!Q24 ),'Wettkampf Einzel'!Q24*$DC$2,0),0)) -> 0 | DD24: =IF($DC$3<>"Ja",0,IF(AY24>0,IF(ISNUMBER('Wettkampf Einzel'!S24 ),'Wettkampf Einzel'!S24*$DC$2,0),0)) -> 0 | DE24: =IF($DC$3<>"Ja",0,IF(AZ24>0,IF(ISNUMBER('Wettkampf Einzel'!U24 ),'Wettkampf Einzel'!U24*$DC$2,0),0)) -> 0 | DF24: =IF($DC$3<>"Ja",0,IF(BB24>0,IF(ISNUMBER('Wettkampf Einzel'!X24 ),'Wettkampf Einzel'!X24*$DC$2,0),0)) -> 0 | DG24: =IF($DC$3<>"Ja",0,IF(BC24>0,IF(ISNUMBER('Wettkampf Einzel'!Z24 ),'Wettkampf Einzel'!Z24*$DC$2,0),0)) -> 0 | DH24: =IF($DC$3<>"Ja",0,IF(BD24>0,IF(ISNUMBER('Wettkampf Einzel'!AB24 ),'Wettkampf Einzel'!AB24*$DC$2,0),0)) -> 0 | DI24: 0 | DJ24: 0 | DK24: 0 | DL24: 0 | DM24: 0 | DN24: 0 | DO24: 0 | DP24: 0 | DQ24: 0 | DS24: 19 | DT24: 9999999999 | DU24: 2527166008 | DV24: 25 | DW24: 8 | DX24: 2 | DY24: 802 | DZ24: 9999999999 | EA24: 99999999 | EB24: 99
B25: =IF(Rechenhilfe!N88=99,"",IF(Rechenhilfe!O88=0,"",Rechenhilfe!N88-1)) ->  | C25: =IF(Rechenhilfe!N88=99,"",IF(Rechenhilfe!O88=0,$AI$2,VLOOKUP(Rechenhilfe!O88,Zeilen_Athleten,3))) ->  | D25: =IF(Rechenhilfe!N88=99,"",IF(Rechenhilfe!O88=0,"",Rechenhilfe!R88)) ->  | E25: =IF(Rechenhilfe!N88=99,"",IF(Rechenhilfe!O88=0,"",Rechenhilfe!S88)) ->  | H25: =IF(Einstellung!B59<>"",Einstellung!B59,"") ->  | J25: =IF(Einstellung!$S$28="V",IF(Einstellung!K59<>"",Einstellung!K59,""),IF(Einstellung!$S$28="N",IF(Einstellung!AA59<>"",Einstellung!AA59,""),IF(Einstellung!C59<>"",Einstellung!C59,""))) ->  | K25: =IF(Einstellung!F59<>"",Einstellung!F59,"") ->  | M25: 0 | P25: =IF($AI$3="E",IF('Wettkampf Einzel'!P25=0,0,'Wettkampf Einzel'!P25),0) -> 0 | Q25: =IF($AI$3="E",IF('Wettkampf Einzel'!Q25=0,0, IF($AH$1="Ja",IF(ISNUMBER('Wettkampf Einzel'!Q25),"+",'Wettkampf Einzel'!Q25),'Wettkampf Einzel'!Q25)),IF(AH25=3,"-",IF('Wettkampf Mannschaft'!S25=0,0,'Wettkampf Mannschaft'!S25))) -> 0 | R25: =IF($AI$3="E",IF('Wettkampf Einzel'!R25=0,0,'Wettkampf Einzel'!R25),0) -> 0 | S25: =IF($AI$3="E",IF('Wettkampf Einzel'!S25=0,0, IF($AH$1="Ja",IF(ISNUMBER('Wettkampf Einzel'!S25),"+",'Wettkampf Einzel'!S25),'Wettkampf Einzel'!S25)),IF(AH25=3,"-",IF('Wettkampf Mannschaft'!U25=0,0,'Wettkampf Mannschaft'!U25))) -> 0 | T25: =IF($AI$3="E",IF('Wettkampf Einzel'!T25=0,0,'Wettkampf Einzel'!T25),0) -> 0 | U25: =IF($AI$3="E",IF('Wettkampf Einzel'!U25=0,0, IF($AH$1="Ja",IF(ISNUMBER('Wettkampf Einzel'!U25),"+",'Wettkampf Einzel'!U25),'Wettkampf Einzel'!U25)),IF(AH25=3,"-",IF('Wettkampf Mannschaft'!W25=0,0,'Wettkampf Mannschaft'!W25))) -> 0 | W25: =IF($AI$3="E",IF('Wettkampf Einzel'!W25=0,0,'Wettkampf Einzel'!W25),IF('Wettkampf Mannschaft'!Y27=0,0,'Wettkampf Mannschaft'!Y27)) -> 0 | X25: =IF($AI$3="E",IF('Wettkampf Einzel'!X25=0,0, IF($AH$1="Ja",IF(ISNUMBER('Wettkampf Einzel'!X25),"+",'Wettkampf Einzel'!X25),'Wettkampf Einzel'!X25)),IF(AH25=2,"-",IF('Wettkampf Mannschaft'!Z25=0,0,'Wettkampf Mannschaft'!Z25))) -> 0 | Y25: =IF($AI$3="E",IF('Wettkampf Einzel'!Y25=0,0,'Wettkampf Einzel'!Y25),IF('Wettkampf Mannschaft'!AA27=0,0,'Wettkampf Mannschaft'!AA27)) -> 0 | Z25: =IF($AI$3="E",IF('Wettkampf Einzel'!Z25=0,0, IF($AH$1="Ja",IF(ISNUMBER('Wettkampf Einzel'!Z25),"+",'Wettkampf Einzel'!Z25),'Wettkampf Einzel'!Z25)),IF(AH25=2,"-",IF('Wettkampf Mannschaft'!AB25=0,0,'Wettkampf Mannschaft'!AB25))) -> 0 | AA25: =IF($AI$3="E",IF('Wettkampf Einzel'!AA25=0,0,'Wettkampf Einzel'!AA25),IF('Wettkampf Mannschaft'!AC27=0,0,'Wettkampf Mannschaft'!AC27)) -> 0 | AB25: =IF($AI$3="E",IF('Wettkampf Einzel'!AB25=0,0, IF($AH$1="Ja",IF(ISNUMBER('Wettkampf Einzel'!AB25),"+",'Wettkampf Einzel'!AB25),'Wettkampf Einzel'!AB25)),IF(AH25=2,"-",IF('Wettkampf Mannschaft'!AD25=0,0,'Wettkampf Mannschaft'!AD25))) -> 0 | AI25: =IF(Einstellung!C59<>"",Einstellung!C59,"") ->  | AJ25: =IF(Rechenhilfe!$O$68=AK25,1,0) -> 0 | AK25: 20 | AL25: =Rechenhilfe!F24 ->  | AO25: 1 | AP25: 1 | AQ25: 1 | AR25: 1 | AS25: 1 | AT25: 1 | AX25: 0 | AY25: 0 | AZ25: 0 | BA25: 0 | BB25: 0 | BC25: 0 | BD25: 0 | BE25: 0 | BF25: 0 | BM25: =IF(Wiegeliste!$D$4<>0,IF($BL25="M",VLOOKUP(Wiegeliste!$D$4,SFGUELTIGAB,6),IF($BR$3="E",VLOOKUP(Wiegeliste!$D$4,SFGUELTIGAB,10), VLOOKUP(Wiegeliste!$D$4,SFGUELTIGAB,6))),"") -> 14 | BN25: =IF(Wettkampf!BK25<>"",VLOOKUP(Wettkampf!BK25, Athl01,4),"") ->  | BO25: =IF(Wettkampf!BK25<>"",YEAR(VLOOKUP(Wettkampf!BK25, Athl01,4)),"") ->  | BP25: =IF(K25<>"",YEAR(Wiegeliste!$D$4) - BO25,0) -> 0 | BQ25: 0 | BT25: =IF(Einstellung!$S$26="M",BS25,BR25) ->  | BV25: 0 | BX25: 0 | BY25: 0 | BZ25: 0 | CA25: 0 | CB25: 0 | CC25: 0 | CD25: 0 | CE25: 0 | CF25: 0 | CG25: 0 | CH25: 0 | CK25: 20 | CN25: =IF(ISERROR(VLOOKUP(CK25,Rechenhilfe!$BQ$68:$BR$217,2,FALSE)),0,VLOOKUP(CK25,Rechenhilfe!$BQ$68:$BR$217,2,FALSE)) -> 0 | CO25: =IF(ISERROR(VLOOKUP(CK25,Rechenhilfe!$BZ$68:$CA$217,2,FALSE)),0,VLOOKUP(CK25,Rechenhilfe!$BZ$68:$CA$217,2,FALSE)) -> 0 | CQ25: 0 | CR25: 0 | CS25: 0 | CT25: 0 | CU25: 0 | CV25: 0 | CW25: 0 | CX25: 0 | CY25: 0 | DC25: =IF($DC$3<>"Ja",0,IF(AX25>0,IF(ISNUMBER('Wettkampf Einzel'!Q25 ),'Wettkampf Einzel'!Q25*$DC$2,0),0)) -> 0 | DD25: =IF($DC$3<>"Ja",0,IF(AY25>0,IF(ISNUMBER('Wettkampf Einzel'!S25 ),'Wettkampf Einzel'!S25*$DC$2,0),0)) -> 0 | DE25: =IF($DC$3<>"Ja",0,IF(AZ25>0,IF(ISNUMBER('Wettkampf Einzel'!U25 ),'Wettkampf Einzel'!U25*$DC$2,0),0)) -> 0 | DF25: =IF($DC$3<>"Ja",0,IF(BB25>0,IF(ISNUMBER('Wettkampf Einzel'!X25 ),'Wettkampf Einzel'!X25*$DC$2,0),0)) -> 0 | DG25: =IF($DC$3<>"Ja",0,IF(BC25>0,IF(ISNUMBER('Wettkampf Einzel'!Z25 ),'Wettkampf Einzel'!Z25*$DC$2,0),0)) -> 0 | DH25: =IF($DC$3<>"Ja",0,IF(BD25>0,IF(ISNUMBER('Wettkampf Einzel'!AB25 ),'Wettkampf Einzel'!AB25*$DC$2,0),0)) -> 0 | DI25: 0 | DJ25: 0 | DK25: 0 | DL25: 0 | DM25: 0 | DN25: 0 | DO25: 0 | DP25: 0 | DQ25: 0 | DS25: 20 | DT25: 9999999999 | DU25: 2524168010 | DV25: 25 | DW25: 10 | DX25: 3 | DY25: 1003 | DZ25: 9999999999 | EA25: 99999999 | EB25: 99
B26: =IF(Rechenhilfe!N89=99,"",IF(Rechenhilfe!O89=0,"",Rechenhilfe!N89-1)) ->  | C26: =IF(Rechenhilfe!N89=99,"",IF(Rechenhilfe!O89=0,$AI$2,VLOOKUP(Rechenhilfe!O89,Zeilen_Athleten,3))) ->  | D26: =IF(Rechenhilfe!N89=99,"",IF(Rechenhilfe!O89=0,"",Rechenhilfe!R89)) ->  | E26: =IF(Rechenhilfe!N89=99,"",IF(Rechenhilfe!O89=0,"",Rechenhilfe!S89)) ->  | H26: =IF(Einstellung!B60<>"",Einstellung!B60,"") ->  | J26: =IF(Einstellung!$S$28="V",IF(Einstellung!K60<>"",Einstellung!K60,""),IF(Einstellung!$S$28="N",IF(Einstellung!AA60<>"",Einstellung!AA60,""),IF(Einstellung!C60<>"",Einstellung!C60,""))) ->  | K26: =IF(Einstellung!F60<>"",Einstellung!F60,"") ->  | M26: 0 | P26: =IF($AI$3="E",IF('Wettkampf Einzel'!P26=0,0,'Wettkampf Einzel'!P26),0) -> 0 | Q26: =IF($AI$3="E",IF('Wettkampf Einzel'!Q26=0,0, IF($AH$1="Ja",IF(ISNUMBER('Wettkampf Einzel'!Q26),"+",'Wettkampf Einzel'!Q26),'Wettkampf Einzel'!Q26)),IF(AH26=3,"-",IF('Wettkampf Mannschaft'!S26=0,0,'Wettkampf Mannschaft'!S26))) -> 0 | R26: =IF($AI$3="E",IF('Wettkampf Einzel'!R26=0,0,'Wettkampf Einzel'!R26),0) -> 0 | S26: =IF($AI$3="E",IF('Wettkampf Einzel'!S26=0,0, IF($AH$1="Ja",IF(ISNUMBER('Wettkampf Einzel'!S26),"+",'Wettkampf Einzel'!S26),'Wettkampf Einzel'!S26)),IF(AH26=3,"-",IF('Wettkampf Mannschaft'!U26=0,0,'Wettkampf Mannschaft'!U26))) -> 0 | T26: =IF($AI$3="E",IF('Wettkampf Einzel'!T26=0,0,'Wettkampf Einzel'!T26),0) -> 0 | U26: =IF($AI$3="E",IF('Wettkampf Einzel'!U26=0,0, IF($AH$1="Ja",IF(ISNUMBER('Wettkampf Einzel'!U26),"+",'Wettkampf Einzel'!U26),'Wettkampf Einzel'!U26)),IF(AH26=3,"-",IF('Wettkampf Mannschaft'!W26=0,0,'Wettkampf Mannschaft'!W26))) -> 0 | W26: =IF($AI$3="E",IF('Wettkampf Einzel'!W26=0,0,'Wettkampf Einzel'!W26),IF('Wettkampf Mannschaft'!Y28=0,0,'Wettkampf Mannschaft'!Y28)) -> 0 | X26: =IF($AI$3="E",IF('Wettkampf Einzel'!X26=0,0, IF($AH$1="Ja",IF(ISNUMBER('Wettkampf Einzel'!X26),"+",'Wettkampf Einzel'!X26),'Wettkampf Einzel'!X26)),IF(AH26=2,"-",IF('Wettkampf Mannschaft'!Z26=0,0,'Wettkampf Mannschaft'!Z26))) -> 0 | Y26: =IF($AI$3="E",IF('Wettkampf Einzel'!Y26=0,0,'Wettkampf Einzel'!Y26),IF('Wettkampf Mannschaft'!AA28=0,0,'Wettkampf Mannschaft'!AA28)) -> 0 | Z26: =IF($AI$3="E",IF('Wettkampf Einzel'!Z26=0,0, IF($AH$1="Ja",IF(ISNUMBER('Wettkampf Einzel'!Z26),"+",'Wettkampf Einzel'!Z26),'Wettkampf Einzel'!Z26)),IF(AH26=2,"-",IF('Wettkampf Mannschaft'!AB26=0,0,'Wettkampf Mannschaft'!AB26))) -> 0 | AA26: =IF($AI$3="E",IF('Wettkampf Einzel'!AA26=0,0,'Wettkampf Einzel'!AA26),IF('Wettkampf Mannschaft'!AC28=0,0,'Wettkampf Mannschaft'!AC28)) -> 0 | AB26: =IF($AI$3="E",IF('Wettkampf Einzel'!AB26=0,0, IF($AH$1="Ja",IF(ISNUMBER('Wettkampf Einzel'!AB26),"+",'Wettkampf Einzel'!AB26),'Wettkampf Einzel'!AB26)),IF(AH26=2,"-",IF('Wettkampf Mannschaft'!AD26=0,0,'Wettkampf Mannschaft'!AD26))) -> 0 | AI26: =IF(Einstellung!C60<>"",Einstellung!C60,"") ->  | AJ26: =IF(Rechenhilfe!$O$68=AK26,1,0) -> 0 | AK26: 21 | AL26: =Rechenhilfe!F25 ->  | AO26: 1 | AP26: 1 | AQ26: 1 | AR26: 1 | AS26: 1 | AT26: 1 | AX26: 0 | AY26: 0 | AZ26: 0 | BA26: 0 | BB26: 0 | BC26: 0 | BD26: 0 | BE26: 0 | BF26: 0 | BM26: =IF(Wiegeliste!$D$4<>0,IF($BL26="M",VLOOKUP(Wiegeliste!$D$4,SFGUELTIGAB,6),IF($BR$3="E",VLOOKUP(Wiegeliste!$D$4,SFGUELTIGAB,10), VLOOKUP(Wiegeliste!$D$4,SFGUELTIGAB,6))),"") -> 14 | BN26: =IF(Wettkampf!BK26<>"",VLOOKUP(Wettkampf!BK26, Athl01,4),"") ->  | BO26: =IF(Wettkampf!BK26<>"",YEAR(VLOOKUP(Wettkampf!BK26, Athl01,4)),"") ->  | BP26: =IF(K26<>"",YEAR(Wiegeliste!$D$4) - BO26,0) -> 0 | BQ26: 0 | BT26: =IF(Einstellung!$S$26="M",BS26,BR26) ->  | BV26: 0 | BX26: 0 | BY26: 0 | BZ26: 0 | CA26: 0 | CB26: 0 | CC26: 0 | CD26: 0 | CE26: 0 | CF26: 0 | CG26: 0 | CH26: 0 | CK26: 21 | CN26: =IF(ISERROR(VLOOKUP(CK26,Rechenhilfe!$BQ$68:$BR$217,2,FALSE)),0,VLOOKUP(CK26,Rechenhilfe!$BQ$68:$BR$217,2,FALSE)) -> 0 | CO26: =IF(ISERROR(VLOOKUP(CK26,Rechenhilfe!$BZ$68:$CA$217,2,FALSE)),0,VLOOKUP(CK26,Rechenhilfe!$BZ$68:$CA$217,2,FALSE)) -> 0 | CQ26: 0 | CR26: 0 | CS26: 0 | CT26: 0 | CU26: 0 | CV26: 0 | CW26: 0 | CX26: 0 | CY26: 0 | DC26: =IF($DC$3<>"Ja",0,IF(AX26>0,IF(ISNUMBER('Wettkampf Einzel'!Q26 ),'Wettkampf Einzel'!Q26*$DC$2,0),0)) -> 0 | DD26: =IF($DC$3<>"Ja",0,IF(AY26>0,IF(ISNUMBER('Wettkampf Einzel'!S26 ),'Wettkampf Einzel'!S26*$DC$2,0),0)) -> 0 | DE26: =IF($DC$3<>"Ja",0,IF(AZ26>0,IF(ISNUMBER('Wettkampf Einzel'!U26 ),'Wettkampf Einzel'!U26*$DC$2,0),0)) -> 0 | DF26: =IF($DC$3<>"Ja",0,IF(BB26>0,IF(ISNUMBER('Wettkampf Einzel'!X26 ),'Wettkampf Einzel'!X26*$DC$2,0),0)) -> 0 | DG26: =IF($DC$3<>"Ja",0,IF(BC26>0,IF(ISNUMBER('Wettkampf Einzel'!Z26 ),'Wettkampf Einzel'!Z26*$DC$2,0),0)) -> 0 | DH26: =IF($DC$3<>"Ja",0,IF(BD26>0,IF(ISNUMBER('Wettkampf Einzel'!AB26 ),'Wettkampf Einzel'!AB26*$DC$2,0),0)) -> 0 | DI26: 0 | DJ26: 0 | DK26: 0 | DL26: 0 | DM26: 0 | DN26: 0 | DO26: 0 | DP26: 0 | DQ26: 0 | DS26: 21 | DT26: 9999999999 | DU26: 2522608011 | DV26: 25 | DW26: 11 | DX26: 4 | DY26: 1104 | DZ26: 9999999999 | EA26: 99999999 | EB26: 99
B27: =IF(Rechenhilfe!N90=99,"",IF(Rechenhilfe!O90=0,"",Rechenhilfe!N90-1)) ->  | C27: =IF(Rechenhilfe!N90=99,"",IF(Rechenhilfe!O90=0,$AI$2,VLOOKUP(Rechenhilfe!O90,Zeilen_Athleten,3))) ->  | D27: =IF(Rechenhilfe!N90=99,"",IF(Rechenhilfe!O90=0,"",Rechenhilfe!R90)) ->  | E27: =IF(Rechenhilfe!N90=99,"",IF(Rechenhilfe!O90=0,"",Rechenhilfe!S90)) ->  | H27: =IF(Einstellung!B61<>"",Einstellung!B61,"") ->  | J27: =IF(Einstellung!$S$28="V",IF(Einstellung!K61<>"",Einstellung!K61,""),IF(Einstellung!$S$28="N",IF(Einstellung!AA61<>"",Einstellung!AA61,""),IF(Einstellung!C61<>"",Einstellung!C61,""))) ->  | K27: =IF(Einstellung!F61<>"",Einstellung!F61,"") ->  | M27: 0 | P27: =IF($AI$3="E",IF('Wettkampf Einzel'!P27=0,0,'Wettkampf Einzel'!P27),0) -> 0 | Q27: =IF($AI$3="E",IF('Wettkampf Einzel'!Q27=0,0, IF($AH$1="Ja",IF(ISNUMBER('Wettkampf Einzel'!Q27),"+",'Wettkampf Einzel'!Q27),'Wettkampf Einzel'!Q27)),IF(AH27=3,"-",IF('Wettkampf Mannschaft'!S27=0,0,'Wettkampf Mannschaft'!S27))) -> 0 | R27: =IF($AI$3="E",IF('Wettkampf Einzel'!R27=0,0,'Wettkampf Einzel'!R27),0) -> 0 | S27: =IF($AI$3="E",IF('Wettkampf Einzel'!S27=0,0, IF($AH$1="Ja",IF(ISNUMBER('Wettkampf Einzel'!S27),"+",'Wettkampf Einzel'!S27),'Wettkampf Einzel'!S27)),IF(AH27=3,"-",IF('Wettkampf Mannschaft'!U27=0,0,'Wettkampf Mannschaft'!U27))) -> 0 | T27: =IF($AI$3="E",IF('Wettkampf Einzel'!T27=0,0,'Wettkampf Einzel'!T27),0) -> 0 | U27: =IF($AI$3="E",IF('Wettkampf Einzel'!U27=0,0, IF($AH$1="Ja",IF(ISNUMBER('Wettkampf Einzel'!U27),"+",'Wettkampf Einzel'!U27),'Wettkampf Einzel'!U27)),IF(AH27=3,"-",IF('Wettkampf Mannschaft'!W27=0,0,'Wettkampf Mannschaft'!W27))) -> 0 | W27: =IF($AI$3="E",IF('Wettkampf Einzel'!W27=0,0,'Wettkampf Einzel'!W27),IF('Wettkampf Mannschaft'!Y29=0,0,'Wettkampf Mannschaft'!Y29)) -> 0 | X27: =IF($AI$3="E",IF('Wettkampf Einzel'!X27=0,0, IF($AH$1="Ja",IF(ISNUMBER('Wettkampf Einzel'!X27),"+",'Wettkampf Einzel'!X27),'Wettkampf Einzel'!X27)),IF(AH27=2,"-",IF('Wettkampf Mannschaft'!Z27=0,0,'Wettkampf Mannschaft'!Z27))) -> 0 | Y27: =IF($AI$3="E",IF('Wettkampf Einzel'!Y27=0,0,'Wettkampf Einzel'!Y27),IF('Wettkampf Mannschaft'!AA29=0,0,'Wettkampf Mannschaft'!AA29)) -> 0 | Z27: =IF($AI$3="E",IF('Wettkampf Einzel'!Z27=0,0, IF($AH$1="Ja",IF(ISNUMBER('Wettkampf Einzel'!Z27),"+",'Wettkampf Einzel'!Z27),'Wettkampf Einzel'!Z27)),IF(AH27=2,"-",IF('Wettkampf Mannschaft'!AB27=0,0,'Wettkampf Mannschaft'!AB27))) -> 0 | AA27: =IF($AI$3="E",IF('Wettkampf Einzel'!AA27=0,0,'Wettkampf Einzel'!AA27),IF('Wettkampf Mannschaft'!AC29=0,0,'Wettkampf Mannschaft'!AC29)) -> 0 | AB27: =IF($AI$3="E",IF('Wettkampf Einzel'!AB27=0,0, IF($AH$1="Ja",IF(ISNUMBER('Wettkampf Einzel'!AB27),"+",'Wettkampf Einzel'!AB27),'Wettkampf Einzel'!AB27)),IF(AH27=2,"-",IF('Wettkampf Mannschaft'!AD27=0,0,'Wettkampf Mannschaft'!AD27))) -> 0 | AI27: =IF(Einstellung!C61<>"",Einstellung!C61,"") ->  | AJ27: =IF(Rechenhilfe!$O$68=AK27,1,0) -> 0 | AK27: 22 | AL27: =Rechenhilfe!F26 ->  | AO27: 1 | AP27: 1 | AQ27: 1 | AR27: 1 | AS27: 1 | AT27: 1 | AX27: 0 | AY27: 0 | AZ27: 0 | BA27: 0 | BB27: 0 | BC27: 0 | BD27: 0 | BE27: 0 | BF27: 0 | BM27: =IF(Wiegeliste!$D$4<>0,IF($BL27="M",VLOOKUP(Wiegeliste!$D$4,SFGUELTIGAB,6),IF($BR$3="E",VLOOKUP(Wiegeliste!$D$4,SFGUELTIGAB,10), VLOOKUP(Wiegeliste!$D$4,SFGUELTIGAB,6))),"") -> 14 | BN27: =IF(Wettkampf!BK27<>"",VLOOKUP(Wettkampf!BK27, Athl01,4),"") ->  | BO27: =IF(Wettkampf!BK27<>"",YEAR(VLOOKUP(Wettkampf!BK27, Athl01,4)),"") ->  | BP27: =IF(K27<>"",YEAR(Wiegeliste!$D$4) - BO27,0) -> 0 | BQ27: 0 | BT27: =IF(Einstellung!$S$26="M",BS27,BR27) ->  | BV27: 0 | BX27: 0 | BY27: 0 | BZ27: 0 | CA27: 0 | CB27: 0 | CC27: 0 | CD27: 0 | CE27: 0 | CF27: 0 | CG27: 0 | CH27: 0 | CK27: 22 | CN27: =IF(ISERROR(VLOOKUP(CK27,Rechenhilfe!$BQ$68:$BR$217,2,FALSE)),0,VLOOKUP(CK27,Rechenhilfe!$BQ$68:$BR$217,2,FALSE)) -> 0 | CO27: =IF(ISERROR(VLOOKUP(CK27,Rechenhilfe!$BZ$68:$CA$217,2,FALSE)),0,VLOOKUP(CK27,Rechenhilfe!$BZ$68:$CA$217,2,FALSE)) -> 0 | CQ27: 0 | CR27: 0 | CS27: 0 | CT27: 0 | CU27: 0 | CV27: 0 | CW27: 0 | CX27: 0 | CY27: 0 | DC27: =IF($DC$3<>"Ja",0,IF(AX27>0,IF(ISNUMBER('Wettkampf Einzel'!Q27 ),'Wettkampf Einzel'!Q27*$DC$2,0),0)) -> 0 | DD27: =IF($DC$3<>"Ja",0,IF(AY27>0,IF(ISNUMBER('Wettkampf Einzel'!S27 ),'Wettkampf Einzel'!S27*$DC$2,0),0)) -> 0 | DE27: =IF($DC$3<>"Ja",0,IF(AZ27>0,IF(ISNUMBER('Wettkampf Einzel'!U27 ),'Wettkampf Einzel'!U27*$DC$2,0),0)) -> 0 | DF27: =IF($DC$3<>"Ja",0,IF(BB27>0,IF(ISNUMBER('Wettkampf Einzel'!X27 ),'Wettkampf Einzel'!X27*$DC$2,0),0)) -> 0 | DG27: =IF($DC$3<>"Ja",0,IF(BC27>0,IF(ISNUMBER('Wettkampf Einzel'!Z27 ),'Wettkampf Einzel'!Z27*$DC$2,0),0)) -> 0 | DH27: =IF($DC$3<>"Ja",0,IF(BD27>0,IF(ISNUMBER('Wettkampf Einzel'!AB27 ),'Wettkampf Einzel'!AB27*$DC$2,0),0)) -> 0 | DI27: 0 | DJ27: 0 | DK27: 0 | DL27: 0 | DM27: 0 | DN27: 0 | DO27: 0 | DP27: 0 | DQ27: 0 | DS27: 22 | DT27: 9999999999 | DU27: 2425802005 | DV27: 24 | DW27: 5 | DX27: 1 | DY27: 501 | DZ27: 9999999999 | EA27: 99999999 | EB27: 99
B28: =IF(Rechenhilfe!N91=99,"",IF(Rechenhilfe!O91=0,"",Rechenhilfe!N91-1)) ->  | C28: =IF(Rechenhilfe!N91=99,"",IF(Rechenhilfe!O91=0,$AI$2,VLOOKUP(Rechenhilfe!O91,Zeilen_Athleten,3))) ->  | D28: =IF(Rechenhilfe!N91=99,"",IF(Rechenhilfe!O91=0,"",Rechenhilfe!R91)) ->  | E28: =IF(Rechenhilfe!N91=99,"",IF(Rechenhilfe!O91=0,"",Rechenhilfe!S91)) ->  | H28: =IF(Einstellung!B62<>"",Einstellung!B62,"") ->  | J28: =IF(Einstellung!$S$28="V",IF(Einstellung!K62<>"",Einstellung!K62,""),IF(Einstellung!$S$28="N",IF(Einstellung!AA62<>"",Einstellung!AA62,""),IF(Einstellung!C62<>"",Einstellung!C62,""))) ->  | K28: =IF(Einstellung!F62<>"",Einstellung!F62,"") ->  | M28: 0 | P28: =IF($AI$3="E",IF('Wettkampf Einzel'!P28=0,0,'Wettkampf Einzel'!P28),0) -> 0 | Q28: =IF($AI$3="E",IF('Wettkampf Einzel'!Q28=0,0, IF($AH$1="Ja",IF(ISNUMBER('Wettkampf Einzel'!Q28),"+",'Wettkampf Einzel'!Q28),'Wettkampf Einzel'!Q28)),IF(AH28=3,"-",IF('Wettkampf Mannschaft'!S28=0,0,'Wettkampf Mannschaft'!S28))) -> 0 | R28: =IF($AI$3="E",IF('Wettkampf Einzel'!R28=0,0,'Wettkampf Einzel'!R28),0) -> 0 | S28: =IF($AI$3="E",IF('Wettkampf Einzel'!S28=0,0, IF($AH$1="Ja",IF(ISNUMBER('Wettkampf Einzel'!S28),"+",'Wettkampf Einzel'!S28),'Wettkampf Einzel'!S28)),IF(AH28=3,"-",IF('Wettkampf Mannschaft'!U28=0,0,'Wettkampf Mannschaft'!U28))) -> 0 | T28: =IF($AI$3="E",IF('Wettkampf Einzel'!T28=0,0,'Wettkampf Einzel'!T28),0) -> 0 | U28: =IF($AI$3="E",IF('Wettkampf Einzel'!U28=0,0, IF($AH$1="Ja",IF(ISNUMBER('Wettkampf Einzel'!U28),"+",'Wettkampf Einzel'!U28),'Wettkampf Einzel'!U28)),IF(AH28=3,"-",IF('Wettkampf Mannschaft'!W28=0,0,'Wettkampf Mannschaft'!W28))) -> 0 | W28: =IF($AI$3="E",IF('Wettkampf Einzel'!W28=0,0,'Wettkampf Einzel'!W28),IF('Wettkampf Mannschaft'!Y30=0,0,'Wettkampf Mannschaft'!Y30)) -> 0 | X28: =IF($AI$3="E",IF('Wettkampf Einzel'!X28=0,0, IF($AH$1="Ja",IF(ISNUMBER('Wettkampf Einzel'!X28),"+",'Wettkampf Einzel'!X28),'Wettkampf Einzel'!X28)),IF(AH28=2,"-",IF('Wettkampf Mannschaft'!Z28=0,0,'Wettkampf Mannschaft'!Z28))) -> 0 | Y28: =IF($AI$3="E",IF('Wettkampf Einzel'!Y28=0,0,'Wettkampf Einzel'!Y28),IF('Wettkampf Mannschaft'!AA30=0,0,'Wettkampf Mannschaft'!AA30)) -> 0 | Z28: =IF($AI$3="E",IF('Wettkampf Einzel'!Z28=0,0, IF($AH$1="Ja",IF(ISNUMBER('Wettkampf Einzel'!Z28),"+",'Wettkampf Einzel'!Z28),'Wettkampf Einzel'!Z28)),IF(AH28=2,"-",IF('Wettkampf Mannschaft'!AB28=0,0,'Wettkampf Mannschaft'!AB28))) -> 0 | AA28: =IF($AI$3="E",IF('Wettkampf Einzel'!AA28=0,0,'Wettkampf Einzel'!AA28),IF('Wettkampf Mannschaft'!AC30=0,0,'Wettkampf Mannschaft'!AC30)) -> 0 | AB28: =IF($AI$3="E",IF('Wettkampf Einzel'!AB28=0,0, IF($AH$1="Ja",IF(ISNUMBER('Wettkampf Einzel'!AB28),"+",'Wettkampf Einzel'!AB28),'Wettkampf Einzel'!AB28)),IF(AH28=2,"-",IF('Wettkampf Mannschaft'!AD28=0,0,'Wettkampf Mannschaft'!AD28))) -> 0 | AI28: =IF(Einstellung!C62<>"",Einstellung!C62,"") ->  | AJ28: =IF(Rechenhilfe!$O$68=AK28,1,0) -> 0 | AK28: 23 | AL28: =Rechenhilfe!F27 ->  | AO28: 1 | AP28: 1 | AQ28: 1 | AR28: 1 | AS28: 1 | AT28: 1 | AX28: 0 | AY28: 0 | AZ28: 0 | BA28: 0 | BB28: 0 | BC28: 0 | BD28: 0 | BE28: 0 | BF28: 0 | BM28: =IF(Wiegeliste!$D$4<>0,IF($BL28="M",VLOOKUP(Wiegeliste!$D$4,SFGUELTIGAB,6),IF($BR$3="E",VLOOKUP(Wiegeliste!$D$4,SFGUELTIGAB,10), VLOOKUP(Wiegeliste!$D$4,SFGUELTIGAB,6))),"") -> 14 | BN28: =IF(Wettkampf!BK28<>"",VLOOKUP(Wettkampf!BK28, Athl01,4),"") ->  | BO28: =IF(Wettkampf!BK28<>"",YEAR(VLOOKUP(Wettkampf!BK28, Athl01,4)),"") ->  | BP28: =IF(K28<>"",YEAR(Wiegeliste!$D$4) - BO28,0) -> 0 | BQ28: 0 | BT28: =IF(Einstellung!$S$26="M",BS28,BR28) ->  | BV28: 0 | BX28: 0 | BY28: 0 | BZ28: 0 | CA28: 0 | CB28: 0 | CC28: 0 | CD28: 0 | CE28: 0 | CF28: 0 | CG28: 0 | CH28: 0 | CK28: 23 | CN28: =IF(ISERROR(VLOOKUP(CK28,Rechenhilfe!$BQ$68:$BR$217,2,FALSE)),0,VLOOKUP(CK28,Rechenhilfe!$BQ$68:$BR$217,2,FALSE)) -> 0 | CO28: =IF(ISERROR(VLOOKUP(CK28,Rechenhilfe!$BZ$68:$CA$217,2,FALSE)),0,VLOOKUP(CK28,Rechenhilfe!$BZ$68:$CA$217,2,FALSE)) -> 0 | CQ28: 0 | CR28: 0 | CS28: 0 | CT28: 0 | CU28: 0 | CV28: 0 | CW28: 0 | CX28: 0 | CY28: 0 | DC28: =IF($DC$3<>"Ja",0,IF(AX28>0,IF(ISNUMBER('Wettkampf Einzel'!Q28 ),'Wettkampf Einzel'!Q28*$DC$2,0),0)) -> 0 | DD28: =IF($DC$3<>"Ja",0,IF(AY28>0,IF(ISNUMBER('Wettkampf Einzel'!S28 ),'Wettkampf Einzel'!S28*$DC$2,0),0)) -> 0 | DE28: =IF($DC$3<>"Ja",0,IF(AZ28>0,IF(ISNUMBER('Wettkampf Einzel'!U28 ),'Wettkampf Einzel'!U28*$DC$2,0),0)) -> 0 | DF28: =IF($DC$3<>"Ja",0,IF(BB28>0,IF(ISNUMBER('Wettkampf Einzel'!X28 ),'Wettkampf Einzel'!X28*$DC$2,0),0)) -> 0 | DG28: =IF($DC$3<>"Ja",0,IF(BC28>0,IF(ISNUMBER('Wettkampf Einzel'!Z28 ),'Wettkampf Einzel'!Z28*$DC$2,0),0)) -> 0 | DH28: =IF($DC$3<>"Ja",0,IF(BD28>0,IF(ISNUMBER('Wettkampf Einzel'!AB28 ),'Wettkampf Einzel'!AB28*$DC$2,0),0)) -> 0 | DI28: 0 | DJ28: 0 | DK28: 0 | DL28: 0 | DM28: 0 | DN28: 0 | DO28: 0 | DP28: 0 | DQ28: 0 | DS28: 23 | DT28: 9999999999 | DU28: 2422048006 | DV28: 24 | DW28: 6 | DX28: 2 | DY28: 602 | DZ28: 9999999999 | EA28: 99999999 | EB28: 99
B29: =IF(Rechenhilfe!N92=99,"",IF(Rechenhilfe!O92=0,"",Rechenhilfe!N92-1)) ->  | C29: =IF(Rechenhilfe!N92=99,"",IF(Rechenhilfe!O92=0,$AI$2,VLOOKUP(Rechenhilfe!O92,Zeilen_Athleten,3))) ->  | D29: =IF(Rechenhilfe!N92=99,"",IF(Rechenhilfe!O92=0,"",Rechenhilfe!R92)) ->  | E29: =IF(Rechenhilfe!N92=99,"",IF(Rechenhilfe!O92=0,"",Rechenhilfe!S92)) ->  | H29: =IF(Einstellung!B63<>"",Einstellung!B63,"") ->  | J29: =IF(Einstellung!$S$28="V",IF(Einstellung!K63<>"",Einstellung!K63,""),IF(Einstellung!$S$28="N",IF(Einstellung!AA63<>"",Einstellung!AA63,""),IF(Einstellung!C63<>"",Einstellung!C63,""))) ->  | K29: =IF(Einstellung!F63<>"",Einstellung!F63,"") ->  | M29: 0 | P29: =IF($AI$3="E",IF('Wettkampf Einzel'!P29=0,0,'Wettkampf Einzel'!P29),0) -> 0 | Q29: =IF($AI$3="E",IF('Wettkampf Einzel'!Q29=0,0, IF($AH$1="Ja",IF(ISNUMBER('Wettkampf Einzel'!Q29),"+",'Wettkampf Einzel'!Q29),'Wettkampf Einzel'!Q29)),IF(AH29=3,"-",IF('Wettkampf Mannschaft'!S29=0,0,'Wettkampf Mannschaft'!S29))) -> 0 | R29: =IF($AI$3="E",IF('Wettkampf Einzel'!R29=0,0,'Wettkampf Einzel'!R29),0) -> 0 | S29: =IF($AI$3="E",IF('Wettkampf Einzel'!S29=0,0, IF($AH$1="Ja",IF(ISNUMBER('Wettkampf Einzel'!S29),"+",'Wettkampf Einzel'!S29),'Wettkampf Einzel'!S29)),IF(AH29=3,"-",IF('Wettkampf Mannschaft'!U29=0,0,'Wettkampf Mannschaft'!U29))) -> 0 | T29: =IF($AI$3="E",IF('Wettkampf Einzel'!T29=0,0,'Wettkampf Einzel'!T29),0) -> 0 | U29: =IF($AI$3="E",IF('Wettkampf Einzel'!U29=0,0, IF($AH$1="Ja",IF(ISNUMBER('Wettkampf Einzel'!U29),"+",'Wettkampf Einzel'!U29),'Wettkampf Einzel'!U29)),IF(AH29=3,"-",IF('Wettkampf Mannschaft'!W29=0,0,'Wettkampf Mannschaft'!W29))) -> 0 | W29: =IF($AI$3="E",IF('Wettkampf Einzel'!W29=0,0,'Wettkampf Einzel'!W29),IF('Wettkampf Mannschaft'!Y31=0,0,'Wettkampf Mannschaft'!Y31)) -> 0 | X29: =IF($AI$3="E",IF('Wettkampf Einzel'!X29=0,0, IF($AH$1="Ja",IF(ISNUMBER('Wettkampf Einzel'!X29),"+",'Wettkampf Einzel'!X29),'Wettkampf Einzel'!X29)),IF(AH29=2,"-",IF('Wettkampf Mannschaft'!Z29=0,0,'Wettkampf Mannschaft'!Z29))) -> 0 | Y29: =IF($AI$3="E",IF('Wettkampf Einzel'!Y29=0,0,'Wettkampf Einzel'!Y29),IF('Wettkampf Mannschaft'!AA31=0,0,'Wettkampf Mannschaft'!AA31)) -> 0 | Z29: =IF($AI$3="E",IF('Wettkampf Einzel'!Z29=0,0, IF($AH$1="Ja",IF(ISNUMBER('Wettkampf Einzel'!Z29),"+",'Wettkampf Einzel'!Z29),'Wettkampf Einzel'!Z29)),IF(AH29=2,"-",IF('Wettkampf Mannschaft'!AB29=0,0,'Wettkampf Mannschaft'!AB29))) -> 0 | AA29: =IF($AI$3="E",IF('Wettkampf Einzel'!AA29=0,0,'Wettkampf Einzel'!AA29),IF('Wettkampf Mannschaft'!AC31=0,0,'Wettkampf Mannschaft'!AC31)) -> 0 | AB29: =IF($AI$3="E",IF('Wettkampf Einzel'!AB29=0,0, IF($AH$1="Ja",IF(ISNUMBER('Wettkampf Einzel'!AB29),"+",'Wettkampf Einzel'!AB29),'Wettkampf Einzel'!AB29)),IF(AH29=2,"-",IF('Wettkampf Mannschaft'!AD29=0,0,'Wettkampf Mannschaft'!AD29))) -> 0 | AI29: =IF(Einstellung!C63<>"",Einstellung!C63,"") ->  | AJ29: =IF(Rechenhilfe!$O$68=AK29,1,0) -> 0 | AK29: 24 | AL29: =Rechenhilfe!F28 ->  | AO29: 1 | AP29: 1 | AQ29: 1 | AR29: 1 | AS29: 1 | AT29: 1 | AX29: 0 | AY29: 0 | AZ29: 0 | BA29: 0 | BB29: 0 | BC29: 0 | BD29: 0 | BE29: 0 | BF29: 0 | BM29: =IF(Wiegeliste!$D$4<>0,IF($BL29="M",VLOOKUP(Wiegeliste!$D$4,SFGUELTIGAB,6),IF($BR$3="E",VLOOKUP(Wiegeliste!$D$4,SFGUELTIGAB,10), VLOOKUP(Wiegeliste!$D$4,SFGUELTIGAB,6))),"") -> 14 | BN29: =IF(Wettkampf!BK29<>"",VLOOKUP(Wettkampf!BK29, Athl01,4),"") ->  | BO29: =IF(Wettkampf!BK29<>"",YEAR(VLOOKUP(Wettkampf!BK29, Athl01,4)),"") ->  | BP29: =IF(K29<>"",YEAR(Wiegeliste!$D$4) - BO29,0) -> 0 | BQ29: 0 | BT29: =IF(Einstellung!$S$26="M",BS29,BR29) ->  | BV29: 0 | BX29: 0 | BY29: 0 | BZ29: 0 | CA29: 0 | CB29: 0 | CC29: 0 | CD29: 0 | CE29: 0 | CF29: 0 | CG29: 0 | CH29: 0 | CK29: 24 | CN29: =IF(ISERROR(VLOOKUP(CK29,Rechenhilfe!$BQ$68:$BR$217,2,FALSE)),0,VLOOKUP(CK29,Rechenhilfe!$BQ$68:$BR$217,2,FALSE)) -> 0 | CO29: =IF(ISERROR(VLOOKUP(CK29,Rechenhilfe!$BZ$68:$CA$217,2,FALSE)),0,VLOOKUP(CK29,Rechenhilfe!$BZ$68:$CA$217,2,FALSE)) -> 0 | CQ29: 0 | CR29: 0 | CS29: 0 | CT29: 0 | CU29: 0 | CV29: 0 | CW29: 0 | CX29: 0 | CY29: 0 | DC29: =IF($DC$3<>"Ja",0,IF(AX29>0,IF(ISNUMBER('Wettkampf Einzel'!Q29 ),'Wettkampf Einzel'!Q29*$DC$2,0),0)) -> 0 | DD29: =IF($DC$3<>"Ja",0,IF(AY29>0,IF(ISNUMBER('Wettkampf Einzel'!S29 ),'Wettkampf Einzel'!S29*$DC$2,0),0)) -> 0 | DE29: =IF($DC$3<>"Ja",0,IF(AZ29>0,IF(ISNUMBER('Wettkampf Einzel'!U29 ),'Wettkampf Einzel'!U29*$DC$2,0),0)) -> 0 | DF29: =IF($DC$3<>"Ja",0,IF(BB29>0,IF(ISNUMBER('Wettkampf Einzel'!X29 ),'Wettkampf Einzel'!X29*$DC$2,0),0)) -> 0 | DG29: =IF($DC$3<>"Ja",0,IF(BC29>0,IF(ISNUMBER('Wettkampf Einzel'!Z29 ),'Wettkampf Einzel'!Z29*$DC$2,0),0)) -> 0 | DH29: =IF($DC$3<>"Ja",0,IF(BD29>0,IF(ISNUMBER('Wettkampf Einzel'!AB29 ),'Wettkampf Einzel'!AB29*$DC$2,0),0)) -> 0 | DI29: 0 | DJ29: 0 | DK29: 0 | DL29: 0 | DM29: 0 | DN29: 0 | DO29: 0 | DP29: 0 | DQ29: 0 | DS29: 24 | DT29: 9999999999 | DU29: 2329244003 | DV29: 23 | DW29: 3 | DX29: 1 | DY29: 301 | DZ29: 9999999999 | EA29: 99999999 | EB29: 99
B30: =IF(Rechenhilfe!N93=99,"",IF(Rechenhilfe!O93=0,"",Rechenhilfe!N93-1)) ->  | C30: =IF(Rechenhilfe!N93=99,"",IF(Rechenhilfe!O93=0,$AI$2,VLOOKUP(Rechenhilfe!O93,Zeilen_Athleten,3))) ->  | D30: =IF(Rechenhilfe!N93=99,"",IF(Rechenhilfe!O93=0,"",Rechenhilfe!R93)) ->  | E30: =IF(Rechenhilfe!N93=99,"",IF(Rechenhilfe!O93=0,"",Rechenhilfe!S93)) ->  | H30: =IF(Einstellung!B64<>"",Einstellung!B64,"") ->  | J30: =IF(Einstellung!$S$28="V",IF(Einstellung!K64<>"",Einstellung!K64,""),IF(Einstellung!$S$28="N",IF(Einstellung!AA64<>"",Einstellung!AA64,""),IF(Einstellung!C64<>"",Einstellung!C64,""))) ->  | K30: =IF(Einstellung!F64<>"",Einstellung!F64,"") ->  | M30: 0 | P30: =IF($AI$3="E",IF('Wettkampf Einzel'!P30=0,0,'Wettkampf Einzel'!P30),0) -> 0 | Q30: =IF($AI$3="E",IF('Wettkampf Einzel'!Q30=0,0, IF($AH$1="Ja",IF(ISNUMBER('Wettkampf Einzel'!Q30),"+",'Wettkampf Einzel'!Q30),'Wettkampf Einzel'!Q30)),IF(AH30=3,"-",IF('Wettkampf Mannschaft'!S30=0,0,'Wettkampf Mannschaft'!S30))) -> 0 | R30: =IF($AI$3="E",IF('Wettkampf Einzel'!R30=0,0,'Wettkampf Einzel'!R30),0) -> 0 | S30: =IF($AI$3="E",IF('Wettkampf Einzel'!S30=0,0, IF($AH$1="Ja",IF(ISNUMBER('Wettkampf Einzel'!S30),"+",'Wettkampf Einzel'!S30),'Wettkampf Einzel'!S30)),IF(AH30=3,"-",IF('Wettkampf Mannschaft'!U30=0,0,'Wettkampf Mannschaft'!U30))) -> 0 | T30: =IF($AI$3="E",IF('Wettkampf Einzel'!T30=0,0,'Wettkampf Einzel'!T30),0) -> 0 | U30: =IF($AI$3="E",IF('Wettkampf Einzel'!U30=0,0, IF($AH$1="Ja",IF(ISNUMBER('Wettkampf Einzel'!U30),"+",'Wettkampf Einzel'!U30),'Wettkampf Einzel'!U30)),IF(AH30=3,"-",IF('Wettkampf Mannschaft'!W30=0,0,'Wettkampf Mannschaft'!W30))) -> 0 | W30: =IF($AI$3="E",IF('Wettkampf Einzel'!W30=0,0,'Wettkampf Einzel'!W30),0) -> 0 | X30: =IF($AI$3="E",IF('Wettkampf Einzel'!X30=0,0, IF($AH$1="Ja",IF(ISNUMBER('Wettkampf Einzel'!X30),"+",'Wettkampf Einzel'!X30),'Wettkampf Einzel'!X30)),IF(AH30=2,"-",IF('Wettkampf Mannschaft'!Z30=0,0,'Wettkampf Mannschaft'!Z30))) -> 0 | Y30: =IF($AI$3="E",IF('Wettkampf Einzel'!Y30=0,0,'Wettkampf Einzel'!Y30),0) -> 0 | Z30: =IF($AI$3="E",IF('Wettkampf Einzel'!Z30=0,0, IF($AH$1="Ja",IF(ISNUMBER('Wettkampf Einzel'!Z30),"+",'Wettkampf Einzel'!Z30),'Wettkampf Einzel'!Z30)),IF(AH30=2,"-",IF('Wettkampf Mannschaft'!AB30=0,0,'Wettkampf Mannschaft'!AB30))) -> 0 | AA30: =IF($AI$3="E",IF('Wettkampf Einzel'!AA30=0,0,'Wettkampf Einzel'!AA30),0) -> 0 | AB30: =IF($AI$3="E",IF('Wettkampf Einzel'!AB30=0,0, IF($AH$1="Ja",IF(ISNUMBER('Wettkampf Einzel'!AB30),"+",'Wettkampf Einzel'!AB30),'Wettkampf Einzel'!AB30)),IF(AH30=2,"-",IF('Wettkampf Mannschaft'!AD30=0,0,'Wettkampf Mannschaft'!AD30))) -> 0 | AI30: =IF(Einstellung!C64<>"",Einstellung!C64,"") ->  | AJ30: =IF(Rechenhilfe!$O$68=AK30,1,0) -> 0 | AK30: 25 | AL30: =Rechenhilfe!F29 ->  | AO30: 1 | AP30: 1 | AQ30: 1 | AR30: 1 | AS30: 1 | AT30: 1 | AX30: 0 | AY30: 0 | AZ30: 0 | BA30: 0 | BB30: 0 | BC30: 0 | BD30: 0 | BE30: 0 | BF30: 0 | BM30: =IF(Wiegeliste!$D$4<>0,IF($BL30="M",VLOOKUP(Wiegeliste!$D$4,SFGUELTIGAB,6),IF($BR$3="E",VLOOKUP(Wiegeliste!$D$4,SFGUELTIGAB,10), VLOOKUP(Wiegeliste!$D$4,SFGUELTIGAB,6))),"") -> 14 | BN30: =IF(Wettkampf!BK30<>"",VLOOKUP(Wettkampf!BK30, Athl01,4),"") ->  | BO30: =IF(Wettkampf!BK30<>"",YEAR(VLOOKUP(Wettkampf!BK30, Athl01,4)),"") ->  | BP30: =IF(K30<>"",YEAR(Wiegeliste!$D$4) - BO30,0) -> 0 | BQ30: 0 | BT30: =IF(Einstellung!$S$26="M",BS30,BR30) ->  | BV30: 0 | BX30: 0 | BY30: 0 | BZ30: 0 | CA30: 0 | CB30: 0 | CC30: 0 | CD30: 0 | CE30: 0 | CF30: 0 | CG30: 0 | CH30: 0 | CK30: 25 | CN30: =IF(ISERROR(VLOOKUP(CK30,Rechenhilfe!$BQ$68:$BR$217,2,FALSE)),0,VLOOKUP(CK30,Rechenhilfe!$BQ$68:$BR$217,2,FALSE)) -> 0 | CO30: =IF(ISERROR(VLOOKUP(CK30,Rechenhilfe!$BZ$68:$CA$217,2,FALSE)),0,VLOOKUP(CK30,Rechenhilfe!$BZ$68:$CA$217,2,FALSE)) -> 0 | CQ30: 0 | CR30: 0 | CS30: 0 | CT30: 0 | CU30: 0 | CV30: 0 | CW30: 0 | CX30: 0 | CY30: 0 | DC30: =IF($DC$3<>"Ja",0,IF(AX30>0,IF(ISNUMBER('Wettkampf Einzel'!Q30 ),'Wettkampf Einzel'!Q30*$DC$2,0),0)) -> 0 | DD30: =IF($DC$3<>"Ja",0,IF(AY30>0,IF(ISNUMBER('Wettkampf Einzel'!S30 ),'Wettkampf Einzel'!S30*$DC$2,0),0)) -> 0 | DE30: =IF($DC$3<>"Ja",0,IF(AZ30>0,IF(ISNUMBER('Wettkampf Einzel'!U30 ),'Wettkampf Einzel'!U30*$DC$2,0),0)) -> 0 | DF30: =IF($DC$3<>"Ja",0,IF(BB30>0,IF(ISNUMBER('Wettkampf Einzel'!X30 ),'Wettkampf Einzel'!X30*$DC$2,0),0)) -> 0 | DG30: =IF($DC$3<>"Ja",0,IF(BC30>0,IF(ISNUMBER('Wettkampf Einzel'!Z30 ),'Wettkampf Einzel'!Z30*$DC$2,0),0)) -> 0 | DH30: =IF($DC$3<>"Ja",0,IF(BD30>0,IF(ISNUMBER('Wettkampf Einzel'!AB30 ),'Wettkampf Einzel'!AB30*$DC$2,0),0)) -> 0 | DI30: 0 | DJ30: 0 | DK30: 0 | DL30: 0 | DM30: 0 | DN30: 0 | DO30: 0 | DP30: 0 | DQ30: 0 | DS30: 25 | DT30: 9999999999 | DU30: 1516847001 | DV30: 15 | DW30: 1 | DX30: 1 | DY30: 101 | DZ30: 9999999999 | EA30: 99999999 | EB30: 99

Sheet Rechenhilfe (hidden)
I1: 100000000000
I2: 100000000
A3: 55 | H3: =IF(UPPER(Einstellung!S26)="P",2,IF(UPPER(Einstellung!S26)="M",2,1)) -> 1 | I3: 10000 | Q3: Rang in der | V3: =O68 -> 99
D4: Zeile | E4: Gruppe | F4: Nr. Gruppe | G4: Übergruppe | H4: Ergebnis | I4: Rechenfeld | P4: Zeile | Q4: Gruppe | S4: BEST R | T4: BEST S | V4: Mit gültigem Versuch? | AD4: Zeile | AE4: Rang in Gruppe wenn gültig | AI4: Mit gültigem Versuch Stossen? | AQ4: Zeile | AR4: Rang in Gruppe wenn gültig
A5: =Wettkampf!U1 -> 2015-02-14 | B5: =YEAR(A5) -> 2015 | D5: 1 | E5: =Wettkampf!H6 -> W-69 | F5: =IF(E5=0,0,IF(VLOOKUP(E5,Gruppe,1,FALSE)=E5,VLOOKUP(E5,Gruppe,2,FALSE),0)) -> 15 | G5: =IF(E5=0,9,IF(VLOOKUP(E5,Gruppe,1,FALSE)=E5,VLOOKUP(E5,Gruppe,3,FALSE),9)) -> 1 | H5: =IF($H$3=1,IF(Wettkampf!M6=0,"",Wettkampf!M6),Wettkampf!N6) -> 129 | I5: =IF(H5="",0,F5*$I$1 + H5 * $I$2 + (99999 - (ROUND(Wettkampf!K6,2)*100))*$I$3 + D5) -> 1513835290001 | J5: =LARGE($I$5:$I$29,$D5) -> 2808759890015 | K5: =ROUND(MOD(MOD(MOD(J5,$I$1),$I$3),100),0) -> 15 | L5: =ROUND((J5-MOD(J5,$I$1))/$I$1,0) -> 28 | M5: =IF(J5>0,1,0) -> 1 | N5: =IF(K5>0,K5*$I$2+M5,99*$I$2) -> 1500000001 | O5: =SMALL($N$5:$N$29,$D5) -> 100000001 | P5: =(O5-MOD(O5,$I$2))/$I$2 -> 1 | Q5: =MOD(O5,$I$2) -> 1 | S5: =IF($H$3=1,Wettkampf!BA6,IF(Wettkampf!BA6=0,0,Wettkampf!BA6*Wettkampf!L6)) -> 62 | T5: =IF($H$3=1,Wettkampf!BE6,IF(Wettkampf!BE6=0,0,Wettkampf!BE6*Wettkampf!L6)) -> 67 | V5: =IF($O$68=D5,IF($Q$68=1,IF($H$3=1,$S$68,$S$68*Wettkampf!L6),S5+IF($H$3=1,$S$68,$S$68*Wettkampf!L6)),H5) -> 129 | W5: =IF(V5="",0,F5*$I$1 + V5 * $I$2 + (99999 - (ROUND(Wettkampf!K6,2)*100))*$I$3 + D5) -> 1513835290001 | X5: =LARGE($W$5:$W$29,$D5) -> 2808759890015 | Y5: =ROUND(MOD(MOD(MOD(X5,$I$1),$I$3),100),0) -> 15 | Z5: =ROUND((X5-MOD(X5,$I$1))/$I$1,0) -> 28 | AA5: =IF(X5>0,1,0) -> 1 | AB5: =IF(Y5>0,Y5*$I$2+AA5,99*$I$2) -> 1500000001 | AC5: =SMALL($AB$5:$AB$29,$D5) -> 100000001 | AD5: =(AC5-MOD(AC5,$I$2))/$I$2 -> 1 | AE5: =ROUND(MOD(AC5,$I$2),0) -> 1 | AI5: =IF($O$68=D5,IF($Q$68=2,IF($H$3=1,$S$68,$S$68*Wettkampf!L6),0),IF(T5=0,"",T5)) -> 67 | AJ5: =IF(AI5="",0,F5*$I$1 + AI5 * $I$2 + (99999 - (ROUND(Wettkampf!K6,2)*100))*$I$3 + D5) -> 1507635290001 | AK5: =LARGE($AJ$5:$AJ$29,$D5) -> 2805459890015 | AL5: =ROUND(MOD(MOD(MOD(AK5,$I$1),$I$3),100),0) -> 15 | AM5: =ROUND((AK5-MOD(AK5,$I$1))/$I$1,0) -> 28 | AN5: =IF(AK5>0,1,0) -> 1 | AO5: =IF(AL5>0,AL5*$I$2+AN5,99*$I$2) -> 1500000001 | AP5: =SMALL($AO$5:$AO$29,$D5) -> 100000001 | AQ5: =ROUND((AP5-MOD(AP5,$I$2))/$I$2,0) -> 1 | AR5: =ROUND(MOD(AP5,$I$2),0) -> 1
A6: =S68 -> 999 | B6: =VLOOKUP(B5,Jahre,IF(Wettkampf!AI3="E",3,4)) -> 15 | D6: 2 | E6: =Wettkampf!H7 ->  | H6: =IF($H$3=1,IF(Wettkampf!M7=0,"",Wettkampf!M7),Wettkampf!N7) ->  | I6: =IF(H6="",0,F6*$I$1 + H6 * $I$2 + (99999 - (ROUND(Wettkampf!K7,2)*100))*$I$3 + D6) -> 0 | J6: =LARGE($I$5:$I$29,$D6) -> 2722893190013 | K6: =ROUND(MOD(MOD(MOD(J6,$I$1),$I$3),100),0) -> 13 | L6: =ROUND((J6-MOD(J6,$I$1))/$I$1,0) -> 27 | M6: =IF(J6>0,IF(L6=L5,M5+1,1),0) -> 1 | N6: =IF(K6>0,K6*$I$2+M6,99*$I$2) -> 1300000001 | O6: =SMALL($N$5:$N$29,$D6) -> 300000001 | P6: =(O6-MOD(O6,$I$2))/$I$2 -> 3 | Q6: =MOD(O6,$I$2) -> 1 | S6: =IF($H$3=1,Wettkampf!BA7,IF(Wettkampf!BA7=0,0,Wettkampf!BA7*Wettkampf!L7)) -> 0 | T6: =IF($H$3=1,Wettkampf!BE7,IF(Wettkampf!BE7=0,0,Wettkampf!BE7*Wettkampf!L7)) -> 0 | V6: =IF($O$68=D6,IF($Q$68=1,IF($H$3=1,$S$68,$S$68*Wettkampf!L7),S6+IF($H$3=1,$S$68,$S$68*Wettkampf!L7)),H6) ->  | W6: =IF(V6="",0,F6*$I$1 + V6 * $I$2 + (99999 - (ROUND(Wettkampf!K7,2)*100))*$I$3 + D6) -> 0 | X6: =LARGE($W$5:$W$29,$D6) -> 2722893190013 | Y6: =ROUND(MOD(MOD(MOD(X6,$I$1),$I$3),100),0) -> 13 | Z6: =ROUND((X6-MOD(X6,$I$1))/$I$1,0) -> 27 | AA6: =IF(X6>0,IF(Z6=Z5,AA5+1,1),0) -> 1 | AB6: =IF(Y6>0,Y6*$I$2+AA6,99*$I$2) -> 1300000001 | AC6: =SMALL($AB$5:$AB$29,$D6) -> 300000001 | AD6: =(AC6-MOD(AC6,$I$2))/$I$2 -> 3 | AE6: =ROUND(MOD(AC6,$I$2),0) -> 1 | AI6: =IF($O$68=D6,IF($Q$68=2,IF($H$3=1,$S$68,$S$68*Wettkampf!L7),0),IF(T6=0,"",T6)) ->  | AJ6: =IF(AI6="",0,F6*$I$1 + AI6 * $I$2 + (99999 - (ROUND(Wettkampf!K7,2)*100))*$I$3 + D6) -> 0 | AK6: =LARGE($AJ$5:$AJ$29,$D6) -> 2712893190013 | AL6: =ROUND(MOD(MOD(MOD(AK6,$I$1),$I$3),100),0) -> 13 | AM6: =ROUND((AK6-MOD(AK6,$I$1))/$I$1,0) -> 27 | AN6: =IF(AK6>0,IF(AM6=AM5,AN5+1,1),0) -> 1 | AO6: =IF(AL6>0,AL6*$I$2+AN6,99*$I$2) -> 1300000001 | AP6: =SMALL($AO$5:$AO$29,$D6) -> 300000001 | AQ6: =ROUND((AP6-MOD(AP6,$I$2))/$I$2,0) -> 3 | AR6: =ROUND(MOD(AP6,$I$2),0) -> 1
A7: =Wettkampf!B1 -> Reißen | D7: 3 | E7: =Wettkampf!H8 -> M-77 | F7: 23 | G7: 2 | H7: =IF($H$3=1,IF(Wettkampf!M8=0,"",Wettkampf!M8),Wettkampf!N8) -> 218 | I7: =IF(H7="",0,F7*$I$1 + H7 * $I$2 + (99999 - (ROUND(Wettkampf!K8,2)*100))*$I$3 + D7) -> 2322730690003 | J7: 2524508690009 | K7: 9 | L7: 25 | M7: =IF(J7>0,IF(L7=L6,M6+1,1),0) -> 1 | N7: 900000001 | O7: 500000001 | P7: 5 | Q7: 1 | S7: =IF($H$3=1,Wettkampf!BA8,IF(Wettkampf!BA8=0,0,Wettkampf!BA8*Wettkampf!L8)) -> 95 | T7: =IF($H$3=1,Wettkampf!BE8,IF(Wettkampf!BE8=0,0,Wettkampf!BE8*Wettkampf!L8)) -> 123 | V7: =IF($O$68=D7,IF($Q$68=1,IF($H$3=1,$S$68,$S$68*Wettkampf!L8),S7+IF($H$3=1,$S$68,$S$68*Wettkampf!L8)),H7) -> 218 | W7: =IF(V7="",0,F7*$I$1 + V7 * $I$2 + (99999 - (ROUND(Wettkampf!K8,2)*100))*$I$3 + D7) -> 2322730690003 | X7: 2524508690009 | Y7: 9 | Z7: 25 | AA7: =IF(X7>0,IF(Z7=Z6,AA6+1,1),0) -> 1 | AB7: 900000001 | AC7: 500000001 | AD7: 5 | AE7: 1 | AI7: =IF($O$68=D7,IF($Q$68=2,IF($H$3=1,$S$68,$S$68*Wettkampf!L8),0),IF(T7=0,"",T7)) -> 123 | AJ7: =IF(AI7="",0,F7*$I$1 + AI7 * $I$2 + (99999 - (ROUND(Wettkampf!K8,2)*100))*$I$3 + D7) -> 2313230690003 | AK7: 2514208690009 | AL7: 9 | AM7: 25 | AN7: =IF(AK7>0,IF(AM7=AM6,AN6+1,1),0) -> 1 | AO7: 900000001 | AP7: 500000001 | AQ7: 5 | AR7: 1
A8: =P68 -> 9 | D8: 4 | E8: =Wettkampf!H9 ->  | H8: =IF($H$3=1,IF(Wettkampf!M9=0,"",Wettkampf!M9),Wettkampf!N9) ->  | I8: =IF(H8="",0,F8*$I$1 + H8 * $I$2 + (99999 - (ROUND(Wettkampf!K9,2)*100))*$I$3 + D8) -> 0 | J8: 2524408790008 | K8: 8 | L8: 25 | M8: 2 | N8: 800000002 | O8: 600000002 | P8: 6 | Q8: 2 | S8: =IF($H$3=1,Wettkampf!BA9,IF(Wettkampf!BA9=0,0,Wettkampf!BA9*Wettkampf!L9)) -> 0 | T8: =IF($H$3=1,Wettkampf!BE9,IF(Wettkampf!BE9=0,0,Wettkampf!BE9*Wettkampf!L9)) -> 0 | V8: =IF($O$68=D8,IF($Q$68=1,IF($H$3=1,$S$68,$S$68*Wettkampf!L9),S8+IF($H$3=1,$S$68,$S$68*Wettkampf!L9)),H8) ->  | W8: =IF(V8="",0,F8*$I$1 + V8 * $I$2 + (99999 - (ROUND(Wettkampf!K9,2)*100))*$I$3 + D8) -> 0 | X8: 2524408790008 | Y8: 8 | Z8: 25 | AA8: 2 | AB8: 800000002 | AC8: 600000002 | AD8: 6 | AE8: 2 | AI8: =IF($O$68=D8,IF($Q$68=2,IF($H$3=1,$S$68,$S$68*Wettkampf!L9),0),IF(T8=0,"",T8)) ->  | AJ8: =IF(AI8="",0,F8*$I$1 + AI8 * $I$2 + (99999 - (ROUND(Wettkampf!K9,2)*100))*$I$3 + D8) -> 0 | AK8: 2513908790008 | AL8: 8 | AM8: 25 | AN8: 2 | AO8: 800000002 | AP8: 600000002 | AQ8: 6 | AR8: 2
A9: =LEFT(VLOOKUP(O68,Zeilen_Athleten,3),19) ->  | D9: 5 | E9: =Wettkampf!H10 -> M-85 | F9: 24 | G9: 2 | H9: =IF($H$3=1,IF(Wettkampf!M10=0,"",Wettkampf!M10),Wettkampf!N10) -> 212 | I9: =IF(H9="",0,F9*$I$1 + H9 * $I$2 + (99999 - (ROUND(Wettkampf!K10,2)*100))*$I$3 + D9) -> 2422117990005 | J9: 2521115190010 | K9: 10 | L9: 25 | M9: 3 | N9: 1000000003 | O9: 800000002 | P9: 8 | Q9: 2 | S9: =IF($H$3=1,Wettkampf!BA10,IF(Wettkampf!BA10=0,0,Wettkampf!BA10*Wettkampf!L10)) -> 96 | T9: =IF($H$3=1,Wettkampf!BE10,IF(Wettkampf!BE10=0,0,Wettkampf!BE10*Wettkampf!L10)) -> 116 | V9: =IF($O$68=D9,IF($Q$68=1,IF($H$3=1,$S$68,$S$68*Wettkampf!L10),S9+IF($H$3=1,$S$68,$S$68*Wettkampf!L10)),H9) -> 212 | W9: =IF(V9="",0,F9*$I$1 + V9 * $I$2 + (99999 - (ROUND(Wettkampf!K10,2)*100))*$I$3 + D9) -> 2422117990005 | X9: 2521115190010 | Y9: 10 | Z9: 25 | AA9: 3 | AB9: 1000000003 | AC9: 800000002 | AD9: 8 | AE9: 2 | AI9: =IF($O$68=D9,IF($Q$68=2,IF($H$3=1,$S$68,$S$68*Wettkampf!L10),0),IF(T9=0,"",T9)) -> 116 | AJ9: =IF(AI9="",0,F9*$I$1 + AI9 * $I$2 + (99999 - (ROUND(Wettkampf!K10,2)*100))*$I$3 + D9) -> 2412517990005 | AK9: 2512115190010 | AL9: 10 | AM9: 25 | AN9: 3 | AO9: 1000000003 | AP9: 800000002 | AQ9: 8 | AR9: 2
A10: =LEFT(VLOOKUP(O68,Zeilen_Einstellung,3),19) ->  | D10: 6 | E10: =Wettkampf!H11 -> M-85 | F10: 24 | G10: 2 | H10: =IF($H$3=1,IF(Wettkampf!M11=0,"",Wettkampf!M11),Wettkampf!N11) -> 180 | I10: =IF(H10="",0,F10*$I$1 + H10 * $I$2 + (99999 - (ROUND(Wettkampf!K11,2)*100))*$I$3 + D10) -> 2418918990006 | J10: 2520409390011 | K10: 11 | L10: 25 | M10: 4 | N10: 1100000004 | O10: 900000001 | P10: 9 | Q10: 1 | S10: =IF($H$3=1,Wettkampf!BA11,IF(Wettkampf!BA11=0,0,Wettkampf!BA11*Wettkampf!L11)) -> 80 | T10: =IF($H$3=1,Wettkampf!BE11,IF(Wettkampf!BE11=0,0,Wettkampf!BE11*Wettkampf!L11)) -> 100 | V10: =IF($O$68=D10,IF($Q$68=1,IF($H$3=1,$S$68,$S$68*Wettkampf!L11),S10+IF($H$3=1,$S$68,$S$68*Wettkampf!L11)),H10) -> 180 | W10: =IF(V10="",0,F10*$I$1 + V10 * $I$2 + (99999 - (ROUND(Wettkampf!K11,2)*100))*$I$3 + D10) -> 2418918990006 | X10: 2520409390011 | Y10: 11 | Z10: 25 | AA10: 4 | AB10: 1100000004 | AC10: 900000001 | AD10: 9 | AE10: 1 | AI10: =IF($O$68=D10,IF($Q$68=2,IF($H$3=1,$S$68,$S$68*Wettkampf!L11),0),IF(T10=0,"",T10)) -> 100 | AJ10: =IF(AI10="",0,F10*$I$1 + AI10 * $I$2 + (99999 - (ROUND(Wettkampf!K11,2)*100))*$I$3 + D10) -> 2410918990006 | AK10: 2512109390011 | AL10: 11 | AM10: 25 | AN10: 4 | AO10: 1100000004 | AP10: 900000001 | AQ10: 9 | AR10: 1
A11: ="" ->  | B11: =IF(UPPER(LEFT(TEXT(A10,"####"),1))="W",A10,IF(UPPER(LEFT(TEXT(A10,"####"),1))="M",A10,IF(UPPER(LEFT(TEXT(A10,"####"),1))="X",A10,""))) ->  | C11: =IF(A10>0,IF(B11="",A10*1,""),"") ->  | D11: 7 | E11: =Wettkampf!H12 ->  | H11: =IF($H$3=1,IF(Wettkampf!M12=0,"",Wettkampf!M12),Wettkampf!N12) ->  | I11: =IF(H11="",0,F11*$I$1 + H11 * $I$2 + (99999 - (ROUND(Wettkampf!K12,2)*100))*$I$3 + D11) -> 0 | J11: 2422117990005 | K11: 5 | L11: 24 | M11: 1 | N11: 500000001 | O11: 1000000003 | P11: 10 | Q11: 3 | S11: =IF($H$3=1,Wettkampf!BA12,IF(Wettkampf!BA12=0,0,Wettkampf!BA12*Wettkampf!L12)) -> 0 | T11: =IF($H$3=1,Wettkampf!BE12,IF(Wettkampf!BE12=0,0,Wettkampf!BE12*Wettkampf!L12)) -> 0 | V11: =IF($O$68=D11,IF($Q$68=1,IF($H$3=1,$S$68,$S$68*Wettkampf!L12),S11+IF($H$3=1,$S$68,$S$68*Wettkampf!L12)),H11) ->  | W11: =IF(V11="",0,F11*$I$1 + V11 * $I$2 + (99999 - (ROUND(Wettkampf!K12,2)*100))*$I$3 + D11) -> 0 | X11: 2422117990005 | Y11: 5 | Z11: 24 | AA11: 1 | AB11: 500000001 | AC11: 1000000003 | AD11: 10 | AE11: 3 | AI11: =IF($O$68=D11,IF($Q$68=2,IF($H$3=1,$S$68,$S$68*Wettkampf!L12),0),IF(T11=0,"",T11)) ->  | AJ11: =IF(AI11="",0,F11*$I$1 + AI11 * $I$2 + (99999 - (ROUND(Wettkampf!K12,2)*100))*$I$3 + D11) -> 0 | AK11: 2412517990005 | AL11: 5 | AM11: 24 | AN11: 1 | AO11: 500000001 | AP11: 1000000003 | AQ11: 10 | AR11: 3
A12: =IF(A11<>"",IF(VLOOKUP(A11,Athl02,1)=A11,VLOOKUP(A11,Athl02,2),""), IF(B11<>"",IF(VLOOKUP(B11,Athl06,1)=B11,VLOOKUP(B11,Athl06,2),""), IF(C11<>"",IF(VLOOKUP(C11,Athl04,1)=C11,VLOOKUP(C11,Athl04,2),""),""))) ->  | D12: 8 | E12: =Wettkampf!H13 -> M-94 | F12: 25 | G12: 2 | H12: =IF($H$3=1,IF(Wettkampf!M13=0,"",Wettkampf!M13),Wettkampf!N13) -> 235 | I12: =IF(H12="",0,F12*$I$1 + H12 * $I$2 + (99999 - (ROUND(Wettkampf!K13,2)*100))*$I$3 + D12) -> 2524408790008 | J12: 2418918990006 | K12: 6 | L12: 24 | M12: 2 | N12: 600000002 | O12: 1100000004 | P12: 11 | Q12: 4 | S12: =IF($H$3=1,Wettkampf!BA13,IF(Wettkampf!BA13=0,0,Wettkampf!BA13*Wettkampf!L13)) -> 105 | T12: =IF($H$3=1,Wettkampf!BE13,IF(Wettkampf!BE13=0,0,Wettkampf!BE13*Wettkampf!L13)) -> 130 | V12: =IF($O$68=D12,IF($Q$68=1,IF($H$3=1,$S$68,$S$68*Wettkampf!L13),S12+IF($H$3=1,$S$68,$S$68*Wettkampf!L13)),H12) -> 235 | W12: =IF(V12="",0,F12*$I$1 + V12 * $I$2 + (99999 - (ROUND(Wettkampf!K13,2)*100))*$I$3 + D12) -> 2524408790008 | X12: 2418918990006 | Y12: 6 | Z12: 24 | AA12: 2 | AB12: 600000002 | AC12: 1100000004 | AD12: 11 | AE12: 4 | AI12: =IF($O$68=D12,IF($Q$68=2,IF($H$3=1,$S$68,$S$68*Wettkampf!L13),0),IF(T12=0,"",T12)) -> 130 | AJ12: =IF(AI12="",0,F12*$I$1 + AI12 * $I$2 + (99999 - (ROUND(Wettkampf!K13,2)*100))*$I$3 + D12) -> 2513908790008 | AK12: 2410918990006 | AL12: 6 | AM12: 24 | AN12: 2 | AO12: 600000002 | AP12: 1100000004 | AQ12: 11 | AR12: 4
A13: =VLOOKUP(A12,Athl01,B6,FALSE) ->  | D13: 9 | E13: =Wettkampf!H14 -> M-94 | F13: 25 | G13: 2 | H13: =IF($H$3=1,IF(Wettkampf!M14=0,"",Wettkampf!M14),Wettkampf!N14) -> 236 | I13: =IF(H13="",0,F13*$I$1 + H13 * $I$2 + (99999 - (ROUND(Wettkampf!K14,2)*100))*$I$3 + D13) -> 2524508690009 | J13: 2322730690003 | K13: 3 | L13: 23 | M13: 1 | N13: 300000001 | O13: 1300000001 | P13: 13 | Q13: 1 | S13: =IF($H$3=1,Wettkampf!BA14,IF(Wettkampf!BA14=0,0,Wettkampf!BA14*Wettkampf!L14)) -> 103 | T13: =IF($H$3=1,Wettkampf!BE14,IF(Wettkampf!BE14=0,0,Wettkampf!BE14*Wettkampf!L14)) -> 133 | V13: =IF($O$68=D13,IF($Q$68=1,IF($H$3=1,$S$68,$S$68*Wettkampf!L14),S13+IF($H$3=1,$S$68,$S$68*Wettkampf!L14)),H13) -> 236 | W13: =IF(V13="",0,F13*$I$1 + V13 * $I$2 + (99999 - (ROUND(Wettkampf!K14,2)*100))*$I$3 + D13) -> 2524508690009 | X13: 2322730690003 | Y13: 3 | Z13: 23 | AA13: 1 | AB13: 300000001 | AC13: 1300000001 | AD13: 13 | AE13: 1 | AI13: =IF($O$68=D13,IF($Q$68=2,IF($H$3=1,$S$68,$S$68*Wettkampf!L14),0),IF(T13=0,"",T13)) -> 133 | AJ13: =IF(AI13="",0,F13*$I$1 + AI13 * $I$2 + (99999 - (ROUND(Wettkampf!K14,2)*100))*$I$3 + D13) -> 2514208690009 | AK13: 2313230690003 | AL13: 3 | AM13: 23 | AN13: 1 | AO13: 300000001 | AP13: 1300000001 | AQ13: 13 | AR13: 1
A14: =IF(ISERROR(VLOOKUP(A13,Vereine,2,FALSE)),A13,VLOOKUP(A13,Vereine,2,FALSE)) ->  | D14: 10 | E14: =Wettkampf!H15 -> M-94 | F14: 25 | G14: 2 | H14: =IF($H$3=1,IF(Wettkampf!M15=0,"",Wettkampf!M15),Wettkampf!N15) -> 202 | I14: =IF(H14="",0,F14*$I$1 + H14 * $I$2 + (99999 - (ROUND(Wettkampf!K15,2)*100))*$I$3 + D14) -> 2521115190010 | J14: 1513835290001 | K14: 1 | L14: 15 | M14: 1 | N14: 100000001 | O14: 1500000001 | P14: 15 | Q14: 1 | S14: =IF($H$3=1,Wettkampf!BA15,IF(Wettkampf!BA15=0,0,Wettkampf!BA15*Wettkampf!L15)) -> 90 | T14: =IF($H$3=1,Wettkampf!BE15,IF(Wettkampf!BE15=0,0,Wettkampf!BE15*Wettkampf!L15)) -> 112 | V14: =IF($O$68=D14,IF($Q$68=1,IF($H$3=1,$S$68,$S$68*Wettkampf!L15),S14+IF($H$3=1,$S$68,$S$68*Wettkampf!L15)),H14) -> 202 | W14: =IF(V14="",0,F14*$I$1 + V14 * $I$2 + (99999 - (ROUND(Wettkampf!K15,2)*100))*$I$3 + D14) -> 2521115190010 | X14: 1513835290001 | Y14: 1 | Z14: 15 | AA14: 1 | AB14: 100000001 | AC14: 1500000001 | AD14: 15 | AE14: 1 | AI14: =IF($O$68=D14,IF($Q$68=2,IF($H$3=1,$S$68,$S$68*Wettkampf!L15),0),IF(T14=0,"",T14)) -> 112 | AJ14: =IF(AI14="",0,F14*$I$1 + AI14 * $I$2 + (99999 - (ROUND(Wettkampf!K15,2)*100))*$I$3 + D14) -> 2512115190010 | AK14: 1507635290001 | AL14: 1 | AM14: 15 | AN14: 1 | AO14: 100000001 | AP14: 1500000001 | AQ14: 15 | AR14: 1
A15: =IF(VLOOKUP(A12,Athl01,13,FALSE)=0,"AUT",IF(VLOOKUP(A12,Athl01,13,FALSE)="","AUT",VLOOKUP(A12,Athl01,13,FALSE))) ->  | D15: 11 | E15: =Wettkampf!H16 -> M-94 | F15: 25 | G15: 2 | H15: =IF($H$3=1,IF(Wettkampf!M16=0,"",Wettkampf!M16),Wettkampf!N16) -> 195 | I15: =IF(H15="",0,F15*$I$1 + H15 * $I$2 + (99999 - (ROUND(Wettkampf!K16,2)*100))*$I$3 + D15) -> 2520409390011 | J15: 0 | K15: 0 | L15: 0 | M15: 0 | N15: 9900000000 | O15: 9900000000 | P15: 99 | Q15: 0 | S15: =IF($H$3=1,Wettkampf!BA16,IF(Wettkampf!BA16=0,0,Wettkampf!BA16*Wettkampf!L16)) -> 83 | T15: =IF($H$3=1,Wettkampf!BE16,IF(Wettkampf!BE16=0,0,Wettkampf!BE16*Wettkampf!L16)) -> 112 | V15: =IF($O$68=D15,IF($Q$68=1,IF($H$3=1,$S$68,$S$68*Wettkampf!L16),S15+IF($H$3=1,$S$68,$S$68*Wettkampf!L16)),H15) -> 195 | W15: =IF(V15="",0,F15*$I$1 + V15 * $I$2 + (99999 - (ROUND(Wettkampf!K16,2)*100))*$I$3 + D15) -> 2520409390011 | X15: 0 | Y15: 0 | Z15: 0 | AA15: 0 | AB15: 9900000000 | AC15: 9900000000 | AD15: 99 | AE15: 0 | AI15: =IF($O$68=D15,IF($Q$68=2,IF($H$3=1,$S$68,$S$68*Wettkampf!L16),0),IF(T15=0,"",T15)) -> 112 | AJ15: =IF(AI15="",0,F15*$I$1 + AI15 * $I$2 + (99999 - (ROUND(Wettkampf!K16,2)*100))*$I$3 + D15) -> 2512109390011 | AK15: 0 | AL15: 0 | AM15: 0 | AN15: 0 | AO15: 9900000000 | AP15: 9900000000 | AQ15: 99 | AR15: 0
A16: =O68 -> 99 | B16: =IF(ISERROR(VLOOKUP(A16,Wiegeliste!HF20:HG43,2,FALSE)),"",VLOOKUP(A16,Wiegeliste!HF20:HG43,2,FALSE)) ->  | D16: 12 | E16: =Wettkampf!H17 ->  | H16: =IF($H$3=1,IF(Wettkampf!M17=0,"",Wettkampf!M17),Wettkampf!N17) ->  | I16: =IF(H16="",0,F16*$I$1 + H16 * $I$2 + (99999 - (ROUND(Wettkampf!K17,2)*100))*$I$3 + D16) -> 0 | J16: 0 | K16: 0 | L16: 0 | M16: 0 | N16: 9900000000 | O16: 9900000000 | P16: 99 | Q16: 0 | S16: =IF($H$3=1,Wettkampf!BA17,IF(Wettkampf!BA17=0,0,Wettkampf!BA17*Wettkampf!L17)) -> 0 | T16: =IF($H$3=1,Wettkampf!BE17,IF(Wettkampf!BE17=0,0,Wettkampf!BE17*Wettkampf!L17)) -> 0 | V16: =IF($O$68=D16,IF($Q$68=1,IF($H$3=1,$S$68,$S$68*Wettkampf!L17),S16+IF($H$3=1,$S$68,$S$68*Wettkampf!L17)),H16) ->  | W16: =IF(V16="",0,F16*$I$1 + V16 * $I$2 + (99999 - (ROUND(Wettkampf!K17,2)*100))*$I$3 + D16) -> 0 | X16: 0 | Y16: 0 | Z16: 0 | AA16: 0 | AB16: 9900000000 | AC16: 9900000000 | AD16: 99 | AE16: 0 | AI16: =IF($O$68=D16,IF($Q$68=2,IF($H$3=1,$S$68,$S$68*Wettkampf!L17),0),IF(T16=0,"",T16)) ->  | AJ16: =IF(AI16="",0,F16*$I$1 + AI16 * $I$2 + (99999 - (ROUND(Wettkampf!K17,2)*100))*$I$3 + D16) -> 0 | AK16: 0 | AL16: 0 | AM16: 0 | AN16: 0 | AO16: 9900000000 | AP16: 9900000000 | AQ16: 99 | AR16: 0
A17: =IF(ISERROR(VLOOKUP(B16,Zeilen_Einstellung,26,FALSE)),"",VLOOKUP(B16,Zeilen_Einstellung,26,FALSE)) ->  | D17: 13 | E17: =Wettkampf!H18 -> M+105 | F17: 27 | G17: 2 | H17: =IF($H$3=1,IF(Wettkampf!M18=0,"",Wettkampf!M18),Wettkampf!N18) -> 220 | I17: =IF(H17="",0,F17*$I$1 + H17 * $I$2 + (99999 - (ROUND(Wettkampf!K18,2)*100))*$I$3 + D17) -> 2722893190013 | J17: 0 | K17: 0 | L17: 0 | M17: 0 | N17: 9900000000 | O17: 9900000000 | P17: 99 | Q17: 0 | S17: =IF($H$3=1,Wettkampf!BA18,IF(Wettkampf!BA18=0,0,Wettkampf!BA18*Wettkampf!L18)) -> 100 | T17: =IF($H$3=1,Wettkampf!BE18,IF(Wettkampf!BE18=0,0,Wettkampf!BE18*Wettkampf!L18)) -> 120 | V17: =IF($O$68=D17,IF($Q$68=1,IF($H$3=1,$S$68,$S$68*Wettkampf!L18),S17+IF($H$3=1,$S$68,$S$68*Wettkampf!L18)),H17) -> 220 | W17: =IF(V17="",0,F17*$I$1 + V17 * $I$2 + (99999 - (ROUND(Wettkampf!K18,2)*100))*$I$3 + D17) -> 2722893190013 | X17: 0 | Y17: 0 | Z17: 0 | AA17: 0 | AB17: 9900000000 | AC17: 9900000000 | AD17: 99 | AE17: 0 | AI17: =IF($O$68=D17,IF($Q$68=2,IF($H$3=1,$S$68,$S$68*Wettkampf!L18),0),IF(T17=0,"",T17)) -> 120 | AJ17: =IF(AI17="",0,F17*$I$1 + AI17 * $I$2 + (99999 - (ROUND(Wettkampf!K18,2)*100))*$I$3 + D17) -> 2712893190013 | AK17: 0 | AL17: 0 | AM17: 0 | AN17: 0 | AO17: 9900000000 | AP17: 9900000000 | AQ17: 99 | AR17: 0
A18: =IF(B16="",Einzelanzeige!D1,IF(ISERROR(VLOOKUP(B16,Wiegeliste!A20:BC44,$A$3)),Einzelanzeige!D1,VLOOKUP(B16,Wiegeliste!A20:BC44,$A$3))) -> DUMMY.JPG | D18: 14 | E18: =Wettkampf!H19 ->  | H18: =IF($H$3=1,IF(Wettkampf!M19=0,"",Wettkampf!M19),Wettkampf!N19) ->  | I18: =IF(H18="",0,F18*$I$1 + H18 * $I$2 + (99999 - (ROUND(Wettkampf!K19,2)*100))*$I$3 + D18) -> 0 | J18: 0 | K18: 0 | L18: 0 | M18: 0 | N18: 9900000000 | O18: 9900000000 | P18: 99 | Q18: 0 | S18: =IF($H$3=1,Wettkampf!BA19,IF(Wettkampf!BA19=0,0,Wettkampf!BA19*Wettkampf!L19)) -> 0 | T18: =IF($H$3=1,Wettkampf!BE19,IF(Wettkampf!BE19=0,0,Wettkampf!BE19*Wettkampf!L19)) -> 0 | V18: =IF($O$68=D18,IF($Q$68=1,IF($H$3=1,$S$68,$S$68*Wettkampf!L19),S18+IF($H$3=1,$S$68,$S$68*Wettkampf!L19)),H18) ->  | W18: =IF(V18="",0,F18*$I$1 + V18 * $I$2 + (99999 - (ROUND(Wettkampf!K19,2)*100))*$I$3 + D18) -> 0 | X18: 0 | Y18: 0 | Z18: 0 | AA18: 0 | AB18: 9900000000 | AC18: 9900000000 | AD18: 99 | AE18: 0 | AI18: =IF($O$68=D18,IF($Q$68=2,IF($H$3=1,$S$68,$S$68*Wettkampf!L19),0),IF(T18=0,"",T18)) ->  | AJ18: =IF(AI18="",0,F18*$I$1 + AI18 * $I$2 + (99999 - (ROUND(Wettkampf!K19,2)*100))*$I$3 + D18) -> 0 | AK18: 0 | AL18: 0 | AM18: 0 | AN18: 0 | AO18: 9900000000 | AP18: 9900000000 | AQ18: 99 | AR18: 0
D19: 15 | E19: =Wettkampf!H20 -> M-50 | F19: 28 | G19: 2 | H19: =IF($H$3=1,IF(Wettkampf!M20=0,"",Wettkampf!M20),Wettkampf!N20) -> 78 | I19: =IF(H19="",0,F19*$I$1 + H19 * $I$2 + (99999 - (ROUND(Wettkampf!K20,2)*100))*$I$3 + D19) -> 2808759890015 | J19: 0 | K19: 0 | L19: 0 | M19: 0 | N19: 9900000000 | O19: 9900000000 | P19: 99 | Q19: 0 | S19: =IF($H$3=1,Wettkampf!BA20,IF(Wettkampf!BA20=0,0,Wettkampf!BA20*Wettkampf!L20)) -> 33 | T19: =IF($H$3=1,Wettkampf!BE20,IF(Wettkampf!BE20=0,0,Wettkampf!BE20*Wettkampf!L20)) -> 45 | V19: =IF($O$68=D19,IF($Q$68=1,IF($H$3=1,$S$68,$S$68*Wettkampf!L20),S19+IF($H$3=1,$S$68,$S$68*Wettkampf!L20)),H19) -> 78 | W19: =IF(V19="",0,F19*$I$1 + V19 * $I$2 + (99999 - (ROUND(Wettkampf!K20,2)*100))*$I$3 + D19) -> 2808759890015 | X19: 0 | Y19: 0 | Z19: 0 | AA19: 0 | AB19: 9900000000 | AC19: 9900000000 | AD19: 99 | AE19: 0 | AI19: =IF($O$68=D19,IF($Q$68=2,IF($H$3=1,$S$68,$S$68*Wettkampf!L20),0),IF(T19=0,"",T19)) -> 45 | AJ19: =IF(AI19="",0,F19*$I$1 + AI19 * $I$2 + (99999 - (ROUND(Wettkampf!K20,2)*100))*$I$3 + D19) -> 2805459890015 | AK19: 0 | AL19: 0 | AM19: 0 | AN19: 0 | AO19: 9900000000 | AP19: 9900000000 | AQ19: 99 | AR19: 0
D20: 16 | E20: =Wettkampf!H21 ->  | H20: =IF($H$3=1,IF(Wettkampf!M21=0,"",Wettkampf!M21),Wettkampf!N21) ->  | I20: =IF(H20="",0,F20*$I$1 + H20 * $I$2 + (99999 - (ROUND(Wettkampf!K21,2)*100))*$I$3 + D20) -> 0 | J20: 0 | K20: 0 | L20: 0 | M20: 0 | N20: 9900000000 | O20: 9900000000 | P20: 99 | Q20: 0 | S20: =IF($H$3=1,Wettkampf!BA21,IF(Wettkampf!BA21=0,0,Wettkampf!BA21*Wettkampf!L21)) -> 0 | T20: =IF($H$3=1,Wettkampf!BE21,IF(Wettkampf!BE21=0,0,Wettkampf!BE21*Wettkampf!L21)) -> 0 | V20: =IF($O$68=D20,IF($Q$68=1,IF($H$3=1,$S$68,$S$68*Wettkampf!L21),S20+IF($H$3=1,$S$68,$S$68*Wettkampf!L21)),H20) ->  | W20: =IF(V20="",0,F20*$I$1 + V20 * $I$2 + (99999 - (ROUND(Wettkampf!K21,2)*100))*$I$3 + D20) -> 0 | X20: 0 | Y20: 0 | Z20: 0 | AA20: 0 | AB20: 9900000000 | AC20: 9900000000 | AD20: 99 | AE20: 0 | AI20: =IF($O$68=D20,IF($Q$68=2,IF($H$3=1,$S$68,$S$68*Wettkampf!L21),0),IF(T20=0,"",T20)) ->  | AJ20: =IF(AI20="",0,F20*$I$1 + AI20 * $I$2 + (99999 - (ROUND(Wettkampf!K21,2)*100))*$I$3 + D20) -> 0 | AK20: 0 | AL20: 0 | AM20: 0 | AN20: 0 | AO20: 9900000000 | AP20: 9900000000 | AQ20: 99 | AR20: 0
D21: 17 | E21: =Wettkampf!H22 ->  | H21: =IF($H$3=1,IF(Wettkampf!M22=0,"",Wettkampf!M22),Wettkampf!N22) ->  | I21: =IF(H21="",0,F21*$I$1 + H21 * $I$2 + (99999 - (ROUND(Wettkampf!K22,2)*100))*$I$3 + D21) -> 0 | J21: 0 | K21: 0 | L21: 0 | M21: 0 | N21: 9900000000 | O21: 9900000000 | P21: 99 | Q21: 0 | S21: =IF($H$3=1,Wettkampf!BA22,IF(Wettkampf!BA22=0,0,Wettkampf!BA22*Wettkampf!L22)) -> 0 | T21: =IF($H$3=1,Wettkampf!BE22,IF(Wettkampf!BE22=0,0,Wettkampf!BE22*Wettkampf!L22)) -> 0 | V21: =IF($O$68=D21,IF($Q$68=1,IF($H$3=1,$S$68,$S$68*Wettkampf!L22),S21+IF($H$3=1,$S$68,$S$68*Wettkampf!L22)),H21) ->  | W21: =IF(V21="",0,F21*$I$1 + V21 * $I$2 + (99999 - (ROUND(Wettkampf!K22,2)*100))*$I$3 + D21) -> 0 | X21: 0 | Y21: 0 | Z21: 0 | AA21: 0 | AB21: 9900000000 | AC21: 9900000000 | AD21: 99 | AE21: 0 | AI21: =IF($O$68=D21,IF($Q$68=2,IF($H$3=1,$S$68,$S$68*Wettkampf!L22),0),IF(T21=0,"",T21)) ->  | AJ21: =IF(AI21="",0,F21*$I$1 + AI21 * $I$2 + (99999 - (ROUND(Wettkampf!K22,2)*100))*$I$3 + D21) -> 0 | AK21: 0 | AL21: 0 | AM21: 0 | AN21: 0 | AO21: 9900000000 | AP21: 9900000000 | AQ21: 99 | AR21: 0
D22: 18 | E22: =Wettkampf!H23 ->  | H22: =IF($H$3=1,IF(Wettkampf!M23=0,"",Wettkampf!M23),Wettkampf!N23) ->  | I22: =IF(H22="",0,F22*$I$1 + H22 * $I$2 + (99999 - (ROUND(Wettkampf!K23,2)*100))*$I$3 + D22) -> 0 | J22: 0 | K22: 0 | L22: 0 | M22: 0 | N22: 9900000000 | O22: 9900000000 | P22: 99 | Q22: 0 | S22: =IF($H$3=1,Wettkampf!BA23,IF(Wettkampf!BA23=0,0,Wettkampf!BA23*Wettkampf!L23)) -> 0 | T22: =IF($H$3=1,Wettkampf!BE23,IF(Wettkampf!BE23=0,0,Wettkampf!BE23*Wettkampf!L23)) -> 0 | V22: =IF($O$68=D22,IF($Q$68=1,IF($H$3=1,$S$68,$S$68*Wettkampf!L23),S22+IF($H$3=1,$S$68,$S$68*Wettkampf!L23)),H22) ->  | W22: =IF(V22="",0,F22*$I$1 + V22 * $I$2 + (99999 - (ROUND(Wettkampf!K23,2)*100))*$I$3 + D22) -> 0 | X22: 0 | Y22: 0 | Z22: 0 | AA22: 0 | AB22: 9900000000 | AC22: 9900000000 | AD22: 99 | AE22: 0 | AI22: =IF($O$68=D22,IF($Q$68=2,IF($H$3=1,$S$68,$S$68*Wettkampf!L23),0),IF(T22=0,"",T22)) ->  | AJ22: =IF(AI22="",0,F22*$I$1 + AI22 * $I$2 + (99999 - (ROUND(Wettkampf!K23,2)*100))*$I$3 + D22) -> 0 | AK22: 0 | AL22: 0 | AM22: 0 | AN22: 0 | AO22: 9900000000 | AP22: 9900000000 | AQ22: 99 | AR22: 0
D23: 19 | E23: =Wettkampf!H24 ->  | H23: =IF($H$3=1,IF(Wettkampf!M24=0,"",Wettkampf!M24),Wettkampf!N24) ->  | I23: =IF(H23="",0,F23*$I$1 + H23 * $I$2 + (99999 - (ROUND(Wettkampf!K24,2)*100))*$I$3 + D23) -> 0 | J23: 0 | K23: 0 | L23: 0 | M23: 0 | N23: 9900000000 | O23: 9900000000 | P23: 99 | Q23: 0 | S23: =IF($H$3=1,Wettkampf!BA24,IF(Wettkampf!BA24=0,0,Wettkampf!BA24*Wettkampf!L24)) -> 0 | T23: =IF($H$3=1,Wettkampf!BE24,IF(Wettkampf!BE24=0,0,Wettkampf!BE24*Wettkampf!L24)) -> 0 | V23: =IF($O$68=D23,IF($Q$68=1,IF($H$3=1,$S$68,$S$68*Wettkampf!L24),S23+IF($H$3=1,$S$68,$S$68*Wettkampf!L24)),H23) ->  | W23: =IF(V23="",0,F23*$I$1 + V23 * $I$2 + (99999 - (ROUND(Wettkampf!K24,2)*100))*$I$3 + D23) -> 0 | X23: 0 | Y23: 0 | Z23: 0 | AA23: 0 | AB23: 9900000000 | AC23: 9900000000 | AD23: 99 | AE23: 0 | AI23: =IF($O$68=D23,IF($Q$68=2,IF($H$3=1,$S$68,$S$68*Wettkampf!L24),0),IF(T23=0,"",T23)) ->  | AJ23: =IF(AI23="",0,F23*$I$1 + AI23 * $I$2 + (99999 - (ROUND(Wettkampf!K24,2)*100))*$I$3 + D23) -> 0 | AK23: 0 | AL23: 0 | AM23: 0 | AN23: 0 | AO23: 9900000000 | AP23: 9900000000 | AQ23: 99 | AR23: 0
D24: 20 | E24: =Wettkampf!H25 ->  | H24: =IF($H$3=1,IF(Wettkampf!M25=0,"",Wettkampf!M25),Wettkampf!N25) ->  | I24: =IF(H24="",0,F24*$I$1 + H24 * $I$2 + (99999 - (ROUND(Wettkampf!K25,2)*100))*$I$3 + D24) -> 0 | J24: 0 | K24: 0 | L24: 0 | M24: 0 | N24: 9900000000 | O24: 9900000000 | P24: 99 | Q24: 0 | S24: =IF($H$3=1,Wettkampf!BA25,IF(Wettkampf!BA25=0,0,Wettkampf!BA25*Wettkampf!L25)) -> 0 | T24: =IF($H$3=1,Wettkampf!BE25,IF(Wettkampf!BE25=0,0,Wettkampf!BE25*Wettkampf!L25)) -> 0 | V24: =IF($O$68=D24,IF($Q$68=1,IF($H$3=1,$S$68,$S$68*Wettkampf!L25),S24+IF($H$3=1,$S$68,$S$68*Wettkampf!L25)),H24) ->  | W24: =IF(V24="",0,F24*$I$1 + V24 * $I$2 + (99999 - (ROUND(Wettkampf!K25,2)*100))*$I$3 + D24) -> 0 | X24: 0 | Y24: 0 | Z24: 0 | AA24: 0 | AB24: 9900000000 | AC24: 9900000000 | AD24: 99 | AE24: 0 | AI24: =IF($O$68=D24,IF($Q$68=2,IF($H$3=1,$S$68,$S$68*Wettkampf!L25),0),IF(T24=0,"",T24)) ->  | AJ24: =IF(AI24="",0,F24*$I$1 + AI24 * $I$2 + (99999 - (ROUND(Wettkampf!K25,2)*100))*$I$3 + D24) -> 0 | AK24: 0 | AL24: 0 | AM24: 0 | AN24: 0 | AO24: 9900000000 | AP24: 9900000000 | AQ24: 99 | AR24: 0
